Workbook

Sheet Escenarios
B2: VIABILIDAD DEL PROYECTO DE TRAFICANTES DE SUEÑOS
B4: ESCENARIO BASE | I4: FLUJO DE CAJA 2024
C5: 2024 | D5: 2025 | E5: 2026 | F5: 2027 | G5: 2028 | K5: ENE | L5: FEB | M5: MAR | N5: ABR | O5: MAY | P5: JUN | Q5: JUL | R5: AGO | S5: SEP | T5: OCT | U5: NOV | V5: DIC | W5: Total
B6: 1. Importe neto de la cifra de negocios | C6: 1388357.447 | D6: 1532893.192 | E6: 1685462.511 | F6: 1769460.236 | G6: 1857652.34
B7: 700 VENTAS DE MERCADERÍAS | C7: 1268183.936 | D7: 1395002.33 | E7: 1534502.563 | F7: 1611227.691 | G7: 1691789.075 | I7: Saldo inicial | K7: 295506.814 | L7: 275492.518 | M7: 286866.0887 | N7: 298239.6493 | O7: 452037.5084 | P7: 460527.209 | Q7: 460231.0797 | R7: 402078.1111 | S7: 709914.1017 | T7: 717573.8524 | U7: 112951.573 | V7: 123252.6224 | W7: 165152.8968
B8: 705 PRESTACIONES DE SERVICIOS | C8: 117173.5107 | D8: 128890.8618 | E8: 141779.9479 | F8: 148868.9453 | G8: 156312.3926
B9: ALQUILER ESPACIO | C9: 3000 | D9: 9000 | E9: 9180 | F9: 9363.6 | G9: 9550.872 | I9: Ingresos
B10: APERTURA DOMINGOS | C10: 0 | D10: 0 | E10: 0 | F10: 0 | G10: 0 | I10: 700 VENTAS DE MERCADERÍAS | K10: 105681.9947 | L10: 105681.9947 | M10: 105681.9947 | N10: 105681.9947 | O10: 105681.9947 | P10: 105681.9947 | Q10: 105681.9947 | R10: 105681.9947 | S10: 105681.9947 | T10: 105681.9947 | U10: 105681.9947 | V10: 105681.9947 | W10: 1268183.936
B11: 2. Variac.de existencias de produc.terminados e | C11: 21257.24 | D11: 0 | E11: 0 | F11: 0 | G11: 0 | I11: 705 PRESTACIONES DE SERVICIOS | K11: 9764.459225 | L11: 9764.459225 | M11: 9764.459225 | N11: 9764.459225 | O11: 9764.459225 | P11: 9764.459225 | Q11: 9764.459225 | R11: 9764.459225 | S11: 9764.459225 | T11: 9764.459225 | U11: 9764.459225 | V11: 9764.459225 | W11: 117173.5107
B12: 712 VARIACIÓN DE EXISTENCIAS DE P | C12: 21257.24 | I12: ALQUILER ESPACIOS | K12: 250 | L12: 250 | M12: 250 | N12: 250 | O12: 250 | P12: 250 | Q12: 250 | R12: 250 | S12: 250 | T12: 250 | U12: 250 | V12: 250 | W12: 3000
B13: 793 REVERSIÓN DEL DETERIORO DE EX | I13: 700 APERTURA DOMINGOS | K13: 0 | L13: 0 | M13: 0 | N13: 0 | O13: 0 | P13: 0 | Q13: 0 | R13: 0 | S13: 0 | T13: 0 | U13: 0 | V13: 0 | W13: 0
B14: 4. Aprovisionamientos | C14: -773912.7068 | D14: -851303.9775 | E14: -936434.3752 | F14: -983256.094 | G14: -1032418.899 | I14: 720 DONACIONES DIRECTAS | K14: 8333.333333 | L14: 8333.333333 | M14: 8333.333333 | N14: 8333.333333 | O14: 8333.333333 | P14: 8333.333333 | Q14: 8333.333333 | R14: 8333.333333 | S14: 8333.333333 | T14: 8333.333333 | U14: 8333.333333 | V14: 8333.333333 | W14: 100000
B15: 600 COMPRAS DE MERCADERÍAS | C15: -727186.9525 | D15: -799905.6478 | E15: -879896.2125 | F15: -923891.0232 | G15: -970085.5743 | I15: 720 CROWFUNDING | K15: 4166.666667 | L15: 4166.666667 | M15: 4166.666667 | N15: 4166.666667 | O15: 4166.666667 | P15: 4166.666667 | Q15: 4166.666667 | R15: 4166.666667 | S15: 4166.666667 | T15: 4166.666667 | U15: 4166.666667 | V15: 4166.666667 | W15: 50000
B16: 607 TRABAJOS REALIZADOS POR OTRAS | C16: -46725.7543 | D16: -51398.32973 | E16: -56538.1627 | F16: -59365.07084 | G16: -62333.32438 | I16: 740 SUBVENCIONES, DONACIONES Y LE | K16: 2659.0125 | L16: 2659.0125 | M16: 2659.0125 | N16: 2659.0125 | O16: 2659.0125 | P16: 2659.0125 | Q16: 2659.0125 | R16: 2659.0125 | S16: 2659.0125 | T16: 2659.0125 | U16: 2659.0125 | V16: 2659.0125 | W16: 31908.15
B17: 610 VARIACIÓN DE EXISTENCIAS DE M | C17: 0 | D17: 0 | E17: 0 | F17: 0 | G17: 0 | I17: Otros ingresos de explotación | W17: 0
B18: 693 PÉRDIDAS POR DETERIORO DE EXI | C18: 0 | D18: 0 | E18: 0 | F18: 0 | G18: 0 | I18: Total Ingresos | K18: 130855.4664 | L18: 130855.4664 | M18: 130855.4664 | N18: 130855.4664 | O18: 130855.4664 | P18: 130855.4664 | Q18: 130855.4664 | R18: 130855.4664 | S18: 130855.4664 | T18: 130855.4664 | U18: 130855.4664 | V18: 130855.4664 | W18: 1570265.597
B19: 5. Otros ingresos de explotación | C19: 181908.15 | D19: 31908.15 | E19: 31908.15 | F19: 31908.15 | G19: 31908.15
B20: b) Otros ingresos | I20: Gastos
B21: 720 DONACIONES PARTICULARES | C21: 100000 | D21: 0 | E21: 0 | F21: 0 | G21: 0 | I21: 600 COMPRAS DE MERCADERÍAS | K21: -60598.91271 | L21: -60598.91271 | M21: -60598.91271 | N21: -60598.91271 | O21: -60598.91271 | P21: -60598.91271 | Q21: -60598.91271 | R21: -60598.91271 | S21: -60598.91271 | T21: -60598.91271 | U21: -60598.91271 | V21: -60598.91271 | W21: -727186.9525
B22: 720 CROWFUNDING | C22: 50000 | D22: 0 | E22: 0 | F22: 0 | G22: 0 | I22: 600 C. DE MERCADERÍAS DOMINGOS | L22: 0 | S22: -175 | T22: -175 | U22: -175 | V22: -175 | W22: -700
B23: 740 SUBVENCIONES, DONACIONES Y LE | C23: 31908.15 | D23: 31908.15 | E23: 31908.15 | F23: 31908.15 | G23: 31908.15 | I23: 607 TRABAJOS REALIZADOS POR OTRAS | K23: -3893.812858 | L23: -3893.812858 | M23: -3893.812858 | N23: -3893.812858 | O23: -3893.812858 | P23: -3893.812858 | Q23: -3893.812858 | R23: -3893.812858 | S23: -3893.812858 | T23: -3893.812858 | U23: -3893.812858 | V23: -3893.812858 | W23: -46725.7543
B24: 6. Gastos de personal | C24: -450985.56 | D24: -462260.199 | E24: -473816.704 | F24: -485662.1216 | G24: -497803.6746 | I24: 640 SUELDOS Y SALARIOS | K24: -28619.72625 | L24: -28619.72625 | M24: -28619.72625 | N24: -28619.72625 | O24: -28619.72625 | P24: -28619.72625 | Q24: -28619.72625 | R24: -28619.72625 | S24: -28619.72625 | T24: -28619.72625 | U24: -28619.72625 | V24: -28619.72625 | W24: -343436.715
B25: 640 SUELDOS Y SALARIOS | C25: -343436.715 | D25: -352022.6329 | E25: -360823.1987 | F25: -369843.7787 | G25: -379089.8731 | I25: 642 SEGURIDAD SOCIAL A CARGO DE L | K25: -8962.40375 | L25: -8962.40375 | M25: -8962.40375 | N25: -8962.40375 | O25: -8962.40375 | P25: -8962.40375 | Q25: -8962.40375 | R25: -8962.40375 | S25: -8962.40375 | T25: -8962.40375 | U25: -8962.40375 | V25: -8962.40375 | W25: -107548.845
B26: 642 SEGURIDAD SOCIAL A CARGO DE L | C26: -107548.845 | D26: -110237.5661 | E26: -112993.5053 | F26: -115818.3429 | G26: -118713.8015 | I26: 621 ARRENDAMIENTOS Y CÁNONES | K26: -3174.58875 | L26: -3174.58875 | M26: -3174.58875 | N26: -3174.58875 | O26: -3174.58875 | P26: -3174.58875 | Q26: -3174.58875 | R26: -3174.58875 | S26: -3174.58875 | T26: -3174.58875 | U26: 950 | V26: 950 | W26: -29845.8875
B27: 8. Otros gastos de explotación | C27: -168826.7848 | D27: -164278.987 | E27: -180706.8857 | F27: -189742.23 | G27: -199229.3415 | I27: 622 REPARACIONES Y CONSERVACIÓN | K27: -560.6633333 | L27: -560.6633333 | M27: -560.6633333 | N27: -560.6633333 | O27: -560.6633333 | P27: -560.6633333 | Q27: -560.6633333 | R27: -560.6633333 | S27: -560.6633333 | T27: -560.6633333 | U27: -560.6633333 | V27: -560.6633333 | W27: -6727.96
B28: 621 ARRENDAMIENTOS Y CÁNONES | C28: -29845.8875 | D28: -11400 | E28: -12540 | F28: -13167 | G28: -13825.35 | I28: 623 SERVICIOS DE PROFESIONALES IN | K28: -541.0272417 | L28: -541.0272417 | M28: -541.0272417 | N28: -541.0272417 | O28: -541.0272417 | P28: -541.0272417 | Q28: -541.0272417 | R28: -541.0272417 | S28: -541.0272417 | T28: -541.0272417 | U28: -541.0272417 | V28: -541.0272417 | W28: -6492.3269
B29: 622 REPARACIONES Y CONSERVACIÓN | C29: -6727.96 | D29: -7400.756 | E29: -8140.8316 | F29: -8547.87318 | G29: -8975.266839 | I29: 624 TRANSPORTES | K29: -2959.373683 | L29: -2959.373683 | M29: -2959.373683 | N29: -2959.373683 | O29: -2959.373683 | P29: -2959.373683 | Q29: -2959.373683 | R29: -2959.373683 | S29: -2959.373683 | T29: -2959.373683 | U29: -2959.373683 | V29: -2959.373683 | W29: -35512.4842
B30: 623 SERVICIOS DE PROFESIONALES IN | C30: -6492.3269 | D30: -7141.55959 | E30: -7855.715549 | F30: -8248.501326 | G30: -8660.926393 | I30: 625 PRIMAS DE SEGUROS | K30: -92.34550833 | L30: -92.34550833 | M30: -92.34550833 | N30: -92.34550833 | O30: -92.34550833 | P30: -92.34550833 | Q30: -92.34550833 | R30: -92.34550833 | S30: -92.34550833 | T30: -92.34550833 | U30: -92.34550833 | V30: -92.34550833 | W30: -1108.1461
B31: 624 TRANSPORTES | C31: -35512.4842 | D31: -39063.73262 | E31: -42970.10588 | F31: -45118.61118 | G31: -47374.54173 | I31: 626 SERVICIOS BANCARIOS Y SIMILAR | K31: -588.029575 | L31: -588.029575 | M31: -588.029575 | N31: -588.029575 | O31: -588.029575 | P31: -588.029575 | Q31: -588.029575 | R31: -588.029575 | S31: -588.029575 | T31: -588.029575 | U31: -588.029575 | V31: -588.029575 | W31: -7056.3549
B32: 625 PRIMAS DE SEGUROS | C32: -1108.1461 | D32: -1218.96071 | E32: -1340.856781 | F32: -1407.89962 | G32: -1478.294601 | I32: 627 PUBLICIDAD, PROPAGANDA Y RELA | K32: -55.26808333 | L32: -55.26808333 | M32: -55.26808333 | N32: -55.26808333 | O32: -55.26808333 | P32: -55.26808333 | Q32: -55.26808333 | R32: -55.26808333 | S32: -55.26808333 | T32: -55.26808333 | U32: -55.26808333 | V32: -55.26808333 | W32: -663.217
B33: 626 SERVICIOS BANCARIOS Y SIMILAR | C33: -7056.3549 | D33: -7761.99039 | E33: -8538.189429 | F33: -8965.0989 | G33: -9413.353845 | I33: 628 SUMINISTROS | K33: -451.0953667 | L33: -451.0953667 | M33: -451.0953667 | N33: -451.0953667 | O33: -451.0953667 | P33: -451.0953667 | Q33: -451.0953667 | R33: -451.0953667 | S33: -451.0953667 | T33: -451.0953667 | U33: -451.0953667 | V33: -451.0953667 | W33: -5413.1444
B34: 627 PUBLICIDAD, PROPAGANDA Y RELA | C34: -663.217 | D34: -729.5387 | E34: -802.49257 | F34: -842.6171985 | G34: -884.7480584 | I34: 629 OTROS SERVICIOS | K34: -5917.449567 | L34: -5917.449567 | M34: -5917.449567 | N34: -5917.449567 | O34: -5917.449567 | P34: -5917.449567 | Q34: -5917.449567 | R34: -5917.449567 | S34: -5917.449567 | T34: -5917.449567 | U34: -5917.449567 | V34: -5917.449567 | W34: -71009.3948
B35: 628 SUMINISTROS | C35: -5413.1444 | D35: -5954.45884 | E35: -6549.904724 | F35: -6877.39996 | G35: -7221.269958 | I35: 631 OTROS TRIBUTOS | K35: -416.4890833 | L35: -416.4890833 | M35: -416.4890833 | N35: -416.4890833 | O35: -416.4890833 | P35: -416.4890833 | Q35: -416.4890833 | R35: -416.4890833 | S35: -416.4890833 | T35: -416.4890833 | U35: -416.4890833 | V35: -416.4890833 | W35: -4997.869
B36: 629 OTROS SERVICIOS | C36: -71009.3948 | D36: -78110.33428 | E36: -85921.36771 | F36: -90217.43609 | G36: -94728.3079 | I36: 634 AJUSTES NEGATIVOS PRORRATA IVA
B37: 631 OTROS TRIBUTOS | C37: -4997.869 | D37: -5497.6559 | E37: -6047.42149 | F37: -6349.792564 | G37: -6667.282193
B38: 634 AJUSTES NEGATIVOS PRORRATA IVA | C38: 0 | D38: 0 | E38: 0 | F38: 0 | G38: 0
B39: 650 PÉRDIDAS DE CRÉDITOS COMERCIA
B40: 659 OTRAS PÉRDIDAS EN GESTIÓN COR
B41: 678 GASTOS EXCEPCIONALES | I41: Total Gastos | K41: -116831.1858 | L41: -116831.1858 | M41: -116831.1858 | N41: -116831.1858 | O41: -116831.1858 | P41: -116831.1858 | Q41: -116831.1858 | R41: -116831.1858 | S41: -117006.1858 | T41: -117006.1858 | U41: -112881.597 | V41: -112881.597 | W41: -1394425.052
B42: 9. Amortización del inmovilizado | C42: -16865.64745 | D42: -42680.4049 | E42: -42680.4049 | F42: -42680.4049 | G42: -42680.4049
B43: 681 AMORTIZACIÓN DEL INMOVILIZADO | C43: -4350.89 | D43: -4350.89 | E43: -4350.89 | F43: -4350.89 | G43: -4350.89 | I43: Flujo de caja económico | K43: 309531.0946 | L43: 289516.7987 | M43: 300890.3693 | N43: 312263.93 | O43: 466061.789 | P43: 474551.4897 | Q43: 474255.3603 | R43: 416102.3917 | S43: 723763.3824 | T43: 731423.133 | U43: 130925.4424 | V43: 141226.4918 | W43: 175840.5453
B44: 682 AMORTIZACIÓN DEL INMOVILIZADO NUEVO | C44: -12514.75745 | D44: -38329.5149 | E44: -38329.5149 | F44: -38329.5149 | G44: -38329.5149 | W44: 0
B45: A) RTDO.DE EXPLOTACIÓN (1+2+3+4+5+6+7+8+9+10+11+12 | I45: Financiamiento | W45: 0
B46: 14. Gastos financieros | C46: -16310.1 | D46: -34163.71 | E46: -32580.05 | F46: -30949.69 | G46: -28882.195 | I46: Prestamos | K46: 0 | L46: 0 | M46: 0 | N46: 225000 | O46: 0 | P46: 0 | Q46: 0 | R46: 300000 | S46: 0 | T46: 675000 | U46: 0 | V46: 0 | W46: 1200000
B47: 662 INTERESES DE DEUDAS | C47: -4365.24 | D47: -3600.96 | E47: -2814 | F47: -2006.64 | G47: -789.285 | J47: Prestamo 225 | N47: 225000 | W47: 225000
B48: 663 INTERESES DE DEUDAS | J48: Prestamo 675 | T48: 675000 | W48: 675000
B49: 662 INTERESES NUEVOS PRESTAMOS | C49: -11944.86 | D49: -30562.75 | E49: -29766.05 | F49: -28943.05 | G49: -28092.91 | J49: Deuda a LP | R49: 300000 | W49: 300000
B50: Prestamo 225 | C50: -4252.49 | D50: -4993.27 | E50: -4196.57 | F50: -3373.57 | G50: -2523.43 | I50: Amortizaciòn prestamos | K50: -2258.27 | L50: -2263.44 | M50: -2268.63 | N50: -4662.86 | O50: -4674.55 | P50: -4686.25 | Q50: -4698 | R50: -4709.76 | S50: -4721.56 | T50: -4733.39 | U50: -4745.26 | V50: -4757.14 | W50: -49179.11
B51: Prestamo 675 | C51: -4442.37 | D51: -17769.48 | E51: -17769.48 | F51: -17769.48 | G51: -17769.48 | J51: ANTERIOR | K51: -2258.27 | L51: -2263.44 | M51: -2268.63 | N51: -2273.83 | O51: -2279.04 | P51: -2284.26 | Q51: -2289.5 | R51: -2294.74 | S51: -2300 | T51: -2305.27 | U51: -2310.56 | V51: -2315.85 | W51: -27443.39
B52: Deuda a LP | C52: -3250 | D52: -7800 | E52: -7800 | F52: -7800 | G52: -7800 | J52: Prestamo 225 | N52: -2389.03 | O52: -2395.51 | P52: -2401.99 | Q52: -2408.5 | R52: -2415.02 | S52: -2421.56 | T52: -2428.12 | U52: -2434.7 | V52: -2441.29 | W52: -21735.72
B53: RESULTADO ANTES DE IMPUESTOS | C53: 117973.9912 | D53: 19965.44542 | E53: 73871.92924 | F53: 173843.3258 | G53: 199058.7699 | J53: Prestamo 675 | W53: 0
B54: 18. Impuestos sobre beneficios | J54: Deuda a LP | W54: 0
B55: 630 IMPUESTO SOBRE BENEFICIOS | I55: Interese prestamos | K55: -392.45 | L55: -387.27 | M55: -382.09 | N55: -870.49 | O55: -860.03 | P55: -849.56 | Q55: -839.05 | R55: -1478.53 | S55: -1467.97 | T55: -2938.17 | U55: -2927.56 | V55: -2916.93 | W55: -16310.1
B56: RESULTADO DEL EJERCICIO | C56: 117973.9912 | D56: 19965.44542 | E56: 73871.92924 | F56: 173843.3258 | G56: 199058.7699 | J56: ANTERIOR | K56: -392.45 | L56: -387.27 | M56: -382.09 | N56: -376.89 | O56: -371.68 | P56: -366.46 | Q56: -361.22 | R56: -355.98 | S56: -350.72 | T56: -345.45 | U56: -340.16 | V56: -334.87 | W56: -4365.24
J57: Prestamo 225 | N57: -493.6 | O57: -488.35 | P57: -483.1 | Q57: -477.83 | R57: -472.55 | S57: -467.25 | T57: -461.93 | U57: -456.61 | V57: -451.27 | W57: -4252.49
B58: HIPOTESIS DEL ESCENARIO BASE | J58: Prestamo 675 | T58: -1480.79 | U58: -1480.79 | V58: -1480.79 | W58: -4442.37
B59: Incremento de ingresos | C59: 0.03 | D59: 0.1 | E59: 0.1 | F59: 0.05 | G59: 0.05 | J59: Deuda a LP | R59: -650 | S59: -650 | T59: -650 | U59: -650 | V59: -650 | W59: -3250
B60: Donaciones particulares | C60: 100000 | W60: 0
B61: Crowfunding | C61: 50000 | I61: Total Financiamiento | K61: -2650.72 | L61: -2650.71 | M61: -2650.72 | N61: 219466.65 | O61: -5534.58 | P61: -5535.81 | Q61: -5537.05 | R61: 293811.71 | S61: -6189.53 | T61: 667328.44 | U61: -7672.82 | V61: -7674.07 | W61: 1134510.79
B62: Se abre la librería Duque de Alba los domingos | C62: NO | D62: NO | E62: NO | F62: NO | G62: NO
I63: Pago inversiones
I64: Compra Local | T64: -1206000 | W64: -1206000
I65: Impuestos compra y Fondo Garatía | T65: -79800 | W65: -79800
I66: Reforma del local (Obra + Fondo de desviaciones) | K66: -31471.1685 | N66: -70810.12911 | Q66: -55074.54487 | W66: -157355.8425
I67: Gastos activables | K67: 9189.3035 | N67: 4948.0865 | W67: 14137.39
I68: IVA obras | K68: -4679.191649 | N68: -13831.02895 | P68: -1524.6 | Q68: -11565.65442 | W68: -31600.47502
I69: Impuesto sobre las obras (ICIO) | K69: -4426.8
I70: IVA obras
I71: Equipamiento y Mobiliario | P71: -7260 | W71: -7260
I72: Recuperacion IVA soportado | V72: 31600.47502
I73: Total pago inversiones | K73: -31387.85664 | L73: 0 | M73: 0 | N73: -79693.07156 | O73: 0 | P73: -8784.6 | Q73: -66640.19929 | R73: 0 | S73: 0 | T73: -1285800 | U73: 0 | V73: 31600.47502 | W73: -1440705.252
I75: Flujo de caja financiero | K75: 275492.518 | L75: 286866.0887 | M75: 298239.6493 | N75: 452037.5084 | O75: 460527.209 | P75: 460231.0797 | Q75: 402078.1111 | R75: 709914.1017 | S75: 717573.8524 | T75: 112951.573 | U75: 123252.6224 | V75: 165152.8968
B77: ESCENARIO PESIMISTA | I77: FLUJO DE CAJA 2024
B78: 1. Importe neto de la cifra de negocios | C78: 2024 | D78: 2025 | E78: 2026 | F78: 2027 | G78: 2028 | K78: ENE | L78: FEB | M78: MAR | N78: ABR | O78: MAY | P78: JUN | Q78: JUL | R78: AGO | S78: SEP | T78: OCT | U78: NOV | V78: DIC | W78: Total
B79: 700 VENTAS DE MERCADERÍAS | I79: Saldo inicial | K79: 295506.814 | L79: 264659.1847 | M79: 265199.422 | N79: 265739.6493 | O79: 408704.1751 | P79: 406360.5424 | Q79: 395231.0797 | R79: 326244.7777 | S79: 623247.435 | T79: 620073.8524 | U79: 4618.239671 | V79: 4085.955737 | W79: 35152.89682
B80: 705 PRESTACIONES DE SERVICIOS | C80: 1388357.447 | D80: 1532893.192 | E80: 1685462.511 | F80: 1769460.236 | G80: 1857652.34
B81: ALQUILER ESPACIO | C81: 1268183.936 | D81: 1395002.33 | E81: 1534502.563 | F81: 1611227.691 | G81: 1691789.075 | I81: Ingresos
B82: APERTURA DOMINGOS | C82: 117173.5107 | D82: 128890.8618 | E82: 141779.9479 | F82: 148868.9453 | G82: 156312.3926 | I82: 700 VENTAS DE MERCADERÍAS | K82: 105681.9947 | L82: 105681.9947 | M82: 105681.9947 | N82: 105681.9947 | O82: 105681.9947 | P82: 105681.9947 | Q82: 105681.9947 | R82: 105681.9947 | S82: 105681.9947 | T82: 105681.9947 | U82: 105681.9947 | V82: 105681.9947 | W82: 1268183.936
B83: 2. Variac.de existencias de produc.terminados e | C83: 3000 | D83: 9000 | E83: 9180 | F83: 9363.6 | G83: 9550.872 | I83: 705 PRESTACIONES DE SERVICIOS | K83: 9764.459225 | L83: 9764.459225 | M83: 9764.459225 | N83: 9764.459225 | O83: 9764.459225 | P83: 9764.459225 | Q83: 9764.459225 | R83: 9764.459225 | S83: 9764.459225 | T83: 9764.459225 | U83: 9764.459225 | V83: 9764.459225 | W83: 117173.5107
B84: 712 VARIACIÓN DE EXISTENCIAS DE P | C84: 0 | D84: 0 | E84: 0 | F84: 0 | G84: 0 | I84: ALQUILER ESPACIOS | K84: 250 | L84: 250 | M84: 250 | N84: 250 | O84: 250 | P84: 250 | Q84: 250 | R84: 250 | S84: 250 | T84: 250 | U84: 250 | V84: 250 | W84: 3000
B85: 793 REVERSIÓN DEL DETERIORO DE EX | C85: 21257.24 | D85: 0 | E85: 0 | F85: 0 | G85: 0 | I85: 700 APERTURA DOMINGOS | K85: 0 | L85: 0 | M85: 0 | N85: 0 | O85: 0 | P85: 0 | Q85: 0 | R85: 0 | S85: 0 | T85: 0 | U85: 0 | V85: 0 | W85: 0
B86: 4. Aprovisionamientos | C86: 21257.24 | I86: 720 DONACIONES DIRECTAS | K86: 1666.666667 | L86: 1666.666667 | M86: 1666.666667 | N86: 1666.666667 | O86: 1666.666667 | P86: 1666.666667 | Q86: 1666.666667 | R86: 1666.666667 | S86: 1666.666667 | T86: 1666.666667 | U86: 1666.666667 | V86: 1666.666667 | W86: 20000
B87: 600 COMPRAS DE MERCADERÍAS | I87: 720 CROWFUNDING | K87: 0 | L87: 0 | M87: 0 | N87: 0 | O87: 0 | P87: 0 | Q87: 0 | R87: 0 | S87: 0 | T87: 0 | U87: 0 | V87: 0 | W87: 0
B88: 607 TRABAJOS REALIZADOS POR OTRAS | C88: -773912.7068 | D88: -851303.9775 | E88: -936434.3752 | F88: -983256.094 | G88: -1032418.899 | I88: 740 SUBVENCIONES, DONACIONES Y LE | K88: 2659.0125 | L88: 2659.0125 | M88: 2659.0125 | N88: 2659.0125 | O88: 2659.0125 | P88: 2659.0125 | Q88: 2659.0125 | R88: 2659.0125 | S88: 2659.0125 | T88: 2659.0125 | U88: 2659.0125 | V88: 2659.0125 | W88: 31908.15
B89: 610 VARIACIÓN DE EXISTENCIAS DE M | C89: -727186.9525 | D89: -799905.6478 | E89: -879896.2125 | F89: -923891.0232 | G89: -970085.5743 | I89: Otros ingresos de explotación | W89: 0
B90: 693 PÉRDIDAS POR DETERIORO DE EXI | C90: -46725.7543 | D90: -51398.32973 | E90: -56538.1627 | F90: -59365.07084 | G90: -62333.32438 | I90: Total Ingresos | K90: 120022.1331 | L90: 120022.1331 | M90: 120022.1331 | N90: 120022.1331 | O90: 120022.1331 | P90: 120022.1331 | Q90: 120022.1331 | R90: 120022.1331 | S90: 120022.1331 | T90: 120022.1331 | U90: 120022.1331 | V90: 120022.1331 | W90: 1440265.597
B91: 5. Otros ingresos de explotación | C91: 0 | D91: 0 | E91: 0 | F91: 0 | G91: 0
B92: b) Otros ingresos | C92: 0 | D92: 0 | E92: 0 | F92: 0 | G92: 0 | I92: Gastos
B93: 720 DONACIONES PARTICULARES | C93: 51908.15 | D93: 31908.15 | E93: 31908.15 | F93: 31908.15 | G93: 31908.15 | I93: 600 COMPRAS DE MERCADERÍAS | K93: -60598.91271 | L93: -60598.91271 | M93: -60598.91271 | N93: -60598.91271 | O93: -60598.91271 | P93: -60598.91271 | Q93: -60598.91271 | R93: -60598.91271 | S93: -60598.91271 | T93: -60598.91271 | U93: -60598.91271 | V93: -60598.91271 | W93: -727186.9525
B94: 720 CROWFUNDING | I94: 600 C. DE MERCADERÍAS DOMINGOS | L94: 0 | S94: -175 | T94: -175 | U94: -175 | V94: -175 | W94: -700
B95: 740 SUBVENCIONES, DONACIONES Y LE | C95: 20000 | D95: 0 | E95: 0 | F95: 0 | G95: 0 | I95: 607 TRABAJOS REALIZADOS POR OTRAS | K95: -3893.812858 | L95: -3893.812858 | M95: -3893.812858 | N95: -3893.812858 | O95: -3893.812858 | P95: -3893.812858 | Q95: -3893.812858 | R95: -3893.812858 | S95: -3893.812858 | T95: -3893.812858 | U95: -3893.812858 | V95: -3893.812858 | W95: -46725.7543
B96: 6. Gastos de personal | C96: 0 | D96: 0 | E96: 0 | F96: 0 | G96: 0 | I96: 640 SUELDOS Y SALARIOS | K96: -28619.72625 | L96: -28619.72625 | M96: -28619.72625 | N96: -28619.72625 | O96: -28619.72625 | P96: -28619.72625 | Q96: -28619.72625 | R96: -28619.72625 | S96: -28619.72625 | T96: -28619.72625 | U96: -28619.72625 | V96: -28619.72625 | W96: -343436.715
B97: 640 SUELDOS Y SALARIOS | C97: 31908.15 | D97: 31908.15 | E97: 31908.15 | F97: 31908.15 | G97: 31908.15 | I97: 642 SEGURIDAD SOCIAL A CARGO DE L | K97: -8962.40375 | L97: -8962.40375 | M97: -8962.40375 | N97: -8962.40375 | O97: -8962.40375 | P97: -8962.40375 | Q97: -8962.40375 | R97: -8962.40375 | S97: -8962.40375 | T97: -8962.40375 | U97: -8962.40375 | V97: -8962.40375 | W97: -107548.845
B98: 642 SEGURIDAD SOCIAL A CARGO DE L | C98: -450985.56 | D98: -462260.199 | E98: -473816.704 | F98: -485662.1216 | G98: -497803.6746 | I98: 621 ARRENDAMIENTOS Y CÁNONES | K98: -3174.58875 | L98: -3174.58875 | M98: -3174.58875 | N98: -3174.58875 | O98: -3174.58875 | P98: -3174.58875 | Q98: -3174.58875 | R98: -3174.58875 | S98: -3174.58875 | T98: -3174.58875 | U98: 950 | V98: 950 | W98: -29845.8875
B99: 8. Otros gastos de explotación | C99: -343436.715 | D99: -352022.6329 | E99: -360823.1987 | F99: -369843.7787 | G99: -379089.8731 | I99: 622 REPARACIONES Y CONSERVACIÓN | K99: -560.6633333 | L99: -560.6633333 | M99: -560.6633333 | N99: -560.6633333 | O99: -560.6633333 | P99: -560.6633333 | Q99: -560.6633333 | R99: -560.6633333 | S99: -560.6633333 | T99: -560.6633333 | U99: -560.6633333 | V99: -560.6633333 | W99: -6727.96
B100: 621 ARRENDAMIENTOS Y CÁNONES | C100: -107548.845 | D100: -110237.5661 | E100: -112993.5053 | F100: -115818.3429 | G100: -118713.8015 | I100: 623 SERVICIOS DE PROFESIONALES IN | K100: -541.0272417 | L100: -541.0272417 | M100: -541.0272417 | N100: -541.0272417 | O100: -541.0272417 | P100: -541.0272417 | Q100: -541.0272417 | R100: -541.0272417 | S100: -541.0272417 | T100: -541.0272417 | U100: -541.0272417 | V100: -541.0272417 | W100: -6492.3269
B101: 622 REPARACIONES Y CONSERVACIÓN | C101: -168826.7848 | D101: -164278.987 | E101: -180706.8857 | F101: -189742.23 | G101: -199229.3415 | I101: 624 TRANSPORTES | K101: -2959.373683 | L101: -2959.373683 | M101: -2959.373683 | N101: -2959.373683 | O101: -2959.373683 | P101: -2959.373683 | Q101: -2959.373683 | R101: -2959.373683 | S101: -2959.373683 | T101: -2959.373683 | U101: -2959.373683 | V101: -2959.373683 | W101: -35512.4842
B102: 623 SERVICIOS DE PROFESIONALES IN | C102: -29845.8875 | D102: -11400 | E102: -12540 | F102: -13167 | G102: -13825.35 | I102: 625 PRIMAS DE SEGUROS | K102: -92.34550833 | L102: -92.34550833 | M102: -92.34550833 | N102: -92.34550833 | O102: -92.34550833 | P102: -92.34550833 | Q102: -92.34550833 | R102: -92.34550833 | S102: -92.34550833 | T102: -92.34550833 | U102: -92.34550833 | V102: -92.34550833 | W102: -1108.1461
B103: 624 TRANSPORTES | C103: -6727.96 | D103: -7400.756 | E103: -8140.8316 | F103: -8547.87318 | G103: -8975.266839 | I103: 626 SERVICIOS BANCARIOS Y SIMILAR | K103: -588.029575 | L103: -588.029575 | M103: -588.029575 | N103: -588.029575 | O103: -588.029575 | P103: -588.029575 | Q103: -588.029575 | R103: -588.029575 | S103: -588.029575 | T103: -588.029575 | U103: -588.029575 | V103: -588.029575 | W103: -7056.3549
B104: 625 PRIMAS DE SEGUROS | C104: -6492.3269 | D104: -7141.55959 | E104: -7855.715549 | F104: -8248.501326 | G104: -8660.926393 | I104: 627 PUBLICIDAD, PROPAGANDA Y RELA | K104: -55.26808333 | L104: -55.26808333 | M104: -55.26808333 | N104: -55.26808333 | O104: -55.26808333 | P104: -55.26808333 | Q104: -55.26808333 | R104: -55.26808333 | S104: -55.26808333 | T104: -55.26808333 | U104: -55.26808333 | V104: -55.26808333 | W104: -663.217
B105: 626 SERVICIOS BANCARIOS Y SIMILAR | C105: -35512.4842 | D105: -39063.73262 | E105: -42970.10588 | F105: -45118.61118 | G105: -47374.54173 | I105: 628 SUMINISTROS | K105: -451.0953667 | L105: -451.0953667 | M105: -451.0953667 | N105: -451.0953667 | O105: -451.0953667 | P105: -451.0953667 | Q105: -451.0953667 | R105: -451.0953667 | S105: -451.0953667 | T105: -451.0953667 | U105: -451.0953667 | V105: -451.0953667 | W105: -5413.1444
B106: 627 PUBLICIDAD, PROPAGANDA Y RELA | C106: -1108.1461 | D106: -1218.96071 | E106: -1340.856781 | F106: -1407.89962 | G106: -1478.294601 | I106: 629 OTROS SERVICIOS | K106: -5917.449567 | L106: -5917.449567 | M106: -5917.449567 | N106: -5917.449567 | O106: -5917.449567 | P106: -5917.449567 | Q106: -5917.449567 | R106: -5917.449567 | S106: -5917.449567 | T106: -5917.449567 | U106: -5917.449567 | V106: -5917.449567 | W106: -71009.3948
B107: 628 SUMINISTROS | C107: -7056.3549 | D107: -7761.99039 | E107: -8538.189429 | F107: -8965.0989 | G107: -9413.353845 | I107: 631 OTROS TRIBUTOS | K107: -416.4890833 | L107: -416.4890833 | M107: -416.4890833 | N107: -416.4890833 | O107: -416.4890833 | P107: -416.4890833 | Q107: -416.4890833 | R107: -416.4890833 | S107: -416.4890833 | T107: -416.4890833 | U107: -416.4890833 | V107: -416.4890833 | W107: -4997.869
B108: 629 OTROS SERVICIOS | C108: -663.217 | D108: -729.5387 | E108: -802.49257 | F108: -842.6171985 | G108: -884.7480584 | I108: 634 AJUSTES NEGATIVOS PRORRATA IVA
B109: 631 OTROS TRIBUTOS | C109: -5413.1444 | D109: -5954.45884 | E109: -6549.904724 | F109: -6877.39996 | G109: -7221.269958
B110: 634 AJUSTES NEGATIVOS PRORRATA IVA | C110: -71009.3948 | D110: -78110.33428 | E110: -85921.36771 | F110: -90217.43609 | G110: -94728.3079
B111: 650 PÉRDIDAS DE CRÉDITOS COMERCIA | C111: -4997.869 | D111: -5497.6559 | E111: -6047.42149 | F111: -6349.792564 | G111: -6667.282193
B112: 659 OTRAS PÉRDIDAS EN GESTIÓN COR | C112: 0 | D112: 0 | E112: 0 | F112: 0 | G112: 0
B113: 678 GASTOS EXCEPCIONALES | I113: Total Gastos | K113: -116831.1858 | L113: -116831.1858 | M113: -116831.1858 | N113: -116831.1858 | O113: -116831.1858 | P113: -116831.1858 | Q113: -116831.1858 | R113: -116831.1858 | S113: -117006.1858 | T113: -117006.1858 | U113: -112881.597 | V113: -112881.597 | W113: -1394425.052
B114: 9. Amortización del inmovilizado
B115: 681 AMORTIZACIÓN DEL INMOVILIZADO | I115: Flujo de caja económico | K115: 298697.7613 | L115: 267850.132 | M115: 268390.3693 | N115: 268930.5966 | O115: 411895.1224 | P115: 409551.4897 | Q115: 398422.027 | R115: 329435.725 | S115: 626263.3824 | T115: 623089.7997 | U115: 11758.77574 | V115: 11226.4918 | W115: 45840.5453
B116: 682 AMORTIZACIÓN DEL INMOVILIZADO NUEVO | C116: -16865.64745 | D116: -42680.4049 | E116: -42680.4049 | F116: -42680.4049 | G116: -42680.4049 | W116: 0
B117: A) RTDO.DE EXPLOTACIÓN (1+2+3+4+5+6+7+8+9+10+11+12 | C117: -4350.89 | D117: -4350.89 | E117: -4350.89 | F117: -4350.89 | G117: -4350.89 | I117: Financiamiento | W117: 0
B118: 14. Gastos financieros | C118: -12514.75745 | D118: -38329.5149 | E118: -38329.5149 | F118: -38329.5149 | G118: -38329.5149 | I118: Prestamos | K118: 0 | L118: 0 | M118: 0 | N118: 225000 | O118: 0 | P118: 0 | Q118: 0 | R118: 300000 | S118: 0 | T118: 675000 | U118: 0 | V118: 0 | W118: 1200000
B119: 662 INTERESES DE DEUDAS | J119: Prestamo 225 | N119: 225000 | W119: 225000
B120: 663 INTERESES DE DEUDAS | C120: -16310.1 | D120: -34163.71 | E120: -32580.05 | F120: -30949.69 | G120: -28882.195 | J120: Prestamo 675 | T120: 675000 | W120: 675000
B121: 662 INTERESES NUEVOS PRESTAMOS | C121: -4365.24 | D121: -3600.96 | E121: -2814 | F121: -2006.64 | G121: -789.285 | J121: Deuda a LP | R121: 300000 | W121: 300000
B122: Prestamo 225 | I122: Amortizaciòn prestamos | K122: -2258.27 | L122: -2263.44 | M122: -2268.63 | N122: -4662.86 | O122: -4674.55 | P122: -4686.25 | Q122: -4698 | R122: -4709.76 | S122: -4721.56 | T122: -4733.39 | U122: -4745.26 | V122: -4757.14 | W122: -49179.11
B123: Prestamo 675 | C123: -11944.86 | D123: -30562.75 | E123: -29766.05 | F123: -28943.05 | G123: -28092.91 | J123: ANTERIOR | K123: -2258.27 | L123: -2263.44 | M123: -2268.63 | N123: -2273.83 | O123: -2279.04 | P123: -2284.26 | Q123: -2289.5 | R123: -2294.74 | S123: -2300 | T123: -2305.27 | U123: -2310.56 | V123: -2315.85 | W123: -27443.39
B124: Deuda a LP | C124: -4252.49 | D124: -4993.27 | E124: -4196.57 | F124: -3373.57 | G124: -2523.43 | J124: Prestamo 225 | N124: -2389.03 | O124: -2395.51 | P124: -2401.99 | Q124: -2408.5 | R124: -2415.02 | S124: -2421.56 | T124: -2428.12 | U124: -2434.7 | V124: -2441.29 | W124: -21735.72
B125: RESULTADO ANTES DE IMPUESTOS | C125: -4442.37 | D125: -17769.48 | E125: -17769.48 | F125: -17769.48 | G125: -17769.48 | J125: Prestamo 675 | W125: 0
B126: 18. Impuestos sobre beneficios | C126: -3250 | D126: -7800 | E126: -7800 | F126: -7800 | G126: -7800 | J126: Deuda a LP | W126: 0
B127: 630 IMPUESTO SOBRE BENEFICIOS | C127: 117973.9912 | D127: 19965.44542 | E127: 73871.92924 | F127: 173843.3258 | G127: 199058.7699 | I127: Interese prestamos | K127: -392.45 | L127: -387.27 | M127: -382.09 | N127: -870.49 | O127: -860.03 | P127: -849.56 | Q127: -839.05 | R127: -1478.53 | S127: -1467.97 | T127: -2938.17 | U127: -2927.56 | V127: -2916.93 | W127: -16310.1
B128: RESULTADO DEL EJERCICIO | J128: ANTERIOR | K128: -392.45 | L128: -387.27 | M128: -382.09 | N128: -376.89 | O128: -371.68 | P128: -366.46 | Q128: -361.22 | R128: -355.98 | S128: -350.72 | T128: -345.45 | U128: -340.16 | V128: -334.87 | W128: -4365.24
J129: Prestamo 225 | N129: -493.6 | O129: -488.35 | P129: -483.1 | Q129: -477.83 | R129: -472.55 | S129: -467.25 | T129: -461.93 | U129: -456.61 | V129: -451.27 | W129: -4252.49
C130: 117973.9912 | D130: 19965.44542 | E130: 73871.92924 | F130: 173843.3258 | G130: 199058.7699 | J130: Prestamo 675 | T130: -1480.79 | U130: -1480.79 | V130: -1480.79 | W130: -4442.37
J131: Deuda a LP | R131: -650 | S131: -650 | T131: -650 | U131: -650 | V131: -650 | W131: -3250
B132: HIPOTESIS DEL ESCENARIO PESIMISTA | W132: 0
B133: Incremento de ingresos | C133: 0.03 | D133: 0.1 | E133: 0.1 | F133: 0.05 | G133: 0.05 | I133: Total Financiamiento | K133: -2650.72 | L133: -2650.71 | M133: -2650.72 | N133: 219466.65 | O133: -5534.58 | P133: -5535.81 | Q133: -5537.05 | R133: 293811.71 | S133: -6189.53 | T133: 667328.44 | U133: -7672.82 | V133: -7674.07 | W133: 1134510.79
B134: Donaciones particulares | C134: 20000
B135: Crowfunding | C135: 0 | I135: Pago inversiones
B136: Se abre la librería Duque de Alba los domingos | C136: NO | D136: NO | E136: NO | F136: NO | G136: NO | I136: Compra Local | T136: -1206000 | W136: -1206000
I137: Impuestos compra y Fondo Garatía | T137: -79800 | W137: -79800
I138: Reforma del local (Obra + Fondo de desviaciones) | K138: -31471.1685 | N138: -70810.12911 | Q138: -55074.54487 | W138: -157355.8425
I139: Gastos activables | K139: 9189.3035 | N139: 4948.0865 | W139: 14137.39
I140: IVA obras | K140: -4679.191649 | N140: -13831.02895 | P140: -1524.6 | Q140: -11565.65442 | W140: -31600.47502
I141: Impuesto sobre las obras (ICIO) | K141: -4426.8
I142: IVA obras
I143: Equipamiento y Mobiliario | P143: -7260 | W143: -7260
I144: Recuperacion IVA soportado | V144: 31600.47502
I145: Total pago inversiones | K145: -31387.85664 | L145: 0 | M145: 0 | N145: -79693.07156 | O145: 0 | P145: -8784.6 | Q145: -66640.19929 | R145: 0 | S145: 0 | T145: -1285800 | U145: 0 | V145: 31600.47502 | W145: -1440705.252
I147: Flujo de caja financiero | K147: 264659.1847 | L147: 265199.422 | M147: 265739.6493 | N147: 408704.1751 | O147: 406360.5424 | P147: 395231.0797 | Q147: 326244.7777 | R147: 623247.435 | S147: 620073.8524 | T147: 4618.239671 | U147: 4085.955737 | V147: 35152.89682
B150: ESCENARIO OPTIMISTA | I150: FLUJO DE CAJA 2024
B151: 1. Importe neto de la cifra de negocios | C151: 2024 | D151: 2025 | E151: 2026 | F151: 2027 | G151: 2028 | K151: ENE | L151: FEB | M151: MAR | N151: ABR | O151: MAY | P151: JUN | Q151: JUL | R151: AGO | S151: SEP | T151: OCT | U151: NOV | V151: DIC | W151: Total
B152: 700 VENTAS DE MERCADERÍAS
B153: 705 PRESTACIONES DE SERVICIOS | C153: 1433257.592 | D153: 1617683.351 | E153: 1773211.686 | F153: 1858836.87 | G153: 1948737.806 | I153: Saldo inicial | K153: 295506.814 | L153: 264449.2839 | M153: 264779.6204 | N153: 265109.9469 | O153: 407864.5719 | P153: 419596.7527 | Q153: 422543.1035 | R153: 367632.615 | S153: 664425.3715 | T153: 681727.6023 | U153: 85547.80314 | V153: 127735.1814 | W153: 199121.7848
B154: ALQUILER ESPACIO | C154: 1292808.867 | D154: 1422089.754 | E154: 1564298.729 | F154: 1642513.666 | G154: 1724639.349
B155: APERTURA DOMINGOS | C155: 119448.7245 | D155: 131393.597 | E155: 144532.9566 | F155: 151759.6045 | G155: 159347.5847 | I155: Ingresos
B156: 2. Variac.de existencias de produc.terminados e | C156: 3000 | D156: 9000 | E156: 9180 | F156: 9363.6 | G156: 9550.872 | I156: 700 VENTAS DE MERCADERÍAS | K156: 107734.0722 | L156: 107734.0722 | M156: 107734.0722 | N156: 107734.0722 | O156: 107734.0722 | P156: 107734.0722 | Q156: 107734.0722 | R156: 107734.0722 | S156: 107734.0722 | T156: 107734.0722 | U156: 107734.0722 | V156: 107734.0722 | W156: 1292808.867
B157: 712 VARIACIÓN DE EXISTENCIAS DE P | C157: 18000 | D157: 55200 | E157: 55200 | F157: 55200 | G157: 55200 | I157: 705 PRESTACIONES DE SERVICIOS | K157: 9954.060375 | L157: 9954.060375 | M157: 9954.060375 | N157: 9954.060375 | O157: 9954.060375 | P157: 9954.060375 | Q157: 9954.060375 | R157: 9954.060375 | S157: 9954.060375 | T157: 9954.060375 | U157: 9954.060375 | V157: 9954.060375 | W157: 119448.7245
B158: 793 REVERSIÓN DEL DETERIORO DE EX | C158: 21257.24 | D158: 0 | E158: 0 | F158: 0 | G158: 0 | I158: ALQUILER ESPACIOS | S158: 750 | T158: 750 | U158: 750 | V158: 750 | W158: 3000
B159: 4. Aprovisionamientos | C159: 21257.24 | I159: 700 APERTURA DOMINGOS | K159: 0 | L159: 0 | M159: 0 | N159: 0 | O159: 0 | P159: 0 | Q159: 0 | R159: 0 | S159: 6000 | T159: 4800 | U159: 4800 | V159: 2400 | W159: 18000
B160: 600 COMPRAS DE MERCADERÍAS | I160: 720 DONACIONES DIRECTAS | O160: 14285.71429 | P160: 14285.71429 | Q160: 14285.71429 | R160: 0 | S160: 14285.71429 | T160: 14285.71429 | U160: 14285.71429 | V160: 14285.71429 | W160: 100000
B161: 607 TRABAJOS REALIZADOS POR OTRAS | C161: -788940.138 | D161: -867834.1518 | E161: -954617.567 | F161: -1002348.445 | G161: -1052465.868 | I161: 720 CROWFUNDING | U161: 25000 | V161: 25000 | W161: 50000
B162: 610 VARIACIÓN DE EXISTENCIAS DE M | C162: -741307.0875 | D162: -815437.7963 | E162: -896981.5759 | F162: -941830.6547 | G162: -988922.1874 | I162: 740 SUBVENCIONES, DONACIONES Y LE | K162: 2659.0125 | L162: 2659.0125 | M162: 2659.0125 | N162: 2659.0125 | O162: 2659.0125 | P162: 2659.0125 | Q162: 2659.0125 | R162: 2659.0125 | S162: 2659.0125 | T162: 2659.0125 | U162: 2659.0125 | V162: 2659.0125 | W162: 31908.15
B163: 693 PÉRDIDAS POR DETERIORO DE EXI | C163: -47633.0505 | D163: -52396.35555 | E163: -57635.99111 | F163: -60517.79066 | G163: -63543.68019 | I163: Otros ingresos de explotación | W163: 0
B164: 5. Otros ingresos de explotación | C164: 0 | D164: 0 | E164: 0 | F164: 0 | G164: 0 | I164: Total Ingresos | K164: 120347.1451 | L164: 120347.1451 | M164: 120347.1451 | N164: 120347.1451 | O164: 134632.8594 | P164: 134632.8594 | Q164: 134632.8594 | R164: 120347.1451 | S164: 141382.8594 | T164: 140182.8594 | U164: 165182.8594 | V164: 162782.8594 | W164: 1615165.742
B165: b) Otros ingresos | C165: 0 | D165: 0 | E165: 0 | F165: 0 | G165: 0
B166: 720 DONACIONES PARTICULARES | C166: 181908.15 | D166: 31908.15 | E166: 31908.15 | F166: 31908.15 | G166: 31908.15 | I166: Gastos
B167: 720 CROWFUNDING | I167: 600 COMPRAS DE MERCADERÍAS | K167: -61775.59062 | L167: -61775.59062 | M167: -61775.59062 | N167: -61775.59062 | O167: -61775.59062 | P167: -61775.59062 | Q167: -61775.59062 | R167: -61775.59062 | S167: -61775.59062 | T167: -61775.59062 | U167: -61775.59062 | V167: -61775.59062 | W167: -741307.0875
B168: 740 SUBVENCIONES, DONACIONES Y LE | C168: 100000 | D168: 0 | E168: 0 | F168: 0 | G168: 0 | I168: 600 C. DE MERCADERÍAS DOMINGOS | S168: -525 | T168: -525 | U168: -525 | V168: -525 | W168: -2100
B169: 6. Gastos de personal | C169: 50000 | D169: 0 | E169: 0 | F169: 0 | G169: 0 | I169: 607 TRABAJOS REALIZADOS POR OTRAS | K169: -3969.420875 | L169: -3969.420875 | M169: -3969.420875 | N169: -3969.420875 | O169: -3969.420875 | P169: -3969.420875 | Q169: -3969.420875 | R169: -3969.420875 | S169: -3969.420875 | T169: -3969.420875 | U169: -3969.420875 | V169: -3969.420875 | W169: -47633.0505
B170: 640 SUELDOS Y SALARIOS | C170: 31908.15 | D170: 31908.15 | E170: 31908.15 | F170: 31908.15 | G170: 31908.15 | I170: 640 SUELDOS Y SALARIOS | K170: -28619.72625 | L170: -28619.72625 | M170: -28619.72625 | N170: -28619.72625 | O170: -28619.72625 | P170: -28619.72625 | Q170: -28619.72625 | R170: -28619.72625 | S170: -28619.72625 | T170: -28619.72625 | U170: -28619.72625 | V170: -28619.72625 | W170: -343436.715
B171: 642 SEGURIDAD SOCIAL A CARGO DE L | C171: -450985.56 | D171: -462260.199 | E171: -473816.704 | F171: -485662.1216 | G171: -497803.6746 | I171: 642 SEGURIDAD SOCIAL A CARGO DE L | K171: -8962.40375 | L171: -8962.40375 | M171: -8962.40375 | N171: -8962.40375 | O171: -8962.40375 | P171: -8962.40375 | Q171: -8962.40375 | R171: -8962.40375 | S171: -8962.40375 | T171: -8962.40375 | U171: -8962.40375 | V171: -8962.40375 | W171: -107548.845
B172: 8. Otros gastos de explotación | C172: -343436.715 | D172: -352022.6329 | E172: -360823.1987 | F172: -369843.7787 | G172: -379089.8731 | I172: 621 ARRENDAMIENTOS Y CÁNONES | K172: -2568.4375 | L172: -2568.4375 | M172: -2568.4375 | N172: -2568.4375 | O172: -2568.4375 | P172: -2568.4375 | Q172: -2568.4375 | R172: -2568.4375 | S172: -2568.4375 | T172: -2568.4375 | U172: 950 | V172: 950 | W172: -25920
B173: 621 ARRENDAMIENTOS Y CÁNONES | C173: -107548.845 | D173: -110237.5661 | E173: -112993.5053 | F173: -115818.3429 | G173: -118713.8015 | I173: 622 REPARACIONES Y CONSERVACIÓN | K173: -557.9416667 | L173: -557.9416667 | M173: -557.9416667 | N173: -557.9416667 | O173: -557.9416667 | P173: -557.9416667 | Q173: -557.9416667 | R173: -557.9416667 | S173: -557.9416667 | T173: -557.9416667 | U173: -557.9416667 | V173: -557.9416667 | W173: -6695.3
B174: 622 REPARACIONES Y CONSERVACIÓN | C174: -172141.868 | D174: -167247.5111 | E174: -183972.2622 | F174: -193170.8753 | G174: -202829.419 | I174: 623 SERVICIOS DE PROFESIONALES IN | K174: -538.4008958 | L174: -538.4008958 | M174: -538.4008958 | N174: -538.4008958 | O174: -538.4008958 | P174: -538.4008958 | Q174: -538.4008958 | R174: -538.4008958 | S174: -538.4008958 | T174: -538.4008958 | U174: -538.4008958 | V174: -538.4008958 | W174: -6460.81075
B175: 623 SERVICIOS DE PROFESIONALES IN | C175: -30462.3125 | D175: -11400 | E175: -12540 | F175: -13167 | G175: -13825.35 | I175: 624 TRANSPORTES | K175: -2945.007792 | L175: -2945.007792 | M175: -2945.007792 | N175: -2945.007792 | O175: -2945.007792 | P175: -2945.007792 | Q175: -2945.007792 | R175: -2945.007792 | S175: -2945.007792 | T175: -2945.007792 | U175: -2945.007792 | V175: -2945.007792 | W175: -35340.0935
B176: 624 TRANSPORTES | C176: -6858.6 | D176: -7544.46 | E176: -8298.906 | F176: -8713.8513 | G176: -9149.543865 | I176: 625 PRIMAS DE SEGUROS | K176: -91.89722917 | L176: -91.89722917 | M176: -91.89722917 | N176: -91.89722917 | O176: -91.89722917 | P176: -91.89722917 | Q176: -91.89722917 | R176: -91.89722917 | S176: -91.89722917 | T176: -91.89722917 | U176: -91.89722917 | V176: -91.89722917 | W176: -1102.76675
B177: 625 PRIMAS DE SEGUROS | C177: -6618.3915 | D177: -7280.23065 | E177: -8008.253715 | F177: -8408.666401 | G177: -8829.099721 | I177: 626 SERVICIOS BANCARIOS Y SIMILAR | K177: -585.1750625 | L177: -585.1750625 | M177: -585.1750625 | N177: -585.1750625 | O177: -585.1750625 | P177: -585.1750625 | Q177: -585.1750625 | R177: -585.1750625 | S177: -585.1750625 | T177: -585.1750625 | U177: -585.1750625 | V177: -585.1750625 | W177: -7022.10075
B178: 626 SERVICIOS BANCARIOS Y SIMILAR | C178: -36202.047 | D178: -39822.2517 | E178: -43804.47687 | F178: -45994.70071 | G178: -48294.43575 | I178: 627 PUBLICIDAD, PROPAGANDA Y RELA | K178: 0 | L178: 0 | M178: 0 | N178: 0 | O178: 0 | P178: 0 | Q178: 0 | R178: 0 | S178: 0 | T178: 0 | U178: 0 | V178: 0 | W178: 0
B179: 627 PUBLICIDAD, PROPAGANDA Y RELA | C179: -1129.6635 | D179: -1242.62985 | E179: -1366.892835 | F179: -1435.237477 | G179: -1506.999351 | I179: 628 SUMINISTROS | K179: -448.9055833 | L179: -448.9055833 | M179: -448.9055833 | N179: -448.9055833 | O179: -448.9055833 | P179: -448.9055833 | Q179: -448.9055833 | R179: -448.9055833 | S179: -448.9055833 | T179: -448.9055833 | U179: -448.9055833 | V179: -448.9055833 | W179: -5386.867
B180: 628 SUMINISTROS | C180: -7193.3715 | D180: -7912.70865 | E180: -8703.979515 | F180: -9139.178491 | G180: -9596.137415 | I180: 629 OTROS SERVICIOS | K180: -5888.724083 | L180: -5888.724083 | M180: -5888.724083 | N180: -5888.724083 | O180: -5888.724083 | P180: -5888.724083 | Q180: -5888.724083 | R180: -5888.724083 | S180: -5888.724083 | T180: -5888.724083 | U180: -5888.724083 | V180: -5888.724083 | W180: -70664.689
B181: 629 OTROS SERVICIOS | C181: -676.095 | D181: -743.7045 | E181: -818.07495 | F181: -858.9786975 | G181: -901.9276324 | I181: 631 OTROS TRIBUTOS | K181: -414.4672917 | L181: -414.4672917 | M181: -414.4672917 | N181: -414.4672917 | O181: -414.4672917 | P181: -414.4672917 | Q181: -414.4672917 | R181: -414.4672917 | S181: -414.4672917 | T181: -414.4672917 | U181: -414.4672917 | V181: -414.4672917 | W181: -4973.6075
B182: 631 OTROS TRIBUTOS | C182: -5518.254 | D182: -6070.0794 | E182: -6677.08734 | F182: -7010.941707 | G182: -7361.488792 | I182: 634 AJUSTES NEGATIVOS PRORRATA IVA
B183: 634 AJUSTES NEGATIVOS PRORRATA IVA | C183: -72388.218 | D183: -79627.0398 | E183: -87589.74378 | F183: -91969.23097 | G183: -96567.69252
B184: 650 PÉRDIDAS DE CRÉDITOS COMERCIA | C184: -5094.915 | D184: -5604.4065 | E184: -6164.84715 | F184: -6473.089507 | G184: -6796.743983
B185: 659 OTRAS PÉRDIDAS EN GESTIÓN COR | C185: 0 | D185: 0 | E185: 0 | F185: 0 | G185: 0
B186: 678 GASTOS EXCEPCIONALES
B187: 9. Amortización del inmovilizado | I187: Total Gastos | K187: -117366.0986 | L187: -117366.0986 | M187: -117366.0986 | N187: -117366.0986 | O187: -117366.0986 | P187: -117366.0986 | Q187: -117366.0986 | R187: -117366.0986 | S187: -117891.0986 | T187: -117891.0986 | U187: -115322.6611 | V187: -115322.6611 | W187: -1405356.308
B188: 681 AMORTIZACIÓN DEL INMOVILIZADO
B189: 682 AMORTIZACIÓN DEL INMOVILIZADO NUEVO | C189: -16865.64745 | D189: -42680.4049 | E189: -42680.4049 | F189: -42680.4049 | G189: -42680.4049 | I189: Flujo de caja económico | K189: 298487.8605 | L189: 267430.3304 | M189: 267760.6669 | N189: 268090.9934 | O189: 425131.3327 | P189: 436863.5135 | Q189: 439809.8643 | R189: 370613.6615 | S189: 687917.1323 | T189: 704019.3631 | U189: 135408.0014 | V189: 175195.3798 | W189: 209809.4333
B190: A) RTDO.DE EXPLOTACIÓN (1+2+3+4+5+6+7+8+9+10+11+12 | C190: -4350.89 | D190: -4350.89 | E190: -4350.89 | F190: -4350.89 | G190: -4350.89 | W190: 0
B191: 14. Gastos financieros | C191: -12514.75745 | D191: -38329.5149 | E191: -38329.5149 | F191: -38329.5149 | G191: -38329.5149 | I191: Financiamiento | W191: 0
B192: 662 INTERESES DE DEUDAS | I192: Prestamos | K192: 0 | L192: 0 | M192: 0 | N192: 225000 | O192: 0 | P192: 0 | Q192: 0 | R192: 300000 | S192: 0 | T192: 675000 | U192: 0 | V192: 0 | W192: 1200000
B193: 663 INTERESES DE DEUDAS | C193: -16310.1 | D193: -34163.71 | E193: -32580.05 | F193: -30949.69 | G193: -28882.195 | J193: Prestamo 225 | N193: 225000 | W193: 225000
B194: 662 INTERESES NUEVOS PRESTAMOS | C194: -4365.24 | D194: -3600.96 | E194: -2814 | F194: -2006.64 | G194: -789.285 | J194: Prestamo 675 | T194: 675000 | W194: 675000
B195: Prestamo 225 | J195: Deuda a LP | R195: 300000 | W195: 300000
B196: Prestamo 675 | C196: -11944.86 | D196: -30562.75 | E196: -29766.05 | F196: -28943.05 | G196: -28092.91 | I196: Amortizaciòn prestamos | K196: -2258.27 | L196: -2263.44 | M196: -2268.63 | N196: -4662.86 | O196: -4674.55 | P196: -4686.25 | Q196: -4698 | R196: -4709.76 | S196: -4721.56 | T196: -4733.39 | U196: -4745.26 | V196: -4757.14 | W196: -49179.11
B197: Deuda a LP | C197: -4252.49 | D197: -4993.27 | E197: -4196.57 | F197: -3373.57 | G197: -2523.43 | J197: ANTERIOR | K197: -2258.27 | L197: -2263.44 | M197: -2268.63 | N197: -2273.83 | O197: -2279.04 | P197: -2284.26 | Q197: -2289.5 | R197: -2294.74 | S197: -2300 | T197: -2305.27 | U197: -2310.56 | V197: -2315.85 | W197: -27443.39
B198: RESULTADO ANTES DE IMPUESTOS | C198: -4442.37 | D198: -17769.48 | E198: -17769.48 | F198: -17769.48 | G198: -17769.48 | J198: Prestamo 225 | N198: -2389.03 | O198: -2395.51 | P198: -2401.99 | Q198: -2408.5 | R198: -2415.02 | S198: -2421.56 | T198: -2428.12 | U198: -2434.7 | V198: -2441.29 | W198: -21735.72
B199: 18. Impuestos sobre beneficios | C199: -3250 | D199: -7800 | E199: -7800 | F199: -7800 | G199: -7800 | J199: Prestamo 675 | W199: 0
B200: 630 IMPUESTO SOBRE BENEFICIOS | C200: 117973.9912 | D200: 19965.44542 | E200: 73871.92924 | F200: 173843.3258 | G200: 199058.7699 | J200: Deuda a LP | W200: 0
B201: RESULTADO DEL EJERCICIO | I201: Interese prestamos | K201: -392.45 | L201: -387.27 | M201: -382.09 | N201: -870.49 | O201: -860.03 | P201: -849.56 | Q201: -839.05 | R201: -1478.53 | S201: -1467.97 | T201: -2938.17 | U201: -2927.56 | V201: -2916.93 | W201: -16310.1
J202: ANTERIOR | K202: -392.45 | L202: -387.27 | M202: -382.09 | N202: -376.89 | O202: -371.68 | P202: -366.46 | Q202: -361.22 | R202: -355.98 | S202: -350.72 | T202: -345.45 | U202: -340.16 | V202: -334.87 | W202: -4365.24
C203: 117973.9912 | D203: 19965.44542 | E203: 73871.92924 | F203: 173843.3258 | G203: 199058.7699 | J203: Prestamo 225 | N203: -493.6 | O203: -488.35 | P203: -483.1 | Q203: -477.83 | R203: -472.55 | S203: -467.25 | T203: -461.93 | U203: -456.61 | V203: -451.27 | W203: -4252.49
J204: Prestamo 675 | T204: -1480.79 | U204: -1480.79 | V204: -1480.79 | W204: -4442.37
B205: HIPOTESIS DEL ESCENARIO OPTIMISTA | J205: Deuda a LP | R205: -650 | S205: -650 | T205: -650 | U205: -650 | V205: -650 | W205: -3250
B206: Incremento de ingresos | C206: 0.05 | D206: 0.1 | E206: 0.1 | F206: 0.05 | G206: 0.05 | W206: 0
B207: Donaciones particulares | C207: 100000 | I207: Total Financiamiento | K207: -2650.72 | L207: -2650.71 | M207: -2650.72 | N207: 219466.65 | O207: -5534.58 | P207: -5535.81 | Q207: -5537.05 | R207: 293811.71 | S207: -6189.53 | T207: 667328.44 | U207: -7672.82 | V207: -7674.07 | W207: 1134510.79
... 13 more rows

Sheet Inversion Inicial
G3: 0.05 | H3: porcenaje reposición
C4: RESUMEN INVERSIÓN Y AMORTIZACIONES
D5: INVERSIÓN | E5: AMORTIZACIÓN ANUAL | F5: INVERSIÓN REPOSICION | G5: AMORTIZACIÓN I. REPOSICION | H5: AMORTIZACIÓN ANUAL 2024
C6: =+C21 -> Obras y reformas | D6: =+D21 -> 140496.2879 | E6: =+D6*I21 -> 11239.70303 | F6: =+D6*$G$3 -> 7024.814396 | G6: =+F6*I21 -> 561.9851517 | H6: =+E6/2 -> 5619.851517
C7: =+C22 -> Fondo de desviación sobre las obras (12%) | D7: =+D22 -> 16859.55455 | E7: =+D7*I22 -> 1348.764364 | F7: =+D7*$G$3 -> 842.9777276 | G7: =+F7*I22 -> 67.4382182 | H7: =+E7/2 -> 674.382182
C8: Gastos de Establecimientos obras (gastos activables) | D8: =+D45 -> 20764.19 | E8: =+D8*25% -> 5191.0475 | H8: =+E8/2 -> 2595.52375
C9: Gastos de Establecimientos compra (gastos activables) | D9: =+D46 -> 79800 | E9: =+D9*25% -> 19950 | H9: =+E9/12*2 -> 3325
C10: Equipamiento y Mobiliario | D10: =+D32+D33 -> 6000 | E10: =+D10*0.1 -> 600 | F10: =+D10*$G$3 -> 300 | G10: =+F10*I32 -> 30 | H10: =+E10/2 -> 300
C11: INVERSIÓN AMORTIZABLE | D11: =SUM(D6:D10) -> 263920.0325 | E11: =SUM(E6:E10) -> 38329.5149 | F11: =SUM(F6:F10) -> 8167.792124 | G11: =SUM(G6:G10) -> 659.4233699 | H11: =SUM(H6:H10) -> 12514.75745
B15: INVERSIÓN INICIAL
D16: Importe sin iva | E16: Importe IVA incluido | F16: IVA | G16: Amortización anual | H16: Pendiente Año 1 | I16: % Amortización
B17: IVA | C17: GASTOS DE ESTABLECIMIENTO | D17: =SUM(D18:D29) -> 255720.0325 | E17: =SUM(E18:E29) -> 292615.6113 | F17: =SUM(F18:F29) -> 36013.57882 | G17: 28375.95 | H17: 209041.25
B18: 0.21 | C18: Declaración responsable y licencia de actividad | D18: 2000 | E18: =D18*(1+B18) -> 2420 | F18: =E18-D18 -> 420 | G18: =D18*I18 -> 500 | H18: 1594.94 | I18: 0.25
B19: 0 | C19: Impuesto sobre las obras (ICIO) | D19: 4426.8 | E19: =D19*(1+B19) -> 4426.8 | G19: 618.76 | H19: 1856.28 | I19: 0.25
B20: 0.21 | C20: Proyecto de ejecución y tramitación de licencia | D20: 2000 | E20: =D20*(1+B20) -> 2420 | F20: =E20-D20 -> 420 | G20: 1625 | H20: 6240 | I20: 0.25
B21: 0.21 | C21: Obras y reformas | D21: =E54 -> 140496.2879 | E21: =D21*(1+B21) -> 170000.5084 | F21: =E21-D21 -> 29504.22046 | G21: 12916.8 | H21: 143376.48 | I21: 0.08
B22: 0.21 | C22: Fondo de desviación sobre las obras (12%) | D22: =D21*0.12 -> 16859.55455 | E22: =D22*(1+B22) -> 20400.06101 | F22: =E22-D22 -> 3540.506456 | G22: 1937.52 | H22: 21506.47 | I22: 0.08
B23: 0.21 | C23: Honorarios Dirección de Obra | D23: 8137.39 | E23: =D23*(1+B23) -> 9846.2419 | F23: =E23-D23 -> 1708.8519 | G23: 1937.52 | H23: 7440.08 | I23: 0.25
B24: 0.21 | C24: Honorarios Coordinación de Seguridad y Salud | D24: 2000 | E24: =D24*(1+B24) -> 2420 | F24: =E24-D24 -> 420 | G24: 300 | H24: 1152 | I24: 0.25
B25: 0 | C25: Fondo de Garantía Coop57 | D25: 0 | E25: =D25*(1+B25) -> 0
C27: Impuesto Actos Jurídicos Documentados | D27: =8400 -> 8400 | E27: =D27*(1+B27) -> 8400 | G27: 4125 | H27: 12375 | I27: 0.25
C28: Impuesto Transmisiones patrimoniales | D28: 67200 | E28: =D28*(1+B28) -> 67200 | G28: 4125 | H28: 12375 | I28: 0.25
B29: 0.21 | C29: Gastos de notaria | D29: 4200 | E29: =D29*(1+B29) -> 5082 | G29: 375 | H29: 1125 | I29: 0.25
B31: IVA | C31: ACTIVO NO CORRIENTE | D31: =D32+D33+D34 -> 1206000 | E31: =E32+E33+E34 -> 1207260 | F31: =SUM(F32:F34) -> 1260 | G31: 0 | H31: 0
B32: 0.21 | C32: Equipamiento | D32: 1000 | E32: =D32*(1+B32) -> 1210 | F32: =E32-D32 -> 210 | G32: 0 | H32: 0 | I32: 0.1
B33: 0.21 | C33: Mobiliaro | D33: 5000 | E33: =D33*(1+B33) -> 6050 | F33: =E33-D33 -> 1050 | G33: 0 | H33: 0 | I33: 0.1
C34: Compra de local | D34: 1200000 | E34: =D34*(1+B34) -> 1200000
B36: IVA | C36: ACTIVO CORRIENTE | D36: =+SUM(D37) -> 0 | E36: =+SUM(E37) -> 0 | G36: 32176 | H36: 243241.69
C37: Tesorería | D37: 0 | E37: =D37*(1+B37) -> 0
C39: TOTAL | D39: =+D36+D31+D17 -> 1461720.032 | E39: =E36+E31+E17 -> 1499875.611 | F39: =F36+F31+F17 -> 37273.57882 | G39: =G36+G31+G17 -> 60551.95 | H39: =H36+H31+H17 -> 452282.94
C41: RESUMEN INVERSIÓN Y AMORTIZACIONES
D42: Inversión | E42: Amort. anual | F42: Inversión reposición | G42: Amort. incl. reposición
C43: Obras y reformas | D43: =D21 -> 140496.2879 | E43: =D43*I21 -> 11239.70303 | F43: =D43*I21 -> 11239.70303 | G43: =F43*I21 -> 899.1762427
C44: Fondo de desviación sobre las obras (12%) | D44: =D22 -> 16859.55455 | E44: =D44*I22 -> 1348.764364 | F44: =D44*I22 -> 1348.764364 | G44: =F44*I22 -> 107.9011491
C45: Gastos de Establecimientos (gastos activables) | D45: =D19+D20+D23+D29+D18 -> 20764.19 | E45: =D45*I18 -> 5191.0475
C46: Compra local Gastos de Establecimientos (gastos activables) | D46: =D27+D28+D29 -> 79800 | E46: =D46*I19 -> 19950
C47: Equipamiento y Mobiliario (amortización por las AE) | D47: =D32+D33 -> 6000 | E47: =G32+G33 -> 0 | F47: =D47*I32 -> 600 | G47: =F47*I32 -> 60
C49: TOTAL INVERSIÓN NUEVA | D49: =SUM(D43:D47) -> 263920.0325 | E49: =SUM(E43:E47) -> 37729.5149 | F49: =SUM(F43:F47) -> 13188.4674 | G49: =SUM(G43:G47) -> 1067.077392
C51: REFORMA | E51: 85 % CUOTA PROP. HORIZONTAL
C52: Presupuesto de Ejecución Material (PEM) | D52: 138898.95
C53: Gastos Generales + Beneficio Industrial (19%) | D53: =D52*0.19 -> 26390.8005
C54: TOTAL PRESUPUESTO EJECUCIÓN POR CONTRATA | D54: =SUM(D52:D53) -> 165289.7505 | E54: =D54*0.85 -> 140496.2879

Sheet Financiacion
B3: CUADRO FINANCIACIÓN | E3: PRÉSTAMOS
B5: FINANCIACIÓN | H5: PRÉSTAMO COOP57 | Y5: EJEMPLO DE PRESTAMO 2
C6: , | E6: PRESTAMO 1 – OBRAS (EASI) | O6: PRESTAMO 2 – HIPOTECARIO | AD6: PRESTAMO 3 – PERMANENCIA
B7: FONDOS PROPIOS | C7: =SUM(C8:C10) -> 300000 | E7: Cantidad a solicitar (euros): | G7: =C14 -> 225000 | O7: Cantidad a solicitar (euros): | P7: =C15 -> 675000 | Y7: CANTIDAD A SOLICITAR (EUROS): | Z7: 385000 | AD7: Cantidad a solicitar (euros): | AF7: =C16 -> 300000
B8: Fondos propios T de S | C8: 150000 | E8: Periodo de devolución (años): | G8: 7 | O8: Periodo de devolución (años): | P8: 15 | Q8: 15 años (5 año de carencia) | Y8: PERIODO DE DEVOLUCION (AÑOS) | Z8: 14 | AD8: Periodo de devolución (años):
B9: Donaciones directas | C9: 100000 | E9: Tipo de interés (3,25%): | G9: 0.0325 | O9: Tipo de interés (3,45%): | P9: 0.0325 | AD9: Tipo de interés (3,45%): | AF9: 0.026
B10: Crowfunding | C10: =50000 -> 50000 | E10: Comición costes operación (%): | G10: 0 | O10: Comición costes operación (%): | P10: 0 | Y10: TIPO DE INTERES (%) | Z10: 0.0275 | AD10: Comición costes operación (%): | AF10: 0
E11: Total a pagar | O11: Total a pagar | P11: =SUM(N22:N189) -> 0 | AD11: Total a pagar
E12: Total intereses | O12: Total intereses | AD12: Total intereses | AF12: =SUM(AG22:AG189) -> 0
B13: FINANCIACIÓN AJENA | C13: =SUM(C14:C19) -> 1200000 | Y13: COSTES DE LA OPERACIÓN (%) | Z13: 0
B14: Deudas con entidades de crédito a largo plazo – OBRAS | C14: 225000 | E14: CUADRO DE AMORTIZACION | F14: AÑO 1 | G14: AÑO 2 | H14: AÑO 3 | I14: AÑO 4 | J14: AÑO 5 | O14: CUADRO DE AMORTIZACION | P14: AÑO 1 | Q14: AÑO 2 | R14: AÑO 3 | S14: AÑO 4 | T14: AÑO 5 | AD14: CUADRO DE AMORTIZACION | AE14: AÑO 1 | AF14: AÑO 2 | AG14: AÑO 3 | AH14: AÑO 4 | AI14: AÑO 5
B15: Deudas con entidades de crédito a largo plazo – HIPOTECARIO | C15: 675000 | E15: Intereses | F15: =+F17-F16 -> 4252.49 | G15: =+G17-G16 -> 4993.27 | H15: =+H17-H16 -> 4196.57 | I15: =+I17-I16 -> 3373.57 | J15: =+J17-J16 -> 2523.43 | O15: Intereses | P15: =SUM(U21:U23) -> 4442.37 | Q15: =SUM($U$24:$U$35) -> 17769.48 | R15: =SUM($U$36:$U$47) -> 17769.48 | S15: =SUM($U$48:$U$59) -> 17769.48 | T15: =SUM($U$60:$U$71) -> 17769.48 | Y15: CUADRO DE AMORTIZACION | Z15: AÑO 1 | AA15: AÑO 2 | AB15: AÑO 3 | AD15: Intereses | AE15: =+SUM(AF22:AF33) -> 7800 | AF15: =SUM(AF34:AF45) -> 7800 | AG15: =SUM(AF46:AF57) -> 7800 | AH15: =+SUM(AF58:AF69) -> 7800 | AI15: =+AH15 -> 7800
B16: Deudas con entidades de crédito a largo plazo – PERMANENCIA | C16: 300000 | E16: Devolución del principal | F16: =SUM(H21:H29) -> 21735.72 | G16: =SUM($H$30:$H$41) -> 29816.37 | H16: =SUM($H$42:$H$53) -> 30799.97 | I16: =SUM($H$54:$H$65) -> 31816.02 | J16: =SUM($H$66:$H$77) -> 32865.57 | O16: Devolución del principal | P16: 0 | Q16: 0 | R16: 0 | S16: 0 | T16: =SUM($R$60:$R$71) -> 0 | Y16: Intereses | Z16: =+SUM(AA25:AA36) ->  | AA16: =SUM(AA37:AA48) ->  | AB16: =SUM(AA49:AA60) ->  | AD16: Devolución del principal | AE16: =SUM(AG22:AG33) -> 0 | AF16: =SUM(AG34:AG45) -> 0 | AG16: =SUM(AG46:AG57) -> 0 | AH16: =SUM(AG58:AG69) -> 0 | AI16: =SUM(AH58:AH69) -> 0
E17: Importe total de las cuotas | F17: =SUM(L21:L29) -> 25988.21 | G17: =SUM($L$30:$L$41) -> 34809.64 | H17: =SUM($L$42:$L$53) -> 34996.54 | I17: =SUM($L$54:$L$65) -> 35189.59 | J17: =SUM($L$66:$L$77) -> 35389 | O17: Importe total de las cuotas | P17: =+P15 -> 4442.37 | Q17: =+Q15 -> 17769.48 | R17: =+R15 -> 17769.48 | S17: =+S15 -> 17769.48 | T17: =+T15 -> 17769.48 | AD17: Importe total de las cuotas | AE17: =+AE15+AE16 -> 7800 | AF17: =+AF15+AF16 -> 7800 | AG17: =+AG15+AG16 -> 7800 | AH17: =+AH15+AH16 -> 7800 | AI17: =+AI15+AI16 -> 7800
E18: Cuota mensual | F18: =+F17/9 -> 2887.578889 | G18: =+G17/9 -> 3867.737778 | H18: =+H17/9 -> 3888.504444 | I18: =+I17/9 -> 3909.954444 | J18: =+J17/9 -> 3932.111111 | O18: Cuota mensual | P18: =+P15/3 -> 1480.79 | Q18: =+Q17/12 -> 1480.79 | R18: =+R17/12 -> 1480.79 | S18: =+S17/12 -> 1480.79 | T18: =+T17/12 -> 1480.79 | Y18: Devolución del principal | Z18: =SUM(AB25:AB36) ->  | AA18: =SUM(AB37:AB48) ->  | AB18: =SUM(AB49:AB60) ->  | AD18: Cuota mensual | AE18: =AE17/12 -> 650 | AF18: =AF17/12 -> 650 | AG18: =AG17/12 -> 650 | AH18: =AH17/12 -> 650 | AI18: =AI17/12 -> 650
B19: Otras deudas a medio plazo (0% interés) | C19: 0 | Y19: Importe total de las cuotas | Z19: =+Z16+Z18 ->  | AA19: =+AA16+AA18 ->  | AB19: =+AB16+AB18 -> 
E20: Núm. | F20: Data | G20: Capital Viu | H20: Amortització | I20: Int. Bruts | J20: Retenció | K20: Int. Nets | L20: Quota | M20: C. Pendent | O20: Núm. | P20: Data | Q20: Capital Viu | R20: Amortització | S20: Int. Bruts | T20: Retenció | U20: Int. Nets | V20: Quota | W20: C. Pendent | Y20: Comisiones apertura | Z20: =+Z7*Z13 -> 0 | AD20: Periodo | AE20: Cuota mensual | AF20: Intereses | AG20: Amortizado | AH20: Capital amortizado | AI20: Capital pendiente
B21: TOTAL FINANCIACION | C21: =+C7+C13 -> 1500000 | E21: 1 | F21: 30/04/2024 | G21: 225000 | H21: 2389.03 | I21: 609.38 | J21: =ROUND((I21*0.19),2) -> 115.78 | K21: =ROUND((I21-J21),2) -> 493.6 | L21: =ROUND((H21+K21),2) -> 2882.63 | M21: =G21-H21 -> 222610.97 | O21: 1 | P21: 30/10/2024 | Q21: 675000 | R21: 0 | S21: 1828.13 | T21: =ROUND((S21*0.19),2) -> 347.34 | U21: =ROUND((S21-T21),2) -> 1480.79 | V21: =ROUND((R21+U21),2) -> 1480.79 | W21: =Q21-R21 -> 675000
E22: 2 | F22: 30/05/2024 | G22: =G21-H21 -> 222610.97 | H22: 2395.51 | I22: 602.9 | J22: =ROUND((I22*0.19),2) -> 114.55 | K22: =ROUND((I22-J22),2) -> 488.35 | L22: =ROUND((H22+K22),2) -> 2883.86 | M22: =G22-H22 -> 220215.46 | O22: 2 | P22: 30/11/2024 | Q22: =Q21-R21 -> 675000 | R22: 0 | S22: 1828.13 | T22: =ROUND((S22*0.19),2) -> 347.34 | U22: =ROUND((S22-T22),2) -> 1480.79 | V22: =ROUND((R22+U22),2) -> 1480.79 | W22: =Q22-R22 -> 675000 | AE22: 650 | AF22: 650 | AG22: =+IF(AD22<>"",AE22-AF22,"") ->  | AH22: =+IF(AD22<>"",AG22,"") ->  | AI22: =+IF(AD22<>"",$P$7-AH22,"") -> 
E23: 3 | F23: 30/06/2024 | G23: =G22-H22 -> 220215.46 | H23: 2401.99 | I23: 596.42 | J23: =ROUND((I23*0.19),2) -> 113.32 | K23: =ROUND((I23-J23),2) -> 483.1 | L23: =ROUND((H23+K23),2) -> 2885.09 | M23: =G23-H23 -> 217813.47 | O23: 3 | P23: 30/12/2024 | Q23: =Q22-R22 -> 675000 | R23: 0 | S23: 1828.13 | T23: =ROUND((S23*0.19),2) -> 347.34 | U23: =ROUND((S23-T23),2) -> 1480.79 | V23: =ROUND((R23+U23),2) -> 1480.79 | W23: =Q23-R23 -> 675000 | Y23: Periodo | Z23: Cuota mensual | AA23: Intereses | AB23: Amortizado | AC23: Capital amortizado | AE23: 650 | AF23: 650 | AG23: =+IF(AD23<>"",AE23-AF23,"") ->  | AH23: =+IF(AD23<>"",AG23+AH22,"") ->  | AI23: =+IF(AD23<>"",$P$7-AH23,"") -> 
E24: 4 | F24: 30/07/2024 | G24: =G23-H23 -> 217813.47 | H24: 2408.5 | I24: 589.91 | J24: =ROUND((I24*0.19),2) -> 112.08 | K24: =ROUND((I24-J24),2) -> 477.83 | L24: =ROUND((H24+K24),2) -> 2886.33 | M24: =G24-H24 -> 215404.97 | O24: 4 | P24: 30/01/2025 | Q24: =Q23-R23 -> 675000 | R24: 0 | S24: 1828.13 | T24: =ROUND((S24*0.19),2) -> 347.34 | U24: =ROUND((S24-T24),2) -> 1480.79 | V24: =ROUND((R24+U24),2) -> 1480.79 | W24: =Q24-R24 -> 675000 | AE24: 650 | AF24: 650 | AG24: =+IF(AD24<>"",AE24-AF24,"") ->  | AH24: =+IF(AD24<>"",AG24+AH23,"") ->  | AI24: =+IF(AD24<>"",$P$7-AH24,"") -> 
D25: 1 | E25: 5 | F25: 30/08/2024 | G25: =G24-H24 -> 215404.97 | H25: 2415.02 | I25: 583.39 | J25: =ROUND((I25*0.19),2) -> 110.84 | K25: =ROUND((I25-J25),2) -> 472.55 | L25: =ROUND((H25+K25),2) -> 2887.57 | M25: =G25-H25 -> 212989.95 | O25: 5 | P25: 28/02/2025 | Q25: =Q24-R24 -> 675000 | R25: 0 | S25: 1828.13 | T25: =ROUND((S25*0.19),2) -> 347.34 | U25: =ROUND((S25-T25),2) -> 1480.79 | V25: =ROUND((R25+U25),2) -> 1480.79 | W25: =Q25-R25 -> 675000 | Y25: =+IF(($Z$8*12-D25)>=0,D25,"") -> 1 | Z25: =+IF(Y25<>"",($Z$7*$Z$10/12)/(1-(1+($Z$10/12))^(-$Z$8*12)),0) -> 2763.642393 | AA25: =+IF(Y25<>"",$Z$7*$Z$10/12,"") -> 882.2916667 | AB25: =+IF(Y25<>"",Z25-AA25,"") -> 1881.350726 | AC25: =+IF(Y25<>"",AB25,"") -> 1881.350726 | AE25: 650 | AF25: 650 | AG25: =+IF(AD25<>"",AE25-AF25,"") ->  | AH25: =+IF(AD25<>"",AG25+AH24,"") ->  | AI25: =+IF(AD25<>"",$P$7-AH25,"") -> 
D26: 2 | E26: 6 | F26: 30/09/2024 | G26: =G25-H25 -> 212989.95 | H26: 2421.56 | I26: 576.85 | J26: =ROUND((I26*0.19),2) -> 109.6 | K26: =ROUND((I26-J26),2) -> 467.25 | L26: =ROUND((H26+K26),2) -> 2888.81 | M26: =G26-H26 -> 210568.39 | O26: 6 | P26: 30/03/2025 | Q26: =Q25-R25 -> 675000 | R26: 0 | S26: 1828.13 | T26: =ROUND((S26*0.19),2) -> 347.34 | U26: =ROUND((S26-T26),2) -> 1480.79 | V26: =ROUND((R26+U26),2) -> 1480.79 | W26: =Q26-R26 -> 675000 | Y26: =+IF(($Z$8*12-D26)>=0,D26,"") -> 2 | Z26: =+IF(Y26<>"",($Z$7*$Z$10/12)/(1-(1+($Z$10/12))^(-$Z$8*12)),0) -> 2763.642393 | AA26: =+IF(Y26<>"",#REF!*$Z$10/12,"") ->  | AB26: =+IF(Y26<>"",Z26-AA26,"") ->  | AC26: =+IF(Y26<>"",AB26+AC25,"") ->  | AD26: =+IF(($P$8*12-Q29)>=0,Q29,"") ->  | AE26: 650 | AF26: 650 | AG26: =+IF(AD26<>"",AE26-AF26,"") ->  | AH26: =+IF(AD26<>"",AG26+AH25,"") ->  | AI26: =+IF(AD26<>"",$P$7-AH26,"") -> 
D27: 3 | E27: 7 | F27: 30/10/2024 | G27: =G26-H26 -> 210568.39 | H27: 2428.12 | I27: 570.29 | J27: =ROUND((I27*0.19),2) -> 108.36 | K27: =ROUND((I27-J27),2) -> 461.93 | L27: =ROUND((H27+K27),2) -> 2890.05 | M27: =G27-H27 -> 208140.27 | O27: 7 | P27: 30/04/2025 | Q27: =Q26-R26 -> 675000 | R27: 0 | S27: 1828.13 | T27: =ROUND((S27*0.19),2) -> 347.34 | U27: =ROUND((S27-T27),2) -> 1480.79 | V27: =ROUND((R27+U27),2) -> 1480.79 | W27: =Q27-R27 -> 675000 | Y27: =+IF(($Z$8*12-D27)>=0,D27,"") -> 3 | Z27: =+IF(Y27<>"",($Z$7*$Z$10/12)/(1-(1+($Z$10/12))^(-$Z$8*12)),0) -> 2763.642393 | AA27: =+IF(Y27<>"",#REF!*$Z$10/12,"") ->  | AB27: =+IF(Y27<>"",Z27-AA27,"") ->  | AC27: =+IF(Y27<>"",AB27+AC26,"") ->  | AD27: =+IF(($P$8*12-Q30)>=0,Q30,"") ->  | AE27: 650 | AF27: 650 | AG27: =+IF(AD27<>"",AE27-AF27,"") ->  | AH27: =+IF(AD27<>"",AG27+AH26,"") ->  | AI27: =+IF(AD27<>"",$P$7-AH27,"") -> 
D28: 4 | E28: 8 | F28: 30/11/2024 | G28: =G27-H27 -> 208140.27 | H28: 2434.7 | I28: 563.71 | J28: =ROUND((I28*0.19),2) -> 107.1 | K28: =ROUND((I28-J28),2) -> 456.61 | L28: =ROUND((H28+K28),2) -> 2891.31 | M28: =G28-H28 -> 205705.57 | O28: 8 | P28: 30/05/2025 | Q28: =Q27-R27 -> 675000 | R28: 0 | S28: 1828.13 | T28: =ROUND((S28*0.19),2) -> 347.34 | U28: =ROUND((S28-T28),2) -> 1480.79 | V28: =ROUND((R28+U28),2) -> 1480.79 | W28: =Q28-R28 -> 675000 | Y28: =+IF(($Z$8*12-D28)>=0,D28,"") -> 4 | Z28: =+IF(Y28<>"",($Z$7*$Z$10/12)/(1-(1+($Z$10/12))^(-$Z$8*12)),0) -> 2763.642393 | AA28: =+IF(Y28<>"",#REF!*$Z$10/12,"") ->  | AB28: =+IF(Y28<>"",Z28-AA28,"") ->  | AC28: =+IF(Y28<>"",AB28+AC27,"") ->  | AD28: =+IF(($P$8*12-Q31)>=0,Q31,"") ->  | AE28: 650 | AF28: 650 | AG28: =+IF(AD28<>"",AE28-AF28,"") ->  | AH28: =+IF(AD28<>"",AG28+AH27,"") ->  | AI28: =+IF(AD28<>"",$P$7-AH28,"") -> 
D29: 5 | E29: 9 | F29: 30/12/2024 | G29: =G28-H28 -> 205705.57 | H29: 2441.29 | I29: 557.12 | J29: =ROUND((I29*0.19),2) -> 105.85 | K29: =ROUND((I29-J29),2) -> 451.27 | L29: =ROUND((H29+K29),2) -> 2892.56 | M29: =G29-H29 -> 203264.28 | O29: 9 | P29: 30/06/2025 | Q29: =Q28-R28 -> 675000 | R29: 0 | S29: 1828.13 | T29: =ROUND((S29*0.19),2) -> 347.34 | U29: =ROUND((S29-T29),2) -> 1480.79 | V29: =ROUND((R29+U29),2) -> 1480.79 | W29: =Q29-R29 -> 675000 | Y29: =+IF(($Z$8*12-D29)>=0,D29,"") -> 5 | Z29: =+IF(Y29<>"",($Z$7*$Z$10/12)/(1-(1+($Z$10/12))^(-$Z$8*12)),0) -> 2763.642393 | AA29: =+IF(Y29<>"",#REF!*$Z$10/12,"") ->  | AB29: =+IF(Y29<>"",Z29-AA29,"") ->  | AC29: =+IF(Y29<>"",AB29+AC28,"") ->  | AD29: =+IF(($P$8*12-Q32)>=0,Q32,"") ->  | AE29: 650 | AF29: 650 | AG29: =+IF(AD29<>"",AE29-AF29,"") ->  | AH29: =+IF(AD29<>"",AG29+AH28,"") ->  | AI29: =+IF(AD29<>"",$P$7-AH29,"") -> 
D30: 6 | E30: 10 | F30: 30/01/2025 | G30: =G29-H29 -> 203264.28 | H30: 2447.9 | I30: 550.51 | J30: =ROUND((I30*0.19),2) -> 104.6 | K30: =ROUND((I30-J30),2) -> 445.91 | L30: =ROUND((H30+K30),2) -> 2893.81 | M30: =G30-H30 -> 200816.38 | O30: 10 | P30: 30/07/2025 | Q30: =Q29-R29 -> 675000 | R30: 0 | S30: 1828.13 | T30: =ROUND((S30*0.19),2) -> 347.34 | U30: =ROUND((S30-T30),2) -> 1480.79 | V30: =ROUND((R30+U30),2) -> 1480.79 | W30: =Q30-R30 -> 675000 | Y30: =+IF(($Z$8*12-D30)>=0,D30,"") -> 6 | Z30: =+IF(Y30<>"",($Z$7*$Z$10/12)/(1-(1+($Z$10/12))^(-$Z$8*12)),0) -> 2763.642393 | AA30: =+IF(Y30<>"",#REF!*$Z$10/12,"") ->  | AB30: =+IF(Y30<>"",Z30-AA30,"") ->  | AC30: =+IF(Y30<>"",AB30+AC29,"") ->  | AD30: =+IF(($P$8*12-Q33)>=0,Q33,"") ->  | AE30: 650 | AF30: 650 | AG30: =+IF(AD30<>"",AE30-AF30,"") ->  | AH30: =+IF(AD30<>"",AG30+AH29,"") ->  | AI30: =+IF(AD30<>"",$P$7-AH30,"") -> 
D31: 7 | E31: 11 | F31: 28/02/2025 | G31: =G30-H30 -> 200816.38 | H31: 2454.53 | I31: 543.88 | J31: =ROUND((I31*0.19),2) -> 103.34 | K31: =ROUND((I31-J31),2) -> 440.54 | L31: =ROUND((H31+K31),2) -> 2895.07 | M31: =G31-H31 -> 198361.85 | O31: 11 | P31: 30/08/2025 | Q31: =Q30-R30 -> 675000 | R31: 0 | S31: 1828.13 | T31: =ROUND((S31*0.19),2) -> 347.34 | U31: =ROUND((S31-T31),2) -> 1480.79 | V31: =ROUND((R31+U31),2) -> 1480.79 | W31: =Q31-R31 -> 675000 | Y31: =+IF(($Z$8*12-D31)>=0,D31,"") -> 7 | Z31: =+IF(Y31<>"",($Z$7*$Z$10/12)/(1-(1+($Z$10/12))^(-$Z$8*12)),0) -> 2763.642393 | AA31: =+IF(Y31<>"",#REF!*$Z$10/12,"") ->  | AB31: =+IF(Y31<>"",Z31-AA31,"") ->  | AC31: =+IF(Y31<>"",AB31+AC30,"") ->  | AD31: =+IF(($P$8*12-Q34)>=0,Q34,"") ->  | AE31: 650 | AF31: 650 | AG31: =+IF(AD31<>"",AE31-AF31,"") ->  | AH31: =+IF(AD31<>"",AG31+AH30,"") ->  | AI31: =+IF(AD31<>"",$P$7-AH31,"") -> 
D32: =+D31+1 -> 8 | E32: 12 | F32: 30/03/2025 | G32: =G31-H31 -> 198361.85 | H32: 2461.18 | I32: 537.23 | J32: =ROUND((I32*0.19),2) -> 102.07 | K32: =ROUND((I32-J32),2) -> 435.16 | L32: =ROUND((H32+K32),2) -> 2896.34 | M32: =G32-H32 -> 195900.67 | O32: 12 | P32: 30/09/2025 | Q32: =Q31-R31 -> 675000 | R32: 0 | S32: 1828.13 | T32: =ROUND((S32*0.19),2) -> 347.34 | U32: =ROUND((S32-T32),2) -> 1480.79 | V32: =ROUND((R32+U32),2) -> 1480.79 | W32: =Q32-R32 -> 675000 | Y32: =+IF(($Z$8*12-D32)>=0,D32,"") -> 8 | Z32: =+IF(Y32<>"",($Z$7*$Z$10/12)/(1-(1+($Z$10/12))^(-$Z$8*12)),0) -> 2763.642393 | AA32: =+IF(Y32<>"",#REF!*$Z$10/12,"") ->  | AB32: =+IF(Y32<>"",Z32-AA32,"") ->  | AC32: =+IF(Y32<>"",AB32+AC31,"") ->  | AD32: =+IF(($P$8*12-Q35)>=0,Q35,"") ->  | AE32: 650 | AF32: 650 | AG32: =+IF(AD32<>"",AE32-AF32,"") ->  | AH32: =+IF(AD32<>"",AG32+AH31,"") ->  | AI32: =+IF(AD32<>"",$P$7-AH32,"") -> 
D33: =+D32+1 -> 9 | E33: 13 | F33: 30/04/2025 | G33: =G32-H32 -> 195900.67 | H33: 2467.85 | I33: 530.56 | J33: =ROUND((I33*0.19),2) -> 100.81 | K33: =ROUND((I33-J33),2) -> 429.75 | L33: =ROUND((H33+K33),2) -> 2897.6 | M33: =G33-H33 -> 193432.82 | O33: 13 | P33: 30/10/2025 | Q33: =Q32-R32 -> 675000 | R33: 0 | S33: 1828.13 | T33: =ROUND((S33*0.19),2) -> 347.34 | U33: =ROUND((S33-T33),2) -> 1480.79 | V33: =ROUND((R33+U33),2) -> 1480.79 | W33: =Q33-R33 -> 675000 | Y33: =+IF(($Z$8*12-D33)>=0,D33,"") -> 9 | Z33: =+IF(Y33<>"",($Z$7*$Z$10/12)/(1-(1+($Z$10/12))^(-$Z$8*12)),0) -> 2763.642393 | AA33: =+IF(Y33<>"",#REF!*$Z$10/12,"") ->  | AB33: =+IF(Y33<>"",Z33-AA33,"") ->  | AC33: =+IF(Y33<>"",AB33+AC32,"") ->  | AD33: =+IF(($P$8*12-Q36)>=0,Q36,"") ->  | AE33: 650 | AF33: 650 | AG33: =+IF(AD33<>"",AE33-AF33,"") ->  | AH33: =+IF(AD33<>"",AG33+AH32,"") ->  | AI33: =+IF(AD33<>"",$P$7-AH33,"") -> 
D34: =+D33+1 -> 10 | E34: 14 | F34: 30/05/2025 | G34: =G33-H33 -> 193432.82 | H34: 2474.53 | I34: 523.88 | J34: =ROUND((I34*0.19),2) -> 99.54 | K34: =ROUND((I34-J34),2) -> 424.34 | L34: =ROUND((H34+K34),2) -> 2898.87 | M34: =G34-H34 -> 190958.29 | O34: 14 | P34: 30/11/2025 | Q34: =Q33-R33 -> 675000 | R34: 0 | S34: 1828.13 | T34: =ROUND((S34*0.19),2) -> 347.34 | U34: =ROUND((S34-T34),2) -> 1480.79 | V34: =ROUND((R34+U34),2) -> 1480.79 | W34: =Q34-R34 -> 675000 | Y34: =+IF(($Z$8*12-D34)>=0,D34,"") -> 10 | Z34: =+IF(Y34<>"",($Z$7*$Z$10/12)/(1-(1+($Z$10/12))^(-$Z$8*12)),0) -> 2763.642393 | AA34: =+IF(Y34<>"",#REF!*$Z$10/12,"") ->  | AB34: =+IF(Y34<>"",Z34-AA34,"") ->  | AC34: =+IF(Y34<>"",AB34+AC33,"") ->  | AD34: =+IF(($P$8*12-Q37)>=0,Q37,"") ->  | AE34: 650 | AF34: 650 | AG34: =+IF(AD34<>"",AE34-AF34,"") ->  | AH34: =+IF(AD34<>"",AG34+AH33,"") ->  | AI34: =+IF(AD34<>"",$P$7-AH34,"") -> 
D35: =+D34+1 -> 11 | E35: 15 | F35: 30/06/2025 | G35: =G34-H34 -> 190958.29 | H35: 2481.23 | I35: 517.18 | J35: =ROUND((I35*0.19),2) -> 98.26 | K35: =ROUND((I35-J35),2) -> 418.92 | L35: =ROUND((H35+K35),2) -> 2900.15 | M35: =G35-H35 -> 188477.06 | O35: 15 | P35: 30/12/2025 | Q35: =Q34-R34 -> 675000 | R35: 0 | S35: 1828.13 | T35: =ROUND((S35*0.19),2) -> 347.34 | U35: =ROUND((S35-T35),2) -> 1480.79 | V35: =ROUND((R35+U35),2) -> 1480.79 | W35: =Q35-R35 -> 675000 | Y35: =+IF(($Z$8*12-D35)>=0,D35,"") -> 11 | Z35: =+IF(Y35<>"",($Z$7*$Z$10/12)/(1-(1+($Z$10/12))^(-$Z$8*12)),0) -> 2763.642393 | AA35: =+IF(Y35<>"",#REF!*$Z$10/12,"") ->  | AB35: =+IF(Y35<>"",Z35-AA35,"") ->  | AC35: =+IF(Y35<>"",AB35+AC34,"") ->  | AD35: =+IF(($P$8*12-Q38)>=0,Q38,"") ->  | AE35: 650 | AF35: 650 | AG35: =+IF(AD35<>"",AE35-AF35,"") ->  | AH35: =+IF(AD35<>"",AG35+AH34,"") ->  | AI35: =+IF(AD35<>"",$P$7-AH35,"") -> 
D36: =+D35+1 -> 12 | E36: 16 | F36: 30/07/2025 | G36: =G35-H35 -> 188477.06 | H36: 2487.95 | I36: 510.46 | J36: =ROUND((I36*0.19),2) -> 96.99 | K36: =ROUND((I36-J36),2) -> 413.47 | L36: =ROUND((H36+K36),2) -> 2901.42 | M36: =G36-H36 -> 185989.11 | O36: 16 | P36: 30/01/2026 | Q36: =Q35-R35 -> 675000 | R36: 0 | S36: 1828.13 | T36: =ROUND((S36*0.19),2) -> 347.34 | U36: =ROUND((S36-T36),2) -> 1480.79 | V36: =ROUND((R36+U36),2) -> 1480.79 | W36: =Q36-R36 -> 675000 | Y36: =+IF(($Z$8*12-D36)>=0,D36,"") -> 12 | Z36: =+IF(Y36<>"",($Z$7*$Z$10/12)/(1-(1+($Z$10/12))^(-$Z$8*12)),0) -> 2763.642393 | AA36: =+IF(Y36<>"",#REF!*$Z$10/12,"") ->  | AB36: =+IF(Y36<>"",Z36-AA36,"") ->  | AC36: =+IF(Y36<>"",AB36+AC35,"") ->  | AD36: =+IF(($P$8*12-Q39)>=0,Q39,"") ->  | AE36: 650 | AF36: 650 | AG36: =+IF(AD36<>"",AE36-AF36,"") ->  | AH36: =+IF(AD36<>"",AG36+AH35,"") ->  | AI36: =+IF(AD36<>"",$P$7-AH36,"") -> 
D37: =+D36+1 -> 13 | E37: 17 | F37: 30/08/2025 | G37: =G36-H36 -> 185989.11 | H37: 2494.69 | I37: 503.72 | J37: =ROUND((I37*0.19),2) -> 95.71 | K37: =ROUND((I37-J37),2) -> 408.01 | L37: =ROUND((H37+K37),2) -> 2902.7 | M37: =G37-H37 -> 183494.42 | O37: 17 | P37: 28/02/2026 | Q37: =Q36-R36 -> 675000 | R37: 0 | S37: 1828.13 | T37: =ROUND((S37*0.19),2) -> 347.34 | U37: =ROUND((S37-T37),2) -> 1480.79 | V37: =ROUND((R37+U37),2) -> 1480.79 | W37: =Q37-R37 -> 675000 | Y37: =+IF(($Z$8*12-D37)>=0,D37,"") -> 13 | Z37: =+IF(Y37<>"",($Z$7*$Z$10/12)/(1-(1+($Z$10/12))^(-$Z$8*12)),0) -> 2763.642393 | AA37: =+IF(Y37<>"",#REF!*$Z$10/12,"") ->  | AB37: =+IF(Y37<>"",Z37-AA37,"") ->  | AC37: =+IF(Y37<>"",AB37+AC36,"") ->  | AD37: =+IF(($P$8*12-Q40)>=0,Q40,"") ->  | AE37: 650 | AF37: 650 | AG37: =+IF(AD37<>"",AE37-AF37,"") ->  | AH37: =+IF(AD37<>"",AG37+AH36,"") ->  | AI37: =+IF(AD37<>"",$P$7-AH37,"") -> 
D38: =+D37+1 -> 14 | E38: 18 | F38: 30/09/2025 | G38: =G37-H37 -> 183494.42 | H38: 2501.45 | I38: 496.96 | J38: =ROUND((I38*0.19),2) -> 94.42 | K38: =ROUND((I38-J38),2) -> 402.54 | L38: =ROUND((H38+K38),2) -> 2903.99 | M38: =G38-H38 -> 180992.97 | O38: 18 | P38: 30/03/2026 | Q38: =Q37-R37 -> 675000 | R38: 0 | S38: 1828.13 | T38: =ROUND((S38*0.19),2) -> 347.34 | U38: =ROUND((S38-T38),2) -> 1480.79 | V38: =ROUND((R38+U38),2) -> 1480.79 | W38: =Q38-R38 -> 675000 | Y38: =+IF(($Z$8*12-D38)>=0,D38,"") -> 14 | Z38: =+IF(Y38<>"",($Z$7*$Z$10/12)/(1-(1+($Z$10/12))^(-$Z$8*12)),0) -> 2763.642393 | AA38: =+IF(Y38<>"",#REF!*$Z$10/12,"") ->  | AB38: =+IF(Y38<>"",Z38-AA38,"") ->  | AC38: =+IF(Y38<>"",AB38+AC37,"") ->  | AD38: =+IF(($P$8*12-Q41)>=0,Q41,"") ->  | AE38: 650 | AF38: 650 | AG38: =+IF(AD38<>"",AE38-AF38,"") ->  | AH38: =+IF(AD38<>"",AG38+AH37,"") ->  | AI38: =+IF(AD38<>"",$P$7-AH38,"") -> 
D39: =+D38+1 -> 15 | E39: 19 | F39: 30/10/2025 | G39: =G38-H38 -> 180992.97 | H39: 2508.22 | I39: 490.19 | J39: =ROUND((I39*0.19),2) -> 93.14 | K39: =ROUND((I39-J39),2) -> 397.05 | L39: =ROUND((H39+K39),2) -> 2905.27 | M39: =G39-H39 -> 178484.75 | O39: 19 | P39: 30/04/2026 | Q39: =Q38-R38 -> 675000 | R39: 0 | S39: 1828.13 | T39: =ROUND((S39*0.19),2) -> 347.34 | U39: =ROUND((S39-T39),2) -> 1480.79 | V39: =ROUND((R39+U39),2) -> 1480.79 | W39: =Q39-R39 -> 675000 | Y39: =+IF(($Z$8*12-D39)>=0,D39,"") -> 15 | Z39: =+IF(Y39<>"",($Z$7*$Z$10/12)/(1-(1+($Z$10/12))^(-$Z$8*12)),0) -> 2763.642393 | AA39: =+IF(Y39<>"",#REF!*$Z$10/12,"") ->  | AB39: =+IF(Y39<>"",Z39-AA39,"") ->  | AC39: =+IF(Y39<>"",AB39+AC38,"") ->  | AD39: =+IF(($P$8*12-Q42)>=0,Q42,"") ->  | AE39: 650 | AF39: 650 | AG39: =+IF(AD39<>"",AE39-AF39,"") ->  | AH39: =+IF(AD39<>"",AG39+AH38,"") ->  | AI39: =+IF(AD39<>"",$P$7-AH39,"") -> 
D40: =+D39+1 -> 16 | E40: 20 | F40: 30/11/2025 | G40: =G39-H39 -> 178484.75 | H40: 2515.01 | I40: 483.4 | J40: =ROUND((I40*0.19),2) -> 91.85 | K40: =ROUND((I40-J40),2) -> 391.55 | L40: =ROUND((H40+K40),2) -> 2906.56 | M40: =G40-H40 -> 175969.74 | O40: 20 | P40: 30/05/2026 | Q40: =Q39-R39 -> 675000 | R40: 0 | S40: 1828.13 | T40: =ROUND((S40*0.19),2) -> 347.34 | U40: =ROUND((S40-T40),2) -> 1480.79 | V40: =ROUND((R40+U40),2) -> 1480.79 | W40: =Q40-R40 -> 675000 | Y40: =+IF(($Z$8*12-D40)>=0,D40,"") -> 16 | Z40: =+IF(Y40<>"",($Z$7*$Z$10/12)/(1-(1+($Z$10/12))^(-$Z$8*12)),0) -> 2763.642393 | AA40: =+IF(Y40<>"",#REF!*$Z$10/12,"") ->  | AB40: =+IF(Y40<>"",Z40-AA40,"") ->  | AC40: =+IF(Y40<>"",AB40+AC39,"") ->  | AD40: =+IF(($P$8*12-Q43)>=0,Q43,"") ->  | AE40: 650 | AF40: 650 | AG40: =+IF(AD40<>"",AE40-AF40,"") ->  | AH40: =+IF(AD40<>"",AG40+AH39,"") ->  | AI40: =+IF(AD40<>"",$P$7-AH40,"") -> 
D41: =+D40+1 -> 17 | E41: 21 | F41: 30/12/2025 | G41: =G40-H40 -> 175969.74 | H41: 2521.83 | I41: 476.58 | J41: =ROUND((I41*0.19),2) -> 90.55 | K41: =ROUND((I41-J41),2) -> 386.03 | L41: =ROUND((H41+K41),2) -> 2907.86 | M41: =G41-H41 -> 173447.91 | O41: 21 | P41: 30/06/2026 | Q41: =Q40-R40 -> 675000 | R41: 0 | S41: 1828.13 | T41: =ROUND((S41*0.19),2) -> 347.34 | U41: =ROUND((S41-T41),2) -> 1480.79 | V41: =ROUND((R41+U41),2) -> 1480.79 | W41: =Q41-R41 -> 675000 | Y41: =+IF(($Z$8*12-D41)>=0,D41,"") -> 17 | Z41: =+IF(Y41<>"",($Z$7*$Z$10/12)/(1-(1+($Z$10/12))^(-$Z$8*12)),0) -> 2763.642393 | AA41: =+IF(Y41<>"",#REF!*$Z$10/12,"") ->  | AB41: =+IF(Y41<>"",Z41-AA41,"") ->  | AC41: =+IF(Y41<>"",AB41+AC40,"") ->  | AD41: =+IF(($P$8*12-Q44)>=0,Q44,"") ->  | AE41: 650 | AF41: 650 | AG41: =+IF(AD41<>"",AE41-AF41,"") ->  | AH41: =+IF(AD41<>"",AG41+AH40,"") ->  | AI41: =+IF(AD41<>"",$P$7-AH41,"") -> 
D42: =+D41+1 -> 18 | E42: 22 | F42: 30/01/2026 | G42: =G41-H41 -> 173447.91 | H42: 2528.66 | I42: 469.75 | J42: =ROUND((I42*0.19),2) -> 89.25 | K42: =ROUND((I42-J42),2) -> 380.5 | L42: =ROUND((H42+K42),2) -> 2909.16 | M42: =G42-H42 -> 170919.25 | O42: 22 | P42: 30/07/2026 | Q42: =Q41-R41 -> 675000 | R42: 0 | S42: 1828.13 | T42: =ROUND((S42*0.19),2) -> 347.34 | U42: =ROUND((S42-T42),2) -> 1480.79 | V42: =ROUND((R42+U42),2) -> 1480.79 | W42: =Q42-R42 -> 675000 | Y42: =+IF(($Z$8*12-D42)>=0,D42,"") -> 18 | Z42: =+IF(Y42<>"",($Z$7*$Z$10/12)/(1-(1+($Z$10/12))^(-$Z$8*12)),0) -> 2763.642393 | AA42: =+IF(Y42<>"",#REF!*$Z$10/12,"") ->  | AB42: =+IF(Y42<>"",Z42-AA42,"") ->  | AC42: =+IF(Y42<>"",AB42+AC41,"") ->  | AD42: =+IF(($P$8*12-Q45)>=0,Q45,"") ->  | AE42: 650 | AF42: 650 | AG42: =+IF(AD42<>"",AE42-AF42,"") ->  | AH42: =+IF(AD42<>"",AG42+AH41,"") ->  | AI42: =+IF(AD42<>"",$P$7-AH42,"") -> 
D43: =+D42+1 -> 19 | E43: 23 | F43: 28/02/2026 | G43: =G42-H42 -> 170919.25 | H43: 2535.5 | I43: 462.91 | J43: =ROUND((I43*0.19),2) -> 87.95 | K43: =ROUND((I43-J43),2) -> 374.96 | L43: =ROUND((H43+K43),2) -> 2910.46 | M43: =G43-H43 -> 168383.75 | O43: 23 | P43: 30/08/2026 | Q43: =Q42-R42 -> 675000 | R43: 0 | S43: 1828.13 | T43: =ROUND((S43*0.19),2) -> 347.34 | U43: =ROUND((S43-T43),2) -> 1480.79 | V43: =ROUND((R43+U43),2) -> 1480.79 | W43: =Q43-R43 -> 675000 | Y43: =+IF(($Z$8*12-D43)>=0,D43,"") -> 19 | Z43: =+IF(Y43<>"",($Z$7*$Z$10/12)/(1-(1+($Z$10/12))^(-$Z$8*12)),0) -> 2763.642393 | AA43: =+IF(Y43<>"",#REF!*$Z$10/12,"") ->  | AB43: =+IF(Y43<>"",Z43-AA43,"") ->  | AC43: =+IF(Y43<>"",AB43+AC42,"") ->  | AD43: =+IF(($P$8*12-Q46)>=0,Q46,"") ->  | AE43: 650 | AF43: 650 | AG43: =+IF(AD43<>"",AE43-AF43,"") ->  | AH43: =+IF(AD43<>"",AG43+AH42,"") ->  | AI43: =+IF(AD43<>"",$P$7-AH43,"") -> 
D44: =+D43+1 -> 20 | E44: 24 | F44: 30/03/2026 | G44: =G43-H43 -> 168383.75 | H44: 2542.37 | I44: 456.04 | J44: =ROUND((I44*0.19),2) -> 86.65 | K44: =ROUND((I44-J44),2) -> 369.39 | L44: =ROUND((H44+K44),2) -> 2911.76 | M44: =G44-H44 -> 165841.38 | O44: 24 | P44: 30/09/2026 | Q44: =Q43-R43 -> 675000 | R44: 0 | S44: 1828.13 | T44: =ROUND((S44*0.19),2) -> 347.34 | U44: =ROUND((S44-T44),2) -> 1480.79 | V44: =ROUND((R44+U44),2) -> 1480.79 | W44: =Q44-R44 -> 675000 | Y44: =+IF(($Z$8*12-D44)>=0,D44,"") -> 20 | Z44: =+IF(Y44<>"",($Z$7*$Z$10/12)/(1-(1+($Z$10/12))^(-$Z$8*12)),0) -> 2763.642393 | AA44: =+IF(Y44<>"",#REF!*$Z$10/12,"") ->  | AB44: =+IF(Y44<>"",Z44-AA44,"") ->  | AC44: =+IF(Y44<>"",AB44+AC43,"") ->  | AD44: =+IF(($P$8*12-Q47)>=0,Q47,"") ->  | AE44: 650 | AF44: 650 | AG44: =+IF(AD44<>"",AE44-AF44,"") ->  | AH44: =+IF(AD44<>"",AG44+AH43,"") ->  | AI44: =+IF(AD44<>"",$P$7-AH44,"") -> 
D45: =+D44+1 -> 21 | E45: 25 | F45: 30/04/2026 | G45: =G44-H44 -> 165841.38 | H45: 2549.26 | I45: 449.15 | J45: =ROUND((I45*0.19),2) -> 85.34 | K45: =ROUND((I45-J45),2) -> 363.81 | L45: =ROUND((H45+K45),2) -> 2913.07 | M45: =G45-H45 -> 163292.12 | O45: 25 | P45: 30/10/2026 | Q45: =Q44-R44 -> 675000 | R45: 0 | S45: 1828.13 | T45: =ROUND((S45*0.19),2) -> 347.34 | U45: =ROUND((S45-T45),2) -> 1480.79 | V45: =ROUND((R45+U45),2) -> 1480.79 | W45: =Q45-R45 -> 675000 | Y45: =+IF(($Z$8*12-D45)>=0,D45,"") -> 21 | Z45: =+IF(Y45<>"",($Z$7*$Z$10/12)/(1-(1+($Z$10/12))^(-$Z$8*12)),0) -> 2763.642393 | AA45: =+IF(Y45<>"",#REF!*$Z$10/12,"") ->  | AB45: =+IF(Y45<>"",Z45-AA45,"") ->  | AC45: =+IF(Y45<>"",AB45+AC44,"") ->  | AD45: =+IF(($P$8*12-Q48)>=0,Q48,"") ->  | AE45: 650 | AF45: 650 | AG45: =+IF(AD45<>"",AE45-AF45,"") ->  | AH45: =+IF(AD45<>"",AG45+AH44,"") ->  | AI45: =+IF(AD45<>"",$P$7-AH45,"") -> 
D46: =+D45+1 -> 22 | E46: 26 | F46: 30/05/2026 | G46: =G45-H45 -> 163292.12 | H46: 2556.16 | I46: 442.25 | J46: =ROUND((I46*0.19),2) -> 84.03 | K46: =ROUND((I46-J46),2) -> 358.22 | L46: =ROUND((H46+K46),2) -> 2914.38 | M46: =G46-H46 -> 160735.96 | O46: 26 | P46: 30/11/2026 | Q46: =Q45-R45 -> 675000 | R46: 0 | S46: 1828.13 | T46: =ROUND((S46*0.19),2) -> 347.34 | U46: =ROUND((S46-T46),2) -> 1480.79 | V46: =ROUND((R46+U46),2) -> 1480.79 | W46: =Q46-R46 -> 675000 | Y46: =+IF(($Z$8*12-D46)>=0,D46,"") -> 22 | Z46: =+IF(Y46<>"",($Z$7*$Z$10/12)/(1-(1+($Z$10/12))^(-$Z$8*12)),0) -> 2763.642393 | AA46: =+IF(Y46<>"",#REF!*$Z$10/12,"") ->  | AB46: =+IF(Y46<>"",Z46-AA46,"") ->  | AC46: =+IF(Y46<>"",AB46+AC45,"") ->  | AD46: =+IF(($P$8*12-Q49)>=0,Q49,"") ->  | AE46: 650 | AF46: 650 | AG46: =+IF(AD46<>"",AE46-AF46,"") ->  | AH46: =+IF(AD46<>"",AG46+AH45,"") ->  | AI46: =+IF(AD46<>"",$P$7-AH46,"") -> 
D47: =+D46+1 -> 23 | E47: 27 | F47: 30/06/2026 | G47: =G46-H46 -> 160735.96 | H47: 2563.08 | I47: 435.33 | J47: =ROUND((I47*0.19),2) -> 82.71 | K47: =ROUND((I47-J47),2) -> 352.62 | L47: =ROUND((H47+K47),2) -> 2915.7 | M47: =G47-H47 -> 158172.88 | O47: 27 | P47: 30/12/2026 | Q47: =Q46-R46 -> 675000 | R47: 0 | S47: 1828.13 | T47: =ROUND((S47*0.19),2) -> 347.34 | U47: =ROUND((S47-T47),2) -> 1480.79 | V47: =ROUND((R47+U47),2) -> 1480.79 | W47: =Q47-R47 -> 675000 | Y47: =+IF(($Z$8*12-D47)>=0,D47,"") -> 23 | Z47: =+IF(Y47<>"",($Z$7*$Z$10/12)/(1-(1+($Z$10/12))^(-$Z$8*12)),0) -> 2763.642393 | AA47: =+IF(Y47<>"",#REF!*$Z$10/12,"") ->  | AB47: =+IF(Y47<>"",Z47-AA47,"") ->  | AC47: =+IF(Y47<>"",AB47+AC46,"") ->  | AD47: =+IF(($P$8*12-Q50)>=0,Q50,"") ->  | AE47: 650 | AF47: 650 | AG47: =+IF(AD47<>"",AE47-AF47,"") ->  | AH47: =+IF(AD47<>"",AG47+AH46,"") ->  | AI47: =+IF(AD47<>"",$P$7-AH47,"") -> 
D48: =+D47+1 -> 24 | E48: 28 | F48: 30/07/2026 | G48: =G47-H47 -> 158172.88 | H48: 2570.03 | I48: 428.38 | J48: =ROUND((I48*0.19),2) -> 81.39 | K48: =ROUND((I48-J48),2) -> 346.99 | L48: =ROUND((H48+K48),2) -> 2917.02 | M48: =G48-H48 -> 155602.85 | O48: 28 | P48: 30/01/2027 | Q48: =Q47-R47 -> 675000 | R48: 0 | S48: 1828.13 | T48: =ROUND((S48*0.19),2) -> 347.34 | U48: =ROUND((S48-T48),2) -> 1480.79 | V48: =ROUND((R48+U48),2) -> 1480.79 | W48: =Q48-R48 -> 675000 | Y48: =+IF(($Z$8*12-D48)>=0,D48,"") -> 24 | Z48: =+IF(Y48<>"",($Z$7*$Z$10/12)/(1-(1+($Z$10/12))^(-$Z$8*12)),0) -> 2763.642393 | AA48: =+IF(Y48<>"",#REF!*$Z$10/12,"") ->  | AB48: =+IF(Y48<>"",Z48-AA48,"") ->  | AC48: =+IF(Y48<>"",AB48+AC47,"") ->  | AD48: =+IF(($P$8*12-Q51)>=0,Q51,"") ->  | AE48: 650 | AF48: 650 | AG48: =+IF(AD48<>"",AE48-AF48,"") ->  | AH48: =+IF(AD48<>"",AG48+AH47,"") ->  | AI48: =+IF(AD48<>"",$P$7-AH48,"") -> 
D49: =+D48+1 -> 25 | E49: 29 | F49: 30/08/2026 | G49: =G48-H48 -> 155602.85 | H49: 2576.99 | I49: 421.42 | J49: =ROUND((I49*0.19),2) -> 80.07 | K49: =ROUND((I49-J49),2) -> 341.35 | L49: =ROUND((H49+K49),2) -> 2918.34 | M49: =G49-H49 -> 153025.86 | O49: 29 | P49: 28/02/2027 | Q49: =Q48-R48 -> 675000 | R49: 0 | S49: 1828.13 | T49: =ROUND((S49*0.19),2) -> 347.34 | U49: =ROUND((S49-T49),2) -> 1480.79 | V49: =ROUND((R49+U49),2) -> 1480.79 | W49: =Q49-R49 -> 675000 | Y49: =+IF(($Z$8*12-D49)>=0,D49,"") -> 25 | Z49: =+IF(Y49<>"",($Z$7*$Z$10/12)/(1-(1+($Z$10/12))^(-$Z$8*12)),0) -> 2763.642393 | AA49: =+IF(Y49<>"",#REF!*$Z$10/12,"") ->  | AB49: =+IF(Y49<>"",Z49-AA49,"") ->  | AC49: =+IF(Y49<>"",AB49+AC48,"") ->  | AD49: =+IF(($P$8*12-Q52)>=0,Q52,"") ->  | AE49: 650 | AF49: 650 | AG49: =+IF(AD49<>"",AE49-AF49,"") ->  | AH49: =+IF(AD49<>"",AG49+AH48,"") ->  | AI49: =+IF(AD49<>"",$P$7-AH49,"") -> 
D50: =+D49+1 -> 26 | E50: 30 | F50: 30/09/2026 | G50: =G49-H49 -> 153025.86 | H50: 2583.96 | I50: 414.45 | J50: =ROUND((I50*0.19),2) -> 78.75 | K50: =ROUND((I50-J50),2) -> 335.7 | L50: =ROUND((H50+K50),2) -> 2919.66 | M50: =G50-H50 -> 150441.9 | O50: 30 | P50: 30/03/2027 | Q50: =Q49-R49 -> 675000 | R50: 0 | S50: 1828.13 | T50: =ROUND((S50*0.19),2) -> 347.34 | U50: =ROUND((S50-T50),2) -> 1480.79 | V50: =ROUND((R50+U50),2) -> 1480.79 | W50: =Q50-R50 -> 675000 | Y50: =+IF(($Z$8*12-D50)>=0,D50,"") -> 26 | Z50: =+IF(Y50<>"",($Z$7*$Z$10/12)/(1-(1+($Z$10/12))^(-$Z$8*12)),0) -> 2763.642393 | AA50: =+IF(Y50<>"",#REF!*$Z$10/12,"") ->  | AB50: =+IF(Y50<>"",Z50-AA50,"") ->  | AC50: =+IF(Y50<>"",AB50+AC49,"") ->  | AD50: =+IF(($P$8*12-Q53)>=0,Q53,"") ->  | AE50: 650 | AF50: 650 | AG50: =+IF(AD50<>"",AE50-AF50,"") ->  | AH50: =+IF(AD50<>"",AG50+AH49,"") ->  | AI50: =+IF(AD50<>"",$P$7-AH50,"") -> 
D51: =+D50+1 -> 27 | E51: 31 | F51: 30/10/2026 | G51: =G50-H50 -> 150441.9 | H51: 2590.96 | I51: 407.45 | J51: =ROUND((I51*0.19),2) -> 77.42 | K51: =ROUND((I51-J51),2) -> 330.03 | L51: =ROUND((H51+K51),2) -> 2920.99 | M51: =G51-H51 -> 147850.94 | O51: 31 | P51: 30/04/2027 | Q51: =Q50-R50 -> 675000 | R51: 0 | S51: 1828.13 | T51: =ROUND((S51*0.19),2) -> 347.34 | U51: =ROUND((S51-T51),2) -> 1480.79 | V51: =ROUND((R51+U51),2) -> 1480.79 | W51: =Q51-R51 -> 675000 | Y51: =+IF(($Z$8*12-D51)>=0,D51,"") -> 27 | Z51: =+IF(Y51<>"",($Z$7*$Z$10/12)/(1-(1+($Z$10/12))^(-$Z$8*12)),0) -> 2763.642393 | AA51: =+IF(Y51<>"",#REF!*$Z$10/12,"") ->  | AB51: =+IF(Y51<>"",Z51-AA51,"") ->  | AC51: =+IF(Y51<>"",AB51+AC50,"") ->  | AD51: =+IF(($P$8*12-Q54)>=0,Q54,"") ->  | AE51: 650 | AF51: 650 | AG51: =+IF(AD51<>"",AE51-AF51,"") ->  | AH51: =+IF(AD51<>"",AG51+AH50,"") ->  | AI51: =+IF(AD51<>"",$P$7-AH51,"") -> 
D52: =+D51+1 -> 28 | E52: 32 | F52: 30/11/2026 | G52: =G51-H51 -> 147850.94 | H52: 2597.98 | I52: 400.43 | J52: =ROUND((I52*0.19),2) -> 76.08 | K52: =ROUND((I52-J52),2) -> 324.35 | L52: =ROUND((H52+K52),2) -> 2922.33 | M52: =G52-H52 -> 145252.96 | O52: 32 | P52: 30/05/2027 | Q52: =Q51-R51 -> 675000 | R52: 0 | S52: 1828.13 | T52: =ROUND((S52*0.19),2) -> 347.34 | U52: =ROUND((S52-T52),2) -> 1480.79 | V52: =ROUND((R52+U52),2) -> 1480.79 | W52: =Q52-R52 -> 675000 | Y52: =+IF(($Z$8*12-D52)>=0,D52,"") -> 28 | Z52: =+IF(Y52<>"",($Z$7*$Z$10/12)/(1-(1+($Z$10/12))^(-$Z$8*12)),0) -> 2763.642393 | AA52: =+IF(Y52<>"",#REF!*$Z$10/12,"") ->  | AB52: =+IF(Y52<>"",Z52-AA52,"") ->  | AC52: =+IF(Y52<>"",AB52+AC51,"") ->  | AD52: =+IF(($P$8*12-Q55)>=0,Q55,"") ->  | AE52: 650 | AF52: 650 | AG52: =+IF(AD52<>"",AE52-AF52,"") ->  | AH52: =+IF(AD52<>"",AG52+AH51,"") ->  | AI52: =+IF(AD52<>"",$P$7-AH52,"") -> 
D53: =+D52+1 -> 29 | E53: 33 | F53: 30/12/2026 | G53: =G52-H52 -> 145252.96 | H53: 2605.02 | I53: 393.39 | J53: =ROUND((I53*0.19),2) -> 74.74 | K53: =ROUND((I53-J53),2) -> 318.65 | L53: =ROUND((H53+K53),2) -> 2923.67 | M53: =G53-H53 -> 142647.94 | O53: 33 | P53: 30/06/2027 | Q53: =Q52-R52 -> 675000 | R53: 0 | S53: 1828.13 | T53: =ROUND((S53*0.19),2) -> 347.34 | U53: =ROUND((S53-T53),2) -> 1480.79 | V53: =ROUND((R53+U53),2) -> 1480.79 | W53: =Q53-R53 -> 675000 | Y53: =+IF(($Z$8*12-D53)>=0,D53,"") -> 29 | Z53: =+IF(Y53<>"",($Z$7*$Z$10/12)/(1-(1+($Z$10/12))^(-$Z$8*12)),0) -> 2763.642393 | AA53: =+IF(Y53<>"",#REF!*$Z$10/12,"") ->  | AB53: =+IF(Y53<>"",Z53-AA53,"") ->  | AC53: =+IF(Y53<>"",AB53+AC52,"") ->  | AD53: =+IF(($P$8*12-Q56)>=0,Q56,"") ->  | AE53: 650 | AF53: 650 | AG53: =+IF(AD53<>"",AE53-AF53,"") ->  | AH53: =+IF(AD53<>"",AG53+AH52,"") ->  | AI53: =+IF(AD53<>"",$P$7-AH53,"") -> 
D54: =+D53+1 -> 30 | E54: 34 | F54: 30/01/2027 | G54: =G53-H53 -> 142647.94 | H54: 2612.07 | I54: 386.34 | J54: =ROUND((I54*0.19),2) -> 73.4 | K54: =ROUND((I54-J54),2) -> 312.94 | L54: =ROUND((H54+K54),2) -> 2925.01 | M54: =G54-H54 -> 140035.87 | O54: 34 | P54: 30/07/2027 | Q54: =Q53-R53 -> 675000 | R54: 0 | S54: 1828.13 | T54: =ROUND((S54*0.19),2) -> 347.34 | U54: =ROUND((S54-T54),2) -> 1480.79 | V54: =ROUND((R54+U54),2) -> 1480.79 | W54: =Q54-R54 -> 675000 | Y54: =+IF(($Z$8*12-D54)>=0,D54,"") -> 30 | Z54: =+IF(Y54<>"",($Z$7*$Z$10/12)/(1-(1+($Z$10/12))^(-$Z$8*12)),0) -> 2763.642393 | AA54: =+IF(Y54<>"",#REF!*$Z$10/12,"") ->  | AB54: =+IF(Y54<>"",Z54-AA54,"") ->  | AC54: =+IF(Y54<>"",AB54+AC53,"") ->  | AD54: =+IF(($P$8*12-Q57)>=0,Q57,"") ->  | AE54: 650 | AF54: 650 | AG54: =+IF(AD54<>"",AE54-AF54,"") ->  | AH54: =+IF(AD54<>"",AG54+AH53,"") ->  | AI54: =+IF(AD54<>"",$P$7-AH54,"") -> 
D55: =+D54+1 -> 31 | E55: 35 | F55: 28/02/2027 | G55: =G54-H54 -> 140035.87 | H55: 2619.15 | I55: 379.26 | J55: =ROUND((I55*0.19),2) -> 72.06 | K55: =ROUND((I55-J55),2) -> 307.2 | L55: =ROUND((H55+K55),2) -> 2926.35 | M55: =G55-H55 -> 137416.72 | O55: 35 | P55: 30/08/2027 | Q55: =Q54-R54 -> 675000 | R55: 0 | S55: 1828.13 | T55: =ROUND((S55*0.19),2) -> 347.34 | U55: =ROUND((S55-T55),2) -> 1480.79 | V55: =ROUND((R55+U55),2) -> 1480.79 | W55: =Q55-R55 -> 675000 | Y55: =+IF(($Z$8*12-D55)>=0,D55,"") -> 31 | Z55: =+IF(Y55<>"",($Z$7*$Z$10/12)/(1-(1+($Z$10/12))^(-$Z$8*12)),0) -> 2763.642393 | AA55: =+IF(Y55<>"",#REF!*$Z$10/12,"") ->  | AB55: =+IF(Y55<>"",Z55-AA55,"") ->  | AC55: =+IF(Y55<>"",AB55+AC54,"") ->  | AD55: =+IF(($P$8*12-Q58)>=0,Q58,"") ->  | AE55: 650 | AF55: 650 | AG55: =+IF(AD55<>"",AE55-AF55,"") ->  | AH55: =+IF(AD55<>"",AG55+AH54,"") ->  | AI55: =+IF(AD55<>"",$P$7-AH55,"") -> 
D56: =+D55+1 -> 32 | E56: 36 | F56: 30/03/2027 | G56: =G55-H55 -> 137416.72 | H56: 2626.24 | I56: 372.17 | J56: =ROUND((I56*0.19),2) -> 70.71 | K56: =ROUND((I56-J56),2) -> 301.46 | L56: =ROUND((H56+K56),2) -> 2927.7 | M56: =G56-H56 -> 134790.48 | O56: 36 | P56: 30/09/2027 | Q56: =Q55-R55 -> 675000 | R56: 0 | S56: 1828.13 | T56: =ROUND((S56*0.19),2) -> 347.34 | U56: =ROUND((S56-T56),2) -> 1480.79 | V56: =ROUND((R56+U56),2) -> 1480.79 | W56: =Q56-R56 -> 675000 | Y56: =+IF(($Z$8*12-D56)>=0,D56,"") -> 32 | Z56: =+IF(Y56<>"",($Z$7*$Z$10/12)/(1-(1+($Z$10/12))^(-$Z$8*12)),0) -> 2763.642393 | AA56: =+IF(Y56<>"",#REF!*$Z$10/12,"") ->  | AB56: =+IF(Y56<>"",Z56-AA56,"") ->  | AC56: =+IF(Y56<>"",AB56+AC55,"") ->  | AD56: =+IF(($P$8*12-Q59)>=0,Q59,"") ->  | AE56: 650 | AF56: 650 | AG56: =+IF(AD56<>"",AE56-AF56,"") ->  | AH56: =+IF(AD56<>"",AG56+AH55,"") ->  | AI56: =+IF(AD56<>"",$P$7-AH56,"") -> 
D57: =+D56+1 -> 33 | E57: 37 | F57: 30/04/2027 | G57: =G56-H56 -> 134790.48 | H57: 2633.35 | I57: 365.06 | J57: =ROUND((I57*0.19),2) -> 69.36 | K57: =ROUND((I57-J57),2) -> 295.7 | L57: =ROUND((H57+K57),2) -> 2929.05 | M57: =G57-H57 -> 132157.13 | O57: 37 | P57: 30/10/2027 | Q57: =Q56-R56 -> 675000 | R57: 0 | S57: 1828.13 | T57: =ROUND((S57*0.19),2) -> 347.34 | U57: =ROUND((S57-T57),2) -> 1480.79 | V57: =ROUND((R57+U57),2) -> 1480.79 | W57: =Q57-R57 -> 675000 | Y57: =+IF(($Z$8*12-D57)>=0,D57,"") -> 33 | Z57: =+IF(Y57<>"",($Z$7*$Z$10/12)/(1-(1+($Z$10/12))^(-$Z$8*12)),0) -> 2763.642393 | AA57: =+IF(Y57<>"",#REF!*$Z$10/12,"") ->  | AB57: =+IF(Y57<>"",Z57-AA57,"") ->  | AC57: =+IF(Y57<>"",AB57+AC56,"") ->  | AD57: =+IF(($P$8*12-Q60)>=0,Q60,"") ->  | AE57: 650 | AF57: 650 | AG57: =+IF(AD57<>"",AE57-AF57,"") ->  | AH57: =+IF(AD57<>"",AG57+AH56,"") ->  | AI57: =+IF(AD57<>"",$P$7-AH57,"") -> 
D58: =+D57+1 -> 34 | E58: 38 | F58: 30/05/2027 | G58: =G57-H57 -> 132157.13 | H58: 2640.48 | I58: 357.93 | J58: =ROUND((I58*0.19),2) -> 68.01 | K58: =ROUND((I58-J58),2) -> 289.92 | L58: =ROUND((H58+K58),2) -> 2930.4 | M58: =G58-H58 -> 129516.65 | O58: 38 | P58: 30/11/2027 | Q58: =Q57-R57 -> 675000 | R58: 0 | S58: 1828.13 | T58: =ROUND((S58*0.19),2) -> 347.34 | U58: =ROUND((S58-T58),2) -> 1480.79 | V58: =ROUND((R58+U58),2) -> 1480.79 | W58: =Q58-R58 -> 675000 | Y58: =+IF(($Z$8*12-D58)>=0,D58,"") -> 34 | Z58: =+IF(Y58<>"",($Z$7*$Z$10/12)/(1-(1+($Z$10/12))^(-$Z$8*12)),0) -> 2763.642393 | AA58: =+IF(Y58<>"",#REF!*$Z$10/12,"") ->  | AB58: =+IF(Y58<>"",Z58-AA58,"") ->  | AC58: =+IF(Y58<>"",AB58+AC57,"") ->  | AD58: =+IF(($P$8*12-Q61)>=0,Q61,"") ->  | AE58: 650 | AF58: 650 | AG58: =+IF(AD58<>"",AE58-AF58,"") ->  | AH58: =+IF(AD58<>"",AG58+AH57,"") ->  | AI58: =+IF(AD58<>"",$P$7-AH58,"") -> 
D59: =+D58+1 -> 35 | E59: 39 | F59: 30/06/2027 | G59: =G58-H58 -> 129516.65 | H59: 2647.64 | I59: 350.77 | J59: =ROUND((I59*0.19),2) -> 66.65 | K59: =ROUND((I59-J59),2) -> 284.12 | L59: =ROUND((H59+K59),2) -> 2931.76 | M59: =G59-H59 -> 126869.01 | O59: 39 | P59: 30/12/2027 | Q59: =Q58-R58 -> 675000 | R59: 0 | S59: 1828.13 | T59: =ROUND((S59*0.19),2) -> 347.34 | U59: =ROUND((S59-T59),2) -> 1480.79 | V59: =ROUND((R59+U59),2) -> 1480.79 | W59: =Q59-R59 -> 675000 | Y59: =+IF(($Z$8*12-D59)>=0,D59,"") -> 35 | Z59: =+IF(Y59<>"",($Z$7*$Z$10/12)/(1-(1+($Z$10/12))^(-$Z$8*12)),0) -> 2763.642393 | AA59: =+IF(Y59<>"",#REF!*$Z$10/12,"") ->  | AB59: =+IF(Y59<>"",Z59-AA59,"") ->  | AC59: =+IF(Y59<>"",AB59+AC58,"") ->  | AD59: =+IF(($P$8*12-Q62)>=0,Q62,"") ->  | AE59: 650 | AF59: 650 | AG59: =+IF(AD59<>"",AE59-AF59,"") ->  | AH59: =+IF(AD59<>"",AG59+AH58,"") ->  | AI59: =+IF(AD59<>"",$P$7-AH59,"") -> 
D60: =+D59+1 -> 36 | E60: 40 | F60: 30/07/2027 | G60: =G59-H59 -> 126869.01 | H60: 2654.81 | I60: 343.6 | J60: =ROUND((I60*0.19),2) -> 65.28 | K60: =ROUND((I60-J60),2) -> 278.32 | L60: =ROUND((H60+K60),2) -> 2933.13 | M60: =G60-H60 -> 124214.2 | O60: 40 | P60: 30/01/2028 | Q60: =Q59-R59 -> 675000 | R60: 0 | S60: 1828.13 | T60: =ROUND((S60*0.19),2) -> 347.34 | U60: =ROUND((S60-T60),2) -> 1480.79 | V60: =ROUND((R60+U60),2) -> 1480.79 | W60: =Q60-R60 -> 675000 | Y60: =+IF(($Z$8*12-D60)>=0,D60,"") -> 36 | Z60: =+IF(Y60<>"",($Z$7*$Z$10/12)/(1-(1+($Z$10/12))^(-$Z$8*12)),0) -> 2763.642393 | AA60: =+IF(Y60<>"",#REF!*$Z$10/12,"") ->  | AB60: =+IF(Y60<>"",Z60-AA60,"") ->  | AC60: =+IF(Y60<>"",AB60+AC59,"") ->  | AD60: =+IF(($P$8*12-Q63)>=0,Q63,"") ->  | AE60: 650 | AF60: 650 | AG60: =+IF(AD60<>"",AE60-AF60,"") ->  | AH60: =+IF(AD60<>"",AG60+AH59,"") ->  | AI60: =+IF(AD60<>"",$P$7-AH60,"") -> 
D61: =+D60+1 -> 37 | E61: 41 | F61: 30/08/2027 | G61: =G60-H60 -> 124214.2 | H61: 2662 | I61: 336.41 | J61: =ROUND((I61*0.19),2) -> 63.92 | K61: =ROUND((I61-J61),2) -> 272.49 | L61: =ROUND((H61+K61),2) -> 2934.49 | M61: =G61-H61 -> 121552.2 | O61: 41 | P61: 29/02/2028 | Q61: =Q60-R60 -> 675000 | R61: 0 | S61: 1828.13 | T61: =ROUND((S61*0.19),2) -> 347.34 | U61: =ROUND((S61-T61),2) -> 1480.79 | V61: =ROUND((R61+U61),2) -> 1480.79 | W61: =Q61-R61 -> 675000 | Y61: =+IF(($Z$8*12-D61)>=0,D61,"") -> 37 | Z61: =+IF(Y61<>"",($Z$7*$Z$10/12)/(1-(1+($Z$10/12))^(-$Z$8*12)),0) -> 2763.642393 | AA61: =+IF(Y61<>"",#REF!*$Z$10/12,"") ->  | AB61: =+IF(Y61<>"",Z61-AA61,"") ->  | AC61: =+IF(Y61<>"",AB61+AC60,"") ->  | AD61: =+IF(($P$8*12-Q64)>=0,Q64,"") ->  | AE61: 650 | AF61: 650 | AG61: =+IF(AD61<>"",AE61-AF61,"") ->  | AH61: =+IF(AD61<>"",AG61+AH60,"") ->  | AI61: =+IF(AD61<>"",$P$7-AH61,"") -> 
D62: =+D61+1 -> 38 | E62: 42 | F62: 30/09/2027 | G62: =G61-H61 -> 121552.2 | H62: 2669.21 | I62: 329.2 | J62: =ROUND((I62*0.19),2) -> 62.55 | K62: =ROUND((I62-J62),2) -> 266.65 | L62: =ROUND((H62+K62),2) -> 2935.86 | M62: =G62-H62 -> 118882.99 | O62: 42 | P62: 30/03/2028 | Q62: =Q61-R61 -> 675000 | R62: 0 | S62: 1828.13 | T62: =ROUND((S62*0.19),2) -> 347.34 | U62: =ROUND((S62-T62),2) -> 1480.79 | V62: =ROUND((R62+U62),2) -> 1480.79 | W62: =Q62-R62 -> 675000 | Y62: =+IF(($Z$8*12-D62)>=0,D62,"") -> 38 | Z62: =+IF(Y62<>"",($Z$7*$Z$10/12)/(1-(1+($Z$10/12))^(-$Z$8*12)),0) -> 2763.642393 | AA62: =+IF(Y62<>"",#REF!*$Z$10/12,"") ->  | AB62: =+IF(Y62<>"",Z62-AA62,"") ->  | AC62: =+IF(Y62<>"",AB62+AC61,"") ->  | AD62: =+IF(($P$8*12-Q65)>=0,Q65,"") ->  | AE62: 650 | AF62: 650 | AG62: =+IF(AD62<>"",AE62-AF62,"") ->  | AH62: =+IF(AD62<>"",AG62+AH61,"") ->  | AI62: =+IF(AD62<>"",$P$7-AH62,"") -> 
D63: =+D62+1 -> 39 | E63: 43 | F63: 30/10/2027 | G63: =G62-H62 -> 118882.99 | H63: 2676.44 | I63: 321.97 | J63: =ROUND((I63*0.19),2) -> 61.17 | K63: =ROUND((I63-J63),2) -> 260.8 | L63: =ROUND((H63+K63),2) -> 2937.24 | M63: =G63-H63 -> 116206.55 | O63: 43 | P63: 30/04/2028 | Q63: =Q62-R62 -> 675000 | R63: 0 | S63: 1828.13 | T63: =ROUND((S63*0.19),2) -> 347.34 | U63: =ROUND((S63-T63),2) -> 1480.79 | V63: =ROUND((R63+U63),2) -> 1480.79 | W63: =Q63-R63 -> 675000 | Y63: =+IF(($Z$8*12-D63)>=0,D63,"") -> 39 | Z63: =+IF(Y63<>"",($Z$7*$Z$10/12)/(1-(1+($Z$10/12))^(-$Z$8*12)),0) -> 2763.642393 | AA63: =+IF(Y63<>"",#REF!*$Z$10/12,"") ->  | AB63: =+IF(Y63<>"",Z63-AA63,"") ->  | AC63: =+IF(Y63<>"",AB63+AC62,"") ->  | AD63: =+IF(($P$8*12-Q66)>=0,Q66,"") ->  | AE63: 650 | AF63: 650 | AG63: =+IF(AD63<>"",AE63-AF63,"") ->  | AH63: =+IF(AD63<>"",AG63+AH62,"") ->  | AI63: =+IF(AD63<>"",$P$7-AH63,"") -> 
D64: =+D63+1 -> 40 | E64: 44 | F64: 30/11/2027 | G64: =G63-H63 -> 116206.55 | H64: 2683.68 | I64: 314.73 | J64: =ROUND((I64*0.19),2) -> 59.8 | K64: =ROUND((I64-J64),2) -> 254.93 | L64: =ROUND((H64+K64),2) -> 2938.61 | M64: =G64-H64 -> 113522.87 | O64: 44 | P64: 30/05/2028 | Q64: =Q63-R63 -> 675000 | R64: 0 | S64: 1828.13 | T64: =ROUND((S64*0.19),2) -> 347.34 | U64: =ROUND((S64-T64),2) -> 1480.79 | V64: =ROUND((R64+U64),2) -> 1480.79 | W64: =Q64-R64 -> 675000 | Y64: =+IF(($Z$8*12-D64)>=0,D64,"") -> 40 | Z64: =+IF(Y64<>"",($Z$7*$Z$10/12)/(1-(1+($Z$10/12))^(-$Z$8*12)),0) -> 2763.642393 | AA64: =+IF(Y64<>"",#REF!*$Z$10/12,"") ->  | AB64: =+IF(Y64<>"",Z64-AA64,"") ->  | AC64: =+IF(Y64<>"",AB64+AC63,"") ->  | AD64: =+IF(($P$8*12-Q67)>=0,Q67,"") ->  | AE64: 650 | AF64: 650 | AG64: =+IF(AD64<>"",AE64-AF64,"") ->  | AH64: =+IF(AD64<>"",AG64+AH63,"") ->  | AI64: =+IF(AD64<>"",$P$7-AH64,"") -> 
D65: =+D64+1 -> 41 | E65: 45 | F65: 30/12/2027 | G65: =G64-H64 -> 113522.87 | H65: 2690.95 | I65: 307.46 | J65: =ROUND((I65*0.19),2) -> 58.42 | K65: =ROUND((I65-J65),2) -> 249.04 | L65: =ROUND((H65+K65),2) -> 2939.99 | M65: =G65-H65 -> 110831.92 | O65: 45 | P65: 30/06/2028 | Q65: =Q64-R64 -> 675000 | R65: 0 | S65: 1828.13 | T65: =ROUND((S65*0.19),2) -> 347.34 | U65: =ROUND((S65-T65),2) -> 1480.79 | V65: =ROUND((R65+U65),2) -> 1480.79 | W65: =Q65-R65 -> 675000 | Y65: =+IF(($Z$8*12-D65)>=0,D65,"") -> 41 | Z65: =+IF(Y65<>"",($Z$7*$Z$10/12)/(1-(1+($Z$10/12))^(-$Z$8*12)),0) -> 2763.642393 | AA65: =+IF(Y65<>"",#REF!*$Z$10/12,"") ->  | AB65: =+IF(Y65<>"",Z65-AA65,"") ->  | AC65: =+IF(Y65<>"",AB65+AC64,"") ->  | AD65: =+IF(($P$8*12-Q68)>=0,Q68,"") ->  | AE65: 650 | AF65: 650 | AG65: =+IF(AD65<>"",AE65-AF65,"") ->  | AH65: =+IF(AD65<>"",AG65+AH64,"") ->  | AI65: =+IF(AD65<>"",$P$7-AH65,"") -> 
D66: =+D65+1 -> 42 | E66: 46 | F66: 30/01/2028 | G66: =G65-H65 -> 110831.92 | H66: 2698.24 | I66: 300.17 | J66: =ROUND((I66*0.19),2) -> 57.03 | K66: =ROUND((I66-J66),2) -> 243.14 | L66: =ROUND((H66+K66),2) -> 2941.38 | M66: =G66-H66 -> 108133.68 | O66: 46 | P66: 30/07/2028 | Q66: =Q65-R65 -> 675000 | R66: 0 | S66: 1828.13 | T66: =ROUND((S66*0.19),2) -> 347.34 | U66: =ROUND((S66-T66),2) -> 1480.79 | V66: =ROUND((R66+U66),2) -> 1480.79 | W66: =Q66-R66 -> 675000 | Y66: =+IF(($Z$8*12-D66)>=0,D66,"") -> 42 | Z66: =+IF(Y66<>"",($Z$7*$Z$10/12)/(1-(1+($Z$10/12))^(-$Z$8*12)),0) -> 2763.642393 | AA66: =+IF(Y66<>"",#REF!*$Z$10/12,"") ->  | AB66: =+IF(Y66<>"",Z66-AA66,"") ->  | AC66: =+IF(Y66<>"",AB66+AC65,"") ->  | AD66: =+IF(($P$8*12-Q69)>=0,Q69,"") ->  | AE66: 650 | AF66: 650 | AG66: =+IF(AD66<>"",AE66-AF66,"") ->  | AH66: =+IF(AD66<>"",AG66+AH65,"") ->  | AI66: =+IF(AD66<>"",$P$7-AH66,"") -> 
D67: =+D66+1 -> 43 | E67: 47 | F67: 29/02/2028 | G67: =G66-H66 -> 108133.68 | H67: 2705.55 | I67: 292.86 | J67: =ROUND((I67*0.19),2) -> 55.64 | K67: =ROUND((I67-J67),2) -> 237.22 | L67: =ROUND((H67+K67),2) -> 2942.77 | M67: =G67-H67 -> 105428.13 | O67: 47 | P67: 30/08/2028 | Q67: =Q66-R66 -> 675000 | R67: 0 | S67: 1828.13 | T67: =ROUND((S67*0.19),2) -> 347.34 | U67: =ROUND((S67-T67),2) -> 1480.79 | V67: =ROUND((R67+U67),2) -> 1480.79 | W67: =Q67-R67 -> 675000 | Y67: =+IF(($Z$8*12-D67)>=0,D67,"") -> 43 | Z67: =+IF(Y67<>"",($Z$7*$Z$10/12)/(1-(1+($Z$10/12))^(-$Z$8*12)),0) -> 2763.642393 | AA67: =+IF(Y67<>"",#REF!*$Z$10/12,"") ->  | AB67: =+IF(Y67<>"",Z67-AA67,"") ->  | AC67: =+IF(Y67<>"",AB67+AC66,"") ->  | AD67: =+IF(($P$8*12-Q70)>=0,Q70,"") ->  | AE67: 650 | AF67: 650 | AG67: =+IF(AD67<>"",AE67-AF67,"") ->  | AH67: =+IF(AD67<>"",AG67+AH66,"") ->  | AI67: =+IF(AD67<>"",$P$7-AH67,"") -> 
D68: =+D67+1 -> 44 | E68: 48 | F68: 30/03/2028 | G68: =G67-H67 -> 105428.13 | H68: 2712.88 | I68: 285.53 | J68: =ROUND((I68*0.19),2) -> 54.25 | K68: =ROUND((I68-J68),2) -> 231.28 | L68: =ROUND((H68+K68),2) -> 2944.16 | M68: =G68-H68 -> 102715.25 | O68: 48 | P68: 30/09/2028 | Q68: =Q67-R67 -> 675000 | R68: 0 | S68: 1828.13 | T68: =ROUND((S68*0.19),2) -> 347.34 | U68: =ROUND((S68-T68),2) -> 1480.79 | V68: =ROUND((R68+U68),2) -> 1480.79 | W68: =Q68-R68 -> 675000 | Y68: =+IF(($Z$8*12-D68)>=0,D68,"") -> 44 | Z68: =+IF(Y68<>"",($Z$7*$Z$10/12)/(1-(1+($Z$10/12))^(-$Z$8*12)),0) -> 2763.642393 | AA68: =+IF(Y68<>"",#REF!*$Z$10/12,"") ->  | AB68: =+IF(Y68<>"",Z68-AA68,"") ->  | AC68: =+IF(Y68<>"",AB68+AC67,"") ->  | AD68: =+IF(($P$8*12-Q71)>=0,Q71,"") ->  | AE68: 650 | AF68: 650 | AG68: =+IF(AD68<>"",AE68-AF68,"") ->  | AH68: =+IF(AD68<>"",AG68+AH67,"") ->  | AI68: =+IF(AD68<>"",$P$7-AH68,"") -> 
D69: =+D68+1 -> 45 | E69: 49 | F69: 30/04/2028 | G69: =G68-H68 -> 102715.25 | H69: 2720.22 | I69: 278.19 | J69: =ROUND((I69*0.19),2) -> 52.86 | K69: =ROUND((I69-J69),2) -> 225.33 | L69: =ROUND((H69+K69),2) -> 2945.55 | M69: =G69-H69 -> 99995.03 | O69: 49 | P69: 30/10/2028 | Q69: =Q68-R68 -> 675000 | R69: 0 | S69: 1828.13 | T69: =ROUND((S69*0.19),2) -> 347.34 | U69: =ROUND((S69-T69),2) -> 1480.79 | V69: =ROUND((R69+U69),2) -> 1480.79 | W69: =Q69-R69 -> 675000 | Y69: =+IF(($Z$8*12-D69)>=0,D69,"") -> 45 | Z69: =+IF(Y69<>"",($Z$7*$Z$10/12)/(1-(1+($Z$10/12))^(-$Z$8*12)),0) -> 2763.642393 | AA69: =+IF(Y69<>"",#REF!*$Z$10/12,"") ->  | AB69: =+IF(Y69<>"",Z69-AA69,"") ->  | AC69: =+IF(Y69<>"",AB69+AC68,"") ->  | AD69: =+IF(($P$8*12-Q72)>=0,Q72,"") ->  | AE69: 650 | AF69: 650 | AG69: =+IF(AD69<>"",AE69-AF69,"") ->  | AH69: =+IF(AD69<>"",AG69+AH68,"") ->  | AI69: =+IF(AD69<>"",$P$7-AH69,"") -> 
D70: =+D69+1 -> 46 | E70: 50 | F70: 30/05/2028 | G70: =G69-H69 -> 99995.03 | H70: 2727.59 | I70: 270.82 | J70: =ROUND((I70*0.19),2) -> 51.46 | K70: =ROUND((I70-J70),2) -> 219.36 | L70: =ROUND((H70+K70),2) -> 2946.95 | M70: =G70-H70 -> 97267.44 | O70: 50 | P70: 30/11/2028 | Q70: =Q69-R69 -> 675000 | R70: 0 | S70: 1828.13 | T70: =ROUND((S70*0.19),2) -> 347.34 | U70: =ROUND((S70-T70),2) -> 1480.79 | V70: =ROUND((R70+U70),2) -> 1480.79 | W70: =Q70-R70 -> 675000 | Y70: =+IF(($Z$8*12-D70)>=0,D70,"") -> 46 | Z70: =+IF(Y70<>"",($Z$7*$Z$10/12)/(1-(1+($Z$10/12))^(-$Z$8*12)),0) -> 2763.642393 | AA70: =+IF(Y70<>"",#REF!*$Z$10/12,"") ->  | AB70: =+IF(Y70<>"",Z70-AA70,"") ->  | AC70: =+IF(Y70<>"",AB70+AC69,"") ->  | AD70: =+IF(($P$8*12-Q73)>=0,Q73,"") ->  | AE70: 650 | AF70: 650 | AG70: =+IF(AD70<>"",AE70-AF70,"") ->  | AH70: =+IF(AD70<>"",AG70+AH69,"") ->  | AI70: =+IF(AD70<>"",$P$7-AH70,"") -> 
D71: =+D70+1 -> 47 | E71: 51 | F71: 30/06/2028 | G71: =G70-H70 -> 97267.44 | H71: 2734.98 | I71: 263.43 | J71: =ROUND((I71*0.19),2) -> 50.05 | K71: =ROUND((I71-J71),2) -> 213.38 | L71: =ROUND((H71+K71),2) -> 2948.36 | M71: =G71-H71 -> 94532.46 | O71: 51 | P71: 30/12/2028 | Q71: =Q70-R70 -> 675000 | R71: 0 | S71: 1828.13 | T71: =ROUND((S71*0.19),2) -> 347.34 | U71: =ROUND((S71-T71),2) -> 1480.79 | V71: =ROUND((R71+U71),2) -> 1480.79 | W71: =Q71-R71 -> 675000 | Y71: =+IF(($Z$8*12-D71)>=0,D71,"") -> 47 | Z71: =+IF(Y71<>"",($Z$7*$Z$10/12)/(1-(1+($Z$10/12))^(-$Z$8*12)),0) -> 2763.642393 | AA71: =+IF(Y71<>"",#REF!*$Z$10/12,"") ->  | AB71: =+IF(Y71<>"",Z71-AA71,"") ->  | AC71: =+IF(Y71<>"",AB71+AC70,"") ->  | AD71: =+IF(($P$8*12-Q74)>=0,Q74,"") ->  | AE71: 650 | AF71: 650 | AG71: =+IF(AD71<>"",AE71-AF71,"") ->  | AH71: =+IF(AD71<>"",AG71+AH70,"") ->  | AI71: =+IF(AD71<>"",$P$7-AH71,"") -> 
D72: =+D71+1 -> 48 | E72: 52 | F72: 30/07/2028 | G72: =G71-H71 -> 94532.46 | H72: 2742.38 | I72: 256.03 | J72: =ROUND((I72*0.19),2) -> 48.65 | K72: =ROUND((I72-J72),2) -> 207.38 | L72: =ROUND((H72+K72),2) -> 2949.76 | M72: =G72-H72 -> 91790.08 | O72: 52 | P72: 30/01/2029 | Q72: =Q71-R71 -> 675000 | R72: 0 | S72: 1828.13 | T72: =ROUND((S72*0.19),2) -> 347.34 | U72: =ROUND((S72-T72),2) -> 1480.79 | V72: =ROUND((R72+U72),2) -> 1480.79 | W72: =Q72-R72 -> 675000 | Y72: =+IF(($Z$8*12-D72)>=0,D72,"") -> 48 | Z72: =+IF(Y72<>"",($Z$7*$Z$10/12)/(1-(1+($Z$10/12))^(-$Z$8*12)),0) -> 2763.642393 | AA72: =+IF(Y72<>"",#REF!*$Z$10/12,"") ->  | AB72: =+IF(Y72<>"",Z72-AA72,"") ->  | AC72: =+IF(Y72<>"",AB72+AC71,"") ->  | AD72: =+IF(($P$8*12-Q75)>=0,Q75,"") ->  | AE72: 650 | AF72: 650 | AG72: =+IF(AD72<>"",AE72-AF72,"") ->  | AH72: =+IF(AD72<>"",AG72+AH71,"") ->  | AI72: =+IF(AD72<>"",$P$7-AH72,"") -> 
D73: =+D72+1 -> 49 | E73: 53 | F73: 30/08/2028 | G73: =G72-H72 -> 91790.08 | H73: 2749.81 | I73: 248.6 | J73: =ROUND((I73*0.19),2) -> 47.23 | K73: =ROUND((I73-J73),2) -> 201.37 | L73: =ROUND((H73+K73),2) -> 2951.18 | M73: =G73-H73 -> 89040.27 | O73: 53 | P73: 28/02/2029 | Q73: =Q72-R72 -> 675000 | R73: 0 | S73: 1828.13 | T73: =ROUND((S73*0.19),2) -> 347.34 | U73: =ROUND((S73-T73),2) -> 1480.79 | V73: =ROUND((R73+U73),2) -> 1480.79 | W73: =Q73-R73 -> 675000 | Y73: =+IF(($Z$8*12-D73)>=0,D73,"") -> 49 | Z73: =+IF(Y73<>"",($Z$7*$Z$10/12)/(1-(1+($Z$10/12))^(-$Z$8*12)),0) -> 2763.642393 | AA73: =+IF(Y73<>"",#REF!*$Z$10/12,"") ->  | AB73: =+IF(Y73<>"",Z73-AA73,"") ->  | AC73: =+IF(Y73<>"",AB73+AC72,"") ->  | AD73: =+IF(($P$8*12-Q76)>=0,Q76,"") ->  | AE73: 650 | AF73: 650 | AG73: =+IF(AD73<>"",AE73-AF73,"") ->  | AH73: =+IF(AD73<>"",AG73+AH72,"") ->  | AI73: =+IF(AD73<>"",$P$7-AH73,"") -> 
D74: =+D73+1 -> 50 | E74: 54 | F74: 30/09/2028 | G74: =G73-H73 -> 89040.27 | H74: 2757.26 | I74: 241.15 | J74: =ROUND((I74*0.19),2) -> 45.82 | K74: =ROUND((I74-J74),2) -> 195.33 | L74: =ROUND((H74+K74),2) -> 2952.59 | M74: =G74-H74 -> 86283.01 | O74: 54 | P74: 30/03/2029 | Q74: =Q73-R73 -> 675000 | R74: 0 | S74: 1828.13 | T74: =ROUND((S74*0.19),2) -> 347.34 | U74: =ROUND((S74-T74),2) -> 1480.79 | V74: =ROUND((R74+U74),2) -> 1480.79 | W74: =Q74-R74 -> 675000 | Y74: =+IF(($Z$8*12-D74)>=0,D74,"") -> 50 | Z74: =+IF(Y74<>"",($Z$7*$Z$10/12)/(1-(1+($Z$10/12))^(-$Z$8*12)),0) -> 2763.642393 | AA74: =+IF(Y74<>"",#REF!*$Z$10/12,"") ->  | AB74: =+IF(Y74<>"",Z74-AA74,"") ->  | AC74: =+IF(Y74<>"",AB74+AC73,"") ->  | AD74: =+IF(($P$8*12-Q77)>=0,Q77,"") ->  | AE74: 650 | AF74: 650 | AG74: =+IF(AD74<>"",AE74-AF74,"") ->  | AH74: =+IF(AD74<>"",AG74+AH73,"") ->  | AI74: =+IF(AD74<>"",$P$7-AH74,"") -> 
D75: =+D74+1 -> 51 | E75: 55 | F75: 30/10/2028 | G75: =G74-H74 -> 86283.01 | H75: 2764.73 | I75: 233.68 | J75: =ROUND((I75*0.19),2) -> 44.4 | K75: =ROUND((I75-J75),2) -> 189.28 | L75: =ROUND((H75+K75),2) -> 2954.01 | M75: =G75-H75 -> 83518.28 | O75: 55 | P75: 30/04/2029 | Q75: =Q74-R74 -> 675000 | R75: 0 | S75: 1828.13 | T75: =ROUND((S75*0.19),2) -> 347.34 | U75: =ROUND((S75-T75),2) -> 1480.79 | V75: =ROUND((R75+U75),2) -> 1480.79 | W75: =Q75-R75 -> 675000 | Y75: =+IF(($Z$8*12-D75)>=0,D75,"") -> 51 | Z75: =+IF(Y75<>"",($Z$7*$Z$10/12)/(1-(1+($Z$10/12))^(-$Z$8*12)),0) -> 2763.642393 | AA75: =+IF(Y75<>"",#REF!*$Z$10/12,"") ->  | AB75: =+IF(Y75<>"",Z75-AA75,"") ->  | AC75: =+IF(Y75<>"",AB75+AC74,"") ->  | AD75: =+IF(($P$8*12-Q78)>=0,Q78,"") ->  | AE75: 650 | AF75: 650 | AG75: =+IF(AD75<>"",AE75-AF75,"") ->  | AH75: =+IF(AD75<>"",AG75+AH74,"") ->  | AI75: =+IF(AD75<>"",$P$7-AH75,"") -> 
D76: =+D75+1 -> 52 | E76: 56 | F76: 30/11/2028 | G76: =G75-H75 -> 83518.28 | H76: 2772.21 | I76: 226.2 | J76: =ROUND((I76*0.19),2) -> 42.98 | K76: =ROUND((I76-J76),2) -> 183.22 | L76: =ROUND((H76+K76),2) -> 2955.43 | M76: =G76-H76 -> 80746.07 | O76: 56 | P76: 30/05/2029 | Q76: =Q75-R75 -> 675000 | R76: 0 | S76: 1828.13 | T76: =ROUND((S76*0.19),2) -> 347.34 | U76: =ROUND((S76-T76),2) -> 1480.79 | V76: =ROUND((R76+U76),2) -> 1480.79 | W76: =Q76-R76 -> 675000 | Y76: =+IF(($Z$8*12-D76)>=0,D76,"") -> 52 | Z76: =+IF(Y76<>"",($Z$7*$Z$10/12)/(1-(1+($Z$10/12))^(-$Z$8*12)),0) -> 2763.642393 | AA76: =+IF(Y76<>"",#REF!*$Z$10/12,"") ->  | AB76: =+IF(Y76<>"",Z76-AA76,"") ->  | AC76: =+IF(Y76<>"",AB76+AC75,"") ->  | AD76: =+IF(($P$8*12-Q79)>=0,Q79,"") ->  | AE76: 650 | AF76: 650 | AG76: =+IF(AD76<>"",AE76-AF76,"") ->  | AH76: =+IF(AD76<>"",AG76+AH75,"") ->  | AI76: =+IF(AD76<>"",$P$7-AH76,"") -> 
D77: =+D76+1 -> 53 | E77: 57 | F77: 30/12/2028 | G77: =G76-H76 -> 80746.07 | H77: 2779.72 | I77: 218.69 | J77: =ROUND((I77*0.19),2) -> 41.55 | K77: =ROUND((I77-J77),2) -> 177.14 | L77: =ROUND((H77+K77),2) -> 2956.86 | M77: =G77-H77 -> 77966.35 | O77: 57 | P77: 30/06/2029 | Q77: =Q76-R76 -> 675000 | R77: 0 | S77: 1828.13 | T77: =ROUND((S77*0.19),2) -> 347.34 | U77: =ROUND((S77-T77),2) -> 1480.79 | V77: =ROUND((R77+U77),2) -> 1480.79 | W77: =Q77-R77 -> 675000 | Y77: =+IF(($Z$8*12-D77)>=0,D77,"") -> 53 | Z77: =+IF(Y77<>"",($Z$7*$Z$10/12)/(1-(1+($Z$10/12))^(-$Z$8*12)),0) -> 2763.642393 | AA77: =+IF(Y77<>"",#REF!*$Z$10/12,"") ->  | AB77: =+IF(Y77<>"",Z77-AA77,"") ->  | AC77: =+IF(Y77<>"",AB77+AC76,"") ->  | AD77: =+IF(($P$8*12-Q80)>=0,Q80,"") ->  | AE77: 650 | AF77: 650 | AG77: =+IF(AD77<>"",AE77-AF77,"") ->  | AH77: =+IF(AD77<>"",AG77+AH76,"") ->  | AI77: =+IF(AD77<>"",$P$7-AH77,"") -> 
D78: =+D77+1 -> 54 | E78: 58 | F78: 30/01/2029 | G78: =G77-H77 -> 77966.35 | H78: 2787.25 | I78: 211.16 | J78: =ROUND((I78*0.19),2) -> 40.12 | K78: =ROUND((I78-J78),2) -> 171.04 | L78: =ROUND((H78+K78),2) -> 2958.29 | M78: =G78-H78 -> 75179.1 | O78: 58 | P78: 30/07/2029 | Q78: =Q77-R77 -> 675000 | R78: 0 | S78: 1828.13 | T78: =ROUND((S78*0.19),2) -> 347.34 | U78: =ROUND((S78-T78),2) -> 1480.79 | V78: =ROUND((R78+U78),2) -> 1480.79 | W78: =Q78-R78 -> 675000 | Y78: =+IF(($Z$8*12-D78)>=0,D78,"") -> 54 | Z78: =+IF(Y78<>"",($Z$7*$Z$10/12)/(1-(1+($Z$10/12))^(-$Z$8*12)),0) -> 2763.642393 | AA78: =+IF(Y78<>"",#REF!*$Z$10/12,"") ->  | AB78: =+IF(Y78<>"",Z78-AA78,"") ->  | AC78: =+IF(Y78<>"",AB78+AC77,"") ->  | AD78: =+IF(($P$8*12-Q81)>=0,Q81,"") ->  | AE78: 650 | AF78: 650 | AG78: =+IF(AD78<>"",AE78-AF78,"") ->  | AH78: =+IF(AD78<>"",AG78+AH77,"") ->  | AI78: =+IF(AD78<>"",$P$7-AH78,"") -> 
D79: =+D78+1 -> 55 | E79: 59 | F79: 28/02/2029 | G79: =G78-H78 -> 75179.1 | H79: 2794.8 | I79: 203.61 | J79: =ROUND((I79*0.19),2) -> 38.69 | K79: =ROUND((I79-J79),2) -> 164.92 | L79: =ROUND((H79+K79),2) -> 2959.72 | M79: =G79-H79 -> 72384.3 | O79: 62 | P79: 30/08/2029 | Q79: 733296.36 | R79: 5440.81 | S79: 1405.48 | T79: =ROUND((S79*0.19),2) -> 267.04 | U79: =ROUND((S79-T79),2) -> 1138.44 | V79: =ROUND((R79+U79),2) -> 6579.25 | W79: =Q79-R79 -> 727855.55 | Y79: =+IF(($Z$8*12-D79)>=0,D79,"") -> 55 | Z79: =+IF(Y79<>"",($Z$7*$Z$10/12)/(1-(1+($Z$10/12))^(-$Z$8*12)),0) -> 2763.642393 | AA79: =+IF(Y79<>"",#REF!*$Z$10/12,"") ->  | AB79: =+IF(Y79<>"",Z79-AA79,"") ->  | AC79: =+IF(Y79<>"",AB79+AC78,"") ->  | AD79: =+IF(($P$8*12-Q82)>=0,Q82,"") ->  | AE79: 650 | AF79: 650 | AG79: =+IF(AD79<>"",AE79-AF79,"") ->  | AH79: =+IF(AD79<>"",AG79+AH78,"") ->  | AI79: =+IF(AD79<>"",$P$7-AH79,"") -> 
D80: =+D79+1 -> 56 | E80: 60 | F80: 30/03/2029 | G80: =G79-H79 -> 72384.3 | H80: 2802.37 | I80: 196.04 | J80: =ROUND((I80*0.19),2) -> 37.25 | K80: =ROUND((I80-J80),2) -> 158.79 | L80: =ROUND((H80+K80),2) -> 2961.16 | M80: =G80-H80 -> 69581.93 | O80: 63 | P80: 30/09/2029 | Q80: =Q79-R79 -> 727855.55 | R80: 5451.23 | S80: 1395.06 | T80: =ROUND((S80*0.19),2) -> 265.06 | U80: =ROUND((S80-T80),2) -> 1130 | V80: =ROUND((R80+U80),2) -> 6581.23 | W80: =Q80-R80 -> 722404.32 | Y80: =+IF(($Z$8*12-D80)>=0,D80,"") -> 56 | Z80: =+IF(Y80<>"",($Z$7*$Z$10/12)/(1-(1+($Z$10/12))^(-$Z$8*12)),0) -> 2763.642393 | AA80: =+IF(Y80<>"",#REF!*$Z$10/12,"") ->  | AB80: =+IF(Y80<>"",Z80-AA80,"") ->  | AC80: =+IF(Y80<>"",AB80+AC79,"") ->  | AD80: =+IF(($P$8*12-Q83)>=0,Q83,"") ->  | AE80: 650 | AF80: 650 | AG80: =+IF(AD80<>"",AE80-AF80,"") ->  | AH80: =+IF(AD80<>"",AG80+AH79,"") ->  | AI80: =+IF(AD80<>"",$P$7-AH80,"") -> 
D81: =+D80+1 -> 57 | E81: 61 | F81: 30/04/2029 | G81: =G80-H80 -> 69581.93 | H81: 2809.96 | I81: 188.45 | J81: =ROUND((I81*0.19),2) -> 35.81 | K81: =ROUND((I81-J81),2) -> 152.64 | L81: =ROUND((H81+K81),2) -> 2962.6 | M81: =G81-H81 -> 66771.97 | O81: 64 | P81: 30/10/2029 | Q81: =Q80-R80 -> 722404.32 | R81: 5461.68 | S81: 1384.61 | T81: =ROUND((S81*0.19),2) -> 263.08 | U81: =ROUND((S81-T81),2) -> 1121.53 | V81: =ROUND((R81+U81),2) -> 6583.21 | W81: =Q81-R81 -> 716942.64 | Y81: =+IF(($Z$8*12-D81)>=0,D81,"") -> 57 | Z81: =+IF(Y81<>"",($Z$7*$Z$10/12)/(1-(1+($Z$10/12))^(-$Z$8*12)),0) -> 2763.642393 | AA81: =+IF(Y81<>"",#REF!*$Z$10/12,"") ->  | AB81: =+IF(Y81<>"",Z81-AA81,"") ->  | AC81: =+IF(Y81<>"",AB81+AC80,"") ->  | AD81: =+IF(($P$8*12-Q84)>=0,Q84,"") ->  | AE81: 650 | AF81: 650 | AG81: =+IF(AD81<>"",AE81-AF81,"") ->  | AH81: =+IF(AD81<>"",AG81+AH80,"") ->  | AI81: =+IF(AD81<>"",$P$7-AH81,"") -> 
D82: =+D81+1 -> 58 | E82: 62 | F82: 30/05/2029 | G82: =G81-H81 -> 66771.97 | H82: 2817.57 | I82: 180.84 | J82: =ROUND((I82*0.19),2) -> 34.36 | K82: =ROUND((I82-J82),2) -> 146.48 | L82: =ROUND((H82+K82),2) -> 2964.05 | M82: =G82-H82 -> 63954.4 | O82: 65 | P82: 30/11/2029 | Q82: =Q81-R81 -> 716942.64 | R82: 5472.15 | S82: 1374.14 | T82: =ROUND((S82*0.19),2) -> 261.09 | U82: =ROUND((S82-T82),2) -> 1113.05 | V82: =ROUND((R82+U82),2) -> 6585.2 | W82: =Q82-R82 -> 711470.49 | Y82: =+IF(($Z$8*12-D82)>=0,D82,"") -> 58 | Z82: =+IF(Y82<>"",($Z$7*$Z$10/12)/(1-(1+($Z$10/12))^(-$Z$8*12)),0) -> 2763.642393 | AA82: =+IF(Y82<>"",#REF!*$Z$10/12,"") ->  | AB82: =+IF(Y82<>"",Z82-AA82,"") ->  | AC82: =+IF(Y82<>"",AB82+AC81,"") ->  | AD82: =+IF(($P$8*12-Q85)>=0,Q85,"") ->  | AE82: 650 | AF82: 650 | AG82: =+IF(AD82<>"",AE82-AF82,"") ->  | AH82: =+IF(AD82<>"",AG82+AH81,"") ->  | AI82: =+IF(AD82<>"",$P$7-AH82,"") -> 
D83: =+D82+1 -> 59 | E83: 63 | F83: 30/06/2029 | G83: =G82-H82 -> 63954.4 | H83: 2825.2 | I83: 173.21 | J83: =ROUND((I83*0.19),2) -> 32.91 | K83: =ROUND((I83-J83),2) -> 140.3 | L83: =ROUND((H83+K83),2) -> 2965.5 | M83: =G83-H83 -> 61129.2 | O83: 66 | P83: 30/12/2029 | Q83: =Q82-R82 -> 711470.49 | R83: 5482.64 | S83: 1363.65 | T83: =ROUND((S83*0.19),2) -> 259.09 | U83: =ROUND((S83-T83),2) -> 1104.56 | V83: =ROUND((R83+U83),2) -> 6587.2 | W83: =Q83-R83 -> 705987.85 | Y83: =+IF(($Z$8*12-D83)>=0,D83,"") -> 59 | Z83: =+IF(Y83<>"",($Z$7*$Z$10/12)/(1-(1+($Z$10/12))^(-$Z$8*12)),0) -> 2763.642393 | AA83: =+IF(Y83<>"",#REF!*$Z$10/12,"") ->  | AB83: =+IF(Y83<>"",Z83-AA83,"") ->  | AC83: =+IF(Y83<>"",AB83+AC82,"") ->  | AD83: =+IF(($P$8*12-Q86)>=0,Q86,"") ->  | AE83: 650 | AF83: 650 | AG83: =+IF(AD83<>"",AE83-AF83,"") ->  | AH83: =+IF(AD83<>"",AG83+AH82,"") ->  | AI83: =+IF(AD83<>"",$P$7-AH83,"") -> 
D84: =+D83+1 -> 60 | E84: 64 | F84: 30/07/2029 | G84: =G83-H83 -> 61129.2 | H84: 2832.85 | I84: 165.56 | J84: =ROUND((I84*0.19),2) -> 31.46 | K84: =ROUND((I84-J84),2) -> 134.1 | L84: =ROUND((H84+K84),2) -> 2966.95 | M84: =G84-H84 -> 58296.35 | O84: 67 | P84: 30/01/2030 | Q84: =Q83-R83 -> 705987.85 | R84: 5493.15 | S84: 1353.14 | T84: =ROUND((S84*0.19),2) -> 257.1 | U84: =ROUND((S84-T84),2) -> 1096.04 | V84: =ROUND((R84+U84),2) -> 6589.19 | W84: =Q84-R84 -> 700494.7 | Y84: =+IF(($Z$8*12-D84)>=0,D84,"") -> 60 | Z84: =+IF(Y84<>"",($Z$7*$Z$10/12)/(1-(1+($Z$10/12))^(-$Z$8*12)),0) -> 2763.642393 | AA84: =+IF(Y84<>"",#REF!*$Z$10/12,"") ->  | AB84: =+IF(Y84<>"",Z84-AA84,"") ->  | AC84: =+IF(Y84<>"",AB84+AC83,"") ->  | AD84: =+IF(($P$8*12-Q87)>=0,Q87,"") ->  | AE84: 650 | AF84: 650 | AG84: =+IF(AD84<>"",AE84-AF84,"") ->  | AH84: =+IF(AD84<>"",AG84+AH83,"") ->  | AI84: =+IF(AD84<>"",$P$7-AH84,"") -> 
D85: =+D84+1 -> 61 | H85: =SUM(H21:H84) -> 166703.65 | I85: =SUM(I21:I84) -> 25194.59 | O85: 68 | P85: 28/02/2030 | Q85: =Q84-R84 -> 700494.7 | R85: 5503.68 | S85: 1342.61 | T85: =ROUND((S85*0.19),2) -> 255.1 | U85: =ROUND((S85-T85),2) -> 1087.51 | V85: =ROUND((R85+U85),2) -> 6591.19 | W85: =Q85-R85 -> 694991.02 | Y85: =+IF(($Z$8*12-D85)>=0,D85,"") -> 61 | Z85: =+IF(Y85<>"",($Z$7*$Z$10/12)/(1-(1+($Z$10/12))^(-$Z$8*12)),0) -> 2763.642393 | AA85: =+IF(Y85<>"",#REF!*$Z$10/12,"") ->  | AB85: =+IF(Y85<>"",Z85-AA85,"") ->  | AC85: =+IF(Y85<>"",AB85+AC84,"") ->  | AD85: =+IF(($P$8*12-Q88)>=0,Q88,"") ->  | AE85: 650 | AF85: 650 | AG85: =+IF(AD85<>"",AE85-AF85,"") ->  | AH85: =+IF(AD85<>"",AG85+AH84,"") ->  | AI85: =+IF(AD85<>"",$P$7-AH85,"") -> 
D86: =+D85+1 -> 62 | O86: 69 | P86: 30/03/2030 | Q86: =Q85-R85 -> 694991.02 | R86: 5514.22 | S86: 1332.07 | T86: =ROUND((S86*0.19),2) -> 253.09 | U86: =ROUND((S86-T86),2) -> 1078.98 | V86: =ROUND((R86+U86),2) -> 6593.2 | W86: =Q86-R86 -> 689476.8 | Y86: =+IF(($Z$8*12-D86)>=0,D86,"") -> 62 | Z86: =+IF(Y86<>"",($Z$7*$Z$10/12)/(1-(1+($Z$10/12))^(-$Z$8*12)),0) -> 2763.642393 | AA86: =+IF(Y86<>"",#REF!*$Z$10/12,"") ->  | AB86: =+IF(Y86<>"",Z86-AA86,"") ->  | AC86: =+IF(Y86<>"",AB86+AC85,"") ->  | AD86: =+IF(($P$8*12-Q89)>=0,Q89,"") ->  | AE86: 650 | AF86: 650 | AG86: =+IF(AD86<>"",AE86-AF86,"") ->  | AH86: =+IF(AD86<>"",AG86+AH85,"") ->  | AI86: =+IF(AD86<>"",$P$7-AH86,"") -> 
D87: =+D86+1 -> 63 | F87: Valor residual a 30/07/2029: 58.296,36 € | O87: 70 | P87: 30/04/2030 | Q87: =Q86-R86 -> 689476.8 | R87: 5524.79 | S87: 1321.5 | T87: =ROUND((S87*0.19),2) -> 251.09 | U87: =ROUND((S87-T87),2) -> 1070.41 | V87: =ROUND((R87+U87),2) -> 6595.2 | W87: =Q87-R87 -> 683952.01 | Y87: =+IF(($Z$8*12-D87)>=0,D87,"") -> 63 | Z87: =+IF(Y87<>"",($Z$7*$Z$10/12)/(1-(1+($Z$10/12))^(-$Z$8*12)),0) -> 2763.642393 | AA87: =+IF(Y87<>"",#REF!*$Z$10/12,"") ->  | AB87: =+IF(Y87<>"",Z87-AA87,"") ->  | AC87: =+IF(Y87<>"",AB87+AC86,"") ->  | AD87: =+IF(($P$8*12-Q90)>=0,Q90,"") ->  | AE87: 650 | AF87: 650 | AG87: =+IF(AD87<>"",AE87-AF87,"") ->  | AH87: =+IF(AD87<>"",AG87+AH86,"") ->  | AI87: =+IF(AD87<>"",$P$7-AH87,"") -> 
D88: =+D87+1 -> 64 | F88: Este importe se añade al prestamo hipotecario con fecha 30/07/2029 | O88: 71 | P88: 30/05/2030 | Q88: =Q87-R87 -> 683952.01 | R88: 5535.38 | S88: 1310.91 | T88: =ROUND((S88*0.19),2) -> 249.07 | U88: =ROUND((S88-T88),2) -> 1061.84 | V88: =ROUND((R88+U88),2) -> 6597.22 | W88: =Q88-R88 -> 678416.63 | Y88: =+IF(($Z$8*12-D88)>=0,D88,"") -> 64 | Z88: =+IF(Y88<>"",($Z$7*$Z$10/12)/(1-(1+($Z$10/12))^(-$Z$8*12)),0) -> 2763.642393 | AA88: =+IF(Y88<>"",#REF!*$Z$10/12,"") ->  | AB88: =+IF(Y88<>"",Z88-AA88,"") ->  | AC88: =+IF(Y88<>"",AB88+AC87,"") ->  | AD88: =+IF(($P$8*12-Q91)>=0,Q91,"") ->  | AE88: 650 | AF88: 650 | AG88: =+IF(AD88<>"",AE88-AF88,"") ->  | AH88: =+IF(AD88<>"",AG88+AH87,"") ->  | AI88: =+IF(AD88<>"",$P$7-AH88,"") -> 
D89: =+D88+1 -> 65 | O89: 72 | P89: 30/06/2030 | Q89: =Q88-R88 -> 678416.63 | R89: 5545.99 | S89: 1300.3 | T89: =ROUND((S89*0.19),2) -> 247.06 | U89: =ROUND((S89-T89),2) -> 1053.24 | V89: =ROUND((R89+U89),2) -> 6599.23 | W89: =Q89-R89 -> 672870.64 | Y89: =+IF(($Z$8*12-D89)>=0,D89,"") -> 65 | Z89: =+IF(Y89<>"",($Z$7*$Z$10/12)/(1-(1+($Z$10/12))^(-$Z$8*12)),0) -> 2763.642393 | AA89: =+IF(Y89<>"",#REF!*$Z$10/12,"") ->  | AB89: =+IF(Y89<>"",Z89-AA89,"") ->  | AC89: =+IF(Y89<>"",AB89+AC88,"") ->  | AD89: =+IF(($P$8*12-Q92)>=0,Q92,"") ->  | AE89: 650 | AF89: 650 | AG89: =+IF(AD89<>"",AE89-AF89,"") ->  | AH89: =+IF(AD89<>"",AG89+AH88,"") ->  | AI89: =+IF(AD89<>"",$P$7-AH89,"") -> 
D90: =+D89+1 -> 66 | O90: 73 | P90: 30/07/2030 | Q90: =Q89-R89 -> 672870.64 | R90: 5556.62 | S90: 1289.67 | T90: =ROUND((S90*0.19),2) -> 245.04 | U90: =ROUND((S90-T90),2) -> 1044.63 | V90: =ROUND((R90+U90),2) -> 6601.25 | W90: =Q90-R90 -> 667314.02 | Y90: =+IF(($Z$8*12-D90)>=0,D90,"") -> 66 | Z90: =+IF(Y90<>"",($Z$7*$Z$10/12)/(1-(1+($Z$10/12))^(-$Z$8*12)),0) -> 2763.642393 | AA90: =+IF(Y90<>"",#REF!*$Z$10/12,"") ->  | AB90: =+IF(Y90<>"",Z90-AA90,"") ->  | AC90: =+IF(Y90<>"",AB90+AC89,"") ->  | AD90: =+IF(($P$8*12-Q93)>=0,Q93,"") ->  | AE90: 650 | AF90: 650 | AG90: =+IF(AD90<>"",AE90-AF90,"") ->  | AH90: =+IF(AD90<>"",AG90+AH89,"") ->  | AI90: =+IF(AD90<>"",$P$7-AH90,"") -> 
D91: =+D90+1 -> 67 | O91: 74 | P91: 30/08/2030 | Q91: =Q90-R90 -> 667314.02 | R91: 5567.27 | S91: 1279.02 | T91: =ROUND((S91*0.19),2) -> 243.01 | U91: =ROUND((S91-T91),2) -> 1036.01 | V91: =ROUND((R91+U91),2) -> 6603.28 | W91: =Q91-R91 -> 661746.75 | Y91: =+IF(($Z$8*12-D91)>=0,D91,"") -> 67 | Z91: =+IF(Y91<>"",($Z$7*$Z$10/12)/(1-(1+($Z$10/12))^(-$Z$8*12)),0) -> 2763.642393 | AA91: =+IF(Y91<>"",#REF!*$Z$10/12,"") ->  | AB91: =+IF(Y91<>"",Z91-AA91,"") ->  | AC91: =+IF(Y91<>"",AB91+AC90,"") ->  | AD91: =+IF(($P$8*12-Q94)>=0,Q94,"") ->  | AE91: 650 | AF91: 650 | AG91: =+IF(AD91<>"",AE91-AF91,"") ->  | AH91: =+IF(AD91<>"",AG91+AH90,"") ->  | AI91: =+IF(AD91<>"",$P$7-AH91,"") -> 
D92: =+D91+1 -> 68 | O92: 75 | P92: 30/09/2030 | Q92: =Q91-R91 -> 661746.75 | R92: 5577.94 | S92: 1268.35 | T92: =ROUND((S92*0.19),2) -> 240.99 | U92: =ROUND((S92-T92),2) -> 1027.36 | V92: =ROUND((R92+U92),2) -> 6605.3 | W92: =Q92-R92 -> 656168.81 | Y92: =+IF(($Z$8*12-D92)>=0,D92,"") -> 68 | Z92: =+IF(Y92<>"",($Z$7*$Z$10/12)/(1-(1+($Z$10/12))^(-$Z$8*12)),0) -> 2763.642393 | AA92: =+IF(Y92<>"",#REF!*$Z$10/12,"") ->  | AB92: =+IF(Y92<>"",Z92-AA92,"") ->  | AC92: =+IF(Y92<>"",AB92+AC91,"") ->  | AD92: =+IF(($P$8*12-Q95)>=0,Q95,"") ->  | AE92: 650 | AF92: 650 | AG92: =+IF(AD92<>"",AE92-AF92,"") ->  | AH92: =+IF(AD92<>"",AG92+AH91,"") ->  | AI92: =+IF(AD92<>"",$P$7-AH92,"") -> 
D93: =+D92+1 -> 69 | O93: 76 | P93: 30/10/2030 | Q93: =Q92-R92 -> 656168.81 | R93: 5588.63 | S93: 1257.66 | T93: =ROUND((S93*0.19),2) -> 238.96 | U93: =ROUND((S93-T93),2) -> 1018.7 | V93: =ROUND((R93+U93),2) -> 6607.33 | W93: =Q93-R93 -> 650580.18 | Y93: =+IF(($Z$8*12-D93)>=0,D93,"") -> 69 | Z93: =+IF(Y93<>"",($Z$7*$Z$10/12)/(1-(1+($Z$10/12))^(-$Z$8*12)),0) -> 2763.642393 | AA93: =+IF(Y93<>"",#REF!*$Z$10/12,"") ->  | AB93: =+IF(Y93<>"",Z93-AA93,"") ->  | AC93: =+IF(Y93<>"",AB93+AC92,"") ->  | AD93: =+IF(($P$8*12-Q96)>=0,Q96,"") ->  | AE93: 650 | AF93: 650 | AG93: =+IF(AD93<>"",AE93-AF93,"") ->  | AH93: =+IF(AD93<>"",AG93+AH92,"") ->  | AI93: =+IF(AD93<>"",$P$7-AH93,"") -> 
D94: =+D93+1 -> 70 | O94: 77 | P94: 30/11/2030 | Q94: =Q93-R93 -> 650580.18 | R94: 5599.34 | S94: 1246.95 | T94: =ROUND((S94*0.19),2) -> 236.92 | U94: =ROUND((S94-T94),2) -> 1010.03 | V94: =ROUND((R94+U94),2) -> 6609.37 | W94: =Q94-R94 -> 644980.84 | Y94: =+IF(($Z$8*12-D94)>=0,D94,"") -> 70 | Z94: =+IF(Y94<>"",($Z$7*$Z$10/12)/(1-(1+($Z$10/12))^(-$Z$8*12)),0) -> 2763.642393 | AA94: =+IF(Y94<>"",#REF!*$Z$10/12,"") ->  | AB94: =+IF(Y94<>"",Z94-AA94,"") ->  | AC94: =+IF(Y94<>"",AB94+AC93,"") ->  | AD94: =+IF(($P$8*12-Q97)>=0,Q97,"") ->  | AE94: 650 | AF94: 650 | AG94: =+IF(AD94<>"",AE94-AF94,"") ->  | AH94: =+IF(AD94<>"",AG94+AH93,"") ->  | AI94: =+IF(AD94<>"",$P$7-AH94,"") -> 
D95: =+D94+1 -> 71 | O95: 78 | P95: 30/12/2030 | Q95: =Q94-R94 -> 644980.84 | R95: 5610.08 | S95: 1236.21 | T95: =ROUND((S95*0.19),2) -> 234.88 | U95: =ROUND((S95-T95),2) -> 1001.33 | V95: =ROUND((R95+U95),2) -> 6611.41 | W95: =Q95-R95 -> 639370.76 | Y95: =+IF(($Z$8*12-D95)>=0,D95,"") -> 71 | Z95: =+IF(Y95<>"",($Z$7*$Z$10/12)/(1-(1+($Z$10/12))^(-$Z$8*12)),0) -> 2763.642393 | AA95: =+IF(Y95<>"",#REF!*$Z$10/12,"") ->  | AB95: =+IF(Y95<>"",Z95-AA95,"") ->  | AC95: =+IF(Y95<>"",AB95+AC94,"") ->  | AD95: =+IF(($P$8*12-Q98)>=0,Q98,"") ->  | AE95: 650 | AF95: 650 | AG95: =+IF(AD95<>"",AE95-AF95,"") ->  | AH95: =+IF(AD95<>"",AG95+AH94,"") ->  | AI95: =+IF(AD95<>"",$P$7-AH95,"") -> 
D96: =+D95+1 -> 72 | O96: 79 | P96: 30/01/2031 | Q96: =Q95-R95 -> 639370.76 | R96: 5620.83 | S96: 1225.46 | T96: =ROUND((S96*0.19),2) -> 232.84 | U96: =ROUND((S96-T96),2) -> 992.62 | V96: =ROUND((R96+U96),2) -> 6613.45 | W96: =Q96-R96 -> 633749.93 | Y96: =+IF(($Z$8*12-D96)>=0,D96,"") -> 72 | Z96: =+IF(Y96<>"",($Z$7*$Z$10/12)/(1-(1+($Z$10/12))^(-$Z$8*12)),0) -> 2763.642393 | AA96: =+IF(Y96<>"",#REF!*$Z$10/12,"") ->  | AB96: =+IF(Y96<>"",Z96-AA96,"") ->  | AC96: =+IF(Y96<>"",AB96+AC95,"") ->  | AD96: =+IF(($P$8*12-Q99)>=0,Q99,"") ->  | AE96: 650 | AF96: 650 | AG96: =+IF(AD96<>"",AE96-AF96,"") ->  | AH96: =+IF(AD96<>"",AG96+AH95,"") ->  | AI96: =+IF(AD96<>"",$P$7-AH96,"") -> 
D97: =+D96+1 -> 73 | O97: 80 | P97: 28/02/2031 | Q97: =Q96-R96 -> 633749.93 | R97: 5631.6 | S97: 1214.69 | T97: =ROUND((S97*0.19),2) -> 230.79 | U97: =ROUND((S97-T97),2) -> 983.9 | V97: =ROUND((R97+U97),2) -> 6615.5 | W97: =Q97-R97 -> 628118.33 | Y97: =+IF(($Z$8*12-D97)>=0,D97,"") -> 73 | Z97: =+IF(Y97<>"",($Z$7*$Z$10/12)/(1-(1+($Z$10/12))^(-$Z$8*12)),0) -> 2763.642393 | AA97: =+IF(Y97<>"",#REF!*$Z$10/12,"") ->  | AB97: =+IF(Y97<>"",Z97-AA97,"") ->  | AC97: =+IF(Y97<>"",AB97+AC96,"") ->  | AD97: =+IF(($P$8*12-Q100)>=0,Q100,"") ->  | AE97: 650 | AF97: 650 | AG97: =+IF(AD97<>"",AE97-AF97,"") ->  | AH97: =+IF(AD97<>"",AG97+AH96,"") ->  | AI97: =+IF(AD97<>"",$P$7-AH97,"") -> 
D98: =+D97+1 -> 74 | O98: 81 | P98: 30/03/2031 | Q98: =Q97-R97 -> 628118.33 | R98: 5642.4 | S98: 1203.89 | T98: =ROUND((S98*0.19),2) -> 228.74 | U98: =ROUND((S98-T98),2) -> 975.15 | V98: =ROUND((R98+U98),2) -> 6617.55 | W98: =Q98-R98 -> 622475.93 | Y98: =+IF(($Z$8*12-D98)>=0,D98,"") -> 74 | Z98: =+IF(Y98<>"",($Z$7*$Z$10/12)/(1-(1+($Z$10/12))^(-$Z$8*12)),0) -> 2763.642393 | AA98: =+IF(Y98<>"",#REF!*$Z$10/12,"") ->  | AB98: =+IF(Y98<>"",Z98-AA98,"") ->  | AC98: =+IF(Y98<>"",AB98+AC97,"") ->  | AD98: =+IF(($P$8*12-Q101)>=0,Q101,"") ->  | AE98: 650 | AF98: 650 | AG98: =+IF(AD98<>"",AE98-AF98,"") ->  | AH98: =+IF(AD98<>"",AG98+AH97,"") ->  | AI98: =+IF(AD98<>"",$P$7-AH98,"") -> 
D99: =+D98+1 -> 75 | O99: 82 | P99: 30/04/2031 | Q99: =Q98-R98 -> 622475.93 | R99: 5653.21 | S99: 1193.08 | T99: =ROUND((S99*0.19),2) -> 226.69 | U99: =ROUND((S99-T99),2) -> 966.39 | V99: =ROUND((R99+U99),2) -> 6619.6 | W99: =Q99-R99 -> 616822.72 | Y99: =+IF(($Z$8*12-D99)>=0,D99,"") -> 75 | Z99: =+IF(Y99<>"",($Z$7*$Z$10/12)/(1-(1+($Z$10/12))^(-$Z$8*12)),0) -> 2763.642393 | AA99: =+IF(Y99<>"",#REF!*$Z$10/12,"") ->  | AB99: =+IF(Y99<>"",Z99-AA99,"") ->  | AC99: =+IF(Y99<>"",AB99+AC98,"") ->  | AD99: =+IF(($P$8*12-Q102)>=0,Q102,"") ->  | AE99: 650 | AF99: 650 | AG99: =+IF(AD99<>"",AE99-AF99,"") ->  | AH99: =+IF(AD99<>"",AG99+AH98,"") ->  | AI99: =+IF(AD99<>"",$P$7-AH99,"") -> 
D100: =+D99+1 -> 76 | O100: 83 | P100: 30/05/2031 | Q100: =Q99-R99 -> 616822.72 | R100: 5664.05 | S100: 1182.24 | T100: =ROUND((S100*0.19),2) -> 224.63 | U100: =ROUND((S100-T100),2) -> 957.61 | V100: =ROUND((R100+U100),2) -> 6621.66 | W100: =Q100-R100 -> 611158.67 | Y100: =+IF(($Z$8*12-D100)>=0,D100,"") -> 76 | Z100: =+IF(Y100<>"",($Z$7*$Z$10/12)/(1-(1+($Z$10/12))^(-$Z$8*12)),0) -> 2763.642393 | AA100: =+IF(Y100<>"",#REF!*$Z$10/12,"") ->  | AB100: =+IF(Y100<>"",Z100-AA100,"") ->  | AC100: =+IF(Y100<>"",AB100+AC99,"") ->  | AD100: =+IF(($P$8*12-Q103)>=0,Q103,"") ->  | AE100: 650 | AF100: 650 | AG100: =+IF(AD100<>"",AE100-AF100,"") ->  | AH100: =+IF(AD100<>"",AG100+AH99,"") ->  | AI100: =+IF(AD100<>"",$P$7-AH100,"") -> 
D101: =+D100+1 -> 77 | O101: 84 | P101: 30/06/2031 | Q101: =Q100-R100 -> 611158.67 | R101: 5674.9 | S101: 1171.39 | T101: =ROUND((S101*0.19),2) -> 222.56 | U101: =ROUND((S101-T101),2) -> 948.83 | V101: =ROUND((R101+U101),2) -> 6623.73 | W101: =Q101-R101 -> 605483.77 | Y101: =+IF(($Z$8*12-D101)>=0,D101,"") -> 77 | Z101: =+IF(Y101<>"",($Z$7*$Z$10/12)/(1-(1+($Z$10/12))^(-$Z$8*12)),0) -> 2763.642393 | AA101: =+IF(Y101<>"",#REF!*$Z$10/12,"") ->  | AB101: =+IF(Y101<>"",Z101-AA101,"") ->  | AC101: =+IF(Y101<>"",AB101+AC100,"") ->  | AD101: =+IF(($P$8*12-Q104)>=0,Q104,"") ->  | AE101: 650 | AF101: 650 | AG101: =+IF(AD101<>"",AE101-AF101,"") ->  | AH101: =+IF(AD101<>"",AG101+AH100,"") ->  | AI101: =+IF(AD101<>"",$P$7-AH101,"") -> 
D102: =+D101+1 -> 78 | O102: 85 | P102: 30/07/2031 | Q102: =Q101-R101 -> 605483.77 | R102: 5685.78 | S102: 1160.51 | T102: =ROUND((S102*0.19),2) -> 220.5 | U102: =ROUND((S102-T102),2) -> 940.01 | V102: =ROUND((R102+U102),2) -> 6625.79 | W102: =Q102-R102 -> 599797.99 | Y102: =+IF(($Z$8*12-D102)>=0,D102,"") -> 78 | Z102: =+IF(Y102<>"",($Z$7*$Z$10/12)/(1-(1+($Z$10/12))^(-$Z$8*12)),0) -> 2763.642393 | AA102: =+IF(Y102<>"",#REF!*$Z$10/12,"") ->  | AB102: =+IF(Y102<>"",Z102-AA102,"") ->  | AC102: =+IF(Y102<>"",AB102+AC101,"") ->  | AD102: =+IF(($P$8*12-Q105)>=0,Q105,"") ->  | AE102: 650 | AF102: 650 | AG102: =+IF(AD102<>"",AE102-AF102,"") ->  | AH102: =+IF(AD102<>"",AG102+AH101,"") ->  | AI102: =+IF(AD102<>"",$P$7-AH102,"") -> 
D103: =+D102+1 -> 79 | O103: 86 | P103: 30/08/2031 | Q103: =Q102-R102 -> 599797.99 | R103: 5696.68 | S103: 1149.61 | T103: =ROUND((S103*0.19),2) -> 218.43 | U103: =ROUND((S103-T103),2) -> 931.18 | V103: =ROUND((R103+U103),2) -> 6627.86 | W103: =Q103-R103 -> 594101.31 | Y103: =+IF(($Z$8*12-D103)>=0,D103,"") -> 79 | Z103: =+IF(Y103<>"",($Z$7*$Z$10/12)/(1-(1+($Z$10/12))^(-$Z$8*12)),0) -> 2763.642393 | AA103: =+IF(Y103<>"",#REF!*$Z$10/12,"") ->  | AB103: =+IF(Y103<>"",Z103-AA103,"") ->  | AC103: =+IF(Y103<>"",AB103+AC102,"") ->  | AD103: =+IF(($P$8*12-Q106)>=0,Q106,"") ->  | AE103: 650 | AF103: 650 | AG103: =+IF(AD103<>"",AE103-AF103,"") ->  | AH103: =+IF(AD103<>"",AG103+AH102,"") ->  | AI103: =+IF(AD103<>"",$P$7-AH103,"") -> 
D104: =+D103+1 -> 80 | O104: 87 | P104: 30/09/2031 | Q104: =Q103-R103 -> 594101.31 | R104: 5707.6 | S104: 1138.69 | T104: =ROUND((S104*0.19),2) -> 216.35 | U104: =ROUND((S104-T104),2) -> 922.34 | V104: =ROUND((R104+U104),2) -> 6629.94 | W104: =Q104-R104 -> 588393.71 | Y104: =+IF(($Z$8*12-D104)>=0,D104,"") -> 80 | Z104: =+IF(Y104<>"",($Z$7*$Z$10/12)/(1-(1+($Z$10/12))^(-$Z$8*12)),0) -> 2763.642393 | AA104: =+IF(Y104<>"",#REF!*$Z$10/12,"") ->  | AB104: =+IF(Y104<>"",Z104-AA104,"") ->  | AC104: =+IF(Y104<>"",AB104+AC103,"") ->  | AD104: =+IF(($P$8*12-Q107)>=0,Q107,"") ->  | AE104: 650 | AF104: 650 | AG104: =+IF(AD104<>"",AE104-AF104,"") ->  | AH104: =+IF(AD104<>"",AG104+AH103,"") ->  | AI104: =+IF(AD104<>"",$P$7-AH104,"") -> 
D105: =+D104+1 -> 81 | O105: 88 | P105: 30/10/2031 | Q105: =Q104-R104 -> 588393.71 | R105: 5718.54 | S105: 1127.75 | T105: =ROUND((S105*0.19),2) -> 214.27 | U105: =ROUND((S105-T105),2) -> 913.48 | V105: =ROUND((R105+U105),2) -> 6632.02 | W105: =Q105-R105 -> 582675.17 | Y105: =+IF(($Z$8*12-D105)>=0,D105,"") -> 81 | Z105: =+IF(Y105<>"",($Z$7*$Z$10/12)/(1-(1+($Z$10/12))^(-$Z$8*12)),0) -> 2763.642393 | AA105: =+IF(Y105<>"",#REF!*$Z$10/12,"") ->  | AB105: =+IF(Y105<>"",Z105-AA105,"") ->  | AC105: =+IF(Y105<>"",AB105+AC104,"") ->  | AD105: =+IF(($P$8*12-Q108)>=0,Q108,"") ->  | AE105: 650 | AF105: 650 | AG105: =+IF(AD105<>"",AE105-AF105,"") ->  | AH105: =+IF(AD105<>"",AG105+AH104,"") ->  | AI105: =+IF(AD105<>"",$P$7-AH105,"") -> 
D106: =+D105+1 -> 82 | O106: 89 | P106: 30/11/2031 | Q106: =Q105-R105 -> 582675.17 | R106: 5729.5 | S106: 1116.79 | T106: =ROUND((S106*0.19),2) -> 212.19 | U106: =ROUND((S106-T106),2) -> 904.6 | V106: =ROUND((R106+U106),2) -> 6634.1 | W106: =Q106-R106 -> 576945.67 | Y106: =+IF(($Z$8*12-D106)>=0,D106,"") -> 82 | Z106: =+IF(Y106<>"",($Z$7*$Z$10/12)/(1-(1+($Z$10/12))^(-$Z$8*12)),0) -> 2763.642393 | AA106: =+IF(Y106<>"",#REF!*$Z$10/12,"") ->  | AB106: =+IF(Y106<>"",Z106-AA106,"") ->  | AC106: =+IF(Y106<>"",AB106+AC105,"") ->  | AD106: =+IF(($P$8*12-Q109)>=0,Q109,"") ->  | AE106: 650 | AF106: 650 | AG106: =+IF(AD106<>"",AE106-AF106,"") ->  | AH106: =+IF(AD106<>"",AG106+AH105,"") ->  | AI106: =+IF(AD106<>"",$P$7-AH106,"") -> 
D107: =+D106+1 -> 83 | O107: 90 | P107: 30/12/2031 | Q107: =Q106-R106 -> 576945.67 | R107: 5740.48 | S107: 1105.81 | T107: =ROUND((S107*0.19),2) -> 210.1 | U107: =ROUND((S107-T107),2) -> 895.71 | V107: =ROUND((R107+U107),2) -> 6636.19 | W107: =Q107-R107 -> 571205.19 | Y107: =+IF(($Z$8*12-D107)>=0,D107,"") -> 83 | Z107: =+IF(Y107<>"",($Z$7*$Z$10/12)/(1-(1+($Z$10/12))^(-$Z$8*12)),0) -> 2763.642393 | AA107: =+IF(Y107<>"",#REF!*$Z$10/12,"") ->  | AB107: =+IF(Y107<>"",Z107-AA107,"") ->  | AC107: =+IF(Y107<>"",AB107+AC106,"") ->  | AD107: =+IF(($P$8*12-Q110)>=0,Q110,"") ->  | AE107: 650 | AF107: 650 | AG107: =+IF(AD107<>"",AE107-AF107,"") ->  | AH107: =+IF(AD107<>"",AG107+AH106,"") ->  | AI107: =+IF(AD107<>"",$P$7-AH107,"") -> 
D108: =+D107+1 -> 84 | O108: 91 | P108: 30/01/2032 | Q108: =Q107-R107 -> 571205.19 | R108: 5751.48 | S108: 1094.81 | T108: =ROUND((S108*0.19),2) -> 208.01 | U108: =ROUND((S108-T108),2) -> 886.8 | V108: =ROUND((R108+U108),2) -> 6638.28 | W108: =Q108-R108 -> 565453.71 | Y108: =+IF(($Z$8*12-D108)>=0,D108,"") -> 84 | Z108: =+IF(Y108<>"",($Z$7*$Z$10/12)/(1-(1+($Z$10/12))^(-$Z$8*12)),0) -> 2763.642393 | AA108: =+IF(Y108<>"",#REF!*$Z$10/12,"") ->  | AB108: =+IF(Y108<>"",Z108-AA108,"") ->  | AC108: =+IF(Y108<>"",AB108+AC107,"") ->  | AD108: =+IF(($P$8*12-Q111)>=0,Q111,"") ->  | AE108: 650 | AF108: 650 | AG108: =+IF(AD108<>"",AE108-AF108,"") ->  | AH108: =+IF(AD108<>"",AG108+AH107,"") ->  | AI108: =+IF(AD108<>"",$P$7-AH108,"") -> 
D109: =+D108+1 -> 85 | O109: 92 | P109: 29/02/2032 | Q109: =Q108-R108 -> 565453.71 | R109: 5762.5 | S109: 1083.79 | T109: =ROUND((S109*0.19),2) -> 205.92 | U109: =ROUND((S109-T109),2) -> 877.87 | V109: =ROUND((R109+U109),2) -> 6640.37 | W109: =Q109-R109 -> 559691.21 | Y109: =+IF(($Z$8*12-D109)>=0,D109,"") -> 85 | Z109: =+IF(Y109<>"",($Z$7*$Z$10/12)/(1-(1+($Z$10/12))^(-$Z$8*12)),0) -> 2763.642393 | AA109: =+IF(Y109<>"",#REF!*$Z$10/12,"") ->  | AB109: =+IF(Y109<>"",Z109-AA109,"") ->  | AC109: =+IF(Y109<>"",AB109+AC108,"") ->  | AD109: =+IF(($P$8*12-Q112)>=0,Q112,"") ->  | AE109: 650 | AF109: 650 | AG109: =+IF(AD109<>"",AE109-AF109,"") ->  | AH109: =+IF(AD109<>"",AG109+AH108,"") ->  | AI109: =+IF(AD109<>"",$P$7-AH109,"") -> 
D110: =+D109+1 -> 86 | O110: 93 | P110: 30/03/2032 | Q110: =Q109-R109 -> 559691.21 | R110: 5773.55 | S110: 1072.74 | T110: =ROUND((S110*0.19),2) -> 203.82 | U110: =ROUND((S110-T110),2) -> 868.92 | V110: =ROUND((R110+U110),2) -> 6642.47 | W110: =Q110-R110 -> 553917.66 | Y110: =+IF(($Z$8*12-D110)>=0,D110,"") -> 86 | Z110: =+IF(Y110<>"",($Z$7*$Z$10/12)/(1-(1+($Z$10/12))^(-$Z$8*12)),0) -> 2763.642393 | AA110: =+IF(Y110<>"",#REF!*$Z$10/12,"") ->  | AB110: =+IF(Y110<>"",Z110-AA110,"") ->  | AC110: =+IF(Y110<>"",AB110+AC109,"") ->  | AD110: =+IF(($P$8*12-Q113)>=0,Q113,"") ->  | AE110: 650 | AF110: 650 | AG110: =+IF(AD110<>"",AE110-AF110,"") ->  | AH110: =+IF(AD110<>"",AG110+AH109,"") ->  | AI110: =+IF(AD110<>"",$P$7-AH110,"") -> 
D111: =+D110+1 -> 87 | O111: 94 | P111: 30/04/2032 | Q111: =Q110-R110 -> 553917.66 | R111: 5784.61 | S111: 1061.68 | T111: =ROUND((S111*0.19),2) -> 201.72 | U111: =ROUND((S111-T111),2) -> 859.96 | V111: =ROUND((R111+U111),2) -> 6644.57 | W111: =Q111-R111 -> 548133.05 | Y111: =+IF(($Z$8*12-D111)>=0,D111,"") -> 87 | Z111: =+IF(Y111<>"",($Z$7*$Z$10/12)/(1-(1+($Z$10/12))^(-$Z$8*12)),0) -> 2763.642393 | AA111: =+IF(Y111<>"",#REF!*$Z$10/12,"") ->  | AB111: =+IF(Y111<>"",Z111-AA111,"") ->  | AC111: =+IF(Y111<>"",AB111+AC110,"") ->  | AD111: =+IF(($P$8*12-Q114)>=0,Q114,"") ->  | AE111: 650 | AF111: 650 | AG111: =+IF(AD111<>"",AE111-AF111,"") ->  | AH111: =+IF(AD111<>"",AG111+AH110,"") ->  | AI111: =+IF(AD111<>"",$P$7-AH111,"") -> 
D112: =+D111+1 -> 88 | O112: 95 | P112: 30/05/2032 | Q112: =Q111-R111 -> 548133.05 | R112: 5795.7 | S112: 1050.59 | T112: =ROUND((S112*0.19),2) -> 199.61 | U112: =ROUND((S112-T112),2) -> 850.98 | V112: =ROUND((R112+U112),2) -> 6646.68 | W112: =Q112-R112 -> 542337.35 | Y112: =+IF(($Z$8*12-D112)>=0,D112,"") -> 88 | Z112: =+IF(Y112<>"",($Z$7*$Z$10/12)/(1-(1+($Z$10/12))^(-$Z$8*12)),0) -> 2763.642393 | AA112: =+IF(Y112<>"",#REF!*$Z$10/12,"") ->  | AB112: =+IF(Y112<>"",Z112-AA112,"") ->  | AC112: =+IF(Y112<>"",AB112+AC111,"") ->  | AD112: =+IF(($P$8*12-Q115)>=0,Q115,"") ->  | AE112: 650 | AF112: 650 | AG112: =+IF(AD112<>"",AE112-AF112,"") ->  | AH112: =+IF(AD112<>"",AG112+AH111,"") ->  | AI112: =+IF(AD112<>"",$P$7-AH112,"") -> 
D113: =+D112+1 -> 89 | O113: 96 | P113: 30/06/2032 | Q113: =Q112-R112 -> 542337.35 | R113: 5806.81 | S113: 1039.48 | T113: =ROUND((S113*0.19),2) -> 197.5 | U113: =ROUND((S113-T113),2) -> 841.98 | V113: =ROUND((R113+U113),2) -> 6648.79 | W113: =Q113-R113 -> 536530.54 | Y113: =+IF(($Z$8*12-D113)>=0,D113,"") -> 89 | Z113: =+IF(Y113<>"",($Z$7*$Z$10/12)/(1-(1+($Z$10/12))^(-$Z$8*12)),0) -> 2763.642393 | AA113: =+IF(Y113<>"",#REF!*$Z$10/12,"") ->  | AB113: =+IF(Y113<>"",Z113-AA113,"") ->  | AC113: =+IF(Y113<>"",AB113+AC112,"") ->  | AD113: =+IF(($P$8*12-Q116)>=0,Q116,"") ->  | AE113: 650 | AF113: 650 | AG113: =+IF(AD113<>"",AE113-AF113,"") ->  | AH113: =+IF(AD113<>"",AG113+AH112,"") ->  | AI113: =+IF(AD113<>"",$P$7-AH113,"") -> 
D114: =+D113+1 -> 90 | O114: 97 | P114: 30/07/2032 | Q114: =Q113-R113 -> 536530.54 | R114: 5817.94 | S114: 1028.35 | T114: =ROUND((S114*0.19),2) -> 195.39 | U114: =ROUND((S114-T114),2) -> 832.96 | V114: =ROUND((R114+U114),2) -> 6650.9 | W114: =Q114-R114 -> 530712.6 | Y114: =+IF(($Z$8*12-D114)>=0,D114,"") -> 90 | Z114: =+IF(Y114<>"",($Z$7*$Z$10/12)/(1-(1+($Z$10/12))^(-$Z$8*12)),0) -> 2763.642393 | AA114: =+IF(Y114<>"",#REF!*$Z$10/12,"") ->  | AB114: =+IF(Y114<>"",Z114-AA114,"") ->  | AC114: =+IF(Y114<>"",AB114+AC113,"") ->  | AD114: =+IF(($P$8*12-Q117)>=0,Q117,"") ->  | AE114: 650 | AF114: 650 | AG114: =+IF(AD114<>"",AE114-AF114,"") ->  | AH114: =+IF(AD114<>"",AG114+AH113,"") ->  | AI114: =+IF(AD114<>"",$P$7-AH114,"") -> 
D115: =+D114+1 -> 91 | O115: 98 | P115: 30/08/2032 | Q115: =Q114-R114 -> 530712.6 | R115: 5829.09 | S115: 1017.2 | T115: =ROUND((S115*0.19),2) -> 193.27 | U115: =ROUND((S115-T115),2) -> 823.93 | V115: =ROUND((R115+U115),2) -> 6653.02 | W115: =Q115-R115 -> 524883.51 | Y115: =+IF(($Z$8*12-D115)>=0,D115,"") -> 91 | Z115: =+IF(Y115<>"",($Z$7*$Z$10/12)/(1-(1+($Z$10/12))^(-$Z$8*12)),0) -> 2763.642393 | AA115: =+IF(Y115<>"",#REF!*$Z$10/12,"") ->  | AB115: =+IF(Y115<>"",Z115-AA115,"") ->  | AC115: =+IF(Y115<>"",AB115+AC114,"") ->  | AD115: =+IF(($P$8*12-Q118)>=0,Q118,"") ->  | AE115: 650 | AF115: 650 | AG115: =+IF(AD115<>"",AE115-AF115,"") ->  | AH115: =+IF(AD115<>"",AG115+AH114,"") ->  | AI115: =+IF(AD115<>"",$P$7-AH115,"") -> 
D116: =+D115+1 -> 92 | O116: 99 | P116: 30/09/2032 | Q116: =Q115-R115 -> 524883.51 | R116: 5840.26 | S116: 1006.03 | T116: =ROUND((S116*0.19),2) -> 191.15 | U116: =ROUND((S116-T116),2) -> 814.88 | V116: =ROUND((R116+U116),2) -> 6655.14 | W116: =Q116-R116 -> 519043.25 | Y116: =+IF(($Z$8*12-D116)>=0,D116,"") -> 92 | Z116: =+IF(Y116<>"",($Z$7*$Z$10/12)/(1-(1+($Z$10/12))^(-$Z$8*12)),0) -> 2763.642393 | AA116: =+IF(Y116<>"",#REF!*$Z$10/12,"") ->  | AB116: =+IF(Y116<>"",Z116-AA116,"") ->  | AC116: =+IF(Y116<>"",AB116+AC115,"") ->  | AD116: =+IF(($P$8*12-Q119)>=0,Q119,"") ->  | AE116: 650 | AF116: 650 | AG116: =+IF(AD116<>"",AE116-AF116,"") ->  | AH116: =+IF(AD116<>"",AG116+AH115,"") ->  | AI116: =+IF(AD116<>"",$P$7-AH116,"") -> 
D117: =+D116+1 -> 93 | O117: 100 | P117: 30/10/2032 | Q117: =Q116-R116 -> 519043.25 | R117: 5851.46 | S117: 994.83 | T117: =ROUND((S117*0.19),2) -> 189.02 | U117: =ROUND((S117-T117),2) -> 805.81 | V117: =ROUND((R117+U117),2) -> 6657.27 | W117: =Q117-R117 -> 513191.79 | Y117: =+IF(($Z$8*12-D117)>=0,D117,"") -> 93 | Z117: =+IF(Y117<>"",($Z$7*$Z$10/12)/(1-(1+($Z$10/12))^(-$Z$8*12)),0) -> 2763.642393 | AA117: =+IF(Y117<>"",#REF!*$Z$10/12,"") ->  | AB117: =+IF(Y117<>"",Z117-AA117,"") ->  | AC117: =+IF(Y117<>"",AB117+AC116,"") ->  | AD117: =+IF(($P$8*12-Q120)>=0,Q120,"") ->  | AE117: 650 | AF117: 650 | AG117: =+IF(AD117<>"",AE117-AF117,"") ->  | AH117: =+IF(AD117<>"",AG117+AH116,"") ->  | AI117: =+IF(AD117<>"",$P$7-AH117,"") -> 
D118: =+D117+1 -> 94 | O118: 101 | P118: 30/11/2032 | Q118: =Q117-R117 -> 513191.79 | R118: 5862.67 | S118: 983.62 | T118: =ROUND((S118*0.19),2) -> 186.89 | U118: =ROUND((S118-T118),2) -> 796.73 | V118: =ROUND((R118+U118),2) -> 6659.4 | W118: =Q118-R118 -> 507329.12 | Y118: =+IF(($Z$8*12-D118)>=0,D118,"") -> 94 | Z118: =+IF(Y118<>"",($Z$7*$Z$10/12)/(1-(1+($Z$10/12))^(-$Z$8*12)),0) -> 2763.642393 | AA118: =+IF(Y118<>"",#REF!*$Z$10/12,"") ->  | AB118: =+IF(Y118<>"",Z118-AA118,"") ->  | AC118: =+IF(Y118<>"",AB118+AC117,"") ->  | AD118: =+IF(($P$8*12-Q121)>=0,Q121,"") ->  | AE118: 650 | AF118: 650 | AG118: =+IF(AD118<>"",AE118-AF118,"") ->  | AH118: =+IF(AD118<>"",AG118+AH117,"") ->  | AI118: =+IF(AD118<>"",$P$7-AH118,"") -> 
D119: =+D118+1 -> 95 | O119: 102 | P119: 30/12/2032 | Q119: =Q118-R118 -> 507329.12 | R119: 5873.91 | S119: 972.38 | T119: =ROUND((S119*0.19),2) -> 184.75 | U119: =ROUND((S119-T119),2) -> 787.63 | V119: =ROUND((R119+U119),2) -> 6661.54 | W119: =Q119-R119 -> 501455.21 | Y119: =+IF(($Z$8*12-D119)>=0,D119,"") -> 95 | Z119: =+IF(Y119<>"",($Z$7*$Z$10/12)/(1-(1+($Z$10/12))^(-$Z$8*12)),0) -> 2763.642393 | AA119: =+IF(Y119<>"",#REF!*$Z$10/12,"") ->  | AB119: =+IF(Y119<>"",Z119-AA119,"") ->  | AC119: =+IF(Y119<>"",AB119+AC118,"") ->  | AD119: =+IF(($P$8*12-Q122)>=0,Q122,"") ->  | AE119: 650 | AF119: 650 | AG119: =+IF(AD119<>"",AE119-AF119,"") ->  | AH119: =+IF(AD119<>"",AG119+AH118,"") ->  | AI119: =+IF(AD119<>"",$P$7-AH119,"") -> 
D120: =+D119+1 -> 96 | O120: 103 | P120: 30/01/2033 | Q120: =Q119-R119 -> 501455.21 | R120: 5885.17 | S120: 961.12 | T120: =ROUND((S120*0.19),2) -> 182.61 | U120: =ROUND((S120-T120),2) -> 778.51 | V120: =ROUND((R120+U120),2) -> 6663.68 | W120: =Q120-R120 -> 495570.04 | Y120: =+IF(($Z$8*12-D120)>=0,D120,"") -> 96 | Z120: =+IF(Y120<>"",($Z$7*$Z$10/12)/(1-(1+($Z$10/12))^(-$Z$8*12)),0) -> 2763.642393 | AA120: =+IF(Y120<>"",#REF!*$Z$10/12,"") ->  | AB120: =+IF(Y120<>"",Z120-AA120,"") ->  | AC120: =+IF(Y120<>"",AB120+AC119,"") ->  | AD120: =+IF(($P$8*12-Q123)>=0,Q123,"") ->  | AE120: 650 | AF120: 650 | AG120: =+IF(AD120<>"",AE120-AF120,"") ->  | AH120: =+IF(AD120<>"",AG120+AH119,"") ->  | AI120: =+IF(AD120<>"",$P$7-AH120,"") -> 
D121: =+D120+1 -> 97 | O121: 104 | P121: 28/02/2033 | Q121: =Q120-R120 -> 495570.04 | R121: 5896.45 | S121: 949.84 | T121: =ROUND((S121*0.19),2) -> 180.47 | U121: =ROUND((S121-T121),2) -> 769.37 | V121: =ROUND((R121+U121),2) -> 6665.82 | W121: =Q121-R121 -> 489673.59 | Y121: =+IF(($Z$8*12-D121)>=0,D121,"") -> 97 | Z121: =+IF(Y121<>"",($Z$7*$Z$10/12)/(1-(1+($Z$10/12))^(-$Z$8*12)),0) -> 2763.642393 | AA121: =+IF(Y121<>"",#REF!*$Z$10/12,"") ->  | AB121: =+IF(Y121<>"",Z121-AA121,"") ->  | AC121: =+IF(Y121<>"",AB121+AC120,"") ->  | AD121: =+IF(($P$8*12-Q124)>=0,Q124,"") ->  | AE121: 650 | AF121: 650 | AG121: =+IF(AD121<>"",AE121-AF121,"") ->  | AH121: =+IF(AD121<>"",AG121+AH120,"") ->  | AI121: =+IF(AD121<>"",$P$7-AH121,"") -> 
D122: =+D121+1 -> 98 | O122: 105 | P122: 30/03/2033 | Q122: =Q121-R121 -> 489673.59 | R122: 5907.75 | S122: 938.54 | T122: =ROUND((S122*0.19),2) -> 178.32 | U122: =ROUND((S122-T122),2) -> 760.22 | V122: =ROUND((R122+U122),2) -> 6667.97 | W122: =Q122-R122 -> 483765.84 | Y122: =+IF(($Z$8*12-D122)>=0,D122,"") -> 98 | Z122: =+IF(Y122<>"",($Z$7*$Z$10/12)/(1-(1+($Z$10/12))^(-$Z$8*12)),0) -> 2763.642393 | AA122: =+IF(Y122<>"",#REF!*$Z$10/12,"") ->  | AB122: =+IF(Y122<>"",Z122-AA122,"") ->  | AC122: =+IF(Y122<>"",AB122+AC121,"") ->  | AD122: =+IF(($P$8*12-Q125)>=0,Q125,"") ->  | AE122: 650 | AF122: 650 | AG122: =+IF(AD122<>"",AE122-AF122,"") ->  | AH122: =+IF(AD122<>"",AG122+AH121,"") ->  | AI122: =+IF(AD122<>"",$P$7-AH122,"") -> 
D123: =+D122+1 -> 99 | O123: 106 | P123: 30/04/2033 | Q123: =Q122-R122 -> 483765.84 | R123: 5919.07 | S123: 927.22 | T123: =ROUND((S123*0.19),2) -> 176.17 | U123: =ROUND((S123-T123),2) -> 751.05 | V123: =ROUND((R123+U123),2) -> 6670.12 | W123: =Q123-R123 -> 477846.77 | Y123: =+IF(($Z$8*12-D123)>=0,D123,"") -> 99 | Z123: =+IF(Y123<>"",($Z$7*$Z$10/12)/(1-(1+($Z$10/12))^(-$Z$8*12)),0) -> 2763.642393 | AA123: =+IF(Y123<>"",#REF!*$Z$10/12,"") ->  | AB123: =+IF(Y123<>"",Z123-AA123,"") ->  | AC123: =+IF(Y123<>"",AB123+AC122,"") ->  | AD123: =+IF(($P$8*12-Q126)>=0,Q126,"") ->  | AE123: 650 | AF123: 650 | AG123: =+IF(AD123<>"",AE123-AF123,"") ->  | AH123: =+IF(AD123<>"",AG123+AH122,"") ->  | AI123: =+IF(AD123<>"",$P$7-AH123,"") -> 
D124: =+D123+1 -> 100 | O124: 107 | P124: 30/05/2033 | Q124: =Q123-R123 -> 477846.77 | R124: 5930.42 | S124: 915.87 | T124: =ROUND((S124*0.19),2) -> 174.02 | U124: =ROUND((S124-T124),2) -> 741.85 | V124: =ROUND((R124+U124),2) -> 6672.27 | W124: =Q124-R124 -> 471916.35 | Y124: =+IF(($Z$8*12-D124)>=0,D124,"") -> 100 | Z124: =+IF(Y124<>"",($Z$7*$Z$10/12)/(1-(1+($Z$10/12))^(-$Z$8*12)),0) -> 2763.642393 | AA124: =+IF(Y124<>"",#REF!*$Z$10/12,"") ->  | AB124: =+IF(Y124<>"",Z124-AA124,"") ->  | AC124: =+IF(Y124<>"",AB124+AC123,"") ->  | AD124: =+IF(($P$8*12-Q127)>=0,Q127,"") ->  | AE124: 650 | AF124: 650 | AG124: =+IF(AD124<>"",AE124-AF124,"") ->  | AH124: =+IF(AD124<>"",AG124+AH123,"") ->  | AI124: =+IF(AD124<>"",$P$7-AH124,"") -> 
D125: =+D124+1 -> 101 | O125: 108 | P125: 30/06/2033 | Q125: =Q124-R124 -> 471916.35 | R125: 5941.78 | S125: 904.51 | T125: =ROUND((S125*0.19),2) -> 171.86 | U125: =ROUND((S125-T125),2) -> 732.65 | V125: =ROUND((R125+U125),2) -> 6674.43 | W125: =Q125-R125 -> 465974.57 | Y125: =+IF(($Z$8*12-D125)>=0,D125,"") -> 101 | Z125: =+IF(Y125<>"",($Z$7*$Z$10/12)/(1-(1+($Z$10/12))^(-$Z$8*12)),0) -> 2763.642393 | AA125: =+IF(Y125<>"",#REF!*$Z$10/12,"") ->  | AB125: =+IF(Y125<>"",Z125-AA125,"") ->  | AC125: =+IF(Y125<>"",AB125+AC124,"") ->  | AD125: =+IF(($P$8*12-Q128)>=0,Q128,"") ->  | AE125: 650 | AF125: 650 | AG125: =+IF(AD125<>"",AE125-AF125,"") ->  | AH125: =+IF(AD125<>"",AG125+AH124,"") ->  | AI125: =+IF(AD125<>"",$P$7-AH125,"") -> 
D126: =+D125+1 -> 102 | O126: 109 | P126: 30/07/2033 | Q126: =Q125-R125 -> 465974.57 | R126: 5953.17 | S126: 893.12 | T126: =ROUND((S126*0.19),2) -> 169.69 | U126: =ROUND((S126-T126),2) -> 723.43 | V126: =ROUND((R126+U126),2) -> 6676.6 | W126: =Q126-R126 -> 460021.4 | Y126: =+IF(($Z$8*12-D126)>=0,D126,"") -> 102 | Z126: =+IF(Y126<>"",($Z$7*$Z$10/12)/(1-(1+($Z$10/12))^(-$Z$8*12)),0) -> 2763.642393 | AA126: =+IF(Y126<>"",#REF!*$Z$10/12,"") ->  | AB126: =+IF(Y126<>"",Z126-AA126,"") ->  | AC126: =+IF(Y126<>"",AB126+AC125,"") ->  | AD126: =+IF(($P$8*12-Q129)>=0,Q129,"") ->  | AE126: 650 | AF126: 650 | AG126: =+IF(AD126<>"",AE126-AF126,"") ->  | AH126: =+IF(AD126<>"",AG126+AH125,"") ->  | AI126: =+IF(AD126<>"",$P$7-AH126,"") -> 
D127: =+D126+1 -> 103 | O127: 110 | P127: 30/08/2033 | Q127: =Q126-R126 -> 460021.4 | R127: 5964.58 | S127: 881.71 | T127: =ROUND((S127*0.19),2) -> 167.52 | U127: =ROUND((S127-T127),2) -> 714.19 | V127: =ROUND((R127+U127),2) -> 6678.77 | W127: =Q127-R127 -> 454056.82 | Y127: =+IF(($Z$8*12-D127)>=0,D127,"") -> 103 | Z127: =+IF(Y127<>"",($Z$7*$Z$10/12)/(1-(1+($Z$10/12))^(-$Z$8*12)),0) -> 2763.642393 | AA127: =+IF(Y127<>"",#REF!*$Z$10/12,"") ->  | AB127: =+IF(Y127<>"",Z127-AA127,"") ->  | AC127: =+IF(Y127<>"",AB127+AC126,"") ->  | AD127: =+IF(($P$8*12-Q130)>=0,Q130,"") ->  | AE127: 650 | AF127: 650 | AG127: =+IF(AD127<>"",AE127-AF127,"") ->  | AH127: =+IF(AD127<>"",AG127+AH126,"") ->  | AI127: =+IF(AD127<>"",$P$7-AH127,"") -> 
D128: =+D127+1 -> 104 | O128: 111 | P128: 30/09/2033 | Q128: =Q127-R127 -> 454056.82 | R128: 5976.01 | S128: 870.28 | T128: =ROUND((S128*0.19),2) -> 165.35 | U128: =ROUND((S128-T128),2) -> 704.93 | V128: =ROUND((R128+U128),2) -> 6680.94 | W128: =Q128-R128 -> 448080.81 | Y128: =+IF(($Z$8*12-D128)>=0,D128,"") -> 104 | Z128: =+IF(Y128<>"",($Z$7*$Z$10/12)/(1-(1+($Z$10/12))^(-$Z$8*12)),0) -> 2763.642393 | AA128: =+IF(Y128<>"",#REF!*$Z$10/12,"") ->  | AB128: =+IF(Y128<>"",Z128-AA128,"") ->  | AC128: =+IF(Y128<>"",AB128+AC127,"") ->  | AD128: =+IF(($P$8*12-Q131)>=0,Q131,"") ->  | AE128: 650 | AF128: 650 | AG128: =+IF(AD128<>"",AE128-AF128,"") ->  | AH128: =+IF(AD128<>"",AG128+AH127,"") ->  | AI128: =+IF(AD128<>"",$P$7-AH128,"") -> 
D129: =+D128+1 -> 105 | O129: 112 | P129: 30/10/2033 | Q129: =Q128-R128 -> 448080.81 | R129: 5987.47 | S129: 858.82 | T129: =ROUND((S129*0.19),2) -> 163.18 | U129: =ROUND((S129-T129),2) -> 695.64 | V129: =ROUND((R129+U129),2) -> 6683.11 | W129: =Q129-R129 -> 442093.34 | Y129: =+IF(($Z$8*12-D129)>=0,D129,"") -> 105 | Z129: =+IF(Y129<>"",($Z$7*$Z$10/12)/(1-(1+($Z$10/12))^(-$Z$8*12)),0) -> 2763.642393 | AA129: =+IF(Y129<>"",#REF!*$Z$10/12,"") ->  | AB129: =+IF(Y129<>"",Z129-AA129,"") ->  | AC129: =+IF(Y129<>"",AB129+AC128,"") ->  | AD129: =+IF(($P$8*12-Q132)>=0,Q132,"") ->  | AE129: 650 | AF129: 650 | AG129: =+IF(AD129<>"",AE129-AF129,"") ->  | AH129: =+IF(AD129<>"",AG129+AH128,"") ->  | AI129: =+IF(AD129<>"",$P$7-AH129,"") -> 
D130: =+D129+1 -> 106 | O130: 113 | P130: 30/11/2033 | Q130: =Q129-R129 -> 442093.34 | R130: 5998.94 | S130: 847.35 | T130: =ROUND((S130*0.19),2) -> 161 | U130: =ROUND((S130-T130),2) -> 686.35 | V130: =ROUND((R130+U130),2) -> 6685.29 | W130: =Q130-R130 -> 436094.4 | Y130: =+IF(($Z$8*12-D130)>=0,D130,"") -> 106 | Z130: =+IF(Y130<>"",($Z$7*$Z$10/12)/(1-(1+($Z$10/12))^(-$Z$8*12)),0) -> 2763.642393 | AA130: =+IF(Y130<>"",#REF!*$Z$10/12,"") ->  | AB130: =+IF(Y130<>"",Z130-AA130,"") ->  | AC130: =+IF(Y130<>"",AB130+AC129,"") ->  | AD130: =+IF(($P$8*12-Q133)>=0,Q133,"") ->  | AE130: 650 | AF130: 650 | AG130: =+IF(AD130<>"",AE130-AF130,"") ->  | AH130: =+IF(AD130<>"",AG130+AH129,"") ->  | AI130: =+IF(AD130<>"",$P$7-AH130,"") -> 
D131: =+D130+1 -> 107 | O131: 114 | P131: 30/12/2033 | Q131: =Q130-R130 -> 436094.4 | R131: 6010.44 | S131: 835.85 | T131: =ROUND((S131*0.19),2) -> 158.81 | U131: =ROUND((S131-T131),2) -> 677.04 | V131: =ROUND((R131+U131),2) -> 6687.48 | W131: =Q131-R131 -> 430083.96 | Y131: =+IF(($Z$8*12-D131)>=0,D131,"") -> 107 | Z131: =+IF(Y131<>"",($Z$7*$Z$10/12)/(1-(1+($Z$10/12))^(-$Z$8*12)),0) -> 2763.642393 | AA131: =+IF(Y131<>"",#REF!*$Z$10/12,"") ->  | AB131: =+IF(Y131<>"",Z131-AA131,"") ->  | AC131: =+IF(Y131<>"",AB131+AC130,"") ->  | AD131: =+IF(($P$8*12-Q134)>=0,Q134,"") ->  | AE131: 650 | AF131: 650 | AG131: =+IF(AD131<>"",AE131-AF131,"") ->  | AH131: =+IF(AD131<>"",AG131+AH130,"") ->  | AI131: =+IF(AD131<>"",$P$7-AH131,"") -> 
D132: =+D131+1 -> 108 | O132: 115 | P132: 30/01/2034 | Q132: =Q131-R131 -> 430083.96 | R132: 6021.96 | S132: 824.33 | T132: =ROUND((S132*0.19),2) -> 156.62 | U132: =ROUND((S132-T132),2) -> 667.71 | V132: =ROUND((R132+U132),2) -> 6689.67 | W132: =Q132-R132 -> 424062 | Y132: =+IF(($Z$8*12-D132)>=0,D132,"") -> 108 | Z132: =+IF(Y132<>"",($Z$7*$Z$10/12)/(1-(1+($Z$10/12))^(-$Z$8*12)),0) -> 2763.642393 | AA132: =+IF(Y132<>"",#REF!*$Z$10/12,"") ->  | AB132: =+IF(Y132<>"",Z132-AA132,"") ->  | AC132: =+IF(Y132<>"",AB132+AC131,"") ->  | AD132: =+IF(($P$8*12-Q135)>=0,Q135,"") ->  | AE132: 650 | AF132: 650 | AG132: =+IF(AD132<>"",AE132-AF132,"") ->  | AH132: =+IF(AD132<>"",AG132+AH131,"") ->  | AI132: =+IF(AD132<>"",$P$7-AH132,"") -> 
D133: =+D132+1 -> 109 | O133: 116 | P133: 28/02/2034 | Q133: =Q132-R132 -> 424062 | R133: 6033.5 | S133: 812.79 | T133: =ROUND((S133*0.19),2) -> 154.43 | U133: =ROUND((S133-T133),2) -> 658.36 | V133: =ROUND((R133+U133),2) -> 6691.86 | W133: =Q133-R133 -> 418028.5 | Y133: =+IF(($Z$8*12-D133)>=0,D133,"") -> 109 | Z133: =+IF(Y133<>"",($Z$7*$Z$10/12)/(1-(1+($Z$10/12))^(-$Z$8*12)),0) -> 2763.642393 | AA133: =+IF(Y133<>"",#REF!*$Z$10/12,"") ->  | AB133: =+IF(Y133<>"",Z133-AA133,"") ->  | AC133: =+IF(Y133<>"",AB133+AC132,"") ->  | AD133: =+IF(($P$8*12-Q136)>=0,Q136,"") ->  | AE133: 650 | AF133: 650 | AG133: =+IF(AD133<>"",AE133-AF133,"") ->  | AH133: =+IF(AD133<>"",AG133+AH132,"") ->  | AI133: =+IF(AD133<>"",$P$7-AH133,"") -> 
D134: =+D133+1 -> 110 | O134: 117 | P134: 30/03/2034 | Q134: =Q133-R133 -> 418028.5 | R134: 6045.07 | S134: 801.22 | T134: =ROUND((S134*0.19),2) -> 152.23 | U134: =ROUND((S134-T134),2) -> 648.99 | V134: =ROUND((R134+U134),2) -> 6694.06 | W134: =Q134-R134 -> 411983.43 | Y134: =+IF(($Z$8*12-D134)>=0,D134,"") -> 110 | Z134: =+IF(Y134<>"",($Z$7*$Z$10/12)/(1-(1+($Z$10/12))^(-$Z$8*12)),0) -> 2763.642393 | AA134: =+IF(Y134<>"",#REF!*$Z$10/12,"") ->  | AB134: =+IF(Y134<>"",Z134-AA134,"") ->  | AC134: =+IF(Y134<>"",AB134+AC133,"") ->  | AD134: =+IF(($P$8*12-Q137)>=0,Q137,"") ->  | AE134: 650 | AF134: 650 | AG134: =+IF(AD134<>"",AE134-AF134,"") ->  | AH134: =+IF(AD134<>"",AG134+AH133,"") ->  | AI134: =+IF(AD134<>"",$P$7-AH134,"") -> 
D135: =+D134+1 -> 111 | O135: 118 | P135: 30/04/2034 | Q135: =Q134-R134 -> 411983.43 | R135: 6056.66 | S135: 789.63 | T135: =ROUND((S135*0.19),2) -> 150.03 | U135: =ROUND((S135-T135),2) -> 639.6 | V135: =ROUND((R135+U135),2) -> 6696.26 | W135: =Q135-R135 -> 405926.77 | Y135: =+IF(($Z$8*12-D135)>=0,D135,"") -> 111 | Z135: =+IF(Y135<>"",($Z$7*$Z$10/12)/(1-(1+($Z$10/12))^(-$Z$8*12)),0) -> 2763.642393 | AA135: =+IF(Y135<>"",#REF!*$Z$10/12,"") ->  | AB135: =+IF(Y135<>"",Z135-AA135,"") ->  | AC135: =+IF(Y135<>"",AB135+AC134,"") ->  | AD135: =+IF(($P$8*12-Q138)>=0,Q138,"") ->  | AE135: 650 | AF135: 650 | AG135: =+IF(AD135<>"",AE135-AF135,"") ->  | AH135: =+IF(AD135<>"",AG135+AH134,"") ->  | AI135: =+IF(AD135<>"",$P$7-AH135,"") -> 
D136: =+D135+1 -> 112 | O136: 119 | P136: 30/05/2034 | Q136: =Q135-R135 -> 405926.77 | R136: 6068.26 | S136: 778.03 | T136: =ROUND((S136*0.19),2) -> 147.83 | U136: =ROUND((S136-T136),2) -> 630.2 | V136: =ROUND((R136+U136),2) -> 6698.46 | W136: =Q136-R136 -> 399858.51 | Y136: =+IF(($Z$8*12-D136)>=0,D136,"") -> 112 | Z136: =+IF(Y136<>"",($Z$7*$Z$10/12)/(1-(1+($Z$10/12))^(-$Z$8*12)),0) -> 2763.642393 | AA136: =+IF(Y136<>"",#REF!*$Z$10/12,"") ->  | AB136: =+IF(Y136<>"",Z136-AA136,"") ->  | AC136: =+IF(Y136<>"",AB136+AC135,"") ->  | AD136: =+IF(($P$8*12-Q139)>=0,Q139,"") ->  | AE136: 650 | AF136: 650 | AG136: =+IF(AD136<>"",AE136-AF136,"") ->  | AH136: =+IF(AD136<>"",AG136+AH135,"") ->  | AI136: =+IF(AD136<>"",$P$7-AH136,"") -> 
D137: =+D136+1 -> 113 | O137: 120 | P137: 30/06/2034 | Q137: =Q136-R136 -> 399858.51 | R137: 6079.89 | S137: 766.4 | T137: =ROUND((S137*0.19),2) -> 145.62 | U137: =ROUND((S137-T137),2) -> 620.78 | V137: =ROUND((R137+U137),2) -> 6700.67 | W137: =Q137-R137 -> 393778.62 | Y137: =+IF(($Z$8*12-D137)>=0,D137,"") -> 113 | Z137: =+IF(Y137<>"",($Z$7*$Z$10/12)/(1-(1+($Z$10/12))^(-$Z$8*12)),0) -> 2763.642393 | AA137: =+IF(Y137<>"",#REF!*$Z$10/12,"") ->  | AB137: =+IF(Y137<>"",Z137-AA137,"") ->  | AC137: =+IF(Y137<>"",AB137+AC136,"") ->  | AD137: =+IF(($P$8*12-Q140)>=0,Q140,"") ->  | AE137: 650 | AF137: 650 | AG137: =+IF(AD137<>"",AE137-AF137,"") ->  | AH137: =+IF(AD137<>"",AG137+AH136,"") ->  | AI137: =+IF(AD137<>"",$P$7-AH137,"") -> 
D138: =+D137+1 -> 114 | O138: 121 | P138: 30/07/2034 | Q138: =Q137-R137 -> 393778.62 | R138: 6091.55 | S138: 754.74 | T138: =ROUND((S138*0.19),2) -> 143.4 | U138: =ROUND((S138-T138),2) -> 611.34 | V138: =ROUND((R138+U138),2) -> 6702.89 | W138: =Q138-R138 -> 387687.07 | Y138: =+IF(($Z$8*12-D138)>=0,D138,"") -> 114 | Z138: =+IF(Y138<>"",($Z$7*$Z$10/12)/(1-(1+($Z$10/12))^(-$Z$8*12)),0) -> 2763.642393 | AA138: =+IF(Y138<>"",#REF!*$Z$10/12,"") ->  | AB138: =+IF(Y138<>"",Z138-AA138,"") ->  | AC138: =+IF(Y138<>"",AB138+AC137,"") ->  | AD138: =+IF(($P$8*12-Q141)>=0,Q141,"") ->  | AE138: 650 | AF138: 650 | AG138: =+IF(AD138<>"",AE138-AF138,"") ->  | AH138: =+IF(AD138<>"",AG138+AH137,"") ->  | AI138: =+IF(AD138<>"",$P$7-AH138,"") -> 
D139: =+D138+1 -> 115 | O139: 122 | P139: 30/08/2034 | Q139: =Q138-R138 -> 387687.07 | R139: 6103.22 | S139: 743.07 | T139: =ROUND((S139*0.19),2) -> 141.18 | U139: =ROUND((S139-T139),2) -> 601.89 | V139: =ROUND((R139+U139),2) -> 6705.11 | W139: =Q139-R139 -> 381583.85 | Y139: =+IF(($Z$8*12-D139)>=0,D139,"") -> 115 | Z139: =+IF(Y139<>"",($Z$7*$Z$10/12)/(1-(1+($Z$10/12))^(-$Z$8*12)),0) -> 2763.642393 | AA139: =+IF(Y139<>"",#REF!*$Z$10/12,"") ->  | AB139: =+IF(Y139<>"",Z139-AA139,"") ->  | AC139: =+IF(Y139<>"",AB139+AC138,"") ->  | AD139: =+IF(($P$8*12-Q142)>=0,Q142,"") ->  | AE139: 650 | AF139: 650 | AG139: =+IF(AD139<>"",AE139-AF139,"") ->  | AH139: =+IF(AD139<>"",AG139+AH138,"") ->  | AI139: =+IF(AD139<>"",$P$7-AH139,"") -> 
D140: =+D139+1 -> 116 | O140: 123 | P140: 30/09/2034 | Q140: =Q139-R139 -> 381583.85 | R140: 6114.92 | S140: 731.37 | T140: =ROUND((S140*0.19),2) -> 138.96 | U140: =ROUND((S140-T140),2) -> 592.41 | V140: =ROUND((R140+U140),2) -> 6707.33 | W140: =Q140-R140 -> 375468.93 | Y140: =+IF(($Z$8*12-D140)>=0,D140,"") -> 116 | Z140: =+IF(Y140<>"",($Z$7*$Z$10/12)/(1-(1+($Z$10/12))^(-$Z$8*12)),0) -> 2763.642393 | AA140: =+IF(Y140<>"",#REF!*$Z$10/12,"") ->  | AB140: =+IF(Y140<>"",Z140-AA140,"") ->  | AC140: =+IF(Y140<>"",AB140+AC139,"") ->  | AD140: =+IF(($P$8*12-Q143)>=0,Q143,"") ->  | AE140: 650 | AF140: 650 | AG140: =+IF(AD140<>"",AE140-AF140,"") ->  | AH140: =+IF(AD140<>"",AG140+AH139,"") ->  | AI140: =+IF(AD140<>"",$P$7-AH140,"") -> 
D141: =+D140+1 -> 117 | O141: 124 | P141: 30/10/2034 | Q141: =Q140-R140 -> 375468.93 | R141: 6126.64 | S141: 719.65 | T141: =ROUND((S141*0.19),2) -> 136.73 | U141: =ROUND((S141-T141),2) -> 582.92 | V141: =ROUND((R141+U141),2) -> 6709.56 | W141: =Q141-R141 -> 369342.29 | Y141: =+IF(($Z$8*12-D141)>=0,D141,"") -> 117 | Z141: =+IF(Y141<>"",($Z$7*$Z$10/12)/(1-(1+($Z$10/12))^(-$Z$8*12)),0) -> 2763.642393 | AA141: =+IF(Y141<>"",#REF!*$Z$10/12,"") ->  | AB141: =+IF(Y141<>"",Z141-AA141,"") ->  | AC141: =+IF(Y141<>"",AB141+AC140,"") ->  | AD141: =+IF(($P$8*12-Q144)>=0,Q144,"") ->  | AE141: 650 | AF141: 650 | AG141: =+IF(AD141<>"",AE141-AF141,"") ->  | AH141: =+IF(AD141<>"",AG141+AH140,"") ->  | AI141: =+IF(AD141<>"",$P$7-AH141,"") -> 
D142: =+D141+1 -> 118 | O142: 125 | P142: 30/11/2034 | Q142: =Q141-R141 -> 369342.29 | R142: 6138.38 | S142: 707.91 | T142: =ROUND((S142*0.19),2) -> 134.5 | U142: =ROUND((S142-T142),2) -> 573.41 | V142: =ROUND((R142+U142),2) -> 6711.79 | W142: =Q142-R142 -> 363203.91 | Y142: =+IF(($Z$8*12-D142)>=0,D142,"") -> 118 | Z142: =+IF(Y142<>"",($Z$7*$Z$10/12)/(1-(1+($Z$10/12))^(-$Z$8*12)),0) -> 2763.642393 | AA142: =+IF(Y142<>"",#REF!*$Z$10/12,"") ->  | AB142: =+IF(Y142<>"",Z142-AA142,"") ->  | AC142: =+IF(Y142<>"",AB142+AC141,"") ->  | AE142: 650 | AF142: 650
D143: =+D142+1 -> 119 | O143: 126 | P143: 30/12/2034 | Q143: =Q142-R142 -> 363203.91 | R143: 6150.15 | S143: 696.14 | T143: =ROUND((S143*0.19),2) -> 132.27 | U143: =ROUND((S143-T143),2) -> 563.87 | V143: =ROUND((R143+U143),2) -> 6714.02 | W143: =Q143-R143 -> 357053.76 | Y143: =+IF(($Z$8*12-D143)>=0,D143,"") -> 119 | Z143: =+IF(Y143<>"",($Z$7*$Z$10/12)/(1-(1+($Z$10/12))^(-$Z$8*12)),0) -> 2763.642393 | AA143: =+IF(Y143<>"",#REF!*$Z$10/12,"") ->  | AB143: =+IF(Y143<>"",Z143-AA143,"") ->  | AC143: =+IF(Y143<>"",AB143+AC142,"") ->  | AE143: 650 | AF143: 650
D144: =+D143+1 -> 120 | O144: 127 | P144: 30/01/2035 | Q144: =Q143-R143 -> 357053.76 | R144: 6161.94 | S144: 684.35 | T144: =ROUND((S144*0.19),2) -> 130.03 | U144: =ROUND((S144-T144),2) -> 554.32 | V144: =ROUND((R144+U144),2) -> 6716.26 | W144: =Q144-R144 -> 350891.82 | Y144: =+IF(($Z$8*12-D144)>=0,D144,"") -> 120 | Z144: =+IF(Y144<>"",($Z$7*$Z$10/12)/(1-(1+($Z$10/12))^(-$Z$8*12)),0) -> 2763.642393 | AA144: =+IF(Y144<>"",#REF!*$Z$10/12,"") ->  | AB144: =+IF(Y144<>"",Z144-AA144,"") ->  | AC144: =+IF(Y144<>"",AB144+AC143,"") ->  | AE144: 650 | AF144: 650
D145: =+D144+1 -> 121 | O145: 128 | P145: 28/02/2035 | Q145: =Q144-R144 -> 350891.82 | R145: 6173.75 | S145: 672.54 | T145: =ROUND((S145*0.19),2) -> 127.78 | U145: =ROUND((S145-T145),2) -> 544.76 | V145: =ROUND((R145+U145),2) -> 6718.51 | W145: =Q145-R145 -> 344718.07 | Y145: =+IF(($Z$8*12-D145)>=0,D145,"") -> 121 | Z145: =+IF(Y145<>"",($Z$7*$Z$10/12)/(1-(1+($Z$10/12))^(-$Z$8*12)),0) -> 2763.642393 | AA145: =+IF(Y145<>"",#REF!*$Z$10/12,"") ->  | AB145: =+IF(Y145<>"",Z145-AA145,"") ->  | AC145: =+IF(Y145<>"",AB145+AC144,"") ->  | AE145: 650 | AF145: 650
D146: =+D145+1 -> 122 | O146: 129 | P146: 30/03/2035 | Q146: =Q145-R145 -> 344718.07 | R146: 6185.58 | S146: 660.71 | T146: =ROUND((S146*0.19),2) -> 125.53 | U146: =ROUND((S146-T146),2) -> 535.18 | V146: =ROUND((R146+U146),2) -> 6720.76 | W146: =Q146-R146 -> 338532.49 | Y146: =+IF(($Z$8*12-D146)>=0,D146,"") -> 122 | Z146: =+IF(Y146<>"",($Z$7*$Z$10/12)/(1-(1+($Z$10/12))^(-$Z$8*12)),0) -> 2763.642393 | AA146: =+IF(Y146<>"",#REF!*$Z$10/12,"") ->  | AB146: =+IF(Y146<>"",Z146-AA146,"") ->  | AC146: =+IF(Y146<>"",AB146+AC145,"") ->  | AE146: 650 | AF146: 650
D147: =+D146+1 -> 123 | O147: 130 | P147: 30/04/2035 | Q147: =Q146-R146 -> 338532.49 | R147: 6197.44 | S147: 648.85 | T147: =ROUND((S147*0.19),2) -> 123.28 | U147: =ROUND((S147-T147),2) -> 525.57 | V147: =ROUND((R147+U147),2) -> 6723.01 | W147: =Q147-R147 -> 332335.05 | Y147: =+IF(($Z$8*12-D147)>=0,D147,"") -> 123 | Z147: =+IF(Y147<>"",($Z$7*$Z$10/12)/(1-(1+($Z$10/12))^(-$Z$8*12)),0) -> 2763.642393 | AA147: =+IF(Y147<>"",#REF!*$Z$10/12,"") ->  | AB147: =+IF(Y147<>"",Z147-AA147,"") ->  | AC147: =+IF(Y147<>"",AB147+AC146,"") ->  | AE147: 650 | AF147: 650
D148: =+D147+1 -> 124 | O148: 131 | P148: 30/05/2035 | Q148: =Q147-R147 -> 332335.05 | R148: 6209.31 | S148: 636.98 | T148: =ROUND((S148*0.19),2) -> 121.03 | U148: =ROUND((S148-T148),2) -> 515.95 | V148: =ROUND((R148+U148),2) -> 6725.26 | W148: =Q148-R148 -> 326125.74 | Y148: =+IF(($Z$8*12-D148)>=0,D148,"") -> 124 | Z148: =+IF(Y148<>"",($Z$7*$Z$10/12)/(1-(1+($Z$10/12))^(-$Z$8*12)),0) -> 2763.642393 | AA148: =+IF(Y148<>"",#REF!*$Z$10/12,"") ->  | AB148: =+IF(Y148<>"",Z148-AA148,"") ->  | AC148: =+IF(Y148<>"",AB148+AC147,"") ->  | AE148: 650 | AF148: 650
D149: =+D148+1 -> 125 | O149: 132 | P149: 30/06/2035 | Q149: =Q148-R148 -> 326125.74 | R149: 6221.22 | S149: 625.07 | T149: =ROUND((S149*0.19),2) -> 118.76 | U149: =ROUND((S149-T149),2) -> 506.31 | V149: =ROUND((R149+U149),2) -> 6727.53 | W149: =Q149-R149 -> 319904.52 | Y149: =+IF(($Z$8*12-D149)>=0,D149,"") -> 125 | Z149: =+IF(Y149<>"",($Z$7*$Z$10/12)/(1-(1+($Z$10/12))^(-$Z$8*12)),0) -> 2763.642393 | AA149: =+IF(Y149<>"",#REF!*$Z$10/12,"") ->  | AB149: =+IF(Y149<>"",Z149-AA149,"") ->  | AC149: =+IF(Y149<>"",AB149+AC148,"") ->  | AE149: 650 | AF149: 650
D150: =+D149+1 -> 126 | O150: 133 | P150: 30/07/2035 | Q150: =Q149-R149 -> 319904.52 | R150: 6233.14 | S150: 613.15 | T150: =ROUND((S150*0.19),2) -> 116.5 | U150: =ROUND((S150-T150),2) -> 496.65 | V150: =ROUND((R150+U150),2) -> 6729.79 | W150: =Q150-R150 -> 313671.38 | Y150: =+IF(($Z$8*12-D150)>=0,D150,"") -> 126 | Z150: =+IF(Y150<>"",($Z$7*$Z$10/12)/(1-(1+($Z$10/12))^(-$Z$8*12)),0) -> 2763.642393 | AA150: =+IF(Y150<>"",#REF!*$Z$10/12,"") ->  | AB150: =+IF(Y150<>"",Z150-AA150,"") ->  | AC150: =+IF(Y150<>"",AB150+AC149,"") ->  | AE150: 650 | AF150: 650
D151: =+D150+1 -> 127 | O151: 134 | P151: 30/08/2035 | Q151: =Q150-R150 -> 313671.38 | R151: 6245.09 | S151: 601.2 | T151: =ROUND((S151*0.19),2) -> 114.23 | U151: =ROUND((S151-T151),2) -> 486.97 | V151: =ROUND((R151+U151),2) -> 6732.06 | W151: =Q151-R151 -> 307426.29 | Y151: =+IF(($Z$8*12-D151)>=0,D151,"") -> 127 | Z151: =+IF(Y151<>"",($Z$7*$Z$10/12)/(1-(1+($Z$10/12))^(-$Z$8*12)),0) -> 2763.642393 | AA151: =+IF(Y151<>"",#REF!*$Z$10/12,"") ->  | AB151: =+IF(Y151<>"",Z151-AA151,"") ->  | AC151: =+IF(Y151<>"",AB151+AC150,"") ->  | AE151: 650 | AF151: 650
D152: =+D151+1 -> 128 | O152: 135 | P152: 30/09/2035 | Q152: =Q151-R151 -> 307426.29 | R152: 6257.06 | S152: 589.23 | T152: =ROUND((S152*0.19),2) -> 111.95 | U152: =ROUND((S152-T152),2) -> 477.28 | V152: =ROUND((R152+U152),2) -> 6734.34 | W152: =Q152-R152 -> 301169.23 | Y152: =+IF(($Z$8*12-D152)>=0,D152,"") -> 128 | Z152: =+IF(Y152<>"",($Z$7*$Z$10/12)/(1-(1+($Z$10/12))^(-$Z$8*12)),0) -> 2763.642393 | AA152: =+IF(Y152<>"",#REF!*$Z$10/12,"") ->  | AB152: =+IF(Y152<>"",Z152-AA152,"") ->  | AC152: =+IF(Y152<>"",AB152+AC151,"") ->  | AE152: 650 | AF152: 650
D153: =+D152+1 -> 129 | O153: 136 | P153: 30/10/2035 | Q153: =Q152-R152 -> 301169.23 | R153: 6269.05 | S153: 577.24 | T153: =ROUND((S153*0.19),2) -> 109.68 | U153: =ROUND((S153-T153),2) -> 467.56 | V153: =ROUND((R153+U153),2) -> 6736.61 | W153: =Q153-R153 -> 294900.18 | Y153: =+IF(($Z$8*12-D153)>=0,D153,"") -> 129 | Z153: =+IF(Y153<>"",($Z$7*$Z$10/12)/(1-(1+($Z$10/12))^(-$Z$8*12)),0) -> 2763.642393 | AA153: =+IF(Y153<>"",#REF!*$Z$10/12,"") ->  | AB153: =+IF(Y153<>"",Z153-AA153,"") ->  | AC153: =+IF(Y153<>"",AB153+AC152,"") ->  | AE153: 650 | AF153: 650
D154: =+D153+1 -> 130 | O154: 137 | P154: 30/11/2035 | Q154: =Q153-R153 -> 294900.18 | R154: 6281.06 | S154: 565.23 | T154: =ROUND((S154*0.19),2) -> 107.39 | U154: =ROUND((S154-T154),2) -> 457.84 | V154: =ROUND((R154+U154),2) -> 6738.9 | W154: =Q154-R154 -> 288619.12 | Y154: =+IF(($Z$8*12-D154)>=0,D154,"") -> 130 | Z154: =+IF(Y154<>"",($Z$7*$Z$10/12)/(1-(1+($Z$10/12))^(-$Z$8*12)),0) -> 2763.642393 | AA154: =+IF(Y154<>"",#REF!*$Z$10/12,"") ->  | AB154: =+IF(Y154<>"",Z154-AA154,"") ->  | AC154: =+IF(Y154<>"",AB154+AC153,"") ->  | AE154: 650 | AF154: 650
D155: =+D154+1 -> 131 | O155: 138 | P155: 30/12/2035 | Q155: =Q154-R154 -> 288619.12 | R155: 6293.1 | S155: 553.19 | T155: =ROUND((S155*0.19),2) -> 105.11 | U155: =ROUND((S155-T155),2) -> 448.08 | V155: =ROUND((R155+U155),2) -> 6741.18 | W155: =Q155-R155 -> 282326.02 | Y155: =+IF(($Z$8*12-D155)>=0,D155,"") -> 131 | Z155: =+IF(Y155<>"",($Z$7*$Z$10/12)/(1-(1+($Z$10/12))^(-$Z$8*12)),0) -> 2763.642393 | AA155: =+IF(Y155<>"",#REF!*$Z$10/12,"") ->  | AB155: =+IF(Y155<>"",Z155-AA155,"") ->  | AC155: =+IF(Y155<>"",AB155+AC154,"") ->  | AE155: 650 | AF155: 650
D156: =+D155+1 -> 132 | O156: 139 | P156: 30/01/2036 | Q156: =Q155-R155 -> 282326.02 | R156: 6305.17 | S156: 541.12 | T156: =ROUND((S156*0.19),2) -> 102.81 | U156: =ROUND((S156-T156),2) -> 438.31 | V156: =ROUND((R156+U156),2) -> 6743.48 | W156: =Q156-R156 -> 276020.85 | Y156: =+IF(($Z$8*12-D156)>=0,D156,"") -> 132 | Z156: =+IF(Y156<>"",($Z$7*$Z$10/12)/(1-(1+($Z$10/12))^(-$Z$8*12)),0) -> 2763.642393 | AA156: =+IF(Y156<>"",#REF!*$Z$10/12,"") ->  | AB156: =+IF(Y156<>"",Z156-AA156,"") ->  | AC156: =+IF(Y156<>"",AB156+AC155,"") ->  | AE156: 650 | AF156: 650
D157: =+D156+1 -> 133 | O157: 140 | P157: 29/02/2036 | Q157: =Q156-R156 -> 276020.85 | R157: 6317.25 | S157: 529.04 | T157: =ROUND((S157*0.19),2) -> 100.52 | U157: =ROUND((S157-T157),2) -> 428.52 | V157: =ROUND((R157+U157),2) -> 6745.77 | W157: =Q157-R157 -> 269703.6 | Y157: =+IF(($Z$8*12-D157)>=0,D157,"") -> 133 | Z157: =+IF(Y157<>"",($Z$7*$Z$10/12)/(1-(1+($Z$10/12))^(-$Z$8*12)),0) -> 2763.642393 | AA157: =+IF(Y157<>"",#REF!*$Z$10/12,"") ->  | AB157: =+IF(Y157<>"",Z157-AA157,"") ->  | AC157: =+IF(Y157<>"",AB157+AC156,"") ->  | AE157: 650 | AF157: 650
D158: =+D157+1 -> 134 | O158: 141 | P158: 30/03/2036 | Q158: =Q157-R157 -> 269703.6 | R158: 6329.36 | S158: 516.93 | T158: =ROUND((S158*0.19),2) -> 98.22 | U158: =ROUND((S158-T158),2) -> 418.71 | V158: =ROUND((R158+U158),2) -> 6748.07 | W158: =Q158-R158 -> 263374.24 | Y158: =+IF(($Z$8*12-D158)>=0,D158,"") -> 134 | Z158: =+IF(Y158<>"",($Z$7*$Z$10/12)/(1-(1+($Z$10/12))^(-$Z$8*12)),0) -> 2763.642393 | AA158: =+IF(Y158<>"",#REF!*$Z$10/12,"") ->  | AB158: =+IF(Y158<>"",Z158-AA158,"") ->  | AC158: =+IF(Y158<>"",AB158+AC157,"") ->  | AE158: 650 | AF158: 650
D159: =+D158+1 -> 135 | O159: 142 | P159: 30/04/2036 | Q159: =Q158-R158 -> 263374.24 | R159: 6341.49 | S159: 504.8 | T159: =ROUND((S159*0.19),2) -> 95.91 | U159: =ROUND((S159-T159),2) -> 408.89 | V159: =ROUND((R159+U159),2) -> 6750.38 | W159: =Q159-R159 -> 257032.75 | Y159: =+IF(($Z$8*12-D159)>=0,D159,"") -> 135 | Z159: =+IF(Y159<>"",($Z$7*$Z$10/12)/(1-(1+($Z$10/12))^(-$Z$8*12)),0) -> 2763.642393 | AA159: =+IF(Y159<>"",#REF!*$Z$10/12,"") ->  | AB159: =+IF(Y159<>"",Z159-AA159,"") ->  | AC159: =+IF(Y159<>"",AB159+AC158,"") ->  | AE159: 650 | AF159: 650
D160: =+D159+1 -> 136 | O160: 143 | P160: 30/05/2036 | Q160: =Q159-R159 -> 257032.75 | R160: 6353.64 | S160: 492.65 | T160: =ROUND((S160*0.19),2) -> 93.6 | U160: =ROUND((S160-T160),2) -> 399.05 | V160: =ROUND((R160+U160),2) -> 6752.69 | W160: =Q160-R160 -> 250679.11 | Y160: =+IF(($Z$8*12-D160)>=0,D160,"") -> 136 | Z160: =+IF(Y160<>"",($Z$7*$Z$10/12)/(1-(1+($Z$10/12))^(-$Z$8*12)),0) -> 2763.642393 | AA160: =+IF(Y160<>"",#REF!*$Z$10/12,"") ->  | AB160: =+IF(Y160<>"",Z160-AA160,"") ->  | AC160: =+IF(Y160<>"",AB160+AC159,"") ->  | AE160: 650 | AF160: 650
D161: =+D160+1 -> 137 | O161: 144 | P161: 30/06/2036 | Q161: =Q160-R160 -> 250679.11 | R161: 6365.82 | S161: 480.47 | T161: =ROUND((S161*0.19),2) -> 91.29 | U161: =ROUND((S161-T161),2) -> 389.18 | V161: =ROUND((R161+U161),2) -> 6755 | W161: =Q161-R161 -> 244313.29 | Y161: =+IF(($Z$8*12-D161)>=0,D161,"") -> 137 | Z161: =+IF(Y161<>"",($Z$7*$Z$10/12)/(1-(1+($Z$10/12))^(-$Z$8*12)),0) -> 2763.642393 | AA161: =+IF(Y161<>"",#REF!*$Z$10/12,"") ->  | AB161: =+IF(Y161<>"",Z161-AA161,"") ->  | AC161: =+IF(Y161<>"",AB161+AC160,"") ->  | AE161: 650 | AF161: 650
D162: =+D161+1 -> 138 | O162: 145 | P162: 30/07/2036 | Q162: =Q161-R161 -> 244313.29 | R162: 6378.02 | S162: 468.27 | T162: =ROUND((S162*0.19),2) -> 88.97 | U162: =ROUND((S162-T162),2) -> 379.3 | V162: =ROUND((R162+U162),2) -> 6757.32 | W162: =Q162-R162 -> 237935.27 | Y162: =+IF(($Z$8*12-D162)>=0,D162,"") -> 138 | Z162: =+IF(Y162<>"",($Z$7*$Z$10/12)/(1-(1+($Z$10/12))^(-$Z$8*12)),0) -> 2763.642393 | AA162: =+IF(Y162<>"",#REF!*$Z$10/12,"") ->  | AB162: =+IF(Y162<>"",Z162-AA162,"") ->  | AC162: =+IF(Y162<>"",AB162+AC161,"") ->  | AE162: 650 | AF162: 650
D163: =+D162+1 -> 139 | O163: 146 | P163: 30/08/2036 | Q163: =Q162-R162 -> 237935.27 | R163: 6390.25 | S163: 456.04 | T163: =ROUND((S163*0.19),2) -> 86.65 | U163: =ROUND((S163-T163),2) -> 369.39 | V163: =ROUND((R163+U163),2) -> 6759.64 | W163: =Q163-R163 -> 231545.02 | Y163: =+IF(($Z$8*12-D163)>=0,D163,"") -> 139 | Z163: =+IF(Y163<>"",($Z$7*$Z$10/12)/(1-(1+($Z$10/12))^(-$Z$8*12)),0) -> 2763.642393 | AA163: =+IF(Y163<>"",#REF!*$Z$10/12,"") ->  | AB163: =+IF(Y163<>"",Z163-AA163,"") ->  | AC163: =+IF(Y163<>"",AB163+AC162,"") ->  | AE163: 650 | AF163: 650
D164: =+D163+1 -> 140 | O164: 147 | P164: 30/09/2036 | Q164: =Q163-R163 -> 231545.02 | R164: 6402.5 | S164: 443.79 | T164: =ROUND((S164*0.19),2) -> 84.32 | U164: =ROUND((S164-T164),2) -> 359.47 | V164: =ROUND((R164+U164),2) -> 6761.97 | W164: =Q164-R164 -> 225142.52 | Y164: =+IF(($Z$8*12-D164)>=0,D164,"") -> 140 | Z164: =+IF(Y164<>"",($Z$7*$Z$10/12)/(1-(1+($Z$10/12))^(-$Z$8*12)),0) -> 2763.642393 | AA164: =+IF(Y164<>"",#REF!*$Z$10/12,"") ->  | AB164: =+IF(Y164<>"",Z164-AA164,"") ->  | AC164: =+IF(Y164<>"",AB164+AC163,"") ->  | AE164: 650 | AF164: 650
D165: =+D164+1 -> 141 | O165: 148 | P165: 30/10/2036 | Q165: =Q164-R164 -> 225142.52 | R165: 6414.77 | S165: 431.52 | T165: =ROUND((S165*0.19),2) -> 81.99 | U165: =ROUND((S165-T165),2) -> 349.53 | V165: =ROUND((R165+U165),2) -> 6764.3 | W165: =Q165-R165 -> 218727.75 | Y165: =+IF(($Z$8*12-D165)>=0,D165,"") -> 141 | Z165: =+IF(Y165<>"",($Z$7*$Z$10/12)/(1-(1+($Z$10/12))^(-$Z$8*12)),0) -> 2763.642393 | AA165: =+IF(Y165<>"",#REF!*$Z$10/12,"") ->  | AB165: =+IF(Y165<>"",Z165-AA165,"") ->  | AC165: =+IF(Y165<>"",AB165+AC164,"") ->  | AE165: 650 | AF165: 650
D166: =+D165+1 -> 142 | O166: 149 | P166: 30/11/2036 | Q166: =Q165-R165 -> 218727.75 | R166: 6427.06 | S166: 419.23 | T166: =ROUND((S166*0.19),2) -> 79.65 | U166: =ROUND((S166-T166),2) -> 339.58 | V166: =ROUND((R166+U166),2) -> 6766.64 | W166: =Q166-R166 -> 212300.69 | Y166: =+IF(($Z$8*12-D166)>=0,D166,"") -> 142 | Z166: =+IF(Y166<>"",($Z$7*$Z$10/12)/(1-(1+($Z$10/12))^(-$Z$8*12)),0) -> 2763.642393 | AA166: =+IF(Y166<>"",#REF!*$Z$10/12,"") ->  | AB166: =+IF(Y166<>"",Z166-AA166,"") ->  | AC166: =+IF(Y166<>"",AB166+AC165,"") ->  | AE166: 650 | AF166: 650
D167: =+D166+1 -> 143 | O167: 150 | P167: 30/12/2036 | Q167: =Q166-R166 -> 212300.69 | R167: 6439.38 | S167: 406.91 | T167: =ROUND((S167*0.19),2) -> 77.31 | U167: =ROUND((S167-T167),2) -> 329.6 | V167: =ROUND((R167+U167),2) -> 6768.98 | W167: =Q167-R167 -> 205861.31 | Y167: =+IF(($Z$8*12-D167)>=0,D167,"") -> 143 | Z167: =+IF(Y167<>"",($Z$7*$Z$10/12)/(1-(1+($Z$10/12))^(-$Z$8*12)),0) -> 2763.642393 | AA167: =+IF(Y167<>"",#REF!*$Z$10/12,"") ->  | AB167: =+IF(Y167<>"",Z167-AA167,"") ->  | AC167: =+IF(Y167<>"",AB167+AC166,"") ->  | AE167: 650 | AF167: 650
D168: =+D167+1 -> 144 | O168: 151 | P168: 30/01/2037 | Q168: =Q167-R167 -> 205861.31 | R168: 6451.72 | S168: 394.57 | T168: =ROUND((S168*0.19),2) -> 74.97 | U168: =ROUND((S168-T168),2) -> 319.6 | V168: =ROUND((R168+U168),2) -> 6771.32 | W168: =Q168-R168 -> 199409.59 | Y168: =+IF(($Z$8*12-D168)>=0,D168,"") -> 144 | Z168: =+IF(Y168<>"",($Z$7*$Z$10/12)/(1-(1+($Z$10/12))^(-$Z$8*12)),0) -> 2763.642393 | AA168: =+IF(Y168<>"",#REF!*$Z$10/12,"") ->  | AB168: =+IF(Y168<>"",Z168-AA168,"") ->  | AC168: =+IF(Y168<>"",AB168+AC167,"") ->  | AE168: 650 | AF168: 650
D169: =+D168+1 -> 145 | O169: 152 | P169: 28/02/2037 | Q169: =Q168-R168 -> 199409.59 | R169: 6464.09 | S169: 382.2 | T169: =ROUND((S169*0.19),2) -> 72.62 | U169: =ROUND((S169-T169),2) -> 309.58 | V169: =ROUND((R169+U169),2) -> 6773.67 | W169: =Q169-R169 -> 192945.5 | Y169: =+IF(($Z$8*12-D169)>=0,D169,"") -> 145 | Z169: =+IF(Y169<>"",($Z$7*$Z$10/12)/(1-(1+($Z$10/12))^(-$Z$8*12)),0) -> 2763.642393 | AA169: =+IF(Y169<>"",#REF!*$Z$10/12,"") ->  | AB169: =+IF(Y169<>"",Z169-AA169,"") ->  | AC169: =+IF(Y169<>"",AB169+AC168,"") ->  | AE169: 650 | AF169: 650
D170: =+D169+1 -> 146 | O170: 153 | P170: 30/03/2037 | Q170: =Q169-R169 -> 192945.5 | R170: 6476.48 | S170: 369.81 | T170: =ROUND((S170*0.19),2) -> 70.26 | U170: =ROUND((S170-T170),2) -> 299.55 | V170: =ROUND((R170+U170),2) -> 6776.03 | W170: =Q170-R170 -> 186469.02 | Y170: =+IF(($Z$8*12-D170)>=0,D170,"") -> 146 | Z170: =+IF(Y170<>"",($Z$7*$Z$10/12)/(1-(1+($Z$10/12))^(-$Z$8*12)),0) -> 2763.642393 | AA170: =+IF(Y170<>"",#REF!*$Z$10/12,"") ->  | AB170: =+IF(Y170<>"",Z170-AA170,"") ->  | AC170: =+IF(Y170<>"",AB170+AC169,"") ->  | AE170: 650 | AF170: 650
D171: =+D170+1 -> 147 | O171: 154 | P171: 30/04/2037 | Q171: =Q170-R170 -> 186469.02 | R171: 6488.89 | S171: 357.4 | T171: =ROUND((S171*0.19),2) -> 67.91 | U171: =ROUND((S171-T171),2) -> 289.49 | V171: =ROUND((R171+U171),2) -> 6778.38 | W171: =Q171-R171 -> 179980.13 | Y171: =+IF(($Z$8*12-D171)>=0,D171,"") -> 147 | Z171: =+IF(Y171<>"",($Z$7*$Z$10/12)/(1-(1+($Z$10/12))^(-$Z$8*12)),0) -> 2763.642393 | AA171: =+IF(Y171<>"",#REF!*$Z$10/12,"") ->  | AB171: =+IF(Y171<>"",Z171-AA171,"") ->  | AC171: =+IF(Y171<>"",AB171+AC170,"") ->  | AE171: 650 | AF171: 650
D172: =+D171+1 -> 148 | O172: 155 | P172: 30/05/2037 | Q172: =Q171-R171 -> 179980.13 | R172: 6501.33 | S172: 344.96 | T172: =ROUND((S172*0.19),2) -> 65.54 | U172: =ROUND((S172-T172),2) -> 279.42 | V172: =ROUND((R172+U172),2) -> 6780.75 | W172: =Q172-R172 -> 173478.8 | Y172: =+IF(($Z$8*12-D172)>=0,D172,"") -> 148 | Z172: =+IF(Y172<>"",($Z$7*$Z$10/12)/(1-(1+($Z$10/12))^(-$Z$8*12)),0) -> 2763.642393 | AA172: =+IF(Y172<>"",#REF!*$Z$10/12,"") ->  | AB172: =+IF(Y172<>"",Z172-AA172,"") ->  | AC172: =+IF(Y172<>"",AB172+AC171,"") ->  | AE172: 650 | AF172: 650
D173: =+D172+1 -> 149 | O173: 156 | P173: 30/06/2037 | Q173: =Q172-R172 -> 173478.8 | R173: 6513.79 | S173: 332.5 | T173: =ROUND((S173*0.19),2) -> 63.18 | U173: =ROUND((S173-T173),2) -> 269.32 | V173: =ROUND((R173+U173),2) -> 6783.11 | W173: =Q173-R173 -> 166965.01 | Y173: =+IF(($Z$8*12-D173)>=0,D173,"") -> 149 | Z173: =+IF(Y173<>"",($Z$7*$Z$10/12)/(1-(1+($Z$10/12))^(-$Z$8*12)),0) -> 2763.642393 | AA173: =+IF(Y173<>"",#REF!*$Z$10/12,"") ->  | AB173: =+IF(Y173<>"",Z173-AA173,"") ->  | AC173: =+IF(Y173<>"",AB173+AC172,"") ->  | AE173: 650 | AF173: 650
D174: =+D173+1 -> 150 | O174: 157 | P174: 30/07/2037 | Q174: =Q173-R173 -> 166965.01 | R174: 6526.27 | S174: 320.02 | T174: =ROUND((S174*0.19),2) -> 60.8 | U174: =ROUND((S174-T174),2) -> 259.22 | V174: =ROUND((R174+U174),2) -> 6785.49 | W174: =Q174-R174 -> 160438.74 | Y174: =+IF(($Z$8*12-D174)>=0,D174,"") -> 150 | Z174: =+IF(Y174<>"",($Z$7*$Z$10/12)/(1-(1+($Z$10/12))^(-$Z$8*12)),0) -> 2763.642393 | AA174: =+IF(Y174<>"",#REF!*$Z$10/12,"") ->  | AB174: =+IF(Y174<>"",Z174-AA174,"") ->  | AC174: =+IF(Y174<>"",AB174+AC173,"") ->  | AE174: 650 | AF174: 650
D175: =+D174+1 -> 151 | O175: 158 | P175: 30/08/2037 | Q175: =Q174-R174 -> 160438.74 | R175: 6538.78 | S175: 307.51 | T175: =ROUND((S175*0.19),2) -> 58.43 | U175: =ROUND((S175-T175),2) -> 249.08 | V175: =ROUND((R175+U175),2) -> 6787.86 | W175: =Q175-R175 -> 153899.96 | Y175: =+IF(($Z$8*12-D175)>=0,D175,"") -> 151 | Z175: =+IF(Y175<>"",($Z$7*$Z$10/12)/(1-(1+($Z$10/12))^(-$Z$8*12)),0) -> 2763.642393 | AA175: =+IF(Y175<>"",#REF!*$Z$10/12,"") ->  | AB175: =+IF(Y175<>"",Z175-AA175,"") ->  | AC175: =+IF(Y175<>"",AB175+AC174,"") ->  | AE175: 650 | AF175: 650
D176: =+D175+1 -> 152 | O176: 159 | P176: 30/09/2037 | Q176: =Q175-R175 -> 153899.96 | R176: 6551.32 | S176: 294.97 | T176: =ROUND((S176*0.19),2) -> 56.04 | U176: =ROUND((S176-T176),2) -> 238.93 | V176: =ROUND((R176+U176),2) -> 6790.25 | W176: =Q176-R176 -> 147348.64 | Y176: =+IF(($Z$8*12-D176)>=0,D176,"") -> 152 | Z176: =+IF(Y176<>"",($Z$7*$Z$10/12)/(1-(1+($Z$10/12))^(-$Z$8*12)),0) -> 2763.642393 | AA176: =+IF(Y176<>"",#REF!*$Z$10/12,"") ->  | AB176: =+IF(Y176<>"",Z176-AA176,"") ->  | AC176: =+IF(Y176<>"",AB176+AC175,"") ->  | AE176: 650 | AF176: 650
D177: =+D176+1 -> 153 | O177: 160 | P177: 30/10/2037 | Q177: =Q176-R176 -> 147348.64 | R177: 6563.87 | S177: 282.42 | T177: =ROUND((S177*0.19),2) -> 53.66 | U177: =ROUND((S177-T177),2) -> 228.76 | V177: =ROUND((R177+U177),2) -> 6792.63 | W177: =Q177-R177 -> 140784.77 | Y177: =+IF(($Z$8*12-D177)>=0,D177,"") -> 153 | Z177: =+IF(Y177<>"",($Z$7*$Z$10/12)/(1-(1+($Z$10/12))^(-$Z$8*12)),0) -> 2763.642393 | AA177: =+IF(Y177<>"",#REF!*$Z$10/12,"") ->  | AB177: =+IF(Y177<>"",Z177-AA177,"") ->  | AC177: =+IF(Y177<>"",AB177+AC176,"") ->  | AE177: 650 | AF177: 650
D178: =+D177+1 -> 154 | O178: 161 | P178: 30/11/2037 | Q178: =Q177-R177 -> 140784.77 | R178: 6576.45 | S178: 269.84 | T178: =ROUND((S178*0.19),2) -> 51.27 | U178: =ROUND((S178-T178),2) -> 218.57 | V178: =ROUND((R178+U178),2) -> 6795.02 | W178: =Q178-R178 -> 134208.32 | Y178: =+IF(($Z$8*12-D178)>=0,D178,"") -> 154 | Z178: =+IF(Y178<>"",($Z$7*$Z$10/12)/(1-(1+($Z$10/12))^(-$Z$8*12)),0) -> 2763.642393 | AA178: =+IF(Y178<>"",#REF!*$Z$10/12,"") ->  | AB178: =+IF(Y178<>"",Z178-AA178,"") ->  | AC178: =+IF(Y178<>"",AB178+AC177,"") ->  | AE178: 650 | AF178: 650
D179: =+D178+1 -> 155 | O179: 162 | P179: 30/12/2037 | Q179: =Q178-R178 -> 134208.32 | R179: 6589.06 | S179: 257.23 | T179: =ROUND((S179*0.19),2) -> 48.87 | U179: =ROUND((S179-T179),2) -> 208.36 | V179: =ROUND((R179+U179),2) -> 6797.42 | W179: =Q179-R179 -> 127619.26 | Y179: =+IF(($Z$8*12-D179)>=0,D179,"") -> 155 | Z179: =+IF(Y179<>"",($Z$7*$Z$10/12)/(1-(1+($Z$10/12))^(-$Z$8*12)),0) -> 2763.642393 | AA179: =+IF(Y179<>"",#REF!*$Z$10/12,"") ->  | AB179: =+IF(Y179<>"",Z179-AA179,"") ->  | AC179: =+IF(Y179<>"",AB179+AC178,"") ->  | AE179: 650 | AF179: 650
D180: =+D179+1 -> 156 | O180: 163 | P180: 30/01/2038 | Q180: =Q179-R179 -> 127619.26 | R180: 6601.69 | S180: 244.6 | T180: =ROUND((S180*0.19),2) -> 46.47 | U180: =ROUND((S180-T180),2) -> 198.13 | V180: =ROUND((R180+U180),2) -> 6799.82 | W180: =Q180-R180 -> 121017.57 | Y180: =+IF(($Z$8*12-D180)>=0,D180,"") -> 156 | Z180: =+IF(Y180<>"",($Z$7*$Z$10/12)/(1-(1+($Z$10/12))^(-$Z$8*12)),0) -> 2763.642393 | AA180: =+IF(Y180<>"",#REF!*$Z$10/12,"") ->  | AB180: =+IF(Y180<>"",Z180-AA180,"") ->  | AC180: =+IF(Y180<>"",AB180+AC179,"") ->  | AE180: 650 | AF180: 650
D181: =+D180+1 -> 157 | O181: 164 | P181: 28/02/2038 | Q181: =Q180-R180 -> 121017.57 | R181: 6614.34 | S181: 231.95 | T181: =ROUND((S181*0.19),2) -> 44.07 | U181: =ROUND((S181-T181),2) -> 187.88 | V181: =ROUND((R181+U181),2) -> 6802.22 | W181: =Q181-R181 -> 114403.23 | Y181: =+IF(($Z$8*12-D181)>=0,D181,"") -> 157 | Z181: =+IF(Y181<>"",($Z$7*$Z$10/12)/(1-(1+($Z$10/12))^(-$Z$8*12)),0) -> 2763.642393 | AA181: =+IF(Y181<>"",#REF!*$Z$10/12,"") ->  | AB181: =+IF(Y181<>"",Z181-AA181,"") ->  | AC181: =+IF(Y181<>"",AB181+AC180,"") ->  | AE181: 650 | AF181: 650
D182: =+D181+1 -> 158 | O182: 165 | P182: 30/03/2038 | Q182: =Q181-R181 -> 114403.23 | R182: 6627.02 | S182: 219.27 | T182: =ROUND((S182*0.19),2) -> 41.66 | U182: =ROUND((S182-T182),2) -> 177.61 | V182: =ROUND((R182+U182),2) -> 6804.63 | W182: =Q182-R182 -> 107776.21 | Y182: =+IF(($Z$8*12-D182)>=0,D182,"") -> 158 | Z182: =+IF(Y182<>"",($Z$7*$Z$10/12)/(1-(1+($Z$10/12))^(-$Z$8*12)),0) -> 2763.642393 | AA182: =+IF(Y182<>"",#REF!*$Z$10/12,"") ->  | AB182: =+IF(Y182<>"",Z182-AA182,"") ->  | AC182: =+IF(Y182<>"",AB182+AC181,"") ->  | AE182: 650 | AF182: 650
D183: =+D182+1 -> 159 | O183: 166 | P183: 30/04/2038 | Q183: =Q182-R182 -> 107776.21 | R183: 6639.72 | S183: 206.57 | T183: =ROUND((S183*0.19),2) -> 39.25 | U183: =ROUND((S183-T183),2) -> 167.32 | V183: =ROUND((R183+U183),2) -> 6807.04 | W183: =Q183-R183 -> 101136.49 | Y183: =+IF(($Z$8*12-D183)>=0,D183,"") -> 159 | Z183: =+IF(Y183<>"",($Z$7*$Z$10/12)/(1-(1+($Z$10/12))^(-$Z$8*12)),0) -> 2763.642393 | AA183: =+IF(Y183<>"",#REF!*$Z$10/12,"") ->  | AB183: =+IF(Y183<>"",Z183-AA183,"") ->  | AC183: =+IF(Y183<>"",AB183+AC182,"") ->  | AE183: 650 | AF183: 650
D184: =+D183+1 -> 160 | O184: 167 | P184: 30/05/2038 | Q184: =Q183-R183 -> 101136.49 | R184: 6652.45 | S184: 193.84 | T184: =ROUND((S184*0.19),2) -> 36.83 | U184: =ROUND((S184-T184),2) -> 157.01 | V184: =ROUND((R184+U184),2) -> 6809.46 | W184: =Q184-R184 -> 94484.04 | Y184: =+IF(($Z$8*12-D184)>=0,D184,"") -> 160 | Z184: =+IF(Y184<>"",($Z$7*$Z$10/12)/(1-(1+($Z$10/12))^(-$Z$8*12)),0) -> 2763.642393 | AA184: =+IF(Y184<>"",#REF!*$Z$10/12,"") ->  | AB184: =+IF(Y184<>"",Z184-AA184,"") ->  | AC184: =+IF(Y184<>"",AB184+AC183,"") ->  | AE184: 650 | AF184: 650
D185: =+D184+1 -> 161 | O185: 168 | P185: 30/06/2038 | Q185: =Q184-R184 -> 94484.04 | R185: 6665.2 | S185: 181.09 | T185: =ROUND((S185*0.19),2) -> 34.41 | U185: =ROUND((S185-T185),2) -> 146.68 | V185: =ROUND((R185+U185),2) -> 6811.88 | W185: =Q185-R185 -> 87818.84 | Y185: =+IF(($Z$8*12-D185)>=0,D185,"") -> 161 | Z185: =+IF(Y185<>"",($Z$7*$Z$10/12)/(1-(1+($Z$10/12))^(-$Z$8*12)),0) -> 2763.642393 | AA185: =+IF(Y185<>"",#REF!*$Z$10/12,"") ->  | AB185: =+IF(Y185<>"",Z185-AA185,"") ->  | AC185: =+IF(Y185<>"",AB185+AC184,"") ->  | AE185: 650 | AF185: 650
D186: =+D185+1 -> 162 | O186: 169 | P186: 30/07/2038 | Q186: =Q185-R185 -> 87818.84 | R186: 6677.97 | S186: 168.32 | T186: =ROUND((S186*0.19),2) -> 31.98 | U186: =ROUND((S186-T186),2) -> 136.34 | V186: =ROUND((R186+U186),2) -> 6814.31 | W186: =Q186-R186 -> 81140.87 | Y186: =+IF(($Z$8*12-D186)>=0,D186,"") -> 162 | Z186: =+IF(Y186<>"",($Z$7*$Z$10/12)/(1-(1+($Z$10/12))^(-$Z$8*12)),0) -> 2763.642393 | AA186: =+IF(Y186<>"",#REF!*$Z$10/12,"") ->  | AB186: =+IF(Y186<>"",Z186-AA186,"") ->  | AC186: =+IF(Y186<>"",AB186+AC185,"") ->  | AE186: 650 | AF186: 650
D187: =+D186+1 -> 163 | O187: 170 | P187: 30/08/2038 | Q187: =Q186-R186 -> 81140.87 | R187: 6690.77 | S187: 155.52 | T187: =ROUND((S187*0.19),2) -> 29.55 | U187: =ROUND((S187-T187),2) -> 125.97 | V187: =ROUND((R187+U187),2) -> 6816.74 | W187: =Q187-R187 -> 74450.1 | Y187: =+IF(($Z$8*12-D187)>=0,D187,"") -> 163 | Z187: =+IF(Y187<>"",($Z$7*$Z$10/12)/(1-(1+($Z$10/12))^(-$Z$8*12)),0) -> 2763.642393 | AA187: =+IF(Y187<>"",#REF!*$Z$10/12,"") ->  | AB187: =+IF(Y187<>"",Z187-AA187,"") ->  | AC187: =+IF(Y187<>"",AB187+AC186,"") ->  | AE187: 650 | AF187: 650
D188: =+D187+1 -> 164 | O188: 171 | P188: 30/09/2038 | Q188: =Q187-R187 -> 74450.1 | R188: 6703.59 | S188: 142.7 | T188: =ROUND((S188*0.19),2) -> 27.11 | U188: =ROUND((S188-T188),2) -> 115.59 | V188: =ROUND((R188+U188),2) -> 6819.18 | W188: =Q188-R188 -> 67746.51 | Y188: =+IF(($Z$8*12-D188)>=0,D188,"") -> 164 | Z188: =+IF(Y188<>"",($Z$7*$Z$10/12)/(1-(1+($Z$10/12))^(-$Z$8*12)),0) -> 2763.642393 | AA188: =+IF(Y188<>"",#REF!*$Z$10/12,"") ->  | AB188: =+IF(Y188<>"",Z188-AA188,"") ->  | AC188: =+IF(Y188<>"",AB188+AC187,"") ->  | AE188: 650 | AF188: 650
D189: =+D188+1 -> 165 | O189: 172 | P189: 30/10/2038 | Q189: =Q188-R188 -> 67746.51 | R189: 6716.44 | S189: 129.85 | T189: =ROUND((S189*0.19),2) -> 24.67 | U189: =ROUND((S189-T189),2) -> 105.18 | V189: =ROUND((R189+U189),2) -> 6821.62 | W189: =Q189-R189 -> 61030.07 | Y189: =+IF(($Z$8*12-D189)>=0,D189,"") -> 165 | Z189: =+IF(Y189<>"",($Z$7*$Z$10/12)/(1-(1+($Z$10/12))^(-$Z$8*12)),0) -> 2763.642393 | AA189: =+IF(Y189<>"",#REF!*$Z$10/12,"") ->  | AB189: =+IF(Y189<>"",Z189-AA189,"") ->  | AC189: =+IF(Y189<>"",AB189+AC188,"") ->  | AE189: 650 | AF189: 650
D190: =+D189+1 -> 166 | O190: 173 | P190: 30/11/2038 | Q190: =Q189-R189 -> 61030.07 | R190: 6729.32 | S190: 116.97 | T190: =ROUND((S190*0.19),2) -> 22.22 | U190: =ROUND((S190-T190),2) -> 94.75 | V190: =ROUND((R190+U190),2) -> 6824.07 | W190: =Q190-R190 -> 54300.75 | Y190: =+IF(($Z$8*12-D190)>=0,D190,"") -> 166 | Z190: =+IF(Y190<>"",($Z$7*$Z$10/12)/(1-(1+($Z$10/12))^(-$Z$8*12)),0) -> 2763.642393 | AA190: =+IF(Y190<>"",#REF!*$Z$10/12,"") ->  | AB190: =+IF(Y190<>"",Z190-AA190,"") ->  | AC190: =+IF(Y190<>"",AB190+AC189,"") ->  | AE190: 650 | AF190: 650
D191: =+D190+1 -> 167 | O191: 174 | P191: 30/12/2038 | Q191: =Q190-R190 -> 54300.75 | R191: 6742.21 | S191: 104.08 | T191: =ROUND((S191*0.19),2) -> 19.78 | U191: =ROUND((S191-T191),2) -> 84.3 | V191: =ROUND((R191+U191),2) -> 6826.51 | W191: =Q191-R191 -> 47558.54 | Y191: =+IF(($Z$8*12-D191)>=0,D191,"") -> 167 | Z191: =+IF(Y191<>"",($Z$7*$Z$10/12)/(1-(1+($Z$10/12))^(-$Z$8*12)),0) -> 2763.642393 | AA191: =+IF(Y191<>"",#REF!*$Z$10/12,"") ->  | AB191: =+IF(Y191<>"",Z191-AA191,"") ->  | AC191: =+IF(Y191<>"",AB191+AC190,"") ->  | AE191: 650 | AF191: 650
D192: =+D191+1 -> 168 | O192: 175 | P192: 30/01/2039 | Q192: =Q191-R191 -> 47558.54 | R192: 6755.14 | S192: 91.15 | T192: =ROUND((S192*0.19),2) -> 17.32 | U192: =ROUND((S192-T192),2) -> 73.83 | V192: =ROUND((R192+U192),2) -> 6828.97 | W192: =Q192-R192 -> 40803.4 | Y192: =+IF(($Z$8*12-D192)>=0,D192,"") -> 168 | Z192: =+IF(Y192<>"",($Z$7*$Z$10/12)/(1-(1+($Z$10/12))^(-$Z$8*12)),0) -> 2763.642393 | AA192: =+IF(Y192<>"",#REF!*$Z$10/12,"") ->  | AB192: =+IF(Y192<>"",Z192-AA192,"") ->  | AC192: =+IF(Y192<>"",AB192+AC191,"") ->  | AE192: 650 | AF192: 650
O193: 176 | P193: 28/02/2039 | Q193: =Q192-R192 -> 40803.4 | R193: 6768.08 | S193: 78.21 | T193: =ROUND((S193*0.19),2) -> 14.86 | U193: =ROUND((S193-T193),2) -> 63.35 | V193: =ROUND((R193+U193),2) -> 6831.43 | W193: =Q193-R193 -> 34035.32 | Y193: =+IF(($Z$8*12-D193)>=0,D193,"") -> 0 | Z193: =+IF(Y193<>"",($Z$7*$Z$10/12)/(1-(1+($Z$10/12))^(-$Z$8*12)),0) -> 0 | AA193: =+IF(Y193<>"",#REF!*$Z$10/12,"") ->  | AB193: =+IF(Y193<>"",Z193-AA193,"") ->  | AC193: =+IF(Y193<>"",AB193+#REF!,"") ->  | AE193: 650 | AF193: 650
O194: 177 | P194: 30/03/2039 | Q194: =Q193-R193 -> 34035.32 | R194: 6781.06 | S194: 65.23 | T194: =ROUND((S194*0.19),2) -> 12.39 | U194: =ROUND((S194-T194),2) -> 52.84 | V194: =ROUND((R194+U194),2) -> 6833.9 | W194: =Q194-R194 -> 27254.26 | Y194: =+IF(($Z$8*12-D194)>=0,D194,"") -> 0 | Z194: =+IF(Y194<>"",($Z$7*$Z$10/12)/(1-(1+($Z$10/12))^(-$Z$8*12)),0) -> 0 | AA194: =+IF(Y194<>"",#REF!*$Z$10/12,"") ->  | AB194: =+IF(Y194<>"",Z194-AA194,"") ->  | AC194: =+IF(Y194<>"",AB194+AC193,"") ->  | AE194: 650 | AF194: 650
O195: 178 | P195: 30/04/2039 | Q195: =Q194-R194 -> 27254.26 | R195: 6794.05 | S195: 52.24 | T195: =ROUND((S195*0.19),2) -> 9.93 | U195: =ROUND((S195-T195),2) -> 42.31 | V195: =ROUND((R195+U195),2) -> 6836.36 | W195: =Q195-R195 -> 20460.21 | Y195: =+IF(($Z$8*12-D195)>=0,D195,"") -> 0 | Z195: =+IF(Y195<>"",($Z$7*$Z$10/12)/(1-(1+($Z$10/12))^(-$Z$8*12)),0) -> 0 | AA195: =+IF(Y195<>"",#REF!*$Z$10/12,"") ->  | AB195: =+IF(Y195<>"",Z195-AA195,"") ->  | AC195: =+IF(Y195<>"",AB195+AC194,"") ->  | AE195: 650 | AF195: 650
O196: 179 | P196: 30/05/2039 | Q196: =Q195-R195 -> 20460.21 | R196: 6807.07 | S196: 39.22 | T196: =ROUND((S196*0.19),2) -> 7.45 | U196: =ROUND((S196-T196),2) -> 31.77 | V196: =ROUND((R196+U196),2) -> 6838.84 | W196: =Q196-R196 -> 13653.14 | Y196: =+IF(($Z$8*12-D196)>=0,D196,"") -> 0 | Z196: =+IF(Y196<>"",($Z$7*$Z$10/12)/(1-(1+($Z$10/12))^(-$Z$8*12)),0) -> 0 | AA196: =+IF(Y196<>"",#REF!*$Z$10/12,"") ->  | AB196: =+IF(Y196<>"",Z196-AA196,"") ->  | AC196: =+IF(Y196<>"",AB196+AC195,"") ->  | AE196: 650 | AF196: 650
O197: 180 | P197: 30/06/2039 | Q197: =Q196-R196 -> 13653.14 | R197: 6820.12 | S197: 26.17 | T197: =ROUND((S197*0.19),2) -> 4.97 | U197: =ROUND((S197-T197),2) -> 21.2 | V197: =ROUND((R197+U197),2) -> 6841.32 | W197: =Q197-R197 -> 6833.02 | Y197: =+IF(($Z$8*12-D197)>=0,D197,"") -> 0 | Z197: =+IF(Y197<>"",($Z$7*$Z$10/12)/(1-(1+($Z$10/12))^(-$Z$8*12)),0) -> 0 | AA197: =+IF(Y197<>"",#REF!*$Z$10/12,"") ->  | AB197: =+IF(Y197<>"",Z197-AA197,"") ->  | AC197: =+IF(Y197<>"",AB197+AC196,"") ->  | AE197: 650 | AF197: 650
O198: 181 | P198: 30/07/2039 | Q198: =Q197-R197 -> 6833.02 | R198: 6833.02 | S198: 13.1 | T198: =ROUND((S198*0.19),2) -> 2.49 | U198: =ROUND((S198-T198),2) -> 10.61 | V198: =ROUND((R198+U198),2) -> 6843.63 | W198: =Q198-R198 -> -8.094502846e-11 | Y198: =+IF(($Z$8*12-D198)>=0,D198,"") -> 0 | Z198: =+IF(Y198<>"",($Z$7*$Z$10/12)/(1-(1+($Z$10/12))^(-$Z$8*12)),0) -> 0 | AA198: =+IF(Y198<>"",#REF!*$Z$10/12,"") ->  | AB198: =+IF(Y198<>"",Z198-AA198,"") ->  | AC198: =+IF(Y198<>"",AB198+AC197,"") ->  | AE198: 650 | AF198: 650
R199: =SUM(R21:R198) -> 733296.36 | S199: =SUM(S21:S198) -> 194289.81 | Y199: =+IF(($Z$8*12-D199)>=0,D199,"") -> 0 | Z199: =+IF(Y199<>"",($Z$7*$Z$10/12)/(1-(1+($Z$10/12))^(-$Z$8*12)),0) -> 0 | AA199: =+IF(Y199<>"",#REF!*$Z$10/12,"") ->  | AB199: =+IF(Y199<>"",Z199-AA199,"") ->  | AC199: =+IF(Y199<>"",AB199+AC198,"") -> 
Y200: =+IF(($Z$8*12-D200)>=0,D200,"") -> 0 | Z200: =+IF(Y200<>"",($Z$7*$Z$10/12)/(1-(1+($Z$10/12))^(-$Z$8*12)),0) -> 0 | AA200: =+IF(Y200<>"",#REF!*$Z$10/12,"") ->  | AB200: =+IF(Y200<>"",Z200-AA200,"") ->  | AC200: =+IF(Y200<>"",AB200+AC199,"") -> 
Y201: =+IF(($Z$8*12-D201)>=0,D201,"") -> 0 | Z201: =+IF(Y201<>"",($Z$7*$Z$10/12)/(1-(1+($Z$10/12))^(-$Z$8*12)),0) -> 0 | AA201: =+IF(Y201<>"",#REF!*$Z$10/12,"") ->  | AB201: =+IF(Y201<>"",Z201-AA201,"") ->  | AC201: =+IF(Y201<>"",AB201+AC200,"") -> 
Y202: =+IF(($Z$8*12-D202)>=0,D202,"") -> 0 | Z202: =+IF(Y202<>"",($Z$7*$Z$10/12)/(1-(1+($Z$10/12))^(-$Z$8*12)),0) -> 0 | AA202: =+IF(Y202<>"",#REF!*$Z$10/12,"") ->  | AB202: =+IF(Y202<>"",Z202-AA202,"") ->  | AC202: =+IF(Y202<>"",AB202+AC201,"") -> 
Y203: =+IF(($Z$8*12-D203)>=0,D203,"") -> 0 | Z203: =+IF(Y203<>"",($Z$7*$Z$10/12)/(1-(1+($Z$10/12))^(-$Z$8*12)),0) -> 0 | AA203: =+IF(Y203<>"",#REF!*$Z$10/12,"") ->  | AB203: =+IF(Y203<>"",Z203-AA203,"") ->  | AC203: =+IF(Y203<>"",AB203+AC202,"") -> 
... 156 more rows

Sheet Inversion vs Financiacion
B2: CUADRO INVERSION INICIAL / FINANCIACION | I2: RESUMEN INVERSIÓN INICIAL / FINANCIACIÓN
I4: Resumen Cuadro Inversión / Financiación
B5: =+IF('Inversion Inicial'!C39<>"",'Inversion Inicial'!C39,"") -> TOTAL | C5: =C7+C21+C25 -> 1499875.611 | E5: =+IF(Financiacion!B21<>"",Financiacion!B21,"") -> TOTAL FINANCIACION | F5: =F7+F13 -> 1500000
I6: INVERSIÓN | N6: FINANCIACIÓN
B7: =+IF('Inversion Inicial'!C17<>"",'Inversion Inicial'!C17,"") -> GASTOS DE ESTABLECIMIENTO | C7: =SUM(C8:C19) -> 292615.6113 | E7: =+Financiacion!B7 -> FONDOS PROPIOS | F7: =SUM(F8:F11) -> 300000
B8: ='Inversion Inicial'!C18 -> Declaración responsable y licencia de actividad | C8: ='Inversion Inicial'!E18 -> 2420 | E8: =+IF(Financiacion!B8<>"",Financiacion!B8,"") -> Fondos propios T de S | F8: =+IF(Financiacion!C8<>"",Financiacion!C8,"") -> 150000 | I8: Gastos Establecimiento | J8: =+C7 -> 292615.6113 | N8: Fondos Propios | O8: =+F7 -> 300000
B9: ='Inversion Inicial'!C19 -> Impuesto sobre las obras (ICIO) | C9: ='Inversion Inicial'!E19 -> 4426.8 | E9: =Financiacion!B9 -> Donaciones directas | F9: =Financiacion!C9 -> 100000 | I9: Activo No Corriente | J9: =+C21 -> 1207260 | N9: Financiación Ajena L/P | O9: =1200000 -> 1200000
B10: ='Inversion Inicial'!C20 -> Proyecto de ejecución y tramitación de licencia | C10: ='Inversion Inicial'!E20 -> 2420 | E10: =+IF(Financiacion!B10<>"",Financiacion!B10,"") -> Crowfunding | F10: =+IF(Financiacion!C10<>"",Financiacion!C10,"") -> 50000 | I10: Activo Corriente | J10: =+C25 -> 0 | N10: Financiación Ajena M/P | O10: =F18 -> 0
B11: ='Inversion Inicial'!C21 -> Obras y reformas | C11: ='Inversion Inicial'!E21 -> 170000.5084 | J11: =+SUM(J8:J10) -> 1499875.611 | O11: =+SUM(O8:O10) -> 1500000
B12: ='Inversion Inicial'!C22 -> Fondo de desviación sobre las obras (12%) | C12: ='Inversion Inicial'!E22 -> 20400.06101
B13: ='Inversion Inicial'!C23 -> Honorarios Dirección de Obra | C13: ='Inversion Inicial'!E23 -> 9846.2419 | E13: =+IF(Financiacion!B13<>"",Financiacion!B13,"") -> FINANCIACIÓN AJENA | F13: =+IF(Financiacion!C13<>"",Financiacion!C13,"") -> 1200000
B14: ='Inversion Inicial'!C24 -> Honorarios Coordinación de Seguridad y Salud | C14: ='Inversion Inicial'!E24 -> 2420 | E14: =+IF(Financiacion!B14<>"",Financiacion!B14,"") -> Deudas con entidades de crédito a largo plazo – OBRAS | F14: =+IF(Financiacion!C14<>"",Financiacion!C14,"") -> 225000
B15: ='Inversion Inicial'!C25 -> Fondo de Garantía Coop57 | C15: ='Inversion Inicial'!E25 -> 0 | E15: Deudas con entidades de crédito a largo plazo – HIPOTECARIO | F15: =+IF(Financiacion!C15<>"",Financiacion!C15,"") -> 675000
E16: Deudas con entidades de crédito a largo plazo – PERMANENCIA | F16: =+IF(Financiacion!C16<>"",Financiacion!C16,"") -> 300000
B17: ='Inversion Inicial'!C27 -> Impuesto Actos Jurídicos Documentados | C17: ='Inversion Inicial'!E27 -> 8400
B18: ='Inversion Inicial'!C28 -> Impuesto Transmisiones patrimoniales | C18: ='Inversion Inicial'!E28 -> 67200 | E18: =+IF(Financiacion!B19<>"",Financiacion!B19,"") -> Otras deudas a medio plazo (0% interés) | F18: =+IF(Financiacion!C19<>"",Financiacion!C19,"") -> 0
B19: ='Inversion Inicial'!C29 -> Gastos de notaria | C19: ='Inversion Inicial'!E29 -> 5082
B21: =+IF('Inversion Inicial'!C31<>"",'Inversion Inicial'!C31,"") -> ACTIVO NO CORRIENTE | C21: =C22+C23+C24 -> 1207260 | E21: =+IF(Financiacion!B20<>"",Financiacion!B20,"") ->  | F21: =+IF(Financiacion!C20<>"",Financiacion!C20,"") -> 
B22: =+IF('Inversion Inicial'!C32<>"",'Inversion Inicial'!C32,"") -> Equipamiento | C22: ='Inversion Inicial'!E32 -> 1210
B23: =+IF('Inversion Inicial'!C33<>"",'Inversion Inicial'!C33,"") -> Mobiliaro | C23: ='Inversion Inicial'!E33 -> 6050
B24: ='Inversion Inicial'!C34 -> Compra de local | C24: ='Inversion Inicial'!E34 -> 1200000
B25: =+IF('Inversion Inicial'!C36<>"",'Inversion Inicial'!C36,"") -> ACTIVO CORRIENTE | C25: =+IF('Inversion Inicial'!D36<>"",'Inversion Inicial'!D36,"") -> 0
B26: =+IF('Inversion Inicial'!C37<>"",'Inversion Inicial'!C37,"") -> Tesorería | C26: =+IF('Inversion Inicial'!D37<>"",'Inversion Inicial'!D37,"") -> 0 | I26: RESUMEN FINANCIACION
I27: Estructura de Financiación Necesaria
I29: FINANCIACIÓN | J29: % | K29: TOTAL
I30: F. Propia | J30: =+IFERROR(K30/$K$33,0) -> 0.2000165865 | K30: =+O8 -> 300000
I31: F. Ajena Coop 57 | J31: =+IFERROR(K31/$K$33,0) -> 0.8000663461 | K31: =+F13 -> 1200000
I32: F. Ajena Prestamos personales | J32: 0 | K32: 0
I33: Total | J33: =+IFERROR(K33/$K$33,0) -> 1 | K33: =+J11 -> 1499875.611

Sheet Gastos Fijos
A2: GASTOS
A6: DESGLOSE | B6: SALARIOS
A7: Empleado - Código | B7: TOTAL BRUTO | C7: Total deducido | D7: I.R.P.F | E7: SEG SOCIAL EMPRESA | F7: SEG SOCIAL EMPLEADO | G7: LIQUIDO | H7: SEG SOCIAL TOTAL | I7: TOTAL COSTE EMPRESA
A8: 64 | B8: 1458.33 | C8: 172.95 | D8: 78.6 | E8: 466.39 | F8: 94.35 | G8: 1325.77 | H8: 560.74 | I8: 1924.72
A9: 2 | B9: 1458.33 | C9: 172.95 | D9: 78.6 | E9: 466.39 | F9: 94.35 | G9: 1285.38 | H9: 560.74 | I9: 1924.72
A10: 7 | B10: 1458.33 | C10: 172.95 | D10: 78.6 | E10: 466.39 | F10: 94.35 | G10: 1285.38 | H10: 560.74 | I10: 1924.72
A11: 20 | B11: 1458.33 | C11: 132.56 | D11: 38.21 | E11: 466.39 | F11: 94.35 | G11: 1325.77 | H11: 560.74 | I11: 1924.72
A12: 47 | B12: 1458.33 | C12: 132.56 | D12: 38.21 | E12: 466.39 | F12: 94.35 | G12: 1325.77 | H12: 560.74 | I12: 1924.72
A13: 59 | B13: 1458.33 | C13: 172.95 | D13: 78.6 | E13: 466.39 | F13: 94.35 | G13: 1285.38 | H13: 560.74 | I13: 1924.72
A14: 62 | B14: 1458.33 | C14: 172.95 | D14: 78.6 | E14: 466.39 | F14: 94.35 | G14: 1285.38 | H14: 560.74 | I14: 1924.72
A15: 28 | B15: 1458.33 | C15: 172.95 | D15: 78.6 | E15: 466.39 | F15: 94.35 | G15: 1285.38 | H15: 560.74 | I15: 1924.72
A16: 41 | B16: 1458.33 | C16: 172.95 | D16: 78.6 | E16: 466.39 | F16: 94.35 | G16: 1285.38 | H16: 560.74 | I16: 1924.72
A17: 13 | B17: 1458.33 | C17: 172.95 | D17: 78.6 | E17: 466.39 | F17: 94.35 | G17: 1285.38 | H17: 560.74 | I17: 1924.72
A18: 52 | B18: 1458.33 | C18: 172.95 | D18: 78.6 | E18: 466.39 | F18: 94.35 | G18: 1285.38 | H18: 560.74 | I18: 1924.72
A19: 54 | B19: 1458.33 | C19: 132.56 | D19: 38.21 | E19: 466.39 | F19: 94.35 | G19: 1325.77 | H19: 560.74 | I19: 1924.72
A20: 39 | B20: 1458.33 | C20: 172.95 | D20: 78.6 | E20: 466.39 | F20: 94.35 | G20: 1285.38 | H20: 560.74 | I20: 1924.72
A21: 40 | B21: 1458.33 | C21: 154.29 | D21: 59.21 | E21: 483.89 | F21: 95.08 | G21: 1304.04 | H21: 578.97 | I21: 1942.22
A22: 57 | B22: 1458.33 | C22: 167.41 | D22: 73.06 | E22: 466.39 | F22: 94.35 | G22: 1290.92 | H22: 560.74 | I22: 1924.72
A23: 58 | B23: 1458.33 | C23: 172.95 | D23: 78.6 | E23: 466.39 | F23: 94.35 | G23: 1285.38 | H23: 560.74 | I23: 1924.72
A24: 12 | B24: 1458.33 | C24: 172.95 | D24: 78.6 | E24: 466.39 | F24: 94.35 | G24: 1285.38 | H24: 560.74 | I24: 1924.72
A25: 60 | B25: =+B24 -> 1458.33 | C25: 132.56 | D25: 38.21 | E25: 466.39 | F25: 94.35 | G25: 1325.77 | H25: 560.74 | I25: 1924.72
A26: 61 | B26: =+B25 -> 1458.33 | C26: 153.85 | D26: 59.5 | E26: 338.39 | F26: 94.35 | G26: 1304.48 | H26: 432.74 | I26: 1796.72
A27: 3 MESES ACTUAL, 9MESE MEDIA JORNADA NUEVA | B27: =+B26/12*(3+4.5) -> 911.45625 | C27: =+C26/12*(3+4.5) -> 96.15625 | D27: =+D26/12*(3+4.5) -> 37.1875 | E27: =+E26/12*(3+4.5) -> 211.49375 | F27: =+F26/12*(3+4.5) -> 58.96875 | G27: =+G26/12*(3+4.5) -> 815.3 | H27: =+H26/12*(3+4.5) -> 270.4625 | I27: =+B27+H27 -> 1181.91875
A28: TOTAL COSTE MENSUAL | B28: =SUM(B8:B27) -> 28619.72625 | C28: =SUM(C8:C27) -> 3177.34625 | D28: =SUM(D8:D27) -> 1324.9975 | E28: =SUM(E8:E27) -> 8962.40375 | F28: =SUM(F8:F27) -> 1852.34875 | G28: =SUM(G8:G27) -> 25482.77 | H28: =SUM(H8:H27) -> 10814.7525 | I28: =SUM(I8:I27) -> 37641.09875
A31: GASTOS 2024 | C31: SIN IVA
C33: M 1 | D33: M 2 | E33: M 3 | F33: M 4 | G33: M 5 | H33: M 6 | I33: M 7 | J33: M 8 | K33: M 9 | L33: M 10 | M33: M 11 | N33: M 12 | O33: TOTAL
A34: TOTAL GASTOS PERSONAL | C34: =SUM(C35:C36) -> 37582.13 | D34: =SUM(D35:D36) -> 37582.13 | E34: =SUM(E35:E36) -> 37582.13 | F34: =SUM(F35:F36) -> 37582.13 | G34: =SUM(G35:G36) -> 37582.13 | H34: =SUM(H35:H36) -> 37582.13 | I34: =SUM(I35:I36) -> 37582.13 | J34: =SUM(J35:J36) -> 37582.13 | K34: =SUM(K35:K36) -> 37582.13 | L34: =SUM(L35:L36) -> 37582.13 | M34: =SUM(M35:M36) -> 37582.13 | N34: =SUM(N35:N36) -> 37582.13 | O34: =SUM(C34:N34) -> 450985.56
A35: SUELDOS Y SALARIOS | C35: =+B28 -> 28619.72625 | D35: =+C35 -> 28619.72625 | E35: =+D35 -> 28619.72625 | F35: =+E35 -> 28619.72625 | G35: =+F35 -> 28619.72625 | H35: =+G35 -> 28619.72625 | I35: =+H35 -> 28619.72625 | J35: =+I35 -> 28619.72625 | K35: =+J35 -> 28619.72625 | L35: =+K35 -> 28619.72625 | M35: =+L35 -> 28619.72625 | N35: =+M35 -> 28619.72625 | O35: =SUM(C35:N35) -> 343436.715
A36: SEGURIDAD SOCIAL ENPRESA | C36: =+E28 -> 8962.40375 | D36: =+C36 -> 8962.40375 | E36: =+D36 -> 8962.40375 | F36: =+E36 -> 8962.40375 | G36: =+F36 -> 8962.40375 | H36: =+G36 -> 8962.40375 | I36: =+H36 -> 8962.40375 | J36: =+I36 -> 8962.40375 | K36: =+J36 -> 8962.40375 | L36: =+K36 -> 8962.40375 | M36: =+L36 -> 8962.40375 | N36: =+M36 -> 8962.40375 | O36: =SUM(C36:N36) -> 107548.845
A37: APROVISIONAMIENTOS | C37: =SUM(C38:C40) -> 64492.72557 | D37: =SUM(D38:D40) -> 64492.72557 | E37: =SUM(E38:E40) -> 64492.72557 | F37: =SUM(F38:F40) -> 64492.72557 | G37: =SUM(G38:G40) -> 64492.72557 | H37: =SUM(H38:H40) -> 64492.72557 | I37: =SUM(I38:I40) -> 64492.72557 | J37: =SUM(J38:J40) -> 64492.72557 | K37: =SUM(K38:K40) -> 64667.72557 | L37: =SUM(L38:L40) -> 64667.72557 | M37: =SUM(M38:M40) -> 64667.72557 | N37: =SUM(N38:N40) -> 64667.72557 | O37: =SUM(C37:N37) -> 774612.7068
A38: 600 COMPRAS DE MERCADERIAS | C38: =-'Flujo caja 2024'!D17 -> 60598.91271 | D38: =-'Flujo caja 2024'!E17 -> 60598.91271 | E38: =-'Flujo caja 2024'!F17 -> 60598.91271 | F38: =-'Flujo caja 2024'!G17 -> 60598.91271 | G38: =-'Flujo caja 2024'!H17 -> 60598.91271 | H38: =-'Flujo caja 2024'!I17 -> 60598.91271 | I38: =-'Flujo caja 2024'!J17 -> 60598.91271 | J38: =-'Flujo caja 2024'!K17 -> 60598.91271 | K38: =-'Flujo caja 2024'!L17 -> 60598.91271 | L38: =-'Flujo caja 2024'!M17 -> 60598.91271 | M38: =-'Flujo caja 2024'!N17 -> 60598.91271 | N38: =-'Flujo caja 2024'!O17 -> 60598.91271 | O38: =SUM(C38:N38) -> 727186.9525
A39: 600 COMPRAS DE APERTURA DOMINGOS | C39: =-'Flujo caja 2024'!D18 -> 0 | D39: =-'Flujo caja 2024'!E18 -> 0 | E39: =-'Flujo caja 2024'!F18 -> 0 | F39: =-'Flujo caja 2024'!G18 -> 0 | G39: =-'Flujo caja 2024'!H18 -> 0 | H39: =-'Flujo caja 2024'!I18 -> 0 | I39: =-'Flujo caja 2024'!J18 -> 0 | J39: =-'Flujo caja 2024'!K18 -> 0 | K39: =-'Flujo caja 2024'!L18 -> 175 | L39: =-'Flujo caja 2024'!M18 -> 175 | M39: =-'Flujo caja 2024'!N18 -> 175 | N39: =-'Flujo caja 2024'!O18 -> 175 | O39: =SUM(C39:N39) -> 700
A40: 607 TRABAJOS REALIZADOS POR TERCEROS | C40: =-'Flujo caja 2024'!D19 -> 3893.812858 | D40: =-'Flujo caja 2024'!E19 -> 3893.812858 | E40: =-'Flujo caja 2024'!F19 -> 3893.812858 | F40: =-'Flujo caja 2024'!G19 -> 3893.812858 | G40: =-'Flujo caja 2024'!H19 -> 3893.812858 | H40: =-'Flujo caja 2024'!I19 -> 3893.812858 | I40: =-'Flujo caja 2024'!J19 -> 3893.812858 | J40: =-'Flujo caja 2024'!K19 -> 3893.812858 | K40: =-'Flujo caja 2024'!L19 -> 3893.812858 | L40: =-'Flujo caja 2024'!M19 -> 3893.812858 | M40: =-'Flujo caja 2024'!N19 -> 3893.812858 | N40: =-'Flujo caja 2024'!O19 -> 3893.812858 | O40: =SUM(C40:N40) -> 46725.7543
A42: RESTO DE GASTOS INCREMENTO CON EL MISMO % QUE LOS INGRESOS
A49: PRÉSTAMO VIVO | B49: LA MALICIOSA
A50: EXTRACTE DE PRESTÈC 2503200001
A51: Cap.Inicial: | C51: 270000 | E51: Interés 1: | F51: 2.75 | G51: % retencions: | K51: 19 | M51: Venciments: | P51: 110 19 103 G:\Agrobanc\CDAgroReports\CDAgrobanc\extracte_prestec.rpt
A52: Cap.Amortitzat: | C52: 27052.66 | E52: Interés 2: | F52: 0 | G52: Retencions interès: | K52: 2058.31 | M52: Venc.Realitzats:
A53: Cap.Pendent: | C53: 242947.34 | E53: Int. Pagats bruts: | F53: 10833.17 | G53: Int.Pagats nets: Int.Pendents: | K53: 8.774,86 24.362,22 | M53: Venc.Pendents:
A55: Data vencim. | B55: Data càrrec | C55: Data valor | D55: Tipus | F55: Capital | G55: Interès brut 1 | H55: Interès brut 2 | I55: Import retencio | J55: Interès net | L55: Carr. | M55: Capital carregat | N55: Interès carregat | O55: Capital pendent | P55: Total cap. | Q55: Gastos | R55: Demora
A56: 2024-04-25 | B56: Pendent | F56: 2273.83 | G56: 376.89 | H56: 0 | I56: 71.61 | J56: 305.28 | L56: Pendent | M56: 0 | N56: 0 | O56: 162187.57 | P56: 107812.43 | Q56: 0 | R56: 0
A57: 2024-05-25 | B57: Pendent | F57: 2279.04 | G57: 371.68 | H57: 0 | I57: 70.62 | J57: 301.06 | L57: Pendent | M57: 0 | N57: 0 | O57: 159908.53 | P57: 110091.47 | Q57: 0 | R57: 0
A58: 2024-06-25 | B58: Pendent | F58: 2284.26 | G58: 366.46 | H58: 0 | I58: 69.63 | J58: 296.83 | L58: Pendent | M58: 0 | N58: 0 | O58: 157624.27 | P58: 112375.73 | Q58: 0 | R58: 0
A59: 2024-07-25 | B59: Pendent | F59: 2289.5 | G59: 361.22 | H59: 0 | I59: 68.63 | J59: 292.59 | L59: Pendent | M59: 0 | N59: 0 | O59: 155334.77 | P59: 114665.23 | Q59: 0 | R59: 0
A60: 2024-08-25 | B60: Pendent | F60: 2294.74 | G60: 355.98 | H60: 0 | I60: 67.64 | J60: 288.34 | L60: Pendent | M60: 0 | N60: 0 | O60: 153040.03 | P60: 116959.97 | Q60: 0 | R60: 0
A61: 2024-09-25 | B61: Pendent | F61: 2300 | G61: 350.72 | H61: 0 | I61: 66.64 | J61: 284.08 | L61: Pendent | M61: 0 | N61: 0 | O61: 150740.03 | P61: 119259.97 | Q61: 0 | R61: 0
A62: 2024-10-25 | B62: Pendent | F62: 2305.27 | G62: 345.45 | H62: 0 | I62: 65.64 | J62: 279.81 | L62: Pendent | M62: 0 | N62: 0 | O62: 148434.76 | P62: 121565.24 | Q62: 0 | R62: 0
A63: 2024-11-25 | B63: Pendent | F63: 2310.56 | G63: 340.16 | H63: 0 | I63: 64.63 | J63: 275.53 | L63: Pendent | M63: 0 | N63: 0 | O63: 146124.2 | P63: 123875.8 | Q63: 0 | R63: 0
A64: 2024-12-25 | B64: Pendent | F64: 2315.85 | G64: 334.87 | H64: 0 | I64: 63.63 | J64: 271.24 | L64: Pendent | M64: 0 | N64: 0 | O64: 143808.35 | P64: 126191.65 | Q64: 0 | R64: 0
A65: 2025-01-25 | B65: Pendent | F65: 2321.16 | G65: 329.56 | H65: 0 | I65: 62.62 | J65: 266.94 | L65: Pendent | M65: 0 | N65: 0 | O65: 141487.19 | P65: 128512.81 | Q65: 0 | R65: 0
A66: 2025-02-25 | B66: Pendent | F66: 2326.48 | G66: 324.24 | H66: 0 | I66: 61.61 | J66: 262.63 | L66: Pendent | M66: 0 | N66: 0 | O66: 139160.71 | P66: 130839.29 | Q66: 0 | R66: 0
A67: 2025-03-25 | B67: Pendent | F67: 2331.81 | G67: 318.91 | H67: 0 | I67: 60.59 | J67: 258.32 | L67: Pendent | M67: 0 | N67: 0 | O67: 136828.9 | P67: 133171.1 | Q67: 0 | R67: 0
A68: 2025-04-25 | B68: Pendent | F68: 2337.15 | G68: 313.57 | H68: 0 | I68: 59.58 | J68: 253.99 | L68: Pendent | M68: 0 | N68: 0 | O68: 134491.75 | P68: 135508.25 | Q68: 0 | R68: 0
A69: 2025-05-25 | B69: Pendent | F69: 2342.51 | G69: 308.21 | H69: 0 | I69: 58.56 | J69: 249.65 | L69: Pendent | M69: 0 | N69: 0 | O69: 132149.24 | P69: 137850.76 | Q69: 0 | R69: 0
A70: 2025-06-25 | B70: Pendent | F70: 2347.88 | G70: 302.84 | H70: 0 | I70: 57.54 | J70: 245.3 | L70: Pendent | M70: 0 | N70: 0 | O70: 129801.36 | P70: 140198.64 | Q70: 0 | R70: 0
A71: 2025-07-25 | B71: Pendent | F71: 2353.26 | G71: 297.46 | H71: 0 | I71: 56.52 | J71: 240.94 | L71: Pendent | M71: 0 | N71: 0 | O71: 127448.1 | P71: 142551.9 | Q71: 0 | R71: 0
A72: 2025-08-25 | B72: Pendent | F72: 2358.65 | G72: 292.07 | H72: 0 | I72: 55.49 | J72: 236.58 | L72: Pendent | M72: 0 | N72: 0 | O72: 125089.45 | P72: 144910.55 | Q72: 0 | R72: 0
A73: 2025-09-25 | B73: Pendent | F73: 2364.06 | G73: 286.66 | H73: 0 | I73: 54.47 | J73: 232.19 | L73: Pendent | M73: 0 | N73: 0 | O73: 122725.39 | P73: 147274.61 | Q73: 0 | R73: 0
A74: 2025-10-25 | B74: Pendent | F74: 2369.47 | G74: 281.25 | H74: 0 | I74: 53.44 | J74: 227.81 | L74: Pendent | M74: 0 | N74: 0 | O74: 120355.92 | P74: 149644.08 | Q74: 0 | R74: 0
A75: 01 - | K75: 2021-04-06 | P75: Full 4 de 5
A76: EXTRACTE DE PRESTÈC 2503200001
A81: Data vencim. | B81: Data càrrec | C81: Data valor | D81: Tipus | F81: Capital | G81: Interès brut 1 | H81: Interès brut 2 | I81: Import retencio | J81: Interès net | L81: Carr. | M81: Capital carregat | N81: Interès carregat | O81: Capital pendent | P81: Total cap. | Q81: Gastos | R81: Demora
A82: 2025-11-25 | B82: Pendent | F82: 2374.9 | G82: 275.82 | H82: 0 | I82: 52.41 | J82: 223.41 | L82: Pendent | M82: 0 | N82: 0 | O82: 117981.02 | P82: 152018.98 | Q82: 0 | R82: 0
A83: 2025-12-25 | B83: Pendent | F83: 2380.35 | G83: 270.37 | H83: 0 | I83: 51.37 | J83: 219 | L83: Pendent | M83: 0 | N83: 0 | O83: 115600.67 | P83: 154399.33 | Q83: 0 | R83: 0
A84: 2026-01-25 | B84: Pendent | F84: 2385.8 | G84: 264.92 | H84: 0 | I84: 50.33 | J84: 214.59 | L84: Pendent | M84: 0 | N84: 0 | O84: 113214.87 | P84: 156785.13 | Q84: 0 | R84: 0
A85: 2026-02-25 | B85: Pendent | F85: 2391.27 | G85: 259.45 | H85: 0 | I85: 49.3 | J85: 210.15 | L85: Pendent | M85: 0 | N85: 0 | O85: 110823.6 | P85: 159176.4 | Q85: 0 | R85: 0
A86: 2026-03-25 | B86: Pendent | F86: 2396.75 | G86: 253.97 | H86: 0 | I86: 48.25 | J86: 205.72 | L86: Pendent | M86: 0 | N86: 0 | O86: 108426.85 | P86: 161573.15 | Q86: 0 | R86: 0
A87: 2026-04-25 | B87: Pendent | F87: 2402.24 | G87: 248.48 | H87: 0 | I87: 47.21 | J87: 201.27 | L87: Pendent | M87: 0 | N87: 0 | O87: 106024.61 | P87: 163975.39 | Q87: 0 | R87: 0
A88: 2026-05-25 | B88: Pendent | F88: 2407.75 | G88: 242.97 | H88: 0 | I88: 46.16 | J88: 196.81 | L88: Pendent | M88: 0 | N88: 0 | O88: 103616.86 | P88: 166383.14 | Q88: 0 | R88: 0
A89: 2026-06-25 | B89: Pendent | F89: 2413.26 | G89: 237.46 | H89: 0 | I89: 45.12 | J89: 192.34 | L89: Pendent | M89: 0 | N89: 0 | O89: 101203.6 | P89: 168796.4 | Q89: 0 | R89: 0
A90: 2026-07-25 | B90: Pendent | F90: 2418.8 | G90: 231.92 | H90: 0 | I90: 44.06 | J90: 187.86 | L90: Pendent | M90: 0 | N90: 0 | O90: 98784.8 | P90: 171215.2 | Q90: 0 | R90: 0
A91: 2026-08-25 | B91: Pendent | F91: 2424.34 | G91: 226.38 | H91: 0 | I91: 43.01 | J91: 183.37 | L91: Pendent | M91: 0 | N91: 0 | O91: 96360.46 | P91: 173639.54 | Q91: 0 | R91: 0
A92: 2026-09-25 | B92: Pendent | F92: 2429.89 | G92: 220.83 | H92: 0 | I92: 41.96 | J92: 178.87 | L92: Pendent | M92: 0 | N92: 0 | O92: 93930.57 | P92: 176069.43 | Q92: 0 | R92: 0
A93: 2026-10-25 | B93: Pendent | F93: 2435.46 | G93: 215.26 | H93: 0 | I93: 40.9 | J93: 174.36 | L93: Pendent | M93: 0 | N93: 0 | O93: 91495.11 | P93: 178504.89 | Q93: 0 | R93: 0
A94: 2026-11-25 | B94: Pendent | F94: 2441.04 | G94: 209.68 | H94: 0 | I94: 39.84 | J94: 169.84 | L94: Pendent | M94: 0 | N94: 0 | O94: 89054.07 | P94: 180945.93 | Q94: 0 | R94: 0
A95: 2026-12-25 | B95: Pendent | F95: 2446.64 | G95: 204.08 | H95: 0 | I95: 38.78 | J95: 165.3 | L95: Pendent | M95: 0 | N95: 0 | O95: 86607.43 | P95: 183392.57 | Q95: 0 | R95: 0
A96: 2027-01-25 | B96: Pendent | F96: 2452.24 | G96: 198.48 | H96: 0 | I96: 37.71 | J96: 160.77 | L96: Pendent | M96: 0 | N96: 0 | O96: 84155.19 | P96: 185844.81 | Q96: 0 | R96: 0
A97: 2027-02-25 | B97: Pendent | F97: 2457.86 | G97: 192.86 | H97: 0 | I97: 36.64 | J97: 156.22 | L97: Pendent | M97: 0 | N97: 0 | O97: 81697.33 | P97: 188302.67 | Q97: 0 | R97: 0
A98: 2027-03-25 | B98: Pendent | F98: 2463.5 | G98: 187.22 | H98: 0 | I98: 35.57 | J98: 151.65 | L98: Pendent | M98: 0 | N98: 0 | O98: 79233.83 | P98: 190766.17 | Q98: 0 | R98: 0
A99: 2027-04-25 | B99: Pendent | F99: 2469.14 | G99: 181.58 | H99: 0 | I99: 34.5 | J99: 147.08 | L99: Pendent | M99: 0 | N99: 0 | O99: 76764.69 | P99: 193235.31 | Q99: 0 | R99: 0
A100: 2027-05-25 | B100: Pendent | F100: 2474.8 | G100: 175.92 | H100: 0 | I100: 33.42 | J100: 142.5 | L100: Pendent | M100: 0 | N100: 0 | O100: 74289.89 | P100: 195710.11 | Q100: 0 | R100: 0
A101: 2027-06-25 | B101: Pendent | F101: 2480.47 | G101: 170.25 | H101: 0 | I101: 32.35 | J101: 137.9 | L101: Pendent | M101: 0 | N101: 0 | O101: 71809.42 | P101: 198190.58 | Q101: 0 | R101: 0
A102: 2027-07-25 | B102: Pendent | F102: 2486.16 | G102: 164.56 | H102: 0 | I102: 31.27 | J102: 133.29 | L102: Pendent | M102: 0 | N102: 0 | O102: 69323.26 | P102: 200676.74 | Q102: 0 | R102: 0
A103: 2027-08-25 | B103: Pendent | F103: 2491.85 | G103: 158.87 | H103: 0 | I103: 30.19 | J103: 128.68 | L103: Pendent | M103: 0 | N103: 0 | O103: 66831.41 | P103: 203168.59 | Q103: 0 | R103: 0
A104: 2027-09-25 | B104: Pendent | F104: 2497.56 | G104: 153.16 | H104: 0 | I104: 29.1 | J104: 124.06 | L104: Pendent | M104: 0 | N104: 0 | O104: 64333.85 | P104: 205666.15 | Q104: 0 | R104: 0
A105: 2027-10-25 | B105: Pendent | F105: 2503.29 | G105: 147.43 | H105: 0 | I105: 28.01 | J105: 119.42 | L105: Pendent | M105: 0 | N105: 0 | O105: 61830.56 | P105: 208169.44 | Q105: 0 | R105: 0
A106: 2027-11-25 | B106: Pendent | F106: 2509.02 | G106: 141.7 | H106: 0 | I106: 26.92 | J106: 114.78 | L106: Pendent | M106: 0 | N106: 0 | O106: 59321.54 | P106: 210678.46 | Q106: 0 | R106: 0
A113: Data vencim. | B113: Data càrrec | C113: Data valor | D113: Tipus | F113: Capital | G113: Interès brut 1 | H113: Interès brut 2 | I113: Import retencio | J113: Interès net | L113: Carr. | M113: Capital carregat | N113: Interès carregat | O113: Capital pendent | P113: Total cap. | Q113: Gastos | R113: Demora
A114: 2027-12-25 | B114: Pendent | F114: 2514.77 | G114: 135.95 | H114: 0 | I114: 25.83 | J114: 110.12 | L114: Pendent | M114: 0 | N114: 0 | O114: 56806.77 | P114: 213193.23 | Q114: 0 | R114: 0
A115: 2028-01-25 | B115: Pendent | F115: 2520.54 | G115: 130.18 | H115: 0 | I115: 24.73 | J115: 105.45 | L115: Pendent | M115: 0 | N115: 0 | O115: 54286.23 | P115: 215713.77 | Q115: 0 | R115: 0
A116: 2028-02-25 | B116: Pendent | F116: 2526.31 | G116: 124.41 | H116: 0 | I116: 23.64 | J116: 100.77 | L116: Pendent | M116: 0 | N116: 0 | O116: 51759.92 | P116: 218240.08 | Q116: 0 | R116: 0
A117: 2028-03-25 | B117: Pendent | F117: 2532.1 | G117: 118.62 | H117: 0 | I117: 22.54 | J117: 96.08 | L117: Pendent | M117: 0 | N117: 0 | O117: 49227.82 | P117: 220772.18 | Q117: 0 | R117: 0
A118: 2028-04-25 | B118: Pendent | F118: 2537.91 | G118: 112.81 | H118: 0 | I118: 21.43 | J118: 91.38 | L118: Pendent | M118: 0 | N118: 0 | O118: 46689.91 | P118: 223310.09 | Q118: 0 | R118: 0
A119: 2028-05-25 | B119: Pendent | F119: 2543.72 | G119: 107 | H119: 0 | I119: 20.33 | J119: 86.67 | L119: Pendent | M119: 0 | N119: 0 | O119: 44146.19 | P119: 225853.81 | Q119: 0 | R119: 0
A120: 2028-06-25 | B120: Pendent | F120: 2549.55 | G120: 101.17 | H120: 0 | I120: 19.22 | J120: 81.95 | L120: Pendent | M120: 0 | N120: 0 | O120: 41596.64 | P120: 228403.36 | Q120: 0 | R120: 0
A121: 2028-07-25 | B121: Pendent | F121: 2555.39 | G121: 95.33 | H121: 0 | I121: 18.11 | J121: 77.22 | L121: Pendent | M121: 0 | N121: 0 | O121: 39041.25 | P121: 230958.75 | Q121: 0 | R121: 0
A122: 2028-08-25 | B122: Pendent | F122: 2561.25 | G122: 89.47 | H122: 0 | I122: 17 | J122: 72.47 | L122: Pendent | M122: 0 | N122: 0 | O122: 36480 | P122: 233520 | Q122: 0 | R122: 0
A123: 2028-09-25 | B123: Pendent | F123: 2567.12 | G123: 83.6 | H123: 0 | I123: 15.88 | J123: 67.72 | L123: Pendent | M123: 0 | N123: 0 | O123: 33912.88 | P123: 236087.12 | Q123: 0 | R123: 0
A124: 2028-10-25 | B124: Pendent | F124: 2573 | G124: 77.72 | H124: 0 | I124: 14.77 | J124: 62.95 | L124: Pendent | M124: 0 | N124: 0 | O124: 31339.88 | P124: 238660.12 | Q124: 0 | R124: 0
A125: 2028-11-25 | B125: Pendent | F125: 2578.9 | G125: 71.82 | H125: 0 | I125: 13.65 | J125: 58.17 | L125: Pendent | M125: 0 | N125: 0 | O125: 28760.98 | P125: 241239.02 | Q125: 0 | R125: 0
A126: 2028-12-25 | B126: Pendent | F126: 2584.81 | G126: 65.91 | H126: 0 | I126: 12.52 | J126: 53.39 | L126: Pendent | M126: 0 | N126: 0 | O126: 26176.17 | P126: 243823.83 | Q126: 0 | R126: 0
A127: 2029-01-25 | B127: Pendent | F127: 2590.73 | G127: 59.99 | H127: 0 | I127: 11.4 | J127: 48.59 | L127: Pendent | M127: 0 | N127: 0 | O127: 23585.44 | P127: 246414.56 | Q127: 0 | R127: 0
A128: 2029-02-25 | B128: Pendent | F128: 2596.67 | G128: 54.05 | H128: 0 | I128: 10.27 | J128: 43.78 | L128: Pendent | M128: 0 | N128: 0 | O128: 20988.77 | P128: 249011.23 | Q128: 0 | R128: 0
A129: 2029-03-25 | B129: Pendent | F129: 2602.62 | G129: 48.1 | H129: 0 | I129: 9.14 | J129: 38.96 | L129: Pendent | M129: 0 | N129: 0 | O129: 18386.15 | P129: 251613.85 | Q129: 0 | R129: 0
A130: 2029-04-25 | B130: Pendent | F130: 2608.59 | G130: 42.13 | H130: 0 | I130: 8 | J130: 34.13 | L130: Pendent | M130: 0 | N130: 0 | O130: 15777.56 | P130: 254222.44 | Q130: 0 | R130: 0
A131: 2029-05-25 | B131: Pendent | F131: 2614.56 | G131: 36.16 | H131: 0 | I131: 6.87 | J131: 29.29 | L131: Pendent | M131: 0 | N131: 0 | O131: 13163 | P131: 256837 | Q131: 0 | R131: 0
A132: 2029-06-25 | B132: Pendent | F132: 2620.55 | G132: 30.17 | H132: 0 | I132: 5.73 | J132: 24.44 | L132: Pendent | M132: 0 | N132: 0 | O132: 10542.45 | P132: 259457.55 | Q132: 0 | R132: 0
A133: 2029-07-25 | B133: Pendent | F133: 2626.56 | G133: 24.16 | H133: 0 | I133: 4.59 | J133: 19.57 | L133: Pendent | M133: 0 | N133: 0 | O133: 7915.89 | P133: 262084.11 | Q133: 0 | R133: 0
A134: 2029-08-25 | B134: Pendent | F134: 2632.58 | G134: 18.14 | H134: 0 | I134: 3.45 | J134: 14.69 | L134: Pendent | M134: 0 | N134: 0 | O134: 5283.31 | P134: 264716.69 | Q134: 0 | R134: 0
A135: 2029-09-25 | B135: Pendent | F135: 2638.61 | G135: 12.11 | H135: 0 | I135: 2.3 | J135: 9.81 | L135: Pendent | M135: 0 | N135: 0 | O135: 2644.7 | P135: 267355.3 | Q135: 0 | R135: 0
A136: 2029-10-25 | B136: Pendent | F136: 2644.7 | G136: 6.06 | H136: 0 | I136: 1.15 | J136: 4.91 | L136: Pendent | M136: 0 | N136: 0 | O136: 0 | P136: 270000 | Q136: 0 | R136: 0

Sheet Ingresos (y simuladores)
A2: INGRESOS
A3: Concepto | B3: 2023 | C3: 2024 | D3: 2025 | E3: =+D3+1 -> 2026 | F3: =+E3+1 -> 2027 | G3: =+F3+1 -> 2028
A4: TOTAL INGRESOS | B4: =SUM(B5:B11) -> 1376915.38 | C4: =SUM(C5:C11) -> 1570265.597 | D4: =SUM(D5:D11) -> 1564801.342 | E4: =SUM(E5:E11) -> 1717370.661 | F4: =SUM(F5:F11) -> 1801368.386 | G4: =SUM(G5:G11) -> 1889560.49
A5: 700 VENTAS DE MERCADERÍAS | B5: 1231246.54 | C5: =+B5*(1+C$16) -> 1268183.936 | D5: =+C5*(1+D$16) -> 1395002.33 | E5: =+D5*(1+E$16) -> 1534502.563 | F5: =+E5*(1+F$16) -> 1611227.691 | G5: =+F5*(1+G$16) -> 1691789.075
A6: 705 PRESTACIONES DE SERVICIOS | B6: 113760.69 | C6: =+B6*(1+C$16) -> 117173.5107 | D6: =+C6*(1+D$16) -> 128890.8618 | E6: =+D6*(1+E$16) -> 141779.9479 | F6: =+E6*(1+F$16) -> 148868.9453 | G6: =+F6*(1+G$16) -> 156312.3926
A7: ALQUILER ESPACIO | B7: 0 | C7: =750*4 -> 3000 | D7: =750*12 -> 9000 | E7: =+D7*1.02 -> 9180 | F7: =+E7*1.02 -> 9363.6 | G7: =+F7*1.02 -> 9550.872
A8: APERTURA DOMINGOS | B8: 0 | C8: =IF($B$17=1,1200,0)*C19 -> 0 | D8: =IF($B$17=1,1200,0)*D19 -> 0 | E8: =IF($B$17=1,1200,0)*E19 -> 0 | F8: =IF($B$17=1,1200,0)*F19 -> 0 | G8: =IF($B$17=1,1200,0)*G19 -> 0
A9: 720 DONACIONES PARTICULARES | C9: =IF(B14=1,100000,20000) -> 100000
A10: 720 CROWFUNDING | C10: =IF(B15=1,50000,0) -> 50000
A11: 740 SUBVENCIONES, DONACIONES DE LE | B11: 31908.15 | C11: =+B11 -> 31908.15 | D11: =+C11 -> 31908.15 | E11: =+D11 -> 31908.15 | F11: =+E11 -> 31908.15 | G11: =+F11 -> 31908.15
A14: DONACIONES PARTICULARES | B14: 1 | C14: ESTA EN MARCHA UN PLAN CON PARTICULARES Y COLECTIVOS
A15: CROWFUNDING | B15: 1 | C15: ESTA PREVISTO PARA EL ULTIMO TRIMESTRE
A16: INCREMENTO DE INGRESOS, TENDENCIA | B16: 0.11 | C16: =IF(B20=1,3%,5%) -> 0.03 | D16: 0.1 | E16: 0.1 | F16: 0.05 | G16: 0.05
A17: NUEVOS INGRESOS APERTURA DOMINGOS | B17: 0 | C17: 1 SE ABRE LOS DOMINGOS
A18: Se ha previsto abrir los domingos la librería de la calle Duque de Alba
A19: Numero de Domingos | C19: 15 | D19: 46 | E19: 46 | F19: 46 | G19: 46
A20: Incremento de ingresos año 2024 | B20: 1 | C20: 1 incremento del 3%; sino 5%

Sheet Ingresos Año 2 (hidden)
C2: INGRESOS AÑO 2 | Q2: INGRESOS PRODUCTOS / SERVICIOS
B3: Cuotas y Servicios | R3: =C15 -> M 1 | S3: =D15 -> M 2 | T3: =E15 -> M 3 | U3: =F15 -> M 4 | V3: =G15 -> M 5 | W3: =H15 -> M 6 | X3: =I15 -> M 7 | Y3: =J15 -> M 8 | Z3: =K15 -> M 9 | AA3: =L15 -> M 10 | AB3: =M15 -> M 11 | AC3: =N15 -> M 12 | AD3: TOTAL
B4: Productos o Servicios | C4: Precio unitario | Q4: =Q17 -> TOTAL INGRESOS FIJOS | R4: =R17 -> 5076.64 | S4: =S17 -> 5126.64 | T4: =T17 -> 5126.64 | U4: =U17 -> 5176.64 | V4: =V17 -> 5176.64 | W4: =W17 -> 5226.64 | X4: =X17 -> 5276.64 | Y4: =Y17 -> 5276.64 | Z4: =Z17 -> 5326.64 | AA4: =AA17 -> 5326.64 | AB4: =AB17 -> 5326.64 | AC4: =AC17 -> 5376.64 | AD4: =SUM(R4:AC4) -> 62819.68
B5: Cuota espacio Veguiterraneo | C5: =247.5+116.86+449 -> 813.36 | Q5: =Q24 -> TOTAL INGRESOS VARIABLES | R5: =R24 -> 475 | S5: =S24 -> 525 | T5: =T24 -> 525 | U5: =U24 -> 600 | V5: =V24 -> 650 | W5: =W24 -> 375 | X5: =X24 -> 0 | Y5: =Y24 -> 0 | Z5: =Z24 -> 390 | AA5: =AA24 -> 690 | AB5: =AB24 -> 690 | AC5: =AC24 -> 565 | AD5: =SUM(R5:AC5) -> 5485
B6: Cuota espacio Mala letra | C6: =220.43+42.85 -> 263.28 | Q6: TOTAL INGRESOS | R6: =+R4+R5 -> 5551.64 | S6: =+S4+S5 -> 5651.64 | T6: =+T4+T5 -> 5651.64 | U6: =+U4+U5 -> 5776.64 | V6: =+V4+V5 -> 5826.64 | W6: =+W4+W5 -> 5601.64 | X6: =+X4+X5 -> 5276.64 | Y6: =+Y4+Y5 -> 5276.64 | Z6: =+Z4+Z5 -> 5716.64 | AA6: =+AA4+AA5 -> 6016.64 | AB6: =+AB4+AB5 -> 6016.64 | AC6: =+AC4+AC5 -> 5941.64 | AD6: =+AD4+AD5 -> 68304.68
B7: Cuota gastos Veguiterraneo | C7: ='gastos fijos'!#ref!*0.6+'gastos fijos'!#ref! -> 
B8: Cuota gastos Mala letra | C8: ='gastos fijos'!#ref!*0.6+'gastos fijos'!#ref!*0.15 -> 
B9: Cuotas personales | C9: 10 | P9: IVA % | Q9: Ingresos fijos | R9: =+C15 -> M 1 | S9: =+D15 -> M 2 | T9: =+E15 -> M 3 | U9: =+F15 -> M 4 | V9: =+G15 -> M 5 | W9: =+H15 -> M 6 | X9: =+I15 -> M 7 | Y9: =+J15 -> M 8 | Z9: =+K15 -> M 9 | AA9: =+L15 -> M 10 | AB9: =+M15 -> M 11 | AC9: =+N15 -> M 12 | AD9: TOTAL
B10: Alquiler espacios | C10: 50 | Q10: =+IF(B16="","",B16) -> Cuota espacio Veguiterraneo | R10: =+IFERROR(VLOOKUP($Q10,$B$5:$C$13,2,0)*C16,0) -> 813.36 | S10: =+IFERROR(VLOOKUP($Q10,$B$5:$C$13,2,0)*D16,0) -> 813.36 | T10: =+IFERROR(VLOOKUP($Q10,$B$5:$C$13,2,0)*E16,0) -> 813.36 | U10: =+IFERROR(VLOOKUP($Q10,$B$5:$C$13,2,0)*F16,0) -> 813.36 | V10: =+IFERROR(VLOOKUP($Q10,$B$5:$C$13,2,0)*G16,0) -> 813.36 | W10: =+IFERROR(VLOOKUP($Q10,$B$5:$C$13,2,0)*H16,0) -> 813.36 | X10: =+IFERROR(VLOOKUP($Q10,$B$5:$C$13,2,0)*I16,0) -> 813.36 | Y10: =+IFERROR(VLOOKUP($Q10,$B$5:$C$13,2,0)*J16,0) -> 813.36 | Z10: =+IFERROR(VLOOKUP($Q10,$B$5:$C$13,2,0)*K16,0) -> 813.36 | AA10: =+IFERROR(VLOOKUP($Q10,$B$5:$C$13,2,0)*L16,0) -> 813.36 | AB10: =+IFERROR(VLOOKUP($Q10,$B$5:$C$13,2,0)*M16,0) -> 813.36 | AC10: =+IFERROR(VLOOKUP($Q10,$B$5:$C$13,2,0)*N16,0) -> 813.36 | AD10: =SUM(R10:AC10) -> 9760.32
B11: Actividades | C11: 5 | Q11: =+IF(B17="","",B17) -> Cuota espacio Mala letra | R11: =+IFERROR(VLOOKUP($Q11,$B$5:$C$13,2,0)*C17,0) -> 263.28 | S11: =+IFERROR(VLOOKUP($Q11,$B$5:$C$13,2,0)*D17,0) -> 263.28 | T11: =+IFERROR(VLOOKUP($Q11,$B$5:$C$13,2,0)*E17,0) -> 263.28 | U11: =+IFERROR(VLOOKUP($Q11,$B$5:$C$13,2,0)*F17,0) -> 263.28 | V11: =+IFERROR(VLOOKUP($Q11,$B$5:$C$13,2,0)*G17,0) -> 263.28 | W11: =+IFERROR(VLOOKUP($Q11,$B$5:$C$13,2,0)*H17,0) -> 263.28 | X11: =+IFERROR(VLOOKUP($Q11,$B$5:$C$13,2,0)*I17,0) -> 263.28 | Y11: =+IFERROR(VLOOKUP($Q11,$B$5:$C$13,2,0)*J17,0) -> 263.28 | Z11: =+IFERROR(VLOOKUP($Q11,$B$5:$C$13,2,0)*K17,0) -> 263.28 | AA11: =+IFERROR(VLOOKUP($Q11,$B$5:$C$13,2,0)*L17,0) -> 263.28 | AB11: =+IFERROR(VLOOKUP($Q11,$B$5:$C$13,2,0)*M17,0) -> 263.28 | AC11: =+IFERROR(VLOOKUP($Q11,$B$5:$C$13,2,0)*N17,0) -> 263.28 | AD11: =SUM(R11:AC11) -> 3159.36
B12: Coworking | C12: 40 | Q12: =+IF(B18="","",B18) -> Cuota gastos Veguiterraneo | R12: =+IFERROR(VLOOKUP($Q12,$B$5:$C$13,2,0)*C18,0) -> 0 | S12: =+IFERROR(VLOOKUP($Q12,$B$5:$C$13,2,0)*D18,0) -> 0 | T12: =+IFERROR(VLOOKUP($Q12,$B$5:$C$13,2,0)*E18,0) -> 0 | U12: =+IFERROR(VLOOKUP($Q12,$B$5:$C$13,2,0)*F18,0) -> 0 | V12: =+IFERROR(VLOOKUP($Q12,$B$5:$C$13,2,0)*G18,0) -> 0 | W12: =+IFERROR(VLOOKUP($Q12,$B$5:$C$13,2,0)*H18,0) -> 0 | X12: =+IFERROR(VLOOKUP($Q12,$B$5:$C$13,2,0)*I18,0) -> 0 | Y12: =+IFERROR(VLOOKUP($Q12,$B$5:$C$13,2,0)*J18,0) -> 0 | Z12: =+IFERROR(VLOOKUP($Q12,$B$5:$C$13,2,0)*K18,0) -> 0 | AA12: =+IFERROR(VLOOKUP($Q12,$B$5:$C$13,2,0)*L18,0) -> 0 | AB12: =+IFERROR(VLOOKUP($Q12,$B$5:$C$13,2,0)*M18,0) -> 0 | AC12: =+IFERROR(VLOOKUP($Q12,$B$5:$C$13,2,0)*N18,0) -> 0 | AD12: =SUM(R12:AC12) -> 0
Q13: =+IF(B19="","",B19) -> Cuota gastos Mala letra | R13: =+IFERROR(VLOOKUP($Q13,$B$5:$C$13,2,0)*C19,0) -> 0 | S13: =+IFERROR(VLOOKUP($Q13,$B$5:$C$13,2,0)*D19,0) -> 0 | T13: =+IFERROR(VLOOKUP($Q13,$B$5:$C$13,2,0)*E19,0) -> 0 | U13: =+IFERROR(VLOOKUP($Q13,$B$5:$C$13,2,0)*F19,0) -> 0 | V13: =+IFERROR(VLOOKUP($Q13,$B$5:$C$13,2,0)*G19,0) -> 0 | W13: =+IFERROR(VLOOKUP($Q13,$B$5:$C$13,2,0)*H19,0) -> 0 | X13: =+IFERROR(VLOOKUP($Q13,$B$5:$C$13,2,0)*I19,0) -> 0 | Y13: =+IFERROR(VLOOKUP($Q13,$B$5:$C$13,2,0)*J19,0) -> 0 | Z13: =+IFERROR(VLOOKUP($Q13,$B$5:$C$13,2,0)*K19,0) -> 0 | AA13: =+IFERROR(VLOOKUP($Q13,$B$5:$C$13,2,0)*L19,0) -> 0 | AB13: =+IFERROR(VLOOKUP($Q13,$B$5:$C$13,2,0)*M19,0) -> 0 | AC13: =+IFERROR(VLOOKUP($Q13,$B$5:$C$13,2,0)*N19,0) -> 0 | AD13: =SUM(R13:AC13) -> 0
Q14: =+IF(B20="","",B20) -> Cuotas personales | R14: =+IFERROR(VLOOKUP($Q14,$B$5:$C$13,2,0)*C20,0) -> 4000 | S14: =+IFERROR(VLOOKUP($Q14,$B$5:$C$13,2,0)*D20,0) -> 4050 | T14: =+IFERROR(VLOOKUP($Q14,$B$5:$C$13,2,0)*E20,0) -> 4050 | U14: =+IFERROR(VLOOKUP($Q14,$B$5:$C$13,2,0)*F20,0) -> 4100 | V14: =+IFERROR(VLOOKUP($Q14,$B$5:$C$13,2,0)*G20,0) -> 4100 | W14: =+IFERROR(VLOOKUP($Q14,$B$5:$C$13,2,0)*H20,0) -> 4150 | X14: =+IFERROR(VLOOKUP($Q14,$B$5:$C$13,2,0)*I20,0) -> 4200 | Y14: =+IFERROR(VLOOKUP($Q14,$B$5:$C$13,2,0)*J20,0) -> 4200 | Z14: =+IFERROR(VLOOKUP($Q14,$B$5:$C$13,2,0)*K20,0) -> 4250 | AA14: =+IFERROR(VLOOKUP($Q14,$B$5:$C$13,2,0)*L20,0) -> 4250 | AB14: =+IFERROR(VLOOKUP($Q14,$B$5:$C$13,2,0)*M20,0) -> 4250 | AC14: =+IFERROR(VLOOKUP($Q14,$B$5:$C$13,2,0)*N20,0) -> 4300 | AD14: =SUM(R14:AC14) -> 49900
B15: Unidades Ingresos Fijos | C15: M 1 | D15: M 2 | E15: M 3 | F15: M 4 | G15: M 5 | H15: M 6 | I15: M 7 | J15: M 8 | K15: M 9 | L15: M 10 | M15: M 11 | N15: M 12
B16: =B5 -> Cuota espacio Veguiterraneo | C16: 1 | D16: 1 | E16: 1 | F16: 1 | G16: 1 | H16: 1 | I16: 1 | J16: 1 | K16: 1 | L16: 1 | M16: 1 | N16: 1 | P16: IVA % | Q16: OTROS INGRESOS | R16: =+R9 -> M 1 | S16: =+S9 -> M 2 | T16: =+T9 -> M 3 | U16: =+U9 -> M 4 | V16: =+V9 -> M 5 | W16: =+W9 -> M 6 | X16: =+X9 -> M 7 | Y16: =+Y9 -> M 8 | Z16: =+Z9 -> M 9 | AA16: =+AA9 -> M 10 | AB16: =+AB9 -> M 11 | AC16: =+AC9 -> M 12 | AD16: =+AD9 -> TOTAL
B17: =B6 -> Cuota espacio Mala letra | C17: 1 | D17: 1 | E17: 1 | F17: 1 | G17: 1 | H17: 1 | I17: 1 | J17: 1 | K17: 1 | L17: 1 | M17: 1 | N17: 1 | Q17: TOTAL INGRESOS FIJOS | R17: =+SUM(R10:R14) -> 5076.64 | S17: =+SUM(S10:S14) -> 5126.64 | T17: =+SUM(T10:T14) -> 5126.64 | U17: =+SUM(U10:U14) -> 5176.64 | V17: =+SUM(V10:V14) -> 5176.64 | W17: =+SUM(W10:W14) -> 5226.64 | X17: =+SUM(X10:X14) -> 5276.64 | Y17: =+SUM(Y10:Y14) -> 5276.64 | Z17: =+SUM(Z10:Z14) -> 5326.64 | AA17: =+SUM(AA10:AA14) -> 5326.64 | AB17: =+SUM(AB10:AB14) -> 5326.64 | AC17: =+SUM(AC10:AC14) -> 5376.64 | AD17: =SUM(R17:AC17) -> 62819.68
B18: =B7 -> Cuota gastos Veguiterraneo | C18: 1 | D18: 1 | E18: 1 | F18: 1 | G18: 1 | H18: 1 | I18: 1 | J18: 1 | K18: 1 | L18: 1 | M18: 1 | N18: 1
B19: =B8 -> Cuota gastos Mala letra | C19: 1 | D19: 1 | E19: 1 | F19: 1 | G19: 1 | H19: 1 | I19: 1 | J19: 1 | K19: 1 | L19: 1 | M19: 1 | N19: 1 | P19: IVA % | Q19: Ingresos variables | R19: =+#REF! ->  | S19: =+#REF! ->  | T19: =+#REF! ->  | U19: =+#REF! ->  | V19: =+#REF! ->  | W19: =+#REF! ->  | X19: =+#REF! ->  | Y19: =+#REF! ->  | Z19: =+#REF! ->  | AA19: =+#REF! ->  | AB19: =+#REF! ->  | AC19: =+#REF! ->  | AD19: TOTAL
B20: =B9 -> Cuotas personales | C20: 400 | D20: 405 | E20: 405 | F20: 410 | G20: 410 | H20: 415 | I20: 420 | J20: 420 | K20: 425 | L20: 425 | M20: 425 | N20: 430 | Q20: =+IF(B23="","",B23) -> Alquiler espacios | R20: =+IFERROR(VLOOKUP($Q20,$B$5:$C$13,2,0)*C23,0) -> 100 | S20: =+IFERROR(VLOOKUP($Q20,$B$5:$C$13,2,0)*D23,0) -> 100 | T20: =+IFERROR(VLOOKUP($Q20,$B$5:$C$13,2,0)*E23,0) -> 100 | U20: =+IFERROR(VLOOKUP($Q20,$B$5:$C$13,2,0)*F23,0) -> 150 | V20: =+IFERROR(VLOOKUP($Q20,$B$5:$C$13,2,0)*G23,0) -> 200 | W20: =+IFERROR(VLOOKUP($Q20,$B$5:$C$13,2,0)*H23,0) -> 200 | X20: =+IFERROR(VLOOKUP($Q20,$B$5:$C$13,2,0)*I23,0) -> 0 | Y20: =+IFERROR(VLOOKUP($Q20,$B$5:$C$13,2,0)*J23,0) -> 0 | Z20: =+IFERROR(VLOOKUP($Q20,$B$5:$C$13,2,0)*K23,0) -> 150 | AA20: =+IFERROR(VLOOKUP($Q20,$B$5:$C$13,2,0)*L23,0) -> 200 | AB20: =+IFERROR(VLOOKUP($Q20,$B$5:$C$13,2,0)*M23,0) -> 200 | AC20: =+IFERROR(VLOOKUP($Q20,$B$5:$C$13,2,0)*N23,0) -> 150 | AD20: =SUM(R20:AC20) -> 1550
Q21: =+IF(B24="","",B24) -> Actividades | R21: =+IFERROR(VLOOKUP($Q21,$B$5:$C$13,2,0)*C24,0) -> 175 | S21: =+IFERROR(VLOOKUP($Q21,$B$5:$C$13,2,0)*D24,0) -> 225 | T21: =+IFERROR(VLOOKUP($Q21,$B$5:$C$13,2,0)*E24,0) -> 225 | U21: =+IFERROR(VLOOKUP($Q21,$B$5:$C$13,2,0)*F24,0) -> 250 | V21: =+IFERROR(VLOOKUP($Q21,$B$5:$C$13,2,0)*G24,0) -> 250 | W21: =+IFERROR(VLOOKUP($Q21,$B$5:$C$13,2,0)*H24,0) -> 175 | X21: =+IFERROR(VLOOKUP($Q21,$B$5:$C$13,2,0)*I24,0) -> 0 | Y21: =+IFERROR(VLOOKUP($Q21,$B$5:$C$13,2,0)*J24,0) -> 0 | Z21: =+IFERROR(VLOOKUP($Q21,$B$5:$C$13,2,0)*K24,0) -> 0 | AA21: =+IFERROR(VLOOKUP($Q21,$B$5:$C$13,2,0)*L24,0) -> 250 | AB21: =+IFERROR(VLOOKUP($Q21,$B$5:$C$13,2,0)*M24,0) -> 250 | AC21: =+IFERROR(VLOOKUP($Q21,$B$5:$C$13,2,0)*N24,0) -> 175 | AD21: =SUM(R21:AC21) -> 1975
C22: =SUM(C16:C21) -> 404 | D22: =SUM(D16:D21) -> 409 | E22: =SUM(E16:E21) -> 409 | F22: =SUM(F16:F21) -> 414 | G22: =SUM(G16:G21) -> 414 | H22: =SUM(H16:H21) -> 419 | I22: =SUM(I16:I21) -> 424 | J22: =SUM(J16:J21) -> 424 | K22: =SUM(K16:K21) -> 429 | L22: =SUM(L16:L21) -> 429 | M22: =SUM(M16:M21) -> 429 | N22: =SUM(N16:N21) -> 434 | Q22: =+IF(B25="","",B25) -> Coworking | R22: =+IFERROR(VLOOKUP($Q22,$B$5:$C$13,2,0)*C25,0) -> 200 | S22: =+IFERROR(VLOOKUP($Q22,$B$5:$C$13,2,0)*D25,0) -> 200 | T22: =+IFERROR(VLOOKUP($Q22,$B$5:$C$13,2,0)*E25,0) -> 200 | U22: =+IFERROR(VLOOKUP($Q22,$B$5:$C$13,2,0)*F25,0) -> 200 | V22: =+IFERROR(VLOOKUP($Q22,$B$5:$C$13,2,0)*G25,0) -> 200 | W22: =+IFERROR(VLOOKUP($Q22,$B$5:$C$13,2,0)*H25,0) -> 0 | X22: =+IFERROR(VLOOKUP($Q22,$B$5:$C$13,2,0)*I25,0) -> 0 | Y22: =+IFERROR(VLOOKUP($Q22,$B$5:$C$13,2,0)*J25,0) -> 0 | Z22: =+IFERROR(VLOOKUP($Q22,$B$5:$C$13,2,0)*K25,0) -> 240 | AA22: =+IFERROR(VLOOKUP($Q22,$B$5:$C$13,2,0)*L25,0) -> 240 | AB22: =+IFERROR(VLOOKUP($Q22,$B$5:$C$13,2,0)*M25,0) -> 240 | AC22: =+IFERROR(VLOOKUP($Q22,$B$5:$C$13,2,0)*N25,0) -> 240 | AD22: =SUM(R22:AC22) -> 1960
B23: =B10 -> Alquiler espacios | C23: 2 | D23: 2 | E23: 2 | F23: 3 | G23: 4 | H23: 4 | I23: 0 | J23: 0 | K23: 3 | L23: 4 | M23: 4 | N23: 3 | P23: IVA % | Q23: OTROS INGRESOS | R23: =+R19 ->  | S23: =+S19 ->  | T23: =+T19 ->  | U23: =+U19 ->  | V23: =+V19 ->  | W23: =+W19 ->  | X23: =+X19 ->  | Y23: =+Y19 ->  | Z23: =+Z19 ->  | AA23: =+AA19 ->  | AB23: =+AB19 ->  | AC23: =+AC19 ->  | AD23: =+AD19 -> TOTAL
B24: =B11 -> Actividades | C24: 35 | D24: 45 | E24: 45 | F24: 50 | G24: 50 | H24: 35 | I24: 0 | J24: 0 | K24: 0 | L24: 50 | M24: 50 | N24: 35 | Q24: TOTAL INGRESOS VARIABLES | R24: =+SUM(R20:R22) -> 475 | S24: =+SUM(S20:S22) -> 525 | T24: =+SUM(T20:T22) -> 525 | U24: =+SUM(U20:U22) -> 600 | V24: =+SUM(V20:V22) -> 650 | W24: =+SUM(W20:W22) -> 375 | X24: =+SUM(X20:X22) -> 0 | Y24: =+SUM(Y20:Y22) -> 0 | Z24: =+SUM(Z20:Z22) -> 390 | AA24: =+SUM(AA20:AA22) -> 690 | AB24: =+SUM(AB20:AB22) -> 690 | AC24: =+SUM(AC20:AC22) -> 565 | AD24: =SUM(R24:AC24) -> 5485
B25: =B12 -> Coworking | C25: 5 | D25: 5 | E25: 5 | F25: 5 | G25: 5 | H25: 0 | I25: 0 | J25: 0 | K25: 6 | L25: 6 | M25: 6 | N25: 6

Sheet Ingresos Año 3 (hidden)
B2: INGRESOS AÑO 3 | Q2: INGRESOS PRODUCTOS / SERVICIOS
B3: Cuotas y Servicios | R3: =C15 -> M 1 | S3: =D15 -> M 2 | T3: =E15 -> M 3 | U3: =F15 -> M 4 | V3: =G15 -> M 5 | W3: =H15 -> M 6 | X3: =I15 -> M 7 | Y3: =J15 -> M 8 | Z3: =K15 -> M 9 | AA3: =L15 -> M 10 | AB3: =M15 -> M 11 | AC3: =N15 -> M 12 | AD3: TOTAL
B4: Productos o Servicios | C4: Precio unitario | Q4: =Q17 -> TOTAL INGRESOS FIJOS | R4: =R17 -> 5639.45 | S4: =S17 -> 5689.45 | T4: =T17 -> 5689.45 | U4: =U17 -> 5739.45 | V4: =V17 -> 5739.45 | W4: =W17 -> 5739.45 | X4: =X17 -> 5789.45 | Y4: =Y17 -> 5789.45 | Z4: =Z17 -> 5789.45 | AA4: =AA17 -> 5789.45 | AB4: =AB17 -> 5839.45 | AC4: =AC17 -> 5839.45 | AD4: =SUM(R4:AC4) -> 69073.4
B5: Cuota espacio Veguiterraneo | C5: =247.5+116.86+449 -> 813.36 | Q5: =Q24 -> TOTAL INGRESOS VARIABLES | R5: =R24 -> 515 | S5: =S24 -> 565 | T5: =T24 -> 565 | U5: =U24 -> 640 | V5: =V24 -> 690 | W5: =W24 -> 375 | X5: =X24 -> 0 | Y5: =Y24 -> 0 | Z5: =Z24 -> 390 | AA5: =AA24 -> 690 | AB5: =AB24 -> 690 | AC5: =AC24 -> 565 | AD5: =SUM(R5:AC5) -> 5685
B6: Cuota espacio Mala letra | C6: =440.85+42.39+42.85 -> 526.09 | Q6: TOTAL INGRESOS | R6: =+R4+R5 -> 6154.45 | S6: =+S4+S5 -> 6254.45 | T6: =+T4+T5 -> 6254.45 | U6: =+U4+U5 -> 6379.45 | V6: =+V4+V5 -> 6429.45 | W6: =+W4+W5 -> 6114.45 | X6: =+X4+X5 -> 5789.45 | Y6: =+Y4+Y5 -> 5789.45 | Z6: =+Z4+Z5 -> 6179.45 | AA6: =+AA4+AA5 -> 6479.45 | AB6: =+AB4+AB5 -> 6529.45 | AC6: =+AC4+AC5 -> 6404.45 | AD6: =+AD4+AD5 -> 74758.4
B7: Cuota gastos Veguiterraneo | C7: ='gastos fijos'!#ref!*0.6+'gastos fijos'!#ref! -> 
B8: Cuota gastos Mala letra | C8: ='gastos fijos'!#ref!*0.6+'gastos fijos'!#ref!*0.15 -> 
B9: Cuotas personales | C9: 10 | P9: IVA % | Q9: Ingresos fijos | R9: =+C15 -> M 1 | S9: =+D15 -> M 2 | T9: =+E15 -> M 3 | U9: =+F15 -> M 4 | V9: =+G15 -> M 5 | W9: =+H15 -> M 6 | X9: =+I15 -> M 7 | Y9: =+J15 -> M 8 | Z9: =+K15 -> M 9 | AA9: =+L15 -> M 10 | AB9: =+M15 -> M 11 | AC9: =+N15 -> M 12 | AD9: TOTAL
B10: Alquiler espacios | C10: 50 | Q10: =+IF(B16="","",B16) -> Cuota espacio Veguiterraneo | R10: =+IFERROR(VLOOKUP($Q10,$B$5:$C$13,2,0)*C16,0) -> 813.36 | S10: =+IFERROR(VLOOKUP($Q10,$B$5:$C$13,2,0)*D16,0) -> 813.36 | T10: =+IFERROR(VLOOKUP($Q10,$B$5:$C$13,2,0)*E16,0) -> 813.36 | U10: =+IFERROR(VLOOKUP($Q10,$B$5:$C$13,2,0)*F16,0) -> 813.36 | V10: =+IFERROR(VLOOKUP($Q10,$B$5:$C$13,2,0)*G16,0) -> 813.36 | W10: =+IFERROR(VLOOKUP($Q10,$B$5:$C$13,2,0)*H16,0) -> 813.36 | X10: =+IFERROR(VLOOKUP($Q10,$B$5:$C$13,2,0)*I16,0) -> 813.36 | Y10: =+IFERROR(VLOOKUP($Q10,$B$5:$C$13,2,0)*J16,0) -> 813.36 | Z10: =+IFERROR(VLOOKUP($Q10,$B$5:$C$13,2,0)*K16,0) -> 813.36 | AA10: =+IFERROR(VLOOKUP($Q10,$B$5:$C$13,2,0)*L16,0) -> 813.36 | AB10: =+IFERROR(VLOOKUP($Q10,$B$5:$C$13,2,0)*M16,0) -> 813.36 | AC10: =+IFERROR(VLOOKUP($Q10,$B$5:$C$13,2,0)*N16,0) -> 813.36 | AD10: =SUM(R10:AC10) -> 9760.32
B11: Actividades | C11: 5 | Q11: =+IF(B17="","",B17) -> Cuota espacio Mala letra | R11: =+IFERROR(VLOOKUP($Q11,$B$5:$C$13,2,0)*C17,0) -> 526.09 | S11: =+IFERROR(VLOOKUP($Q11,$B$5:$C$13,2,0)*D17,0) -> 526.09 | T11: =+IFERROR(VLOOKUP($Q11,$B$5:$C$13,2,0)*E17,0) -> 526.09 | U11: =+IFERROR(VLOOKUP($Q11,$B$5:$C$13,2,0)*F17,0) -> 526.09 | V11: =+IFERROR(VLOOKUP($Q11,$B$5:$C$13,2,0)*G17,0) -> 526.09 | W11: =+IFERROR(VLOOKUP($Q11,$B$5:$C$13,2,0)*H17,0) -> 526.09 | X11: =+IFERROR(VLOOKUP($Q11,$B$5:$C$13,2,0)*I17,0) -> 526.09 | Y11: =+IFERROR(VLOOKUP($Q11,$B$5:$C$13,2,0)*J17,0) -> 526.09 | Z11: =+IFERROR(VLOOKUP($Q11,$B$5:$C$13,2,0)*K17,0) -> 526.09 | AA11: =+IFERROR(VLOOKUP($Q11,$B$5:$C$13,2,0)*L17,0) -> 526.09 | AB11: =+IFERROR(VLOOKUP($Q11,$B$5:$C$13,2,0)*M17,0) -> 526.09 | AC11: =+IFERROR(VLOOKUP($Q11,$B$5:$C$13,2,0)*N17,0) -> 526.09 | AD11: =SUM(R11:AC11) -> 6313.08
B12: Coworking | C12: 40 | Q12: =+IF(B18="","",B18) -> Cuota gastos Veguiterraneo | R12: =+IFERROR(VLOOKUP($Q12,$B$5:$C$13,2,0)*C18,0) -> 0 | S12: =+IFERROR(VLOOKUP($Q12,$B$5:$C$13,2,0)*D18,0) -> 0 | T12: =+IFERROR(VLOOKUP($Q12,$B$5:$C$13,2,0)*E18,0) -> 0 | U12: =+IFERROR(VLOOKUP($Q12,$B$5:$C$13,2,0)*F18,0) -> 0 | V12: =+IFERROR(VLOOKUP($Q12,$B$5:$C$13,2,0)*G18,0) -> 0 | W12: =+IFERROR(VLOOKUP($Q12,$B$5:$C$13,2,0)*H18,0) -> 0 | X12: =+IFERROR(VLOOKUP($Q12,$B$5:$C$13,2,0)*I18,0) -> 0 | Y12: =+IFERROR(VLOOKUP($Q12,$B$5:$C$13,2,0)*J18,0) -> 0 | Z12: =+IFERROR(VLOOKUP($Q12,$B$5:$C$13,2,0)*K18,0) -> 0 | AA12: =+IFERROR(VLOOKUP($Q12,$B$5:$C$13,2,0)*L18,0) -> 0 | AB12: =+IFERROR(VLOOKUP($Q12,$B$5:$C$13,2,0)*M18,0) -> 0 | AC12: =+IFERROR(VLOOKUP($Q12,$B$5:$C$13,2,0)*N18,0) -> 0 | AD12: =SUM(R12:AC12) -> 0
Q13: =+IF(B19="","",B19) -> Cuota gastos Mala letra | R13: =+IFERROR(VLOOKUP($Q13,$B$5:$C$13,2,0)*C19,0) -> 0 | S13: =+IFERROR(VLOOKUP($Q13,$B$5:$C$13,2,0)*D19,0) -> 0 | T13: =+IFERROR(VLOOKUP($Q13,$B$5:$C$13,2,0)*E19,0) -> 0 | U13: =+IFERROR(VLOOKUP($Q13,$B$5:$C$13,2,0)*F19,0) -> 0 | V13: =+IFERROR(VLOOKUP($Q13,$B$5:$C$13,2,0)*G19,0) -> 0 | W13: =+IFERROR(VLOOKUP($Q13,$B$5:$C$13,2,0)*H19,0) -> 0 | X13: =+IFERROR(VLOOKUP($Q13,$B$5:$C$13,2,0)*I19,0) -> 0 | Y13: =+IFERROR(VLOOKUP($Q13,$B$5:$C$13,2,0)*J19,0) -> 0 | Z13: =+IFERROR(VLOOKUP($Q13,$B$5:$C$13,2,0)*K19,0) -> 0 | AA13: =+IFERROR(VLOOKUP($Q13,$B$5:$C$13,2,0)*L19,0) -> 0 | AB13: =+IFERROR(VLOOKUP($Q13,$B$5:$C$13,2,0)*M19,0) -> 0 | AC13: =+IFERROR(VLOOKUP($Q13,$B$5:$C$13,2,0)*N19,0) -> 0 | AD13: =SUM(R13:AC13) -> 0
Q14: =+IF(B20="","",B20) -> Cuotas personales | R14: =+IFERROR(VLOOKUP($Q14,$B$5:$C$13,2,0)*C20,0) -> 4300 | S14: =+IFERROR(VLOOKUP($Q14,$B$5:$C$13,2,0)*D20,0) -> 4350 | T14: =+IFERROR(VLOOKUP($Q14,$B$5:$C$13,2,0)*E20,0) -> 4350 | U14: =+IFERROR(VLOOKUP($Q14,$B$5:$C$13,2,0)*F20,0) -> 4400 | V14: =+IFERROR(VLOOKUP($Q14,$B$5:$C$13,2,0)*G20,0) -> 4400 | W14: =+IFERROR(VLOOKUP($Q14,$B$5:$C$13,2,0)*H20,0) -> 4400 | X14: =+IFERROR(VLOOKUP($Q14,$B$5:$C$13,2,0)*I20,0) -> 4450 | Y14: =+IFERROR(VLOOKUP($Q14,$B$5:$C$13,2,0)*J20,0) -> 4450 | Z14: =+IFERROR(VLOOKUP($Q14,$B$5:$C$13,2,0)*K20,0) -> 4450 | AA14: =+IFERROR(VLOOKUP($Q14,$B$5:$C$13,2,0)*L20,0) -> 4450 | AB14: =+IFERROR(VLOOKUP($Q14,$B$5:$C$13,2,0)*M20,0) -> 4500 | AC14: =+IFERROR(VLOOKUP($Q14,$B$5:$C$13,2,0)*N20,0) -> 4500 | AD14: =SUM(R14:AC14) -> 53000
B15: Unidades Ingresos Fijos | C15: M 1 | D15: M 2 | E15: M 3 | F15: M 4 | G15: M 5 | H15: M 6 | I15: M 7 | J15: M 8 | K15: M 9 | L15: M 10 | M15: M 11 | N15: M 12
B16: =B5 -> Cuota espacio Veguiterraneo | C16: 1 | D16: 1 | E16: 1 | F16: 1 | G16: 1 | H16: 1 | I16: 1 | J16: 1 | K16: 1 | L16: 1 | M16: 1 | N16: 1 | P16: IVA % | Q16: OTROS INGRESOS | R16: =+R9 -> M 1 | S16: =+S9 -> M 2 | T16: =+T9 -> M 3 | U16: =+U9 -> M 4 | V16: =+V9 -> M 5 | W16: =+W9 -> M 6 | X16: =+X9 -> M 7 | Y16: =+Y9 -> M 8 | Z16: =+Z9 -> M 9 | AA16: =+AA9 -> M 10 | AB16: =+AB9 -> M 11 | AC16: =+AC9 -> M 12 | AD16: =+AD9 -> TOTAL
B17: =B6 -> Cuota espacio Mala letra | C17: 1 | D17: 1 | E17: 1 | F17: 1 | G17: 1 | H17: 1 | I17: 1 | J17: 1 | K17: 1 | L17: 1 | M17: 1 | N17: 1 | Q17: TOTAL INGRESOS FIJOS | R17: =+SUM(R10:R14) -> 5639.45 | S17: =+SUM(S10:S14) -> 5689.45 | T17: =+SUM(T10:T14) -> 5689.45 | U17: =+SUM(U10:U14) -> 5739.45 | V17: =+SUM(V10:V14) -> 5739.45 | W17: =+SUM(W10:W14) -> 5739.45 | X17: =+SUM(X10:X14) -> 5789.45 | Y17: =+SUM(Y10:Y14) -> 5789.45 | Z17: =+SUM(Z10:Z14) -> 5789.45 | AA17: =+SUM(AA10:AA14) -> 5789.45 | AB17: =+SUM(AB10:AB14) -> 5839.45 | AC17: =+SUM(AC10:AC14) -> 5839.45 | AD17: =SUM(R17:AC17) -> 69073.4
B18: =B7 -> Cuota gastos Veguiterraneo | C18: 1 | D18: 1 | E18: 1 | F18: 1 | G18: 1 | H18: 1 | I18: 1 | J18: 1 | K18: 1 | L18: 1 | M18: 1 | N18: 1
B19: =B8 -> Cuota gastos Mala letra | C19: 1 | D19: 1 | E19: 1 | F19: 1 | G19: 1 | H19: 1 | I19: 1 | J19: 1 | K19: 1 | L19: 1 | M19: 1 | N19: 1 | P19: IVA % | Q19: Ingresos variables | R19: =+C23 ->  | S19: =+D23 ->  | T19: =+E23 ->  | U19: =+F23 ->  | V19: =+G23 ->  | W19: =+H23 ->  | X19: =+I23 ->  | Y19: =+J23 ->  | Z19: =+K23 ->  | AA19: =+L23 ->  | AB19: =+M23 ->  | AC19: =+N23 ->  | AD19: TOTAL
B20: =B9 -> Cuotas personales | C20: 430 | D20: 435 | E20: 435 | F20: 440 | G20: 440 | H20: 440 | I20: 445 | J20: 445 | K20: 445 | L20: 445 | M20: 450 | N20: 450 | Q20: =+IF(B24="","",B24) -> Alquiler espacios | R20: =+IFERROR(VLOOKUP($Q20,$B$5:$C$13,2,0)*C24,0) -> 100 | S20: =+IFERROR(VLOOKUP($Q20,$B$5:$C$13,2,0)*D24,0) -> 100 | T20: =+IFERROR(VLOOKUP($Q20,$B$5:$C$13,2,0)*E24,0) -> 100 | U20: =+IFERROR(VLOOKUP($Q20,$B$5:$C$13,2,0)*F24,0) -> 150 | V20: =+IFERROR(VLOOKUP($Q20,$B$5:$C$13,2,0)*G24,0) -> 200 | W20: =+IFERROR(VLOOKUP($Q20,$B$5:$C$13,2,0)*H24,0) -> 200 | X20: =+IFERROR(VLOOKUP($Q20,$B$5:$C$13,2,0)*I24,0) -> 0 | Y20: =+IFERROR(VLOOKUP($Q20,$B$5:$C$13,2,0)*J24,0) -> 0 | Z20: =+IFERROR(VLOOKUP($Q20,$B$5:$C$13,2,0)*K24,0) -> 150 | AA20: =+IFERROR(VLOOKUP($Q20,$B$5:$C$13,2,0)*L24,0) -> 200 | AB20: =+IFERROR(VLOOKUP($Q20,$B$5:$C$13,2,0)*M24,0) -> 200 | AC20: =+IFERROR(VLOOKUP($Q20,$B$5:$C$13,2,0)*N24,0) -> 150 | AD20: =SUM(R20:AC20) -> 1550
Q21: =+IF(B25="","",B25) -> Actividades | R21: =+IFERROR(VLOOKUP($Q21,$B$5:$C$13,2,0)*C25,0) -> 175 | S21: =+IFERROR(VLOOKUP($Q21,$B$5:$C$13,2,0)*D25,0) -> 225 | T21: =+IFERROR(VLOOKUP($Q21,$B$5:$C$13,2,0)*E25,0) -> 225 | U21: =+IFERROR(VLOOKUP($Q21,$B$5:$C$13,2,0)*F25,0) -> 250 | V21: =+IFERROR(VLOOKUP($Q21,$B$5:$C$13,2,0)*G25,0) -> 250 | W21: =+IFERROR(VLOOKUP($Q21,$B$5:$C$13,2,0)*H25,0) -> 175 | X21: =+IFERROR(VLOOKUP($Q21,$B$5:$C$13,2,0)*I25,0) -> 0 | Y21: =+IFERROR(VLOOKUP($Q21,$B$5:$C$13,2,0)*J25,0) -> 0 | Z21: =+IFERROR(VLOOKUP($Q21,$B$5:$C$13,2,0)*K25,0) -> 0 | AA21: =+IFERROR(VLOOKUP($Q21,$B$5:$C$13,2,0)*L25,0) -> 250 | AB21: =+IFERROR(VLOOKUP($Q21,$B$5:$C$13,2,0)*M25,0) -> 250 | AC21: =+IFERROR(VLOOKUP($Q21,$B$5:$C$13,2,0)*N25,0) -> 175 | AD21: =SUM(R21:AC21) -> 1975
C22: =SUM(C16:C21) -> 434 | D22: =SUM(D16:D21) -> 439 | E22: =SUM(E16:E21) -> 439 | F22: =SUM(F16:F21) -> 444 | G22: =SUM(G16:G21) -> 444 | H22: =SUM(H16:H21) -> 444 | I22: =SUM(I16:I21) -> 449 | J22: =SUM(J16:J21) -> 449 | K22: =SUM(K16:K21) -> 449 | L22: =SUM(L16:L21) -> 449 | M22: =SUM(M16:M21) -> 454 | N22: =SUM(N16:N21) -> 454 | Q22: =+IF(B26="","",B26) -> Coworking | R22: =+IFERROR(VLOOKUP($Q22,$B$5:$C$13,2,0)*C26,0) -> 240 | S22: =+IFERROR(VLOOKUP($Q22,$B$5:$C$13,2,0)*D26,0) -> 240 | T22: =+IFERROR(VLOOKUP($Q22,$B$5:$C$13,2,0)*E26,0) -> 240 | U22: =+IFERROR(VLOOKUP($Q22,$B$5:$C$13,2,0)*F26,0) -> 240 | V22: =+IFERROR(VLOOKUP($Q22,$B$5:$C$13,2,0)*G26,0) -> 240 | W22: =+IFERROR(VLOOKUP($Q22,$B$5:$C$13,2,0)*H26,0) -> 0 | X22: =+IFERROR(VLOOKUP($Q22,$B$5:$C$13,2,0)*I26,0) -> 0 | Y22: =+IFERROR(VLOOKUP($Q22,$B$5:$C$13,2,0)*J26,0) -> 0 | Z22: =+IFERROR(VLOOKUP($Q22,$B$5:$C$13,2,0)*K26,0) -> 240 | AA22: =+IFERROR(VLOOKUP($Q22,$B$5:$C$13,2,0)*L26,0) -> 240 | AB22: =+IFERROR(VLOOKUP($Q22,$B$5:$C$13,2,0)*M26,0) -> 240 | AC22: =+IFERROR(VLOOKUP($Q22,$B$5:$C$13,2,0)*N26,0) -> 240 | AD22: =SUM(R22:AC22) -> 2160
B23: Unidades Ingresos Variables | C23: =+#REF! ->  | D23: =+#REF! ->  | E23: =+#REF! ->  | F23: =+#REF! ->  | G23: =+#REF! ->  | H23: =+#REF! ->  | I23: =+#REF! ->  | J23: =+#REF! ->  | K23: =+#REF! ->  | L23: =+#REF! ->  | M23: =+#REF! ->  | N23: =+#REF! ->  | Q23: OTROS INGRESOS | R23: =+R19 ->  | S23: =+S19 ->  | T23: =+T19 ->  | U23: =+U19 ->  | V23: =+V19 ->  | W23: =+W19 ->  | X23: =+X19 ->  | Y23: =+Y19 ->  | Z23: =+Z19 ->  | AA23: =+AA19 ->  | AB23: =+AB19 ->  | AC23: =+AC19 ->  | AD23: =+AD19 -> TOTAL
B24: =B10 -> Alquiler espacios | C24: 2 | D24: 2 | E24: 2 | F24: 3 | G24: 4 | H24: 4 | I24: 0 | J24: 0 | K24: 3 | L24: 4 | M24: 4 | N24: 3 | P24: IVA % | Q24: TOTAL INGRESOS VARIABLES | R24: =+SUM(R20:R22) -> 515 | S24: =+SUM(S20:S22) -> 565 | T24: =+SUM(T20:T22) -> 565 | U24: =+SUM(U20:U22) -> 640 | V24: =+SUM(V20:V22) -> 690 | W24: =+SUM(W20:W22) -> 375 | X24: =+SUM(X20:X22) -> 0 | Y24: =+SUM(Y20:Y22) -> 0 | Z24: =+SUM(Z20:Z22) -> 390 | AA24: =+SUM(AA20:AA22) -> 690 | AB24: =+SUM(AB20:AB22) -> 690 | AC24: =+SUM(AC20:AC22) -> 565 | AD24: =SUM(R24:AC24) -> 5685
B25: =B11 -> Actividades | C25: 35 | D25: 45 | E25: 45 | F25: 50 | G25: 50 | H25: 35 | I25: 0 | J25: 0 | K25: 0 | L25: 50 | M25: 50 | N25: 35
B26: =B12 -> Coworking | C26: 6 | D26: 6 | E26: 6 | F26: 6 | G26: 6 | H26: 0 | I26: 0 | J26: 0 | K26: 6 | L26: 6 | M26: 6 | N26: 6

Sheet Flujo caja 2024
B1: FLUJO DE CAJA 2024 | D1: ENE | E1: FEB | F1: MAR | G1: ABR | H1: MAY | I1: JUN | J1: JUL | K1: AGO | L1: SEP | M1: OCT | N1: NOV | O1: DIC | P1: Total
B3: Saldo inicial | D3: 295506.814 | E3: =+D71 -> 275492.518 | F3: =+E71 -> 286866.0887 | G3: =+F71 -> 298239.6493 | H3: =+G71 -> 452037.5084 | I3: =+H71 -> 460527.209 | J3: =+I71 -> 460231.0797 | K3: =+J71 -> 402078.1111 | L3: =+K71 -> 709914.1017 | M3: =+L71 -> 717573.8524 | N3: =+M71 -> 112951.573 | O3: =+N71 -> 123252.6224 | P3: =+O71 -> 165152.8968
B5: Ingresos
B6: 700 VENTAS DE MERCADERÍAS | D6: =+'Ingresos (y simuladores)'!C5/12 -> 105681.9947 | E6: =+D6 -> 105681.9947 | F6: =+E6 -> 105681.9947 | G6: =+F6 -> 105681.9947 | H6: =+G6 -> 105681.9947 | I6: =+H6 -> 105681.9947 | J6: =+I6 -> 105681.9947 | K6: =+J6 -> 105681.9947 | L6: =+K6 -> 105681.9947 | M6: =+L6 -> 105681.9947 | N6: =+M6 -> 105681.9947 | O6: =+N6 -> 105681.9947 | P6: =SUM(D6:O6) -> 1268183.936
B7: 705 PRESTACIONES DE SERVICIOS | D7: =+'Ingresos (y simuladores)'!C6/12 -> 9764.459225 | E7: =+D7 -> 9764.459225 | F7: =+E7 -> 9764.459225 | G7: =+F7 -> 9764.459225 | H7: =+G7 -> 9764.459225 | I7: =+H7 -> 9764.459225 | J7: =+I7 -> 9764.459225 | K7: =+J7 -> 9764.459225 | L7: =+K7 -> 9764.459225 | M7: =+L7 -> 9764.459225 | N7: =+M7 -> 9764.459225 | O7: =+N7 -> 9764.459225 | P7: =SUM(D7:O7) -> 117173.5107
B8: ALQUILER ESPACIOS | D8: =+'Ingresos (y simuladores)'!C7/12 -> 250 | E8: =+D8 -> 250 | F8: =+E8 -> 250 | G8: =+F8 -> 250 | H8: =+G8 -> 250 | I8: =+H8 -> 250 | J8: =+I8 -> 250 | K8: =+J8 -> 250 | L8: =+K8 -> 250 | M8: =+L8 -> 250 | N8: =+M8 -> 250 | O8: =+N8 -> 250 | P8: =SUM(D8:O8) -> 3000
B9: 700 APERTURA DOMINGOS | D9: =+'Ingresos (y simuladores)'!C8/12 -> 0 | E9: =+D9 -> 0 | F9: =+E9 -> 0 | G9: =+F9 -> 0 | H9: =+G9 -> 0 | I9: =+H9 -> 0 | J9: =+I9 -> 0 | K9: =+J9 -> 0 | L9: =+K9 -> 0 | M9: =+L9 -> 0 | N9: =+M9 -> 0 | O9: =+N9 -> 0 | P9: =SUM(D9:O9) -> 0
B10: 720 DONACIONES DIRECTAS | D10: =+'Ingresos (y simuladores)'!C9/12 -> 8333.333333 | E10: =+D10 -> 8333.333333 | F10: =+E10 -> 8333.333333 | G10: =+F10 -> 8333.333333 | H10: =+G10 -> 8333.333333 | I10: =+H10 -> 8333.333333 | J10: =+I10 -> 8333.333333 | K10: =+J10 -> 8333.333333 | L10: =+K10 -> 8333.333333 | M10: =+L10 -> 8333.333333 | N10: =+M10 -> 8333.333333 | O10: =+N10 -> 8333.333333 | P10: =SUM(D10:O10) -> 100000
B11: 720 CROWFUNDING | D11: =+'Ingresos (y simuladores)'!C10/12 -> 4166.666667 | E11: =+D11 -> 4166.666667 | F11: =+E11 -> 4166.666667 | G11: =+F11 -> 4166.666667 | H11: =+G11 -> 4166.666667 | I11: =+H11 -> 4166.666667 | J11: =+I11 -> 4166.666667 | K11: =+J11 -> 4166.666667 | L11: =+K11 -> 4166.666667 | M11: =+L11 -> 4166.666667 | N11: =+M11 -> 4166.666667 | O11: =+N11 -> 4166.666667 | P11: =SUM(D11:O11) -> 50000
B12: 740 SUBVENCIONES, DONACIONES Y LE | D12: =+'Ingresos (y simuladores)'!C11/12 -> 2659.0125 | E12: =+D12 -> 2659.0125 | F12: =+E12 -> 2659.0125 | G12: =+F12 -> 2659.0125 | H12: =+G12 -> 2659.0125 | I12: =+H12 -> 2659.0125 | J12: =+I12 -> 2659.0125 | K12: =+J12 -> 2659.0125 | L12: =+K12 -> 2659.0125 | M12: =+L12 -> 2659.0125 | N12: =+M12 -> 2659.0125 | O12: =+N12 -> 2659.0125 | P12: =SUM(D12:O12) -> 31908.15
B13: Otros ingresos de explotación | P13: =SUM(D13:O13) -> 0
B14: Total Ingresos | D14: =SUM(D6:D13) -> 130855.4664 | E14: =SUM(E6:E13) -> 130855.4664 | F14: =SUM(F6:F13) -> 130855.4664 | G14: =SUM(G6:G13) -> 130855.4664 | H14: =SUM(H6:H13) -> 130855.4664 | I14: =SUM(I6:I13) -> 130855.4664 | J14: =SUM(J6:J13) -> 130855.4664 | K14: =SUM(K6:K13) -> 130855.4664 | L14: =SUM(L6:L13) -> 130855.4664 | M14: =SUM(M6:M13) -> 130855.4664 | N14: =SUM(N6:N13) -> 130855.4664 | O14: =SUM(O6:O13) -> 130855.4664 | P14: =SUM(D14:O14) -> 1570265.597
B16: Gastos
B17: 600 COMPRAS DE MERCADERÍAS | D17: =+'P&G'!F17/12 -> -60598.91271 | E17: =+D17 -> -60598.91271 | F17: =+E17 -> -60598.91271 | G17: =+F17 -> -60598.91271 | H17: =+G17 -> -60598.91271 | I17: =+H17 -> -60598.91271 | J17: =+I17 -> -60598.91271 | K17: =+J17 -> -60598.91271 | L17: =+K17 -> -60598.91271 | M17: =+L17 -> -60598.91271 | N17: =+M17 -> -60598.91271 | O17: =+N17 -> -60598.91271 | P17: =SUM(D17:O17) -> -727186.9525
B18: 600 C. DE MERCADERÍAS DOMINGOS | E18: =+D18 -> 0 | L18: =-L8*0.7 -> -175 | M18: =-M8*0.7 -> -175 | N18: =-N8*0.7 -> -175 | O18: =-O8*0.7 -> -175 | P18: =SUM(D18:O18) -> -700
B19: 607 TRABAJOS REALIZADOS POR OTRAS | D19: =+'P&G'!F18/12 -> -3893.812858 | E19: =+D19 -> -3893.812858 | F19: =+E19 -> -3893.812858 | G19: =+F19 -> -3893.812858 | H19: =+G19 -> -3893.812858 | I19: =+H19 -> -3893.812858 | J19: =+I19 -> -3893.812858 | K19: =+J19 -> -3893.812858 | L19: =+K19 -> -3893.812858 | M19: =+L19 -> -3893.812858 | N19: =+M19 -> -3893.812858 | O19: =+N19 -> -3893.812858 | P19: =SUM(D19:O19) -> -46725.7543
B20: 640 SUELDOS Y SALARIOS | D20: =-'Gastos Fijos'!C35 -> -28619.72625 | E20: =-'Gastos Fijos'!D35 -> -28619.72625 | F20: =-'Gastos Fijos'!E35 -> -28619.72625 | G20: =-'Gastos Fijos'!F35 -> -28619.72625 | H20: =-'Gastos Fijos'!G35 -> -28619.72625 | I20: =-'Gastos Fijos'!H35 -> -28619.72625 | J20: =-'Gastos Fijos'!I35 -> -28619.72625 | K20: =-'Gastos Fijos'!J35 -> -28619.72625 | L20: =-'Gastos Fijos'!K35 -> -28619.72625 | M20: =-'Gastos Fijos'!L35 -> -28619.72625 | N20: =-'Gastos Fijos'!M35 -> -28619.72625 | O20: =-'Gastos Fijos'!N35 -> -28619.72625 | P20: =SUM(D20:O20) -> -343436.715
B21: 642 SEGURIDAD SOCIAL A CARGO DE L | D21: =-'Gastos Fijos'!C36 -> -8962.40375 | E21: =-'Gastos Fijos'!D36 -> -8962.40375 | F21: =-'Gastos Fijos'!E36 -> -8962.40375 | G21: =-'Gastos Fijos'!F36 -> -8962.40375 | H21: =-'Gastos Fijos'!G36 -> -8962.40375 | I21: =-'Gastos Fijos'!H36 -> -8962.40375 | J21: =-'Gastos Fijos'!I36 -> -8962.40375 | K21: =-'Gastos Fijos'!J36 -> -8962.40375 | L21: =-'Gastos Fijos'!K36 -> -8962.40375 | M21: =-'Gastos Fijos'!L36 -> -8962.40375 | N21: =-'Gastos Fijos'!M36 -> -8962.40375 | O21: =-'Gastos Fijos'!N36 -> -8962.40375 | P21: =SUM(D21:O21) -> -107548.845
B22: 621 ARRENDAMIENTOS Y CÁNONES | D22: =+('P&G'!F30-950-950)/10 -> -3174.58875 | E22: =+D22 -> -3174.58875 | F22: =+E22 -> -3174.58875 | G22: =+F22 -> -3174.58875 | H22: =+G22 -> -3174.58875 | I22: =+H22 -> -3174.58875 | J22: =+I22 -> -3174.58875 | K22: =+J22 -> -3174.58875 | L22: =+K22 -> -3174.58875 | M22: =+L22 -> -3174.58875 | N22: 950 | O22: 950 | P22: =SUM(D22:O22) -> -29845.8875
B23: 622 REPARACIONES Y CONSERVACIÓN | D23: =+'P&G'!F31/12 -> -560.6633333 | E23: =+D23 -> -560.6633333 | F23: =+E23 -> -560.6633333 | G23: =+F23 -> -560.6633333 | H23: =+G23 -> -560.6633333 | I23: =+H23 -> -560.6633333 | J23: =+I23 -> -560.6633333 | K23: =+J23 -> -560.6633333 | L23: =+K23 -> -560.6633333 | M23: =+L23 -> -560.6633333 | N23: =+M23 -> -560.6633333 | O23: =+N23 -> -560.6633333 | P23: =SUM(D23:O23) -> -6727.96
B24: 623 SERVICIOS DE PROFESIONALES IN | D24: =+'P&G'!F32/12 -> -541.0272417 | E24: =+D24 -> -541.0272417 | F24: =+E24 -> -541.0272417 | G24: =+F24 -> -541.0272417 | H24: =+G24 -> -541.0272417 | I24: =+H24 -> -541.0272417 | J24: =+I24 -> -541.0272417 | K24: =+J24 -> -541.0272417 | L24: =+K24 -> -541.0272417 | M24: =+L24 -> -541.0272417 | N24: =+M24 -> -541.0272417 | O24: =+N24 -> -541.0272417 | P24: =SUM(D24:O24) -> -6492.3269
B25: 624 TRANSPORTES | D25: =+'P&G'!F33/12 -> -2959.373683 | E25: =+D25 -> -2959.373683 | F25: =+E25 -> -2959.373683 | G25: =+F25 -> -2959.373683 | H25: =+G25 -> -2959.373683 | I25: =+H25 -> -2959.373683 | J25: =+I25 -> -2959.373683 | K25: =+J25 -> -2959.373683 | L25: =+K25 -> -2959.373683 | M25: =+L25 -> -2959.373683 | N25: =+M25 -> -2959.373683 | O25: =+N25 -> -2959.373683 | P25: =SUM(D25:O25) -> -35512.4842
B26: 625 PRIMAS DE SEGUROS | D26: =+'P&G'!F34/12 -> -92.34550833 | E26: =+D26 -> -92.34550833 | F26: =+E26 -> -92.34550833 | G26: =+F26 -> -92.34550833 | H26: =+G26 -> -92.34550833 | I26: =+H26 -> -92.34550833 | J26: =+I26 -> -92.34550833 | K26: =+J26 -> -92.34550833 | L26: =+K26 -> -92.34550833 | M26: =+L26 -> -92.34550833 | N26: =+M26 -> -92.34550833 | O26: =+N26 -> -92.34550833 | P26: =SUM(D26:O26) -> -1108.1461
B27: 626 SERVICIOS BANCARIOS Y SIMILAR | D27: =+'P&G'!F35/12 -> -588.029575 | E27: =+D27 -> -588.029575 | F27: =+E27 -> -588.029575 | G27: =+F27 -> -588.029575 | H27: =+G27 -> -588.029575 | I27: =+H27 -> -588.029575 | J27: =+I27 -> -588.029575 | K27: =+J27 -> -588.029575 | L27: =+K27 -> -588.029575 | M27: =+L27 -> -588.029575 | N27: =+M27 -> -588.029575 | O27: =+N27 -> -588.029575 | P27: =SUM(D27:O27) -> -7056.3549
B28: 627 PUBLICIDAD, PROPAGANDA Y RELA | D28: =+'P&G'!F36/12 -> -55.26808333 | E28: =+D28 -> -55.26808333 | F28: =+E28 -> -55.26808333 | G28: =+F28 -> -55.26808333 | H28: =+G28 -> -55.26808333 | I28: =+H28 -> -55.26808333 | J28: =+I28 -> -55.26808333 | K28: =+J28 -> -55.26808333 | L28: =+K28 -> -55.26808333 | M28: =+L28 -> -55.26808333 | N28: =+M28 -> -55.26808333 | O28: =+N28 -> -55.26808333 | P28: =SUM(D28:O28) -> -663.217
B29: 628 SUMINISTROS | D29: =+'P&G'!F37/12 -> -451.0953667 | E29: =+D29 -> -451.0953667 | F29: =+E29 -> -451.0953667 | G29: =+F29 -> -451.0953667 | H29: =+G29 -> -451.0953667 | I29: =+H29 -> -451.0953667 | J29: =+I29 -> -451.0953667 | K29: =+J29 -> -451.0953667 | L29: =+K29 -> -451.0953667 | M29: =+L29 -> -451.0953667 | N29: =+M29 -> -451.0953667 | O29: =+N29 -> -451.0953667 | P29: =SUM(D29:O29) -> -5413.1444
B30: 629 OTROS SERVICIOS | D30: =+'P&G'!F38/12 -> -5917.449567 | E30: =+D30 -> -5917.449567 | F30: =+E30 -> -5917.449567 | G30: =+F30 -> -5917.449567 | H30: =+G30 -> -5917.449567 | I30: =+H30 -> -5917.449567 | J30: =+I30 -> -5917.449567 | K30: =+J30 -> -5917.449567 | L30: =+K30 -> -5917.449567 | M30: =+L30 -> -5917.449567 | N30: =+M30 -> -5917.449567 | O30: =+N30 -> -5917.449567 | P30: =SUM(D30:O30) -> -71009.3948
B31: 631 OTROS TRIBUTOS | D31: =+'P&G'!F39/12 -> -416.4890833 | E31: =+D31 -> -416.4890833 | F31: =+E31 -> -416.4890833 | G31: =+F31 -> -416.4890833 | H31: =+G31 -> -416.4890833 | I31: =+H31 -> -416.4890833 | J31: =+I31 -> -416.4890833 | K31: =+J31 -> -416.4890833 | L31: =+K31 -> -416.4890833 | M31: =+L31 -> -416.4890833 | N31: =+M31 -> -416.4890833 | O31: =+N31 -> -416.4890833 | P31: =SUM(D31:O31) -> -4997.869
B32: 634 AJUSTES NEGATIVOS PRORRATA IVA
B37: Total Gastos | D37: =SUM(D17:D31) -> -116831.1858 | E37: =SUM(E17:E31) -> -116831.1858 | F37: =SUM(F17:F31) -> -116831.1858 | G37: =SUM(G17:G31) -> -116831.1858 | H37: =SUM(H17:H31) -> -116831.1858 | I37: =SUM(I17:I31) -> -116831.1858 | J37: =SUM(J17:J31) -> -116831.1858 | K37: =SUM(K17:K31) -> -116831.1858 | L37: =SUM(L17:L31) -> -117006.1858 | M37: =SUM(M17:M31) -> -117006.1858 | N37: =SUM(N17:N31) -> -112881.597 | O37: =SUM(O17:O31) -> -112881.597 | P37: =SUM(P17:P31) -> -1394425.052
B39: Flujo de caja económico | D39: =D3+D14+D37 -> 309531.0946 | E39: =E3+E14+E37 -> 289516.7987 | F39: =F3+F14+F37 -> 300890.3693 | G39: =G3+G14+G37 -> 312263.93 | H39: =H3+H14+H37 -> 466061.789 | I39: =I3+I14+I37 -> 474551.4897 | J39: =J3+J14+J37 -> 474255.3603 | K39: =K3+K14+K37 -> 416102.3917 | L39: =L3+L14+L37 -> 723763.3824 | M39: =M3+M14+M37 -> 731423.133 | N39: =N3+N14+N37 -> 130925.4424 | O39: =O3+O14+O37 -> 141226.4918 | P39: =+P14+P37 -> 175840.5453
P40: =SUM(D40:O40) -> 0
B41: Financiamiento | P41: =SUM(D41:O41) -> 0
B42: Prestamos | D42: =SUM(D43:D45) -> 0 | E42: =SUM(E43:E45) -> 0 | F42: =SUM(F43:F45) -> 0 | G42: =SUM(G43:G45) -> 225000 | H42: =SUM(H43:H45) -> 0 | I42: =SUM(I43:I45) -> 0 | J42: =SUM(J43:J45) -> 0 | K42: =SUM(K43:K45) -> 300000 | L42: =SUM(L43:L45) -> 0 | M42: =SUM(M43:M45) -> 675000 | N42: =SUM(N43:N45) -> 0 | O42: =SUM(O43:O45) -> 0 | P42: =SUM(D42:O42) -> 1200000
C43: Prestamo 225 | G43: =+Financiacion!G7 -> 225000 | P43: =SUM(D43:O43) -> 225000
C44: Prestamo 675 | M44: =+Financiacion!P7 -> 675000 | P44: =SUM(D44:O44) -> 675000
C45: Deuda a LP | K45: =+Financiacion!AF7 -> 300000 | P45: =SUM(D45:O45) -> 300000
B46: Amortizaciòn prestamos | D46: =SUM(D47:D50) -> -2258.27 | E46: =SUM(E47:E50) -> -2263.44 | F46: =SUM(F47:F50) -> -2268.63 | G46: =SUM(G47:G50) -> -4662.86 | H46: =SUM(H47:H50) -> -4674.55 | I46: =SUM(I47:I50) -> -4686.25 | J46: =SUM(J47:J50) -> -4698 | K46: =SUM(K47:K50) -> -4709.76 | L46: =SUM(L47:L50) -> -4721.56 | M46: =SUM(M47:M50) -> -4733.39 | N46: =SUM(N47:N50) -> -4745.26 | O46: =SUM(O47:O50) -> -4757.14 | P46: =SUM(D46:O46) -> -49179.11
C47: ANTERIOR | D47: -2258.27 | E47: -2263.44 | F47: -2268.63 | G47: -2273.83 | H47: -2279.04 | I47: -2284.26 | J47: -2289.5 | K47: -2294.74 | L47: -2300 | M47: -2305.27 | N47: -2310.56 | O47: -2315.85 | P47: =SUM(D47:O47) -> -27443.39
C48: Prestamo 225 | G48: =-Financiacion!H21 -> -2389.03 | H48: =-Financiacion!$H22 -> -2395.51 | I48: =-Financiacion!$H23 -> -2401.99 | J48: =-Financiacion!$H24 -> -2408.5 | K48: =-Financiacion!$H25 -> -2415.02 | L48: =-Financiacion!$H26 -> -2421.56 | M48: =-Financiacion!$H27 -> -2428.12 | N48: =-Financiacion!$H28 -> -2434.7 | O48: =-Financiacion!$H29 -> -2441.29 | P48: =SUM(D48:O48) -> -21735.72
C49: Prestamo 675 | P49: =SUM(D49:O49) -> 0
C50: Deuda a LP | P50: =SUM(D50:O50) -> 0
B51: Interese prestamos | D51: =SUM(D52:D55) -> -392.45 | E51: =SUM(E52:E55) -> -387.27 | F51: =SUM(F52:F55) -> -382.09 | G51: =SUM(G52:G55) -> -870.49 | H51: =SUM(H52:H55) -> -860.03 | I51: =SUM(I52:I55) -> -849.56 | J51: =SUM(J52:J55) -> -839.05 | K51: =SUM(K52:K55) -> -1478.53 | L51: =SUM(L52:L55) -> -1467.97 | M51: =SUM(M52:M55) -> -2938.17 | N51: =SUM(N52:N55) -> -2927.56 | O51: =SUM(O52:O55) -> -2916.93 | P51: =SUM(D51:O51) -> -16310.1
C52: ANTERIOR | D52: -392.45 | E52: -387.27 | F52: -382.09 | G52: -376.89 | H52: -371.68 | I52: -366.46 | J52: -361.22 | K52: -355.98 | L52: -350.72 | M52: -345.45 | N52: -340.16 | O52: -334.87 | P52: =SUM(D52:O52) -> -4365.24
C53: Prestamo 225 | G53: =-Financiacion!$K21 -> -493.6 | H53: =-Financiacion!$K22 -> -488.35 | I53: =-Financiacion!$K23 -> -483.1 | J53: =-Financiacion!$K24 -> -477.83 | K53: =-Financiacion!$K25 -> -472.55 | L53: =-Financiacion!$K26 -> -467.25 | M53: =-Financiacion!$K27 -> -461.93 | N53: =-Financiacion!$K28 -> -456.61 | O53: =-Financiacion!$K29 -> -451.27 | P53: =SUM(D53:O53) -> -4252.49
C54: Prestamo 675 | M54: =-Financiacion!U21 -> -1480.79 | N54: =+M54 -> -1480.79 | O54: =+N54 -> -1480.79 | P54: =SUM(D54:O54) -> -4442.37
C55: Deuda a LP | K55: =-Financiacion!AF22 -> -650 | L55: =+K55 -> -650 | M55: =+L55 -> -650 | N55: =+M55 -> -650 | O55: =+N55 -> -650 | P55: =SUM(D55:O55) -> -3250
P56: =SUM(D56:O56) -> 0
B57: Total Financiamiento | D57: =+D42+D46+D51 -> -2650.72 | E57: =+E42+E46+E51 -> -2650.71 | F57: =+F42+F46+F51 -> -2650.72 | G57: =+G42+G46+G51 -> 219466.65 | H57: =+H42+H46+H51 -> -5534.58 | I57: =+I42+I46+I51 -> -5535.81 | J57: =+J42+J46+J51 -> -5537.05 | K57: =+K42+K46+K51 -> 293811.71 | L57: =+L42+L46+L51 -> -6189.53 | M57: =+M42+M46+M51 -> 667328.44 | N57: =+N42+N46+N51 -> -7672.82 | O57: =+O42+O46+O51 -> -7674.07 | P57: =SUM(D57:O57) -> 1134510.79
B59: Pago inversiones
B60: Compra Local | M60: =-'Inversion Inicial'!D31 -> -1206000 | P60: =SUM(D60:O60) -> -1206000
B61: Impuestos compra y Fondo Garatía | M61: =-'Inversion Inicial'!D27-'Inversion Inicial'!D28-'Inversion Inicial'!D29 -> -79800 | P61: =SUM(D61:O61) -> -79800
A62: =-('Inversion Inicial'!D21+'Inversion Inicial'!D22) -> -157355.8425 | B62: Reforma del local (Obra + Fondo de desviaciones) | D62: =+A62*20% -> -31471.1685 | G62: =+A62*45% -> -70810.12911 | J62: =+A62*35% -> -55074.54487 | P62: =SUM(D62:O62) -> -157355.8425
A63: =+'Inversion Inicial'!D18+'Inversion Inicial'!D20+'Inversion Inicial'!D23+'Inversion Inicial'!D24 -> 14137.39 | B63: Gastos activables | D63: =+A63*65% -> 9189.3035 | G63: =+A63*35% -> 4948.0865 | P63: =SUM(D63:O63) -> 14137.39
B64: IVA obras | D64: =(+D62+D63)*21% -> -4679.191649 | G64: =(+G62+G63)*21% -> -13831.02895 | I64: =+I67*21% -> -1524.6 | J64: =+(J62+J63)*21% -> -11565.65442 | P64: =SUM(D64:O64) -> -31600.47502
B65: =+'Inversion Inicial'!C19 -> Impuesto sobre las obras (ICIO) | D65: =-'Inversion Inicial'!D19 -> -4426.8
B66: IVA obras
A67: =-'Inversion Inicial'!E32-'Inversion Inicial'!E33 -> -7260 | B67: Equipamiento y Mobiliario | I67: =+A67 -> -7260 | P67: =SUM(D67:O67) -> -7260
B68: Recuperacion IVA soportado | O68: =-P64 -> 31600.47502
B69: Total pago inversiones | D69: =SUM(D60:D68) -> -31387.85664 | E69: =SUM(E60:E68) -> 0 | F69: =SUM(F60:F68) -> 0 | G69: =SUM(G60:G68) -> -79693.07156 | H69: =SUM(H60:H68) -> 0 | I69: =SUM(I60:I68) -> -8784.6 | J69: =SUM(J60:J68) -> -66640.19929 | K69: =SUM(K60:K68) -> 0 | L69: =SUM(L60:L68) -> 0 | M69: =SUM(M60:M68) -> -1285800 | N69: =SUM(N60:N68) -> 0 | O69: =SUM(O60:O68) -> 31600.47502 | P69: =SUM(D69:O69) -> -1440705.252
B71: Flujo de caja financiero | D71: =+D39+D57+D69 -> 275492.518 | E71: =+E39+E57+E69 -> 286866.0887 | F71: =+F39+F57+F69 -> 298239.6493 | G71: =+G39+G57+G69 -> 452037.5084 | H71: =+H39+H57+H69 -> 460527.209 | I71: =+I39+I57+I69 -> 460231.0797 | J71: =+J39+J57+J69 -> 402078.1111 | K71: =+K39+K57+K69 -> 709914.1017 | L71: =+L39+L57+L69 -> 717573.8524 | M71: =+M39+M57+M69 -> 112951.573 | N71: =+N39+N57+N69 -> 123252.6224 | O71: =+O39+O57+O69 -> 165152.8968

Sheet Flujo de caja 2025
B1: FLUJO DE CAJA 2025 | D1: ENE | E1: FEB | F1: MAR | G1: ABR | H1: MAY | I1: JUN | J1: JUL | K1: AGO | L1: SEP | M1: OCT | N1: NOV | O1: DIC | P1: Total
B3: Saldo inicial | D3: =+'Flujo caja 2024'!P3 -> 165152.8968 | E3: =+D70 -> 166024.0917 | F3: =+E70 -> 166894.0265 | G3: =+F70 -> 167762.6913 | H3: =+G70 -> 168630.0962 | I3: =+H70 -> 169496.231 | J3: =+I70 -> 170361.0859 | K3: =+J70 -> 169924.6707 | L3: =+K70 -> 169486.9755 | M3: =+L70 -> 169047.9904 | N3: =+M70 -> 168607.7252 | O3: =+N70 -> 168166.1701 | P3: =+O70 -> 167723.3149
B5: Ingresos
B6: 700 VENTAS DE MERCADERÍAS | D6: =+'P&G'!G9/12 -> 116250.1942 | E6: =+D6 -> 116250.1942 | F6: =+E6 -> 116250.1942 | G6: =+F6 -> 116250.1942 | H6: =+G6 -> 116250.1942 | I6: =+H6 -> 116250.1942 | J6: =+I6 -> 116250.1942 | K6: =+J6 -> 116250.1942 | L6: =+K6 -> 116250.1942 | M6: =+L6 -> 116250.1942 | N6: =+M6 -> 116250.1942 | O6: =+N6 -> 116250.1942 | P6: =SUM(D6:O6) -> 1395002.33
B7: 705 PRESTACIONES DE SERVICIOS | D7: =+'P&G'!G10/12 -> 10740.90515 | E7: =+D7 -> 10740.90515 | F7: =+E7 -> 10740.90515 | G7: =+F7 -> 10740.90515 | H7: =+G7 -> 10740.90515 | I7: =+H7 -> 10740.90515 | J7: =+I7 -> 10740.90515 | K7: =+J7 -> 10740.90515 | L7: =+K7 -> 10740.90515 | M7: =+L7 -> 10740.90515 | N7: =+M7 -> 10740.90515 | O7: =+N7 -> 10740.90515 | P7: =SUM(D7:O7) -> 128890.8618
B8: 700 VENTAS DOMINGOS | D8: =IF('Ingresos (y simuladores)'!$B$17=1,1200*3,0) -> 0 | E8: =IF('Ingresos (y simuladores)'!$B$17=1,1200*4,0) -> 0 | F8: =IF('Ingresos (y simuladores)'!$B$17=1,1200*5,0) -> 0 | G8: =IF('Ingresos (y simuladores)'!$B$17=1,1200*4,0) -> 0 | H8: =IF('Ingresos (y simuladores)'!$B$17=1,1200*4,0) -> 0 | I8: =IF('Ingresos (y simuladores)'!$B$17=1,1200*5,0) -> 0 | J8: =IF('Ingresos (y simuladores)'!$B$17=1,1200*5,0) -> 0 | K8: =IF('Ingresos (y simuladores)'!$B$17=1,1200*0,0) -> 0 | L8: =IF('Ingresos (y simuladores)'!$B$17=1,1200*4,0) -> 0 | M8: =IF('Ingresos (y simuladores)'!$B$17=1,1200*5,0) -> 0 | N8: =IF('Ingresos (y simuladores)'!$B$17=1,1200*4,0) -> 0 | O8: =IF('Ingresos (y simuladores)'!$B$17=1,1200*3,0) -> 0 | P8: =SUM(D8:O8) -> 0
B9: 706 ALQUILER ESPACIO | D9: 750 | E9: 750 | F9: 750 | G9: 750 | H9: 750 | I9: 750 | J9: 750 | K9: 750 | L9: 750 | M9: 750 | N9: 750 | O9: 750 | P9: =SUM(D9:O9) -> 9000
B10: 720 DONACIONES PARTICULARES | L10: ='Ingresos (y simuladores)'!B7 -> 0 | M10: ='Ingresos (y simuladores)'!$B$7 -> 0 | N10: ='Ingresos (y simuladores)'!$B$7 -> 0 | O10: ='Ingresos (y simuladores)'!$B$7 -> 0 | P10: =SUM(D10:O10) -> 0
B11: 740 SUBVENCIONES, DONACIONES Y LE | D11: =+'P&G'!G25/12 -> 2659.0125 | E11: =+D11 -> 2659.0125 | F11: =+E11 -> 2659.0125 | G11: =+F11 -> 2659.0125 | H11: =+G11 -> 2659.0125 | I11: =+H11 -> 2659.0125 | J11: =+I11 -> 2659.0125 | K11: =+J11 -> 2659.0125 | L11: =+K11 -> 2659.0125 | M11: =+L11 -> 2659.0125 | N11: =+M11 -> 2659.0125 | O11: =+N11 -> 2659.0125 | P11: =SUM(D11:O11) -> 31908.15
B12: Otros ingresos de explotación | P12: =SUM(D12:O12) -> 0
B13: Total Ingresos | D13: =SUM(D6:D12) -> 130400.1118 | E13: =SUM(E6:E12) -> 130400.1118 | F13: =SUM(F6:F12) -> 130400.1118 | G13: =SUM(G6:G12) -> 130400.1118 | H13: =SUM(H6:H12) -> 130400.1118 | I13: =SUM(I6:I12) -> 130400.1118 | J13: =SUM(J6:J12) -> 130400.1118 | K13: =SUM(K6:K12) -> 130400.1118 | L13: =SUM(L6:L12) -> 130400.1118 | M13: =SUM(M6:M12) -> 130400.1118 | N13: =SUM(N6:N12) -> 130400.1118 | O13: =SUM(O6:O12) -> 130400.1118 | P13: =SUM(P6:P12) -> 1564801.342
B15: Gastos
B16: 600 COMPRAS DE MERCADERÍAS | D16: =+'P&G'!G17/12 -> -66658.80398 | E16: =+D16 -> -66658.80398 | F16: =+E16 -> -66658.80398 | G16: =+F16 -> -66658.80398 | H16: =+G16 -> -66658.80398 | I16: =+H16 -> -66658.80398 | J16: =+I16 -> -66658.80398 | K16: =+J16 -> -66658.80398 | L16: =+K16 -> -66658.80398 | M16: =+L16 -> -66658.80398 | N16: =+M16 -> -66658.80398 | O16: =+N16 -> -66658.80398 | P16: =SUM(D16:O16) -> -799905.6478
B17: 600 COMPRAS DOMINGOS | D17: =-D8*0.7 -> 0 | E17: =-E8*0.7 -> 0 | F17: =-F8*0.7 -> 0 | G17: =-G8*0.7 -> 0 | H17: =-H8*0.7 -> 0 | I17: =-I8*0.7 -> 0 | J17: =-J8*0.7 -> 0 | K17: =-K8*0.7 -> 0 | L17: =-L8*0.7 -> 0 | M17: =-M8*0.7 -> 0 | N17: =-N8*0.7 -> 0 | O17: =-O8*0.7 -> 0 | P17: =SUM(D17:O17) -> 0
B18: 607 TRABAJOS REALIZADOS POR OTRAS | D18: =+'P&G'!G18/12 -> -4283.194144 | E18: =+D18 -> -4283.194144 | F18: =+E18 -> -4283.194144 | G18: =+F18 -> -4283.194144 | H18: =+G18 -> -4283.194144 | I18: =+H18 -> -4283.194144 | J18: =+I18 -> -4283.194144 | K18: =+J18 -> -4283.194144 | L18: =+K18 -> -4283.194144 | M18: =+L18 -> -4283.194144 | N18: =+M18 -> -4283.194144 | O18: =+N18 -> -4283.194144 | P18: =SUM(D18:O18) -> -51398.32973
B19: 640 SUELDOS Y SALARIOS | D19: =+'P&G'!G27/12 -> -29335.21941 | E19: =+D19 -> -29335.21941 | F19: =+E19 -> -29335.21941 | G19: =+F19 -> -29335.21941 | H19: =+G19 -> -29335.21941 | I19: =+H19 -> -29335.21941 | J19: =+I19 -> -29335.21941 | K19: =+J19 -> -29335.21941 | L19: =+K19 -> -29335.21941 | M19: =+L19 -> -29335.21941 | N19: =+M19 -> -29335.21941 | O19: =+N19 -> -29335.21941 | P19: =SUM(D19:O19) -> -352022.6329
B20: 642 SEGURIDAD SOCIAL A CARGO DE L | D20: =+'P&G'!G28/12 -> -9186.463844 | E20: =+D20 -> -9186.463844 | F20: =+E20 -> -9186.463844 | G20: =+F20 -> -9186.463844 | H20: =+G20 -> -9186.463844 | I20: =+H20 -> -9186.463844 | J20: =+I20 -> -9186.463844 | K20: =+J20 -> -9186.463844 | L20: =+K20 -> -9186.463844 | M20: =+L20 -> -9186.463844 | N20: =+M20 -> -9186.463844 | O20: =+N20 -> -9186.463844 | P20: =SUM(D20:O20) -> -110237.5661
B21: 621 ARRENDAMIENTOS Y CÁNONES | D21: -950 | E21: =+D21 -> -950 | F21: =+E21 -> -950 | G21: =+F21 -> -950 | H21: =+G21 -> -950 | I21: =+H21 -> -950 | J21: =+I21 -> -950 | K21: =+J21 -> -950 | L21: =+K21 -> -950 | M21: =+L21 -> -950 | N21: =+M21 -> -950 | O21: =+N21 -> -950 | P21: =SUM(D21:O21) -> -11400
B22: 622 REPARACIONES Y CONSERVACIÓN | D22: =+'P&G'!G31/12 -> -616.7296667 | E22: =+D22 -> -616.7296667 | F22: =+E22 -> -616.7296667 | G22: =+F22 -> -616.7296667 | H22: =+G22 -> -616.7296667 | I22: =+H22 -> -616.7296667 | J22: =+I22 -> -616.7296667 | K22: =+J22 -> -616.7296667 | L22: =+K22 -> -616.7296667 | M22: =+L22 -> -616.7296667 | N22: =+M22 -> -616.7296667 | O22: =+N22 -> -616.7296667 | P22: =SUM(D22:O22) -> -7400.756
B23: 623 SERVICIOS DE PROFESIONALES IN | D23: =+'P&G'!G32/12 -> -595.1299658 | E23: =+D23 -> -595.1299658 | F23: =+E23 -> -595.1299658 | G23: =+F23 -> -595.1299658 | H23: =+G23 -> -595.1299658 | I23: =+H23 -> -595.1299658 | J23: =+I23 -> -595.1299658 | K23: =+J23 -> -595.1299658 | L23: =+K23 -> -595.1299658 | M23: =+L23 -> -595.1299658 | N23: =+M23 -> -595.1299658 | O23: =+N23 -> -595.1299658 | P23: =SUM(D23:O23) -> -7141.55959
B24: 624 TRANSPORTES | D24: =+'P&G'!G33/12 -> -3255.311052 | E24: =+D24 -> -3255.311052 | F24: =+E24 -> -3255.311052 | G24: =+F24 -> -3255.311052 | H24: =+G24 -> -3255.311052 | I24: =+H24 -> -3255.311052 | J24: =+I24 -> -3255.311052 | K24: =+J24 -> -3255.311052 | L24: =+K24 -> -3255.311052 | M24: =+L24 -> -3255.311052 | N24: =+M24 -> -3255.311052 | O24: =+N24 -> -3255.311052 | P24: =SUM(D24:O24) -> -39063.73262
B25: 625 PRIMAS DE SEGUROS | D25: =+'P&G'!G34/12 -> -101.5800592 | E25: =+D25 -> -101.5800592 | F25: =+E25 -> -101.5800592 | G25: =+F25 -> -101.5800592 | H25: =+G25 -> -101.5800592 | I25: =+H25 -> -101.5800592 | J25: =+I25 -> -101.5800592 | K25: =+J25 -> -101.5800592 | L25: =+K25 -> -101.5800592 | M25: =+L25 -> -101.5800592 | N25: =+M25 -> -101.5800592 | O25: =+N25 -> -101.5800592 | P25: =SUM(D25:O25) -> -1218.96071
B26: 626 SERVICIOS BANCARIOS Y SIMILAR | D26: =+'P&G'!G35/12 -> -646.8325325 | E26: =+D26 -> -646.8325325 | F26: =+E26 -> -646.8325325 | G26: =+F26 -> -646.8325325 | H26: =+G26 -> -646.8325325 | I26: =+H26 -> -646.8325325 | J26: =+I26 -> -646.8325325 | K26: =+J26 -> -646.8325325 | L26: =+K26 -> -646.8325325 | M26: =+L26 -> -646.8325325 | N26: =+M26 -> -646.8325325 | O26: =+N26 -> -646.8325325 | P26: =SUM(D26:O26) -> -7761.99039
B27: 627 PUBLICIDAD, PROPAGANDA Y RELA | D27: =+'P&G'!G36/12 -> -60.79489167 | E27: =+D27 -> -60.79489167 | F27: =+E27 -> -60.79489167 | G27: =+F27 -> -60.79489167 | H27: =+G27 -> -60.79489167 | I27: =+H27 -> -60.79489167 | J27: =+I27 -> -60.79489167 | K27: =+J27 -> -60.79489167 | L27: =+K27 -> -60.79489167 | M27: =+L27 -> -60.79489167 | N27: =+M27 -> -60.79489167 | O27: =+N27 -> -60.79489167 | P27: =SUM(D27:O27) -> -729.5387
B28: 628 SUMINISTROS | D28: =+'P&G'!G37/12 -> -496.2049033 | E28: =+D28 -> -496.2049033 | F28: =+E28 -> -496.2049033 | G28: =+F28 -> -496.2049033 | H28: =+G28 -> -496.2049033 | I28: =+H28 -> -496.2049033 | J28: =+I28 -> -496.2049033 | K28: =+J28 -> -496.2049033 | L28: =+K28 -> -496.2049033 | M28: =+L28 -> -496.2049033 | N28: =+M28 -> -496.2049033 | O28: =+N28 -> -496.2049033 | P28: =SUM(D28:O28) -> -5954.45884
B29: 629 OTROS SERVICIOS | D29: =+'P&G'!G38/12 -> -6509.194523 | E29: =+D29 -> -6509.194523 | F29: =+E29 -> -6509.194523 | G29: =+F29 -> -6509.194523 | H29: =+G29 -> -6509.194523 | I29: =+H29 -> -6509.194523 | J29: =+I29 -> -6509.194523 | K29: =+J29 -> -6509.194523 | L29: =+K29 -> -6509.194523 | M29: =+L29 -> -6509.194523 | N29: =+M29 -> -6509.194523 | O29: =+N29 -> -6509.194523 | P29: =SUM(D29:O29) -> -78110.33428
B30: 631 OTROS TRIBUTOS | D30: =+'P&G'!G39/12 -> -458.1379917 | E30: =+D30 -> -458.1379917 | F30: =+E30 -> -458.1379917 | G30: =+F30 -> -458.1379917 | H30: =+G30 -> -458.1379917 | I30: =+H30 -> -458.1379917 | J30: =+I30 -> -458.1379917 | K30: =+J30 -> -458.1379917 | L30: =+K30 -> -458.1379917 | M30: =+L30 -> -458.1379917 | N30: =+M30 -> -458.1379917 | O30: =+N30 -> -458.1379917 | P30: =SUM(D30:O30) -> -5497.6559
B31: 634 AJUSTES NEGATIVOS PRORRATA IVA
B36: Total Gastos | D36: =SUM(D16:D30) -> -123153.597 | E36: =SUM(E16:E30) -> -123153.597 | F36: =SUM(F16:F30) -> -123153.597 | G36: =SUM(G16:G30) -> -123153.597 | H36: =SUM(H16:H30) -> -123153.597 | I36: =SUM(I16:I30) -> -123153.597 | J36: =SUM(J16:J30) -> -123153.597 | K36: =SUM(K16:K30) -> -123153.597 | L36: =SUM(L16:L30) -> -123153.597 | M36: =SUM(M16:M30) -> -123153.597 | N36: =SUM(N16:N30) -> -123153.597 | O36: =SUM(O16:O30) -> -123153.597 | P36: =SUM(P16:P30) -> -1477843.164
B38: Flujo de caja económico | D38: =D3+D13+D36 -> 172399.4117 | E38: =E3+E13+E36 -> 173270.6065 | F38: =F3+F13+F36 -> 174140.5413 | G38: =G3+G13+G36 -> 175009.2062 | H38: =H3+H13+H36 -> 175876.611 | I38: =I3+I13+I36 -> 176742.7459 | J38: =J3+J13+J36 -> 177607.6007 | K38: =K3+K13+K36 -> 177171.1855 | L38: =L3+L13+L36 -> 176733.4904 | M38: =M3+M13+M36 -> 176294.5052 | N38: =N3+N13+N36 -> 175854.2401 | O38: =O3+O13+O36 -> 175412.6849 | P38: =+P13+P36 -> 86958.17808
B40: Financiamiento
B41: Prestamos | D41: =SUM(D42:D44) -> 0 | E41: =SUM(E42:E44) -> 0 | F41: =SUM(F42:F44) -> 0 | G41: =SUM(G42:G44) -> 0 | H41: =SUM(H42:H44) -> 0 | I41: =SUM(I42:I44) -> 0 | J41: =SUM(J42:J44) -> 0 | K41: =SUM(K42:K44) -> 0 | L41: =SUM(L42:L44) -> 0 | M41: =SUM(M42:M44) -> 0 | N41: =SUM(N42:N44) -> 0 | O41: =SUM(O42:O44) -> 0
C42: Prestamo 225
C43: Prestamo 675
C44: Deuda a LP
B45: Amortizaciòn prestamos | D45: =SUM(D46:D49) -> -4769.06 | E45: =SUM(E46:E49) -> -4781.01 | F45: =SUM(F46:F49) -> -4792.99 | G45: =SUM(G46:G49) -> -4805 | H45: =SUM(H46:H49) -> -4817.04 | I45: =SUM(I46:I49) -> -4829.11 | J45: =SUM(J46:J49) -> -4841.21 | K45: =SUM(K46:K49) -> -4853.34 | L45: =SUM(L46:L49) -> -4865.51 | M45: =SUM(M46:M49) -> -4877.69 | N45: =SUM(N46:N49) -> -4889.91 | O45: =SUM(O46:O49) -> -4902.18 | P45: =SUM(D45:O45) -> -58024.05
C46: ANTERIOR | D46: -2321.16 | E46: -2326.48 | F46: -2331.81 | G46: -2337.15 | H46: -2342.51 | I46: -2347.88 | J46: -2353.26 | K46: -2358.65 | L46: -2364.06 | M46: -2369.47 | N46: -2374.9 | O46: -2380.35 | P46: =SUM(D46:O46) -> -28207.68
C47: Prestamo 225 | D47: =-Financiacion!$H30 -> -2447.9 | E47: =-Financiacion!$H31 -> -2454.53 | F47: =-Financiacion!$H32 -> -2461.18 | G47: =-Financiacion!H33 -> -2467.85 | H47: =-Financiacion!$H34 -> -2474.53 | I47: =-Financiacion!$H35 -> -2481.23 | J47: =-Financiacion!$H36 -> -2487.95 | K47: =-Financiacion!$H37 -> -2494.69 | L47: =-Financiacion!$H38 -> -2501.45 | M47: =-Financiacion!$H39 -> -2508.22 | N47: =-Financiacion!$H40 -> -2515.01 | O47: =-Financiacion!$H41 -> -2521.83 | P47: =SUM(D47:O47) -> -29816.37
C48: Prestamo 675 | P48: =SUM(D48:O48) -> 0
C49: Deuda a LP | P49: =SUM(D49:O49) -> 0
B50: Interese prestamos | D50: =SUM(D51:D54) -> -1606.26 | E50: =SUM(E51:E54) -> -1595.57 | F50: =SUM(F51:F54) -> -1584.86 | G50: =SUM(G51:G54) -> -1574.11 | H50: =SUM(H51:H54) -> -1563.34 | I50: =SUM(I51:I54) -> -1552.55 | J50: =SUM(J51:J54) -> -2841.72 | K50: =SUM(K51:K54) -> -2830.87 | L50: =SUM(L51:L54) -> -2819.99 | M50: =SUM(M51:M54) -> -2809.09 | N50: =SUM(N51:N54) -> -2798.16 | O50: =SUM(O51:O54) -> -2787.19 | P50: =SUM(D50:O50) -> -26363.71
C51: ANTERIOR | D51: -329.56 | E51: -324.24 | F51: -318.91 | G51: -313.57 | H51: -308.21 | I51: -302.84 | J51: -297.46 | K51: -292.07 | L51: -286.66 | M51: -281.25 | N51: -275.82 | O51: -270.37 | P51: =SUM(D51:O51) -> -3600.96
C52: Prestamo 225 | D52: =-Financiacion!$K30 -> -445.91 | E52: =-Financiacion!$K31 -> -440.54 | F52: =-Financiacion!$K32 -> -435.16 | G52: =-Financiacion!$K33 -> -429.75 | H52: =-Financiacion!$K34 -> -424.34 | I52: =-Financiacion!$K35 -> -418.92 | J52: =-Financiacion!$K36 -> -413.47 | K52: =-Financiacion!$K37 -> -408.01 | L52: =-Financiacion!$K38 -> -402.54 | M52: =-Financiacion!$K39 -> -397.05 | N52: =-Financiacion!$K40 -> -391.55 | O52: =-Financiacion!$K41 -> -386.03 | P52: =SUM(D52:O52) -> -4993.27
C53: Prestamo 675 | D53: =+M53 -> -1480.79 | E53: =+D53 -> -1480.79 | F53: =+E53 -> -1480.79 | G53: =+F53 -> -1480.79 | H53: =+G53 -> -1480.79 | I53: =+H53 -> -1480.79 | J53: =+I53 -> -1480.79 | K53: =+J53 -> -1480.79 | L53: =+K53 -> -1480.79 | M53: =-Financiacion!U21 -> -1480.79 | N53: =+M53 -> -1480.79 | O53: =+N53 -> -1480.79 | P53: =SUM(D53:O53) -> -17769.48
C54: Deuda a LP | D54: 650 | E54: 650 | F54: 650 | G54: 650 | H54: 650 | I54: 650 | J54: =-Financiacion!AE22 -> -650 | K54: =-Financiacion!AF22 -> -650 | L54: =+K54 -> -650 | M54: =+L54 -> -650 | N54: =+M54 -> -650 | O54: =+N54 -> -650 | P54: =SUM(D54:O54) -> 0
P55: =SUM(D55:O55) -> 0
B56: Total Financiamiento | D56: =+D41+D45+D50 -> -6375.32 | E56: =+E41+E45+E50 -> -6376.58 | F56: =+F41+F45+F50 -> -6377.85 | G56: =+G41+G45+G50 -> -6379.11 | H56: =+H41+H45+H50 -> -6380.38 | I56: =+I41+I45+I50 -> -6381.66 | J56: =+J41+J45+J50 -> -7682.93 | K56: =+K41+K45+K50 -> -7684.21 | L56: =+L41+L45+L50 -> -7685.5 | M56: =+M41+M45+M50 -> -7686.78 | N56: =+N41+N45+N50 -> -7688.07 | O56: =+O41+O45+O50 -> -7689.37 | P56: =SUM(D56:O56) -> -84387.76
B58: Pago inversiones
B59: Compra Local | P59: =SUM(D59:O59) -> 0
B60: Impuestos compra y Fondo Garatía | P60: =SUM(D60:O60) -> 0
B61: Reforma del local (Obra + Fondo de desviaciones) | D61: =+A61*20% -> 0 | G61: =+A61*45% -> 0 | J61: =+A61*35% -> 0 | P61: =SUM(D61:O61) -> 0
B62: Gastos activables | D62: =+A62*65% -> 0 | G62: =+A62*35% -> 0 | P62: =SUM(D62:O62) -> 0
B63: IVA obras | D63: =(+D61+D62)*21% -> 0 | G63: =(+G61+G62)*21% -> 0 | I63: =+I66*21% -> 0 | J63: =+(J61+J62)*21% -> 0 | P63: =SUM(D63:O63) -> 0
B64: =+'Inversion Inicial'!C19 -> Impuesto sobre las obras (ICIO)
B65: IVA obras
A66: 0 | B66: Equipamiento y Mobiliario | I66: =+A66 -> 0 | P66: =SUM(D66:O66) -> 0
B67: Recuperacion IVA soportado | O67: =-P63 -> 0
B68: Total pago inversiones | D68: =SUM(D59:D67) -> 0 | E68: =SUM(E59:E67) -> 0 | F68: =SUM(F59:F67) -> 0 | G68: =SUM(G59:G67) -> 0 | H68: =SUM(H59:H67) -> 0 | I68: =SUM(I59:I67) -> 0 | J68: =SUM(J59:J67) -> 0 | K68: =SUM(K59:K67) -> 0 | L68: =SUM(L59:L67) -> 0 | M68: =SUM(M59:M67) -> 0 | N68: =SUM(N59:N67) -> 0 | O68: =SUM(O59:O67) -> 0 | P68: =SUM(D68:O68) -> 0
B70: Flujo de caja financiero | D70: =+D38+D56+D68 -> 166024.0917 | E70: =+E38+E56+E68 -> 166894.0265 | F70: =+F38+F56+F68 -> 167762.6913 | G70: =+G38+G56+G68 -> 168630.0962 | H70: =+H38+H56+H68 -> 169496.231 | I70: =+I38+I56+I68 -> 170361.0859 | J70: =+J38+J56+J68 -> 169924.6707 | K70: =+K38+K56+K68 -> 169486.9755 | L70: =+L38+L56+L68 -> 169047.9904 | M70: =+M38+M56+M68 -> 168607.7252 | N70: =+N38+N56+N68 -> 168166.1701 | O70: =+O38+O56+O68 -> 167723.3149

Sheet P&G
A1: Cuenta de Pérdidas y Ganancias
A3: Empresa: ASOC. CULTURAL TRAFICANTES DE SUEÑOS | D3: % SALARIOS | G3: 0.025 | H3: 0.025 | I3: 0.025 | J3: 0.025
A4: Período: de Enero a Diciembre | D4: IPC | F4: 0.025 | G4: 0.025 | H4: 0.025 | I4: 0.025 | J4: 0.025
D5: Incremento ingresos | F5: ='Ingresos (y simuladores)'!C16 -> 0.03 | G5: ='Ingresos (y simuladores)'!D16 -> 0.1 | H5: ='Ingresos (y simuladores)'!E16 -> 0.1 | I5: ='Ingresos (y simuladores)'!F16 -> 0.05 | J5: ='Ingresos (y simuladores)'!G16 -> 0.05
A6: Cuenta de Pérdidas y Ganancias | B6: 2020 | C6: 2021 | D6: 2022 | E6: 2023 | F6: 2024 | G6: 2025 | H6: 2026 | I6: 2027 | J6: 2028
A8: 1. Importe neto de la cifra de negocios | B8: =SUM(B9:B10) -> 1048851.88 | C8: =SUM(C9:C10) -> 1229593.78 | D8: =SUM(D9:D10) -> 1208924.92 | E8: =SUM(E9:E10) -> 1345007.23 | F8: =SUM(F9:F12) -> 1388357.447 | G8: =SUM(G9:G12) -> 1532893.192 | H8: =SUM(H9:H12) -> 1685462.511 | I8: =SUM(I9:I12) -> 1769460.236 | J8: =SUM(J9:J12) -> 1857652.34 | K8: =+F8-'Flujo caja 2024'!P14+F21 -> 0
A9: 700 VENTAS DE MERCADERÍAS | B9: 986033.94 | C9: 1133292.84 | D9: 1089157.9 | E9: 1231246.54 | F9: =E9*(1+F$5) -> 1268183.936 | G9: =F9*(1+G$5) -> 1395002.33 | H9: =G9*(1+H$5) -> 1534502.563 | I9: =H9*(1+I$5) -> 1611227.691 | J9: =I9*(1+J$5) -> 1691789.075
A10: 705 PRESTACIONES DE SERVICIOS | B10: 62817.94 | C10: 96300.94 | D10: 119767.02 | E10: 113760.69 | F10: =E10*(1+F$5) -> 117173.5107 | G10: =F10*(1+G$5) -> 128890.8618 | H10: =G10*(1+H$5) -> 141779.9479 | I10: =H10*(1+I$5) -> 148868.9453 | J10: =I10*(1+J$5) -> 156312.3926
A11: ALQUILER ESPACIO | F11: =+'Ingresos (y simuladores)'!C7 -> 3000 | G11: =+'Ingresos (y simuladores)'!D7 -> 9000 | H11: =+'Ingresos (y simuladores)'!E7 -> 9180 | I11: =+'Ingresos (y simuladores)'!F7 -> 9363.6 | J11: =+'Ingresos (y simuladores)'!G7 -> 9550.872
A12: APERTURA DOMINGOS | F12: =+'Ingresos (y simuladores)'!C8 -> 0 | G12: =+'Ingresos (y simuladores)'!D8 -> 0 | H12: =+'Ingresos (y simuladores)'!E8 -> 0 | I12: =+'Ingresos (y simuladores)'!F8 -> 0 | J12: =+'Ingresos (y simuladores)'!G8 -> 0
A13: 2. Variac.de existencias de produc.terminados e | B13: =SUM(B14:B15) -> 45019.2 | C13: =SUM(C14:C15) -> 80668.49 | D13: =SUM(D14:D15) -> 21257.24 | E13: =SUM(E14:E15) -> 21257.24 | F13: =SUM(F14:F15) -> 21257.24 | G13: =SUM(G14:G15) -> 0 | H13: =SUM(H14:H15) -> 0 | I13: =SUM(I14:I15) -> 0 | J13: =SUM(J14:J15) -> 0
A14: 712 VARIACIÓN DE EXISTENCIAS DE P | B14: 20019.2 | C14: 16698.7 | D14: 21257.24 | E14: =+D14 -> 21257.24 | F14: 21257.24
A15: 793 REVERSIÓN DEL DETERIORO DE EX | B15: 25000 | C15: 63969.79 | D15: 0
A16: 4. Aprovisionamientos | B16: =SUM(B17:B20) -> -686217.3 | C16: =SUM(C17:C20) -> -783279.7 | D16: =SUM(D17:D20) -> -749596.72 | E16: =SUM(E17:E20) -> -751371.56 | F16: =SUM(F17:F20) -> -773912.7068 | G16: =SUM(G17:G20) -> -851303.9775 | H16: =SUM(H17:H20) -> -936434.3752 | I16: =SUM(I17:I20) -> -983256.094 | J16: =SUM(J17:J20) -> -1032418.899
A17: 600 COMPRAS DE MERCADERÍAS | B17: -507127.61 | C17: -561566.5 | D17: -703130.77 | E17: -706006.75 | F17: =E17*(1+F$5) -> -727186.9525 | G17: =F17*(1+G$5) -> -799905.6478 | H17: =G17*(1+H$5) -> -879896.2125 | I17: =H17*(1+I$5) -> -923891.0232 | J17: =I17*(1+J$5) -> -970085.5743 | K17: =+F17-'Flujo caja 2024'!P17 -> 0
A18: 607 TRABAJOS REALIZADOS POR OTRAS | B18: -119695.17 | C18: -148179.35 | D18: -46465.95 | E18: -45364.81 | F18: =E18*(1+F$5) -> -46725.7543 | G18: =F18*(1+G$5) -> -51398.32973 | H18: =G18*(1+H$5) -> -56538.1627 | I18: =H18*(1+I$5) -> -59365.07084 | J18: =I18*(1+J$5) -> -62333.32438 | K18: =+F18-'Flujo caja 2024'!P19 -> 0
A19: 610 VARIACIÓN DE EXISTENCIAS DE M | B19: 14235 | C19: 14851.89 | D19: 0 | E19: 0 | F19: 0 | G19: 0 | H19: 0 | I19: 0 | J19: 0
A20: 693 PÉRDIDAS POR DETERIORO DE EXI | B20: =-9659.73-63969.79 -> -73629.52 | C20: -88385.74 | D20: 0 | E20: 0 | F20: 0 | G20: 0 | H20: 0 | I20: 0 | J20: 0
A21: 5. Otros ingresos de explotación | B21: =B23+B25 -> 85760.89 | C21: =C23+C25 -> 73163.26 | D21: =D23+D25 -> 88557.55 | E21: =E23+E25 -> 31908.15 | F21: =SUM(F22:F25) -> 181908.15 | G21: =SUM(G22:G25) -> 31908.15 | H21: =SUM(H22:H25) -> 31908.15 | I21: =SUM(I22:I25) -> 31908.15 | J21: =SUM(J22:J25) -> 31908.15
A22: b) Otros ingresos | B22: =B25 -> 85760.89 | C22: =C25 -> 61128.26 | D22: =D25 -> 87557.55
A23: 720 DONACIONES PARTICULARES | B23: 0 | C23: 12035 | D23: 1000 | E23: 0 | F23: =+'Ingresos (y simuladores)'!C9 -> 100000 | G23: =+'Ingresos (y simuladores)'!D9 -> 0 | H23: =+'Ingresos (y simuladores)'!E9 -> 0 | I23: =+'Ingresos (y simuladores)'!F9 -> 0 | J23: =+'Ingresos (y simuladores)'!G9 -> 0
A24: 720 CROWFUNDING | F24: =+'Ingresos (y simuladores)'!C10 -> 50000 | G24: =+'Ingresos (y simuladores)'!D10 -> 0 | H24: =+'Ingresos (y simuladores)'!E10 -> 0 | I24: =+'Ingresos (y simuladores)'!F10 -> 0 | J24: =+'Ingresos (y simuladores)'!G10 -> 0
A25: 740 SUBVENCIONES, DONACIONES Y LE | B25: 85760.89 | C25: 61128.26 | D25: 87557.55 | E25: 31908.15 | F25: =+'Ingresos (y simuladores)'!C11 -> 31908.15 | G25: =+'Ingresos (y simuladores)'!D11 -> 31908.15 | H25: =+'Ingresos (y simuladores)'!E11 -> 31908.15 | I25: =+'Ingresos (y simuladores)'!F11 -> 31908.15 | J25: =+'Ingresos (y simuladores)'!G11 -> 31908.15
A26: 6. Gastos de personal | B26: =SUM(B27:B28) -> -229235.19 | C26: =SUM(C27:C28) -> -303356.08 | D26: =SUM(D27:D28) -> -399062.74 | E26: =SUM(E27:E28) -> -400438.63 | F26: =SUM(F27:F28) -> -450985.56 | G26: =SUM(G27:G28) -> -462260.199 | H26: =SUM(H27:H28) -> -473816.704 | I26: =SUM(I27:I28) -> -485662.1216 | J26: =SUM(J27:J28) -> -497803.6746
A27: 640 SUELDOS Y SALARIOS | B27: -154105.64 | C27: -229389.5 | D27: -305454.07 | E27: -303000.57 | F27: =-'Gastos Fijos'!O35 -> -343436.715 | G27: =+F27*(1+G$4) -> -352022.6329 | H27: =+G27*(1+H$4) -> -360823.1987 | I27: =+H27*(1+I$4) -> -369843.7787 | J27: =+I27*(1+J$4) -> -379089.8731 | K27: =+F27-'Flujo caja 2024'!P20 -> 0
A28: 642 SEGURIDAD SOCIAL A CARGO DE L | B28: =-74529.55-600 -> -75129.55 | C28: -73966.58 | D28: -93608.67 | E28: -97438.06 | F28: =-'Gastos Fijos'!O36 -> -107548.845 | G28: =+F28*(1+G$4) -> -110237.5661 | H28: =+G28*(1+H$4) -> -112993.5053 | I28: =+H28*(1+I$4) -> -115818.3429 | J28: =+I28*(1+J$4) -> -118713.8015 | K28: =+F28-'Flujo caja 2024'!P21 -> 0
A29: 8. Otros gastos de explotación | B29: =SUM(B30:B43) -> -159515.27 | C29: =SUM(C30:C43) -> -179313.35 | D29: =SUM(D30:D43) -> -145857.03 | E29: =SUM(E30:E43) -> -173152.26 | F29: =SUM(F30:F43) -> -168826.7848 | G29: =SUM(G30:G43) -> -164278.987 | H29: =SUM(H30:H43) -> -180706.8857 | I29: =SUM(I30:I43) -> -189742.23 | J29: =SUM(J30:J43) -> -199229.3415
A30: 621 ARRENDAMIENTOS Y CÁNONES | B30: -12692 | C30: -23817.42 | D30: -24852.2 | E30: -36985.5 | F30: =E30*(1+F$5)/12*10+950+950 -> -29845.8875 | G30: =+'Flujo de caja 2025'!P21 -> -11400 | H30: =G30*(1+H$5) -> -12540 | I30: =H30*(1+I$5) -> -13167 | J30: =I30*(1+J$5) -> -13825.35 | K30: =+F30-'Flujo caja 2024'!P22 -> 0
A31: 622 REPARACIONES Y CONSERVACIÓN | B31: -2740.12 | C31: -6492.55 | D31: -14535.12 | E31: -6532 | F31: =E31*(1+F$5) -> -6727.96 | G31: =F31*(1+G$5) -> -7400.756 | H31: =G31*(1+H$5) -> -8140.8316 | I31: =H31*(1+I$5) -> -8547.87318 | J31: =I31*(1+J$5) -> -8975.266839 | K31: =+F31-'Flujo caja 2024'!P23 -> 0
A32: 623 SERVICIOS DE PROFESIONALES IN | B32: -4231.67 | C32: -6275.78 | D32: -12241.46 | E32: -6303.23 | F32: =E32*(1+F$5) -> -6492.3269 | G32: =F32*(1+G$5) -> -7141.55959 | H32: =G32*(1+H$5) -> -7855.715549 | I32: =H32*(1+I$5) -> -8248.501326 | J32: =I32*(1+J$5) -> -8660.926393 | K32: =+F32-'Flujo caja 2024'!P24 -> 0
A33: 624 TRANSPORTES | B33: -36529.69 | C33: -42913.76 | D33: -31114.17 | E33: -34478.14 | F33: =E33*(1+F$5) -> -35512.4842 | G33: =F33*(1+G$5) -> -39063.73262 | H33: =G33*(1+H$5) -> -42970.10588 | I33: =H33*(1+I$5) -> -45118.61118 | J33: =I33*(1+J$5) -> -47374.54173 | K33: =+F33-'Flujo caja 2024'!P25 -> 0
A34: 625 PRIMAS DE SEGUROS | B34: -861.81 | C34: -872.13 | D34: -1061.47 | E34: -1075.87 | F34: =E34*(1+F$5) -> -1108.1461 | G34: =F34*(1+G$5) -> -1218.96071 | H34: =G34*(1+H$5) -> -1340.856781 | I34: =H34*(1+I$5) -> -1407.89962 | J34: =I34*(1+J$5) -> -1478.294601 | K34: =+F34-'Flujo caja 2024'!P26 -> 0
A35: 626 SERVICIOS BANCARIOS Y SIMILAR | B35: -6973.86 | C35: -7713.68 | D35: -858.25 | E35: -6850.83 | F35: =E35*(1+F$5) -> -7056.3549 | G35: =F35*(1+G$5) -> -7761.99039 | H35: =G35*(1+H$5) -> -8538.189429 | I35: =H35*(1+I$5) -> -8965.0989 | J35: =I35*(1+J$5) -> -9413.353845 | K35: =+F35-'Flujo caja 2024'!P27 -> 0
A36: 627 PUBLICIDAD, PROPAGANDA Y RELA | B36: -3322.3 | C36: -13585.75 | D36: -643.9 | E36: =+D36 -> -643.9 | F36: =E36*(1+F$5) -> -663.217 | G36: =F36*(1+G$5) -> -729.5387 | H36: =G36*(1+H$5) -> -802.49257 | I36: =H36*(1+I$5) -> -842.6171985 | J36: =I36*(1+J$5) -> -884.7480584 | K36: =+F36-'Flujo caja 2024'!P28 -> 0
A37: 628 SUMINISTROS | B37: -3368.03 | C37: -3491.12 | D37: -5745.68 | E37: -5255.48 | F37: =E37*(1+F$5) -> -5413.1444 | G37: =F37*(1+G$5) -> -5954.45884 | H37: =G37*(1+H$5) -> -6549.904724 | I37: =H37*(1+I$5) -> -6877.39996 | J37: =I37*(1+J$5) -> -7221.269958 | K37: =+F37-'Flujo caja 2024'!P29 -> 0
A38: 629 OTROS SERVICIOS | B38: -71200.05 | C38: -50671.63 | D38: -49262.52 | E38: -68941.16 | F38: =E38*(1+F$5) -> -71009.3948 | G38: =F38*(1+G$5) -> -78110.33428 | H38: =G38*(1+H$5) -> -85921.36771 | I38: =H38*(1+I$5) -> -90217.43609 | J38: =I38*(1+J$5) -> -94728.3079 | K38: =+F38-'Flujo caja 2024'!P30 -> 0
A39: 631 OTROS TRIBUTOS | B39: -2759.12 | C39: -3315.88 | D39: -5542.26 | E39: -4852.3 | F39: =E39*(1+F$5) -> -4997.869 | G39: =F39*(1+G$5) -> -5497.6559 | H39: =G39*(1+H$5) -> -6047.42149 | I39: =H39*(1+I$5) -> -6349.792564 | J39: =I39*(1+J$5) -> -6667.282193 | K39: =+F39-'Flujo caja 2024'!P31 -> 0
A40: 634 AJUSTES NEGATIVOS PRORRATA IVA | B40: 0 | C40: -1728.27 | D40: 0 | E40: -1233.85 | F40: 0 | G40: =F40*(1+G$5) -> 0 | H40: =G40*(1+H$5) -> 0 | I40: =H40*(1+I$5) -> 0 | J40: =I40*(1+J$5) -> 0 | K40: =+F40-'Flujo caja 2024'!P32 -> 0
A41: 650 PÉRDIDAS DE CRÉDITOS COMERCIA | B41: -10098.2 | C41: -586.95 | D41: 0
A42: 659 OTRAS PÉRDIDAS EN GESTIÓN COR | C42: -17575 | D42: 0
A43: 678 GASTOS EXCEPCIONALES | B43: -4738.42 | C43: -273.43 | D43: 0
A44: 9. Amortización del inmovilizado | B44: =B45 -> -1752.5 | C44: =C45 -> -3914.09 | D44: =D45 -> -4247.1 | E44: =E45 -> -4350.89 | F44: =SUM(F45:F46) -> -16865.64745 | G44: =SUM(G45:G46) -> -42680.4049 | H44: =SUM(H45:H46) -> -42680.4049 | I44: =SUM(I45:I46) -> -42680.4049 | J44: =SUM(J45:J46) -> -42680.4049
A45: 681 AMORTIZACIÓN DEL INMOVILIZADO | B45: -1752.5 | C45: -3914.09 | D45: -4247.1 | E45: -4350.89 | F45: -4350.89 | G45: -4350.89 | H45: -4350.89 | I45: -4350.89 | J45: -4350.89
A46: 682 AMORTIZACIÓN DEL INMOVILIZADO NUEVO | F46: =-'Inversion Inicial'!H11 -> -12514.75745 | G46: =-'Inversion Inicial'!E11 -> -38329.5149 | H46: =+G46 -> -38329.5149 | I46: =+H46 -> -38329.5149 | J46: =+I46 -> -38329.5149
A47: A) RTDO.DE EXPLOTACIÓN (1+2+3+4+5+6+7+8+9+10+11+12 | B47: =+B8+B13+B16+B21+B26+B29+B44 -> 102911.71 | C47: =+C8+C13+C16+C21+C26+C29+C44 -> 113562.31 | D47: =+D8+D13+D16+D21+D26+D29+D44 -> 19976.12
A48: 14. Gastos financieros | B48: =B49 -> -7287.6 | C48: =C49 -> -6536.06 | D48: =D49 -> -5832.22 | E48: =E49 -> -5108.82 | F48: =+F49+F51 -> -16310.1 | G48: =+G49+G51 -> -34163.71 | H48: =+H49+H51 -> -32580.05 | I48: =+I49+I51 -> -30949.69 | J48: =+J49+J51 -> -28882.195
A49: 662 INTERESES DE DEUDAS | B49: -7287.6 | C49: -6536.06 | D49: -5832.22 | E49: -5108.82 | F49: -4365.24 | G49: -3600.96 | H49: -2814 | I49: -2006.64 | J49: -789.285
A50: 663 INTERESES DE DEUDAS | B50: =+B48 -> -7287.6 | C50: =+C48 -> -6536.06 | D50: =+D48 -> -5832.22
A51: 662 INTERESES NUEVOS PRESTAMOS | F51: =SUM(F52:F54) -> -11944.86 | G51: =SUM(G52:G54) -> -30562.75 | H51: =SUM(H52:H54) -> -29766.05 | I51: =SUM(I52:I54) -> -28943.05 | J51: =SUM(J52:J54) -> -28092.91
A52: Prestamo 225 | F52: =-Financiacion!F15 -> -4252.49 | G52: =-Financiacion!G15 -> -4993.27 | H52: =-Financiacion!H15 -> -4196.57 | I52: =-Financiacion!I15 -> -3373.57 | J52: =-Financiacion!J15 -> -2523.43 | K52: =+F52-'Flujo caja 2024'!P53 -> 0
A53: Prestamo 675 | F53: =-Financiacion!P15 -> -4442.37 | G53: =-Financiacion!Q15 -> -17769.48 | H53: =-Financiacion!R15 -> -17769.48 | I53: =-Financiacion!S15 -> -17769.48 | J53: =-Financiacion!T15 -> -17769.48 | K53: =+F53-'Flujo caja 2024'!P54 -> 0
A54: Deuda a LP | F54: =+'Flujo caja 2024'!P55 -> -3250 | G54: =-Financiacion!AF15 -> -7800 | H54: =-Financiacion!AG15 -> -7800 | I54: =-Financiacion!AH15 -> -7800 | J54: =-Financiacion!AI15 -> -7800 | K54: =+F54-'Flujo caja 2024'!P55 -> 0
A55: RESULTADO ANTES DE IMPUESTOS | B55: =+B47+B50 -> 95624.11 | C55: =+C47+C50 -> 107026.25 | D55: =+D47+D50 -> 14143.9 | E55: =E8+E13+E16+E21+E26+E29+E44+E48 -> 63750.46 | F55: 117973.9912 | G55: 19965.44542 | H55: 73871.92924 | I55: 173843.3258 | J55: 199058.7699
A56: 18. Impuestos sobre beneficios | B56: =B57 -> -8659.28 | C56: =C57 -> -12375.09 | D56: =D57 -> 0
A57: 630 IMPUESTO SOBRE BENEFICIOS | B57: -8659.28 | C57: -12375.09 | D57: 0
A58: RESULTADO DEL EJERCICIO | B58: =+B55+B56 -> 86964.83 | C58: =+C55+C56 -> 94651.16 | D58: =+D55+D56 -> 14143.9 | E58: =E55+E56 -> 63750.46 | F58: 117973.9912 | G58: 19965.44542 | H58: 73871.92924 | I58: 173843.3258 | J58: 199058.7699

Sheet Info_Tablas Amortizacion
A1: Tabla de coeficientes de amortización lineal
A2: NOTA: Esta tabla cambia cada año. Actualizado a 24/02/2023 fuente: https://www.iberley.es/temas/tablas-amortizacion-i-sociedades-30681
A3: Tipo de elemento | B3: Coeficiente lineal máximo | C3: Período de años máximo
A4: Obra civil
A5: Obra civil general | B5: 0.02 | C5: 100
A6: Pavimentos | B6: 0.06 | C6: 34
A7: Infraestructuras y obras mineras | B7: 0.07 | C7: 30
A8: Centrales
A9: Centrales hidráulicas | B9: 0.02 | C9: 100
A10: Centrales nucleares | B10: 0.03 | C10: 60
A11: Centrales de carbón | B11: 0.04 | C11: 50
A12: Centrales renovables | B12: 0.07 | C12: 30
A13: Otras centrales | B13: 0.05 | C13: 40
A14: Edificios
A15: Edificios industriales | B15: 0.03 | C15: 68
A16: Terrenos dedicados exclusivamente a escombreras | B16: 0.04 | C16: 50
A17: Almacenes y depósitos (gaseosos, líquidos y sólidos) | B17: 0.07 | C17: 30
A18: Edificios comerciales, administrativos, de servicios y viviendas | B18: 0.02 | C18: 100
A19: Instalaciones
A20: Subestaciones. Redes de transportes y distribución de energía | B20: 0.05 | C20: 40
A21: Cables | B21: 0.07 | C21: 30
A22: Resto instalaciones | B22: 0.1 | C22: 20
A23: Maquinaria | B23: 0.12 | C23: 18
A24: Equipos médicos y asimilados | B24: 0.15 | C24: 14
A25: Elementos de transporte
A26: Locomotoras, vagones y equipos de tracción | B26: 0.08 | C26: 25
A27: Buques, aeronaves | B27: 0.1 | C27: 20
A28: Elementos de transporte interno | B28: 0.1 | C28: 20
A29: Elementos de transporte externo | B29: 0.16 | C29: 14
A30: Autocamiones | B30: 0.2 | C30: 10
A31: Mobiliario y enseres
A32: Mobiliario | B32: 0.1 | C32: 20
A33: Lencería | B33: 0.25 | C33: 8
A34: Cristalería | B34: 0.5 | C34: 4
A35: Útiles y herramientas | B35: 0.25 | C35: 8
A36: Moldes, matrices y modelos | B36: 0.33 | C36: 6
A37: Otros enseres | B37: 0.15 | C37: 14
A38: Equipos electrónicos e informáticos. Sistemas y programas
A39: Equipos electrónicos | B39: 0.2 | C39: 10
A40: Equipos para procesos de información | B40: 0.25 | C40: 8
A41: Sistemas y programas informáticos | B41: 0.33 | C41: 6
A42: Producciones cinematográficas, fonográficas, videos y series audiovisuales | B42: 0.33 | C42: 6
A43: Otros elementos | B43: 0.1 | C43: 20
